Workbook

Sheet Titolare
B2: Titolo | S2: a) Poni Massimale Ristrutturazione = 96.000*nUimm - Importo Sismabonus (Massimale Unico)
B3: Cognome | I3: Importa Dati da Pratica110+ / Pratica.SB | S3: b) Poni Massimale Ristrutturazione = 0 (non consentire Ristrutturazione)
B4: Nome | S4: c) Consenti Ristrutturazione: Massimale = 96.000*nUimm (massimale doppio)
B5: Codice Fiscale | I5: Cumulo Sismabonus/Ristrutturazione - In presenza di Sismabonus:
B6: P.Iva | I6: 2
B7: Indirizzo
B8: CAP | I8: TRUE
B9: Città | I9: =IF(I8=FALSE,IF('Dati Gen'!E14 > DATEVALUE("16/04/2022")," Attenzione la Data di Inizio Lavori specificata: " & TEXT('Dati Gen'!E14,"GG/MM/AAAA") & " è successiva al 16/04/2022",""),"") -> 
B10: Provincia | I10: Progetto Originario: | L10: nomefile
B11: Telefono | I11: Imposta presente File come Variante a precedente progetto. Copia i SAL (30%, 60%) già registrati dal precedente progetto al presente progetto e ne impedisce la modifica. Se richiesto, in fase di creazione delle Fatture, nei SAL successivi, verrà detratto l'importo già Liquidato nei SAL precedenti.
B12: Mail
B13: Codice Univoco
B14: Mail/Pec | I14: Fatturazione Interventi Trainati U.Imm. Condominio | Q14: (Interventi Trainanti e Trainati Parti Comuni fatturati al Condominio)
A15: TRUE | I15: Imprese | Q15: 1 | S15: a) Crea 1 Fattura per ogni Condomino titolare di diritti sull'Unità Immobiliare
B16: Versione Demo | I16: Tecnici | Q16: 1 | S16: b) Crea Unica Fattura - mandato senza rappresentanza dal singolo condomino al Condominio (art.3 DPR 633/72)
B18: =IF(B16="Versione Demo","Acquista Pratica.SB","") -> Acquista Pratica.SB | I18: Opzioni Fatturazione
B19: =IF(B16="Versione Demo",HYPERLINK("https://www.madosoft.it/negozio/superbonus/praticasb"),"") -> https://www.madosoft.it/negozio/superbonus/praticasb | I19: TRUE
I20: TRUE | S20: Dati Generali Fattura Elettronica
S21: Trasmittente | T21: Dati Trasmissione
I22: NOTE | S22: IdPaese | T22: IT | U22: N.progressivo | V22: 2
B23: Guida online | C23: https://www.madosoft.it/prodotti/superbonus/pratica-sb-xlsm | I23: - Se condominio Minimo Rappresentato da Condomino indicare : CF condominio = CF Committente | S23: IdCodice | T23: 01879020517 | U23: Formato | V23: FPR12
B24: Introduzione | I24: - Se condominio rappresentato da Amministratore Tizio : Indicare tra i tecnici "Amministratore Tizio"
B25: Download
B26: Attivazione Software
B27: Dati Generali
B28: Tipologia Edificio
B29: Dati Progetto
B30: Committenti
B31: Unità Immobiliari
B32: Computo Massimali
B33: Interventi Trainanti
B34: Interventi Trainati Parti Comuni condominiali
B35: Interventi Trainanti Unità Immobiliari

Sheet Dati Gen
B1: https://www.madosoft.it/prodotti/superbonus/pratica-sb-xlsm | P1: 1 | Q1: 1
A2: 0 | K2: Pratica.SB | Q2: Condominio
B3: SUPERBONUS | D3: % Detrazione spettante | G3: 0.7 | K3: Vers.ne | L3: 2024.2.0 | M3: del 12/10/2024 | Q3: 3
B4: Tipologia Immobile | K4: ©2021-2024 SIM srl - www.madosoft.it
B5: 2 | F5: 2 | G5: 3 | H5: =IF(TipoEdif=2,"Denominazione : ","") -> Denominazione : | K5: XYZ | Q5: Edificio Unifamiliare
B6: =IF(TipoEdif=1, IF(N_Uimm>1,"Inserire N.Unità Immobiliari =1",""),IF(N_Uimm<=1,"Inserire N.Unità Immobiliari >=2","")) ->  | H6: =IF(TipoEdif=2,"Codice Fiscale : ","") -> Codice Fiscale : | K6: PRTPRN60T11G553V | Q6: Condominio
B7: Dati Edificio | Q7: 1
B8: Comune di Ubicazione | E8: Roma | M8: CAP | N8: 90000 | Q8: =Q7+1 -> 2
B9: Indirizzo | E9: Via Roma | K9: N. | L9: 1 | M9: Zona | N9: D | Q9: =Q8+1 -> 3
B10: =IF(TipoEdif=2,"Dati Catastali 1ª U.I.","Dati Catastali") -> Dati Catastali 1ª U.I. | C10: Cod.Comune | E10: C125 | F10: Foglio | G10: 302 | H10: Particella | J10: 200 | K10: Sub. | L10: 1 | M10: CAT. | N10: A/4 | Q10: 4
B11: Anno di Costruzione Immobile | E11: 1968 | H11: Superficie Totale Disperdente : | N11: 630.78 | Q11: 5
B12: Autorizzazione Edilizia | E12: Concessione in Sanatoria | K12: =IF(E12="Edificio Storico senza Titolo Edilizio","","N.") -> N. | L12: 1 | M12: =IF(E12="Edificio Storico senza Titolo Edilizio","","Data") -> Data | N12: 1984-03-23 | Q12: 6
B13: Relazione ex Legge 10/91 Depositata al Comune in Data | K13: Prot.N. | Q13: 7
B14: Data Inizio Lavori | E14: 2022-11-30 | G14: Immobile Vincolato/Restriz.Edilizie | K14: NO | L14: Edilizia Libera | N14: NO | Q14: 8
B15: =IF(E14>DATEVALUE("16/04/2022"),IF(Titolare!I8=FALSE,"Attenzione Data Inizio Lavori successiva a 16/04/2022 , occorrerebbe applicare Decreto MITE",""),"") ->  | Q15: 9
B16: DATI DI PROGETTO | C16: Oggetto Lavori : | F16: Ristrutturazione con parziale demolizione e ricostruzione di un edificio residenziale a 4 elevazioni f.t. oltre torrino scala, sito in Via Roma n.ri 1 ROMA (RM) FG. 302 P.lla 200 sub1, P.lla 201 sub.1 e P.lla 201 sub.3 CILAS del 24/11/2022 PROT. N.1 del 24/11/2022 | Q16: 10
B17: Descrizione | F17: Imponibile | J17: %iva | K17: IVA | M17: Totale | Q17: 11
B18: Importo complessivo Lavori | G18: 246502.56 | J18: 0.1 | K18: =G18*J18 -> 24650.256 | M18: =G18+K18 -> 271152.816 | Q18: 12
B19: di cui Oneri/Lavori x Sicurezza | G19: 0 | J19: =J18 -> 0.1 | K19: =G19*J19 -> 0 | M19: =G19+K19 -> 0 | Q19: 13
B20: Importo Lavori al netto della Sicurezza | G20: =G18-G19 -> 246502.56 | J20: =J18 -> 0.1 | K20: =G20*J20 -> 24650.256 | M20: =G20+K20 -> 271152.816 | Q20: 14
B21: Spese tecniche (compresa iva) | G21: =M36 -> 71718.60381 | M21: =G21 -> 71718.60381 | Q21: 15
G22: Importo Complessivo Progetto | M22: =M18+M21 -> 342871.4198 | Q22: 16
Q23: 17
B24: SPESE TECNICHE | C24: Tecnico | E24: Onorario | G24: C.Cassa | J24: IVA | M24: Totale | Q24: 18 | S24: Foto 1
B25: Progettazione Architettonica | C25: Architetto | E25: 7149.01 | G25: 0.04 | H25: =E25*G25 -> 285.9604 | J25: 0.22 | K25: =(E25+H25)*J25 -> 1635.693488 | M25: =E25+H25+K25 -> 9070.663888 | Q25: 19 | R25: =IF(COUNTIF($O$38:$O$42,"X")>0,IF(C25<>"",IFERROR(IF(VLOOKUP(C25,$B$44:$D$51,3,FALSE)="NO",IF(J25=0,CONCATENATE("🙁 Attenzione, ",C25,": esente iva (Forfettario) dovrebbe applicare sconto in fattura. Le relative competenze saranno inserite nella Fattura del G.C. come rimborso spese con IVA=0 <<<<<< Consulenti non d'accordo. CONSIGLIO: Inserire IVA"),""),""),""),""),"") -> 
B26: Progettazione Termotecnica, APE | C26: Ingegnere1 | E26: 5525.58 | G26: 0.04 | H26: 221.0232 | J26: 0.22 | K26: 1264.252704 | M26: =E26+H26+K26 -> 7010.855904 | Q26: 20 | R26: =IF(COUNTIF($O$38:$O$42,"X")>0,IF(C26<>"",IFERROR(IF(VLOOKUP(C26,$B$44:$D$51,3,FALSE)="NO",IF(J26=0,CONCATENATE("🙁 Attenzione, ",C26,": esente iva (Forfettario) dovrebbe applicare sconto in fattura. Le relative competenze saranno inserite nella Fattura del G.C. come rimborso spese con IVA=0 <<<<<< Consulenti non d'accordo. CONSIGLIO: Inserire IVA"),""),""),""),""),"") -> 
B27: Direzione Lavori, CSE | C27: Architetto | E27: 19404 | G27: 0.04 | H27: 776.16 | J27: 0.22 | K27: 4439.6352 | M27: =E27+H27+K27 -> 24619.7952 | Q27: 21
B28: DL., Computo, Contabilità, Asseverazione | C28: Ingegnere1 | E28: 17758.44 | G28: 0.04 | H28: 710.3376 | J28: 0.22 | K28: 4063.131072 | M28: 22531.90867 | Q28: 22
E29: 0 | G29: 0 | H29: 0 | J29: 0.22 | K29: 0 | M29: 0 | Q29: 23
E30: 0 | G30: 0.04 | H30: 0 | J30: 0.22 | K30: 0 | M30: 0 | Q30: 24
E31: 0 | G31: 0.04 | H31: 0 | J31: 0.22 | K31: 0 | M31: 0 | Q31: 25
E32: 0 | G32: 0.04 | H32: 0 | J32: 0.22 | K32: 0 | M32: 0 | Q32: 26
E33: =SUM(E25:F32) -> 49837.03 | H33: =SUM(H25:I32) -> 1993.4812 | K33: =SUM(K25:L32) -> 11402.71246 | M33: =SUM(M25:N32) -> 63233.22366 | Q33: 27
E34: onorario | G34: c.cassa | J34: iva | M34: totale | Q34: 28
B35: Visto Conformità | C35: Consulente | D35: 0.02 | E35: =D35*(M18+M33) -> 6687.720793 | G35: 0.04 | H35: =E35*G35 -> 267.5088317 | J35: 0.22 | K35: =(E35+H35)*J35 -> 1530.150518 | M35: =E35+H35+K35 -> 8485.380143 | Q35: 29 | R35: =IF(COUNTIF($O$38:$O$42,"X")>0,IF(C35<>"",IFERROR(IF(VLOOKUP(C35,$B$44:$D$51,3,FALSE)="NO",IF(J35=0,CONCATENATE("🙁 Attenzione, ",C35,": esente iva (Forfettario) dovrebbe applicare sconto in fattura. Le relative competenze saranno inserite nella Fattura del G.C. come rimborso spese con IVA=0 <<<<<< Consulenti non d'accordo. CONSIGLIO: Inserire IVA"),""),""),""),""),"") -> 
E36: =E33+E35 -> 56524.75079 | H36: =H33+H35 -> 2260.990032 | K36: =K33+K35 -> 12932.86298 | M36: =M33+M35 -> 71718.60381 | Q36: 30 | R36: =IF(COUNTIF($O$38:$O$42,"X")>1,"Indicare Solo 1 General Contractor","") -> 
B37: IMPRESE | D37: Sc.to | E37: Indirizzo | G37: Città | J37: CodFisc/Piva | L37: Tel./Mail | N37: Dati Pagamento | O37: GC | Q37: 31
B38: Impresa1 | D38: NO | J38: CF Impresa1 | Q38: 32
D39: NO | Q39: 33
D40: NO | Q40: 34
D41: NO | Q41: 35
D42: NO | Q42: 36
B43: TECNICI | D43: Sc.to | E43: Indirizzo | G43: Città | J43: CodFisc/Piva | L43: Tel./Mail | N43: Dati Pagamento | O43: NB | Q43: 37
B44: Ingegnere1 | D44: NO | E44: Via Libertà 3 | G44: 90020 Castellana Sicula (PA) | J44: ZFNMRA64E16C135A/04333460824 | L44: 3335793267 | N44: Bonifico Bancario | Zafonte Mario | Banca Mediolanum | IBAN : IT95V0306234210000002576882 | Q44: 38
B45: Architetto | D45: NO | J45: CF Architetto | Q45: 39
B46: Consulente | D46: NO | J46: CF Consulente | Q46: 40
D47: NO | Q47: 41
D48: NO | Q48: 42
D49: NO | Q49: 43
D50: NO | Q50: 44
D51: NO | Q51: 45
Q52: 46 | S52: Foto 2
Q53: 47
Q54: 48
Q55: 49
Q56: 50
Q57: 51
Q58: 52
Q59: 53
Q60: 54
Q61: 55
Q62: 56
Q63: 57
Q64: 58
Q65: 59
Q66: 60
Q67: 61
Q68: 62
Q69: 63
Q70: 64
Q71: 65
Q72: 66
Q73: =Q72+1 -> 67
Q74: 68
Q75: 69
Q76: 70
Q77: 71
Q78: 72
Q79: 73
Q80: 74
Q81: 75
Q82: 76
Q83: 77
Q84: 78
Q85: 79
Q86: 80
Q87: 81
Q88: 82
Q89: 83
Q90: 84
Q91: 85
Q92: 86
Q93: 87
Q94: 88
Q95: 89
Q96: 90
Q97: 91
Q98: 92
Q99: 93
Q100: 94
Q101: 95
Q102: 96
Q103: 97
Q104: 98
Q105: 99
Q106: 100
Q107: 101
Q108: 102
Q109: 103
Q110: 104
Q111: 105
Q112: 106
Q113: 107
Q114: 108
Q115: 109
Q116: 110
Q117: 111
Q118: 112
Q119: 113
Q120: 114
Q121: 115
Q122: 116
Q123: 117
Q124: 118
Q125: 119
Q126: 120
Q127: 121
Q128: 122
Q129: 123
Q130: 124
Q131: 125
Q132: 126
Q133: 127
Q134: 128
Q135: 129
Q136: 130
Q137: =Q136+1 -> 131
Q138: 132
Q139: 133
Q140: 134
Q141: 135
Q142: 136
Q143: 137
Q144: 138
Q145: 139
Q146: 140
Q147: 141
Q148: 142
Q149: 143
Q150: 144
Q151: 145
Q152: 146
Q153: 147
Q154: 148
Q155: 149
Q156: 150
Q157: 151
Q158: 152
Q159: 153
Q160: 154
Q161: 155
Q162: 156
Q163: 157
Q164: 158
Q165: 159
Q166: 160
Q167: 161
Q168: 162
Q169: 163
Q170: 164
Q171: 165
Q172: 166
Q173: 167
Q174: 168
Q175: 169
Q176: 170
Q177: 171
Q178: 172
Q179: 173
Q180: 174
Q181: 175
Q182: 176
Q183: 177
Q184: 178
Q185: 179
Q186: 180
Q187: 181
Q188: 182
Q189: 183
Q190: 184
Q191: 185
Q192: 186
Q193: 187
Q194: 188
Q195: 189
Q196: 190
Q197: 191
Q198: 192
Q199: 193
Q200: 194
... 806 more rows

Sheet Committenti
B1: Elenco Committenti | O1: =CONCATENATE('Dati Gen'!K2, " ",'Dati Gen'!K3," ",'Dati Gen'!L3) -> Pratica.SB Vers.ne 2024.2.0
B2: Cognome | C2: Nome | D2: Codice Fiscale | E2: Sesso | F2: Data Nascita | G2: Nazione Nasc | H2: Comune Nascita | I2: Nazione Res. | J2: Comune Residenza | K2: Prov. | L2: Indirizzo | M2: CAP | N2: Telefono | O2: Mail | Q2: Detraz.Diretta
A3: =IF(D3<>"",1,"") -> 1 | B3: Prato | C3: Pietro | D3: PRTPRN60T11G553V | E3: M | F3: 11/12/1961 | G3: Italia | H3: Palermo | I3: Italia | J3: Roma | K3: PA | L3: Via Roma N.1 | M3: 90001 | N3: 302525020
A4: =IF(D4<>"", IF(D3<>"",A3+1,""),"") -> 2 | B4: Rossi | C4: Angela | D4: RSSNGL66T45G112S, | E4: F | F4: 05/12/1966 | G4: Italia | H4: Palermo | I4: Italia | J4: Roma | K4: PA | L4: Via Roma N1 | M4: 90001
A5: =IF(D5<>"", IF(D4<>"",A4+1,""),"") -> 
A7: =IF(D7<>"", IF(D6<>"",A6+1,""),"") -> 
A69: =IF(D69<>"", IF(D68<>"",A68+1,""),"") -> 
A133: =IF(D133<>"", IF(D132<>"",A132+1,""),"") -> 
A197: =IF(D197<>"", IF(D196<>"",A196+1,""),"") -> 
A261: =IF(D261<>"", IF(D260<>"",A260+1,""),"") -> 
A325: =IF(D325<>"", IF(D324<>"",A324+1,""),"") -> 
A389: =IF(D389<>"", IF(D388<>"",A388+1,""),"") -> 
A453: =IF(D453<>"", IF(D452<>"",A452+1,""),"") -> 
A517: =IF(D517<>"", IF(D516<>"",A516+1,""),"") -> 
A581: =IF(D581<>"", IF(D580<>"",A580+1,""),"") -> 
A645: =IF(D645<>"", IF(D644<>"",A644+1,""),"") -> 
A709: =IF(D709<>"", IF(D708<>"",A708+1,""),"") -> 
A773: =IF(D773<>"", IF(D772<>"",A772+1,""),"") -> 
A837: =IF(D837<>"", IF(D836<>"",A836+1,""),"") -> 
A901: =IF(D901<>"", IF(D900<>"",A900+1,""),"") -> 
A965: =IF(D965<>"", IF(D964<>"",A964+1,""),"") -> 

Sheet UnitàImmobiliari
B1: Elenco Unità Immobiliari | G1: Millesimi | I1: Beneficiario 1 | L1: Beneficiario 2 | O1: Beneficiario 3 | U1: Elenco Unità Immobiliari | X1: Beneficiario 4 | AA1: Beneficiario 5 | AD1: Beneficiario 6 | AJ1: CONDOMINI | AL1: =COUNT(Committenti!A:A) -> 2
B2: Foglio | C2: Particella | D2: Sub. | E2: Categoria | F2: Superficie | G2: Involucro | H2: Impianti | I2: Codice Fiscale | J2: Titolo Possesso | K2: %Detr./Possesso | L2: Codice Fiscale | M2: Titolo Possesso | N2: %Detr./Possesso | O2: Codice Fiscale | P2: Titolo Possesso | Q2: %Detr./Possesso | U2: Foglio | V2: Particella | W2: Sub. | X2: Codice Fiscale | Y2: Titolo Possesso | Z2: %Detr./Possesso | AA2: Codice Fiscale | AB2: Titolo Possesso | AC2: %Detr./Possesso | AD2: Codice Fiscale | AE2: Titolo Possesso | AF2: %Detr./Possesso | AG2: Tot.Possesso | AJ2: =IF(Committenti!D2<>"",Committenti!D2,"") -> Codice Fiscale | AK2: =IF(AJ2<>"",Committenti!B2 & " " & Committenti!C2,"") -> Cognome Nome
A3: 1 | B3: =nFoglio1 -> 302 | C3: =nPlla1 -> 200 | D3: =nSUB1 -> 1 | E3: =Categoria1 -> A/4 | F3: 108 | G3: =1000*2/3 -> 666.6666667 | H3: =G3 -> 666.6666667 | I3: PRTPRN60T11G553V | J3: Proprietario | K3: 1 | S3: =IF(AG3<>1,"%D.<>100","") ->  | T3: 1 | U3: =B3 -> 302 | V3: 200 | W3: 1 | AG3: =K3+N3+Q3+Z3+AC3+AF3 -> 1 | AJ3: =IF(Committenti!D3<>"",Committenti!D3,"") -> PRTPRN60T11G553V | AK3: =IF(AJ3<>"",Committenti!B3 & " " & Committenti!C3,"") -> Prato Pietro
A4: =A3+1 -> 2 | B4: 302 | C4: 201 | D4: 1 | E4: A/6 | F4: 108 | G4: =1000*1/6 -> 166.6666667 | H4: =G4 -> 166.6666667 | I4: PRTPRN60T11G553V | J4: Proprietario | K4: 1 | S4: =IF(AG4<>1,"%D.<>100","") ->  | T4: 1 | U4: =B4 -> 302 | V4: =C4 -> 201 | W4: =D4 -> 1 | AG4: =K4+N4+Q4+Z4+AC4+AF4 -> 1 | AJ4: =IF(Committenti!D4<>"",Committenti!D4,"") -> RSSNGL66T45G112S, | AK4: =IF(AJ4<>"",Committenti!B4 & " " & Committenti!C4,"") -> Rossi Angela
A5: =A4+1 -> 3 | B5: 302 | C5: 201 | D5: 3 | E5: A/4 | F5: 108 | G5: =1000*1/6 -> 166.6666667 | H5: =G5 -> 166.6666667 | I5: PRTPRN60T11G553V | J5: Proprietario | K5: 1 | T5: 1 | U5: 302 | V5: 201 | W5: 3 | AG5: 1
G6: =SUM(G3:G5) -> 1000 | H6: =SUM(H3:H5) -> 1000
G7: =IF(ABS(G6-1000)>0.001,"Attenzione! Somma Millesimi Involucro <> 1.000","") ->  | H7: =IF(ABS(H6-1000)>0.001,"Attenzione! Somma Millesimi Impianti <> 1.000","") -> 

Sheet Computo-Massimali
P1: =MATCH("SimMZ",C:C,0) -> 154
Q2: Condominio | R2: Edificio Unifamiliare | T2: TRUE | X2: TRUE
C3: Verifica Massimali Superbonus | F3: =CONCATENATE(IF('Dati Gen'!E9<>"",'Dati Gen'!E9,""),IF('Dati Gen'!L9<>"",CONCATENATE(" , ",'Dati Gen'!L9),""),IF('Dati Gen'!E8<>"",CONCATENATE(" - ",'Dati Gen'!E8),"")) -> Via Roma , 1 - Roma | M3: =CONCATENATE('Dati Gen'!K2, " ",'Dati Gen'!K3," ",'Dati Gen'!L3) -> Pratica.SB Vers.ne 2024.2.0 | Q3: 2 | R3: 1
C4: =IF(TipoEdif=1,'Dati Gen'!Q5,'Dati Gen'!Q6) -> Condominio | D4: =IF('Dati Gen'!G5>1,CONCATENATE('Dati Gen'!G5," U.Imm 1ª"),"") -> 3 U.Imm 1ª | F4: =CONCATENATE(Committenti!B3, " ", Committenti!C3," ", IF('Dati Gen'!G10<>"","FG." & 'Dati Gen'!G10 & " ",""),IF('Dati Gen'!J10<>"","P.LLA." & 'Dati Gen'!J10 & " ",""),IF('Dati Gen'!L10<>"","Sub." & 'Dati Gen'!L10 & " ","")) -> Prato Pietro FG.302 P.LLA.200 Sub.1 | M4: ='Dati Gen'!K4 -> ©2021-2024 SIM srl - www.madosoft.it
C6: =IF(ABS(F176-'Dati Gen'!G20)>0.01,"Importo Lavori al Netto della Sicurezza =",IF(ABS(G176-'Dati Gen'!G19)>0.01,"Importo Sicurezza da Progetto =",IF(ABS(H176-'Dati Gen'!G18)>0.01,"Importo Lavori da Progetto =",IF(ABS('Dati Gen'!M21-K176)>0.01,"Importo Spese Tecniche da Progetto =","")))) ->  | F6: =IF(ABS(F176-'Dati Gen'!G20)>0.01,'Dati Gen'!G20,IF(ABS(G176-'Dati Gen'!G19)>0.01,'Dati Gen'!G19,IF(ABS(H176-'Dati Gen'!G18)>0.01,'Dati Gen'!G18,IF(ABS('Dati Gen'!M21-K176)>0.01,'Dati Gen'!M21,"")))) ->  | G6: =IF(C6<>"","DIVERSO da","") ->  | I6: =IF(ABS(F176-'Dati Gen'!G20)>0.01,"Somma Importo Lavori =",IF(ABS(G176-'Dati Gen'!G19)>0.01,"Somma Incidenza Sicurezza =",IF(ABS(H176-'Dati Gen'!G18)>0.01,"Somma Imponibili =",IF(ABS('Dati Gen'!M21-K176)>0.01,"Somma Spese Tecniche =","")))) ->  | K6: =IF(ABS(F176-'Dati Gen'!G20)>0.01,F176,IF(ABS(G176-'Dati Gen'!G19)>0.01,G176,IF(ABS(H176-'Dati Gen'!G18)>0.01,H176,IF(ABS('Dati Gen'!M21-K176)>0.01,K176,"")))) ->  | L6: =IF(C6<>"","Completare Tabella Interventi","") -> 
C7: INTERVENTI TRAINANTI | N7: .. | Q7: Asseverabile | R7: =CONCATENATE("Spesa detraibile ammissibile ",C7) -> Spesa detraibile ammissibile INTERVENTI TRAINANTI | AF7: Spesa Massima Ammissibile (norma primaria) | AJ7: =CONCATENATE("Spesa Specifica MITE - ",C7) -> Spesa Specifica MITE - INTERVENTI TRAINANTI | BI7: =CONCATENATE("Ripartizione tra le Imprese - Imponibile Lavori ",C7) -> Ripartizione tra le Imprese - Imponibile Lavori INTERVENTI TRAINANTI
C8: Interventi | F8: Importo Lavori | G8: Incidenza Sicurezza | H8: Imponibile | I8: Iva | J8: Importo c.iva | K8: Spese tecniche | L8: Totale | M8: =CONCATENATE("Credito Spettante ", percDetr*100,"% Spesa Ammessa") -> Credito Spettante 70% Spesa Ammessa | R8: Interventi | S8: Superficie Intervento / UnitàMisura | T8: Min(Spesa Max Ammissibile;Spesa Max Intervento) | U8: Verifica Max | W8: Spesa Ammessa | Y8: Quota Eccedente Spesa detraibile Ammessa | AA8: =CONCATENATE("Credito Spettante",CHAR(10), percDetr*100,"% Spesa Ammessa",CHAR(10),"Quota Imprese | Quota Tecnici") -> Credito Spettante 70% Spesa Ammessa Quota Imprese | Quota Tecnici | AF8: Interventi | AG8: Spesa Massima Ammissibile | AH8: Ver. Max | AJ8: Importo Lavori Fornitura e Posa | AK8: Costo dei Beni (Allegato A) | AL8: Opere per installazione (Sicurezza) | AM8: Manodopera | AN8: Spesa Max Ammissibile Asseverata | AO8: Altri Costi | AP8: Spese Tecniche | AQ8: IVA | AR8: Spesa di Intervento | AS8: Ver.Max | AU8: Altri Lavori | AV8: Importo Specifico DM Costi Massimi | AW8: Incremento Costo dei Beni (Allegato A) | AX8: Controllo1 | AY8: Importo Controllo1 | AZ8: Importo Controllo2 | BA8: Importo Controllo3 | BB8: Opere per Istallazione = Incidenza Sicurezza Fornitura / Superficie Intervento | BC8: SpesaSostenuta = Opera Compiuta | BD8: Spesa Tecniche = Spese Tecniche da Computo | BE8: Altri Costi = Altri Lavori | BF8: AliqIva | BG8: Superficie Riscaldata | BI8: Interventi | BJ8: =IF('Dati Gen'!$B$38<>"",'Dati Gen'!$B$38,"") -> Impresa1 | BK8: =IF('Dati Gen'!$B$39<>"",'Dati Gen'!$B$39,"") ->  | BL8: =IF('Dati Gen'!$B$40<>"",'Dati Gen'!$B$40,"") ->  | BM8: =IF('Dati Gen'!$B$41<>"",'Dati Gen'!$B$41,"") ->  | BN8: =IF('Dati Gen'!$B$42<>"",'Dati Gen'!$B$42,"") -> 
C9: PV) Isolamento pareti perimetrali | E9: Esterno | F9: 83307.57 | G9: =IF(ImpLav<>0,F9*ImpSicLav/ImpLav,0) -> 0 | H9: =SUM(F9:G9) -> 83307.57 | I9: =H9*AliqIva -> 8330.757 | J9: =H9+I9 -> 91638.327 | K9: =IF(ImpLav<>0,F9*ImpTecLav/ImpLav,0) -> 24237.89273 | L9: =SUM(J9:K9) -> 115876.2197 | M9: =IF(L9<=T9,L9*percDetr,T9*percDetr) -> 81113.35381 | O9: .. | P9: .. | Q9: ok | R9: =CONCATENATE(C9," '",E9,"'") -> PV) Isolamento pareti perimetrali 'Esterno' | S9: 461.26 | T9: =MIN(AG9,AR9) -> 115876.2197 | U9: =IF(L9>T9,"ko","ok") -> ok | W9: =IF(L9<T9,L9,T9) -> 115876.2197 | Y9: =IF(L9>T9,L9-T9,0) -> 0 | AA9: =IF(M9<>0,J9*M9/L9,0) -> 64146.8289 | AC9: =IF(M9<>0,K9*M9/L9,0) -> 16966.52491 | AF9: =R9 -> PV) Isolamento pareti perimetrali 'Esterno' | AG9: =IF(TipoEdif=1,50000,IF(N_Uimm>8,40000*8+30000*(N_Uimm-8),40000*N_Uimm)) -> 120000 | AH9: =IF(L9>AG9,"ko","ok") -> ok | AJ9: 83307.57 | AK9: =IF(ZonaClimatica="A",IF(E9="Parete Ventilata",240,IF(E9="Interno",96,180)),IF(ZonaClimatica="B",IF(E9="Parete Ventilata",240,IF(E9="Interno",96,180)),IF(ZonaClimatica="C",IF(E9="Parete Ventilata",240,IF(E9="Interno",96,180)),IF(E9="Parete Ventilata",260,IF(E9="Interno",104,195))))) -> 195 | AL9: =IF(S9<>0,IF(F9<>0,G9*AJ9/F9/S9,0),0) -> 0 | AM9: 30 | AN9: =MIN(AY9,AZ9,BA9) -> 83307.57 | AO9: =AU9 -> 0 | AP9: =K9 -> 24237.89273 | AQ9: =BF9*SUM(AN9:AO9) -> 8330.757 | AR9: =IF(Titolare!$I$8=TRUE,SUM(AN9:AQ9),AG9) -> 115876.2197 | AS9: =IF(L9>AR9,"ko","ok") -> ok | AU9: =IF(F9>AJ9,F9-AJ9,0) -> 0 | AV9: =SUM(AK9:AM9) -> 225 | AW9: 0 | AX9: TRUE | AY9: =H9 -> 83307.57 | AZ9: =AV9*S9+AW9*BG9 -> 103783.5 | BA9: =H9 -> 83307.57 | BB9: TRUE | BC9: TRUE | BD9: TRUE | BE9: TRUE | BF9: 0.1 | BG9: 0 | BI9: =R9 -> PV) Isolamento pareti perimetrali 'Esterno' | BJ9: 83307.57 | BK9: 0 | BL9: 0 | BM9: 0 | BN9: 0 | BO9: =IF(ABS(SUM(BJ9:BN9)-H9)>0.01,"err. Somma","") -> 
C10: PO) Isolamento coperture | E10: Esterno | F10: 0 | G10: 0 | H10: =SUM(F10:G10) -> 0 | I10: =H10*AliqIva -> 0 | J10: =H10+I10 -> 0 | K10: =IF(ImpLav<>0,F10*ImpTecLav/ImpLav,0) -> 0 | L10: =SUM(J10:K10) -> 0 | M10: 0 | O10: .. | P10: .. | Q10: ok | R10: =CONCATENATE(C10," '",E10,"'") -> PO) Isolamento coperture 'Esterno' | S10: 0 | T10: 0 | U10: ok | W10: =IF(L10<T10,L10,T10) -> 0 | Y10: =IF(L10>T10,L10-T10,0) -> 0 | AA10: 0 | AC10: 0 | AF10: PO) Isolamento coperture 'Esterno' | AG10: =IF(TipoEdif=1,50000,IF(N_Uimm>8,40000*8+30000*(N_Uimm-8),40000*N_Uimm)) -> 120000 | AH10: ok | AJ10: 0 | AK10: =IF(E10="Copertura Ventilata",300,IF(E10="Interno",120,276)) -> 276 | AL10: =IF(S10<>0,IF(F10<>0,G10*AJ10/F10/S10,0),0) -> 0 | AM10: 190 | AN10: =MIN(AY10,AZ10,BA10) -> 0 | AO10: =AU10 -> 0 | AP10: =K10 -> 0 | AQ10: =BF10*SUM(AN10:AO10) -> 0 | AR10: =IF(Titolare!$I$8=TRUE,SUM(AN10:AQ10),AG10) -> 0 | AS10: ok | AU10: =IF(F10>AJ10,F10-AJ10,0) -> 0 | AV10: =SUM(AK10:AM10) -> 466 | AW10: 0 | AX10: TRUE | AY10: =H10 -> 0 | AZ10: =AV10*S10+AW10*BG10 -> 0 | BA10: =H10 -> 0 | BB10: TRUE | BC10: TRUE | BD10: TRUE | BE10: TRUE | BF10: 0.1000000015 | BG10: 0 | BI10: PO) Isolamento coperture 'Esterno' | BJ10: 0 | BK10: 0 | BL10: 0 | BM10: 0 | BN10: 0
C11: POND) Isol. coperture non disperdenti | E11: Esterno | F11: 0 | G11: =IF(ImpLav<>0,F11*ImpSicLav/ImpLav,0) -> 0 | H11: =SUM(F11:G11) -> 0 | I11: =H11*AliqIva -> 0 | J11: =H11+I11 -> 0 | K11: =IF(ImpLav<>0,F11*ImpTecLav/ImpLav,0) -> 0 | L11: =SUM(J11:K11) -> 0 | M11: 0 | O11: .. | P11: .. | Q11: ok | R11: =CONCATENATE(C11," '",E11,"'") -> POND) Isol. coperture non disperdenti 'Esterno' | S11: 114 | T11: 0 | U11: ok | W11: =IF(L11<T11,L11,T11) -> 0 | Y11: =IF(L11>T11,L11-T11,0) -> 0 | AA11: 0 | AC11: 0 | AF11: POND) Isol. coperture non disperdenti 'Esterno' | AG11: =IF(TipoEdif=1,50000,IF(N_Uimm>8,40000*8+30000*(N_Uimm-8),40000*N_Uimm)) -> 120000 | AH11: ok | AJ11: 0 | AK11: =IF(E11="Copertura Ventilata",300,IF(E11="Interno",120,276)) -> 276 | AL11: =IF(S11<>0,IF(F11<>0,G11*AJ11/F11/S11,0),0) -> 0 | AM11: 38 | AN11: =MIN(AY11,AZ11,BA11) -> 0 | AO11: =AU11 -> 0 | AP11: =K11 -> 0 | AQ11: =BF11*SUM(AN11:AO11) -> 0 | AR11: =IF(Titolare!$I$8=TRUE,SUM(AN11:AQ11),AG11) -> 0 | AS11: ok | AU11: =IF(F11>AJ11,F11-AJ11,0) -> 0 | AV11: =SUM(AK11:AM11) -> 314 | AW11: 0 | AX11: TRUE | AY11: =H11 -> 0 | AZ11: =AV11*S11+AW11*BG11 -> 35796 | BA11: =H11 -> 0 | BB11: TRUE | BC11: TRUE | BD11: TRUE | BE11: TRUE | BF11: 0.1000000015 | BG11: 0 | BI11: POND) Isol. coperture non disperdenti 'Esterno' | BJ11: 0 | BK11: 0 | BL11: 0 | BM11: 0 | BN11: 0
C12: PS) Isolamento Pavimenti | E12: Esterno | F12: 0 | G12: 0 | H12: =SUM(F12:G12) -> 0 | I12: =H12*AliqIva -> 0 | J12: =H12+I12 -> 0 | K12: =IF(ImpLav<>0,F12*ImpTecLav/ImpLav,0) -> 0 | L12: =SUM(J12:K12) -> 0 | M12: 0 | O12: .. | P12: .. | Q12: ok | R12: =CONCATENATE(C12," '",E12,"'") -> PS) Isolamento Pavimenti 'Esterno' | S12: 7.65 | T12: 0 | U12: ok | W12: =IF(L12<T12,L12,T12) -> 0 | Y12: =IF(L12>T12,L12-T12,0) -> 0 | AA12: 0 | AC12: 0 | AF12: PS) Isolamento Pavimenti 'Esterno' | AG12: =IF(TipoEdif=1,50000,IF(N_Uimm>8,40000*8+30000*(N_Uimm-8),40000*N_Uimm)) -> 120000 | AH12: ok | AJ12: 0 | AK12: =IF(E12="Interno/terreno",180,144) -> 144 | AL12: =IF(S12<>0,IF(F12<>0,G12*AJ12/F12/S12,0),0) -> 0 | AM12: 40 | AN12: =MIN(AY12,AZ12,BA12) -> 0 | AO12: =AU12 -> 0 | AP12: =K12 -> 0 | AQ12: =BF12*SUM(AN12:AO12) -> 0 | AR12: =IF(Titolare!$I$8=TRUE,SUM(AN12:AQ12),AG12) -> 0 | AS12: ok | AU12: =IF(F12>AJ12,F12-AJ12,0) -> 0 | AV12: =SUM(AK12:AM12) -> 184 | AW12: 0 | AX12: TRUE | AY12: =H12 -> 0 | AZ12: =AV12*S12+AW12*BG12 -> 1407.6 | BA12: =H12 -> 0 | BB12: TRUE | BC12: TRUE | BD12: TRUE | BE12: TRUE | BF12: 0.1000000015 | BG12: 0 | BI12: PS) Isolamento Pavimenti 'Esterno' | BJ12: 0 | BK12: 0 | BL12: 0 | BM12: 0 | BN12: 0
C13: Totali Isolamento PV) PO) POND) PS) | F13: =SUM(F9:F12) -> 83307.57 | G13: 0 | H13: 83307.57 | I13: 8330.757 | J13: 91638.327 | K13: 24237.89273 | L13: 115876.2197 | M13: =IF(L13<=T13,L13*percDetr,T13*percDetr) -> 81113.35381 | R13: =C13 -> Totali Isolamento PV) PO) POND) PS) | T13: 115876.2197 | U13: ok | W13: =IF(T13=AG13,IF(L13<T13,L13,T13),SUM(W9:X12)) -> 115876.2197 | Y13: =IF(L13>W13,L13-W13,0) -> 0 | AA13: 64146.8289 | AC13: 16966.52491 | AF13: Totali Isolamento PV) PO) POND) PS) | AG13: =IF(TipoEdif=1,50000,IF(N_Uimm>8,40000*8+30000*(N_Uimm-8),40000*N_Uimm)) -> 120000 | AH13: ok | AR13: =IF(Titolare!$I$8=TRUE,SUM(AR9:AR12),AG12) -> 115876.2197 | AS13: ok | BI13: Totali Isolamento PV) PO) POND) PS) | BJ13: =SUM(BJ9:BJ12) -> 83307.57 | BK13: =SUM(BK9:BK12) -> 0 | BL13: =SUM(BL9:BL12) -> 0 | BM13: =SUM(BM9:BM12) -> 0 | BN13: =SUM(BN9:BN12) -> 0
C14: Impianti climatizzazione e ACS | D14: PC)Aria/Aria | F14: 0 | G14: 0 | H14: =SUM(F14:G14) -> 0 | I14: =H14*AliqIva -> 0 | J14: =H14+I14 -> 0 | K14: =IF(ImpLav<>0,F14*ImpTecLav/ImpLav,0) -> 0 | L14: =SUM(J14:K14) -> 0 | M14: 0 | O14: .. | P14: .. | Q14: ok | R14: =CONCATENATE(C14," con '",D14,"'") -> Impianti climatizzazione e ACS con 'PC)Aria/Aria' | S14: 0 | T14: 0 | U14: ok | W14: =IF(L14<T14,L14,T14) -> 0 | Y14: =IF(L14>T14,L14-T14,0) -> 0 | AA14: 0 | AC14: 0 | AF14: Impianti climatizzazione e ACS con 'PC)Aria/Aria' | AG14: =IF(TipoEdif=1,30000,IF(N_Uimm>8,20000*8+15000*(N_Uimm-8),20000*N_Uimm)) -> 60000 | AH14: ok | AJ14: 0 | AK14: =IF(LEFT(D14,3)="CC)",IF(S14<=35,240,216),IF(D14="PC)Aria/Aria",720,IF(D14="PC)Altro",1560,IF(D14="PC)Geotermiche",2280,IF(LEFT(D14,4)="PCA)",1560,IF(LEFT(D14,3)="SI)",1860,0)))))) -> 720 | AL14: =IF(S14<>0,IF(F14<>0,G14*AJ14/F14/S14,0),0) -> 0 | AM14: 93.6 | AN14: =MIN(AY14,AZ14,BA14) -> 0 | AO14: =AU14 -> 0 | AP14: =K14 -> 0 | AQ14: =BF14*SUM(AN14:AO14) -> 0 | AR14: =IF(Titolare!$I$8=TRUE,SUM(AN14:AQ14),AG14) -> 0 | AS14: ok | AU14: =IF(F14>AJ14,F14-AJ14,0) -> 0 | AV14: =SUM(AK14:AM14) -> 813.6 | AW14: =IF($T$2=TRUE,IF($X$2=TRUE,180,60),0) -> 180 | AX14: TRUE | AY14: =H14 -> 0 | AZ14: =AV14*S14+AW14*BG14 -> 14400 | BA14: =H14 -> 0 | BB14: TRUE | BC14: TRUE | BD14: TRUE | BE14: TRUE | BF14: 0.1000000015 | BG14: 80 | BI14: Impianti climatizzazione e ACS con 'PC)Aria/Aria' | BJ14: 0 | BK14: 0 | BL14: 0 | BM14: 0 | BN14: 0
C15: SismaBonus Zona 1,2 o 3 P.Classi = | G15: =IF(ImpLav<>0,F15*ImpSicLav/ImpLav,0) -> 0 | H15: =SUM(F15:G15) -> 0 | I15: =H15*AliqIva -> 0 | J15: =H15+I15 -> 0 | K15: =IF(ImpLav<>0,F15*ImpTecLav/ImpLav,0) -> 0 | L15: =SUM(J15:K15) -> 0 | M15: 0 | O15: .. | Q15: ok | R15: =CONCATENATE(C15,E15) -> SismaBonus Zona 1,2 o 3 P.Classi = | S15: 0 | T15: 288000 | U15: ok | W15: =IF(L15<T15,L15,T15) -> 0 | Y15: =IF(L15>T15,L15-T15,0) -> 0 | AA15: 0 | AC15: 0 | AF15: SismaBonus Zona 1,2 o 3 P.Classi = | AG15: =96000*N_Uimm -> 288000 | AH15: ok | AJ15: 0 | AL15: =IF(S15<>0,IF(F15<>0,G15*AJ15/F15/S15,0),0) -> 0 | AM15: 1000 | AO15: =AU15 -> 0 | AP15: =K15 -> 0 | AR15: =AG15 -> 288000 | AS15: ok | AU15: =IF(F15>AJ15,F15-AJ15,0) -> 0 | AV15: =SUM(AK15:AM15) -> 1000 | AW15: 0 | AX15: TRUE | AY15: =H15 -> 0 | AZ15: =AV15*S15+AW15*BG15 -> 0 | BA15: =H15 -> 0 | BB15: TRUE | BC15: TRUE | BD15: TRUE | BE15: TRUE | BF15: 0.1000000015 | BG15: 0 | BI15: SismaBonus Zona 1,2 o 3 P.Classi = | BJ15: 0 | BK15: 0 | BL15: 0 | BM15: 0 | BN15: 0
C16: Totale interventi Trainanti : | F16: =SUM(F13:F15) -> 83307.57 | G16: 0 | H16: 83307.57 | I16: 8330.757 | J16: 91638.327 | K16: 24237.89273 | L16: 115876.2197 | M16: 81113.35381 | V16: =C16 -> Totale interventi Trainanti : | W16: =SUM(W13:X15) -> 115876.2197 | Y16: =SUM(Y13:Z15) -> 0 | AA16: =SUM(AA13:AB15) -> 64146.8289 | AC16: =SUM(AC13:AD15) -> 16966.52491 | BI16: =V16 -> Totale interventi Trainanti : | BJ16: =SUM(BJ13:BJ15) -> 83307.57 | BK16: =SUM(BK13:BK15) -> 0 | BL16: =SUM(BL13:BL15) -> 0 | BM16: =SUM(BM13:BM15) -> 0 | BN16: =SUM(BN13:BN15) -> 0
C18: INTERVENTI TRAINATI PARTI COMUNI CONDOMINIALI | N18: .. | Q18: Asseverabile | R18: =CONCATENATE("Spesa detraibile ammissibile ",C18) -> Spesa detraibile ammissibile INTERVENTI TRAINATI PARTI COMUNI CONDOMINIALI | AF18: Spesa Massima Ammissibile (norma primaria) | AJ18: =CONCATENATE("Spesa Specifica MITE - ",C18) -> Spesa Specifica MITE - INTERVENTI TRAINATI PARTI COMUNI CONDOMINIALI | BI18: =CONCATENATE("Ripartizione tra le Imprese - Imponibile Lavori ",C18) -> Ripartizione tra le Imprese - Imponibile Lavori INTERVENTI TRAINATI PARTI COMUNI CONDOMINIALI
C19: Interventi | F19: Importo Lavori | G19: Incidenza Sicurezza | H19: Imponibile | I19: Iva | J19: Importo c.iva | K19: Spese tecniche | L19: Totale | M19: =$M$8 -> Credito Spettante 70% Spesa Ammessa | R19: Interventi | S19: Superficie Intervento / UnitàMisura | T19: Min(Spesa Max Ammissibile;Spesa Max Intervento) | U19: Verifica Max | W19: Spesa Ammessa | Y19: Quota Eccedente Spesa detraibile Ammessa | AA19: =$AA$8 -> Credito Spettante 70% Spesa Ammessa Quota Imprese | Quota Tecnici | AF19: Interventi | AG19: Spesa Massima Ammissibile | AH19: Ver. Max | AJ19: Importo Lavori Fornitura e Posa | AK19: Costo dei Beni (Allegato A) | AL19: Opere per installazione (Sicurezza) | AM19: Manodopera | AN19: =$AN$8 -> Spesa Max Ammissibile Asseverata | AO19: Altri Costi | AP19: Spese Tecniche | AQ19: IVA | AR19: Spesa di Intervento | AS19: =$AS$8 -> Ver.Max | AU19: Altri Lavori | AV19: Importo Specifico DM Costi Massimi | AW19: Incremento Costo dei Beni (Allegato A) | AX19: Controllo1 | AY19: Importo Controllo1 | AZ19: Importo Controllo2 | BA19: Importo Controllo3 | BB19: Opere per Istallazione = Incidenza Sicurezza Fornitura / Superficie Intervento | BC19: SpesaSostenuta = Opera Compiuta | BD19: Spesa Tecniche = Spese Tecniche da Computo | BE19: Altri Costi = Altri Lavori | BF19: AliqIva | BG19: Superficie Riscaldata | BI19: Interventi | BJ19: =IF('Dati Gen'!$B$38<>"",'Dati Gen'!$B$38,"") -> Impresa1 | BK19: =IF('Dati Gen'!$B$39<>"",'Dati Gen'!$B$39,"") ->  | BL19: =IF('Dati Gen'!$B$40<>"",'Dati Gen'!$B$40,"") ->  | BM19: =IF('Dati Gen'!$B$41<>"",'Dati Gen'!$B$41,"") ->  | BN19: =IF('Dati Gen'!$B$42<>"",'Dati Gen'!$B$42,"") -> 
C20: PV) Isolamento pareti perimetrali | E20: Esterno | F20: 0 | G20: 0 | H20: =SUM(F20:G20) -> 0 | I20: =H20*AliqIva -> 0 | J20: =H20+I20 -> 0 | K20: 0 | L20: =SUM(J20:K20) -> 0 | M20: =IF(L20<=T20,L20*percDetr,T20*percDetr) -> 0 | O20: .. | P20: .. | Q20: ok | R20: =CONCATENATE(C20," '",E20,"'") -> PV) Isolamento pareti perimetrali 'Esterno' | S20: 1 | T20: =MIN(AG20,AR20) -> 0 | U20: =IF(L20>T20,"ko","ok") -> ok | W20: =IF(L20<T20,L20,T20) -> 0 | Y20: =IF(L20>T20,L20-T20,0) -> 0 | AA20: =IF(M20<>0,J20*M20/L20,0) -> 0 | AC20: =IF(M20<>0,K20*M20/L20,0) -> 0 | AF20: =R20 -> PV) Isolamento pareti perimetrali 'Esterno' | AG20: =IF(TipoEdif=1,50000,IF(N_Uimm>8,40000*8+30000*(N_Uimm-8),40000*N_Uimm)) -> 120000 | AH20: =IF(L20>AG20,"ko","ok") -> ok | AJ20: 0 | AK20: =IF(ZonaClimatica="A",IF(E20="Parete Ventilata",240,IF(E20="Interno",96,180)),IF(ZonaClimatica="B",IF(E20="Parete Ventilata",240,IF(E20="Interno",96,180)),IF(ZonaClimatica="C",IF(E20="Parete Ventilata",240,IF(E20="Interno",96,180)),IF(E20="Parete Ventilata",260,IF(E20="Interno",104,195))))) -> 195 | AL20: =IF(S20<>0,IF(F20<>0,G20*AJ20/F20/S20,0),0) -> 0 | AM20: 0 | AN20: =MIN(AY20,AZ20,BA20) -> 0 | AO20: =AU20 -> 0 | AP20: =K20 -> 0 | AQ20: =BF20*SUM(AN20:AO20) -> 0 | AR20: =IF(Titolare!$I$8=TRUE,SUM(AN20:AQ20),AG20) -> 0 | AS20: =IF(L20>AR20,"ko","ok") -> ok | AU20: =IF(F20>AJ20,F20-AJ20,0) -> 0 | AV20: =SUM(AK20:AM20) -> 195 | AW20: 0 | AX20: TRUE | AY20: =H20 -> 0 | AZ20: =AV20*S20+AW20*BG20 -> 195 | BA20: =H20 -> 0 | BB20: TRUE | BC20: TRUE | BD20: TRUE | BE20: TRUE | BF20: 0.1000000015 | BG20: 0 | BI20: =R20 -> PV) Isolamento pareti perimetrali 'Esterno' | BJ20: =H20 -> 0 | BK20: 0 | BL20: 0 | BM20: 0 | BN20: 0 | BO20: =IF(ABS(SUM(BJ20:BN20)-H20)>0.01,"err. Somma","") -> 
C21: PO) Isolamento coperture | E21: Esterno | F21: 6838.64 | G21: =IF(ImpLav<>0,F21*ImpSicLav/ImpLav,0) -> 0 | H21: =SUM(F21:G21) -> 6838.64 | I21: =H21*AliqIva -> 683.864 | J21: =H21+I21 -> 7522.504 | K21: =IF(ImpLav<>0,F21*ImpTecLav/ImpLav,0) -> 1989.665798 | L21: =SUM(J21:K21) -> 9512.169798 | M21: =IF(L21<=T21,L21*percDetr,T21*percDetr) -> 6658.518859 | O21: .. | P21: .. | Q21: ok | R21: =CONCATENATE(C21," '",E21,"'") -> PO) Isolamento coperture 'Esterno' | S21: 1 | T21: 9815.769809 | U21: ok | W21: =IF(L21<T21,L21,T21) -> 9512.169798 | Y21: =IF(L21>T21,L21-T21,0) -> 0 | AA21: 5265.7528 | AC21: 1392.766059 | AF21: PO) Isolamento coperture 'Esterno' | AG21: =IF(TipoEdif=1,50000,IF(N_Uimm>8,40000*8+30000*(N_Uimm-8),40000*N_Uimm)) -> 120000 | AH21: ok | AJ21: 0 | AK21: =IF(E21="Copertura Ventilata",300,IF(E21="Interno",120,276)) -> 276 | AL21: =IF(S21<>0,IF(F21<>0,G21*AJ21/F21/S21,0),0) -> 0 | AM21: 0 | AN21: =MIN(AY21,AZ21,BA21) -> 276 | AO21: =AU21 -> 6838.64 | AP21: =K21 -> 1989.665798 | AQ21: =BF21*SUM(AN21:AO21) -> 711.4640106 | AR21: =IF(Titolare!$I$8=TRUE,SUM(AN21:AQ21),AG21) -> 9815.769809 | AS21: ok | AU21: =IF(F21>AJ21,F21-AJ21,0) -> 6838.64 | AV21: =SUM(AK21:AM21) -> 276 | AW21: 0 | AX21: TRUE | AY21: =H21 -> 6838.64 | AZ21: =AV21*S21+AW21*BG21 -> 276 | BA21: =H21 -> 6838.64 | BB21: TRUE | BC21: TRUE | BD21: TRUE | BE21: TRUE | BF21: 0.1000000015 | BG21: 0 | BI21: PO) Isolamento coperture 'Esterno' | BJ21: 6838.64 | BK21: 0 | BL21: 0 | BM21: 0 | BN21: 0
C22: PS) Isolamento Pavimenti | E22: Esterno | F22: 4949.56 | G22: =IF(ImpLav<>0,F22*ImpSicLav/ImpLav,0) -> 0 | H22: =SUM(F22:G22) -> 4949.56 | I22: =H22*AliqIva -> 494.956 | J22: =H22+I22 -> 5444.516 | K22: =IF(ImpLav<>0,F22*ImpTecLav/ImpLav,0) -> 1440.048057 | L22: =SUM(J22:K22) -> 6884.564057 | M22: =IF(L22<=T22,L22*percDetr,T22*percDetr) -> 4819.19484 | O22: .. | P22: .. | Q22: ok | R22: =CONCATENATE(C22," '",E22,"'") -> PS) Isolamento Pavimenti 'Esterno' | S22: 100 | T22: 6884.564065 | U22: ok | W22: =IF(L22<T22,L22,T22) -> 6884.564057 | Y22: =IF(L22>T22,L22-T22,0) -> 0 | AA22: 3811.1612 | AC22: 1008.03364 | AF22: PS) Isolamento Pavimenti 'Esterno' | AG22: =IF(TipoEdif=1,50000,IF(N_Uimm>8,40000*8+30000*(N_Uimm-8),40000*N_Uimm)) -> 120000 | AH22: ok | AJ22: 4949.56 | AK22: =IF(E22="Interno/terreno",180,144) -> 144 | AL22: =IF(S22<>0,IF(F22<>0,G22*AJ22/F22/S22,0),0) -> 0 | AM22: 0 | AN22: =MIN(AY22,AZ22,BA22) -> 4949.56 | AO22: =AU22 -> 0 | AP22: =K22 -> 1440.048057 | AQ22: =BF22*SUM(AN22:AO22) -> 494.9560074 | AR22: =IF(Titolare!$I$8=TRUE,SUM(AN22:AQ22),AG22) -> 6884.564065 | AS22: ok | AU22: =IF(F22>AJ22,F22-AJ22,0) -> 0 | AV22: =SUM(AK22:AM22) -> 144 | AW22: 0 | AX22: TRUE | AY22: =H22 -> 4949.56 | AZ22: =AV22*S22+AW22*BG22 -> 14400 | BA22: =H22 -> 4949.56 | BB22: TRUE | BC22: TRUE | BD22: TRUE | BE22: TRUE | BF22: 0.1000000015 | BG22: 0 | BI22: PS) Isolamento Pavimenti 'Esterno' | BJ22: =H22 -> 4949.56 | BK22: 0 | BL22: 0 | BM22: 0 | BN22: 0
C23: IN) Serramenti con chiusure oscuranti | E23: =IF(ZonaClimatica="A","Zone A, B e C", IF(ZonaClimatica="B","Zone A, B e C",IF(ZonaClimatica="C","Zone A, B e C","Zone D, E ed F"))) -> Zone D, E ed F | F23: 3162.33 | G23: =IF(ImpLav<>0,F23*ImpSicLav/ImpLav,0) -> 0 | H23: =SUM(F23:G23) -> 3162.33 | I23: =H23*AliqIva -> 316.233 | J23: =H23+I23 -> 3478.563 | K23: =IF(ImpLav<>0,F23*ImpTecLav/ImpLav,0) -> 920.0630305 | L23: =SUM(J23:K23) -> 4398.62603 | M23: =IF(L23<=T23,L23*percDetr,T23*percDetr) -> 3079.038221 | O23: .. | P23: .. | Q23: ok | R23: =CONCATENATE(C23," '",E23,"'") -> IN) Serramenti con chiusure oscuranti 'Zone D, E ed F' | S23: 8.46 | T23: 7877.18904 | U23: ok | W23: =IF(L23<T23,L23,T23) -> 4398.62603 | Y23: =IF(L23>T23,L23-T23,0) -> 0 | AA23: 2434.9941 | AC23: 644.0441213 | AF23: IN) Serramenti con chiusure oscuranti 'Zone D, E ed F' | AG23: =54545*N_Uimm -> 163635 | AH23: ok | AJ23: 0 | AK23: =IF(E23="Zone A, B e C",IF(C23="IN) Serramenti",660,780),IF(C23="IN) Serramenti",780,900)) -> 900 | AL23: =IF(S23<>0,IF(F23<>0,G23*AJ23/F23/S23,0),0) -> 0 | AM23: 400 | AN23: =MIN(AY23,AZ23,BA23) -> 3162.33 | AO23: =AU23 -> 3162.33 | AP23: =K23 -> 920.0630305 | AQ23: =BF23*SUM(AN23:AO23) -> 632.4660094 | AR23: =IF(Titolare!$I$8=TRUE,SUM(AN23:AQ23),AG23) -> 7877.18904 | AS23: ok | AU23: =IF(F23>AJ23,F23-AJ23,0) -> 3162.33 | AV23: =SUM(AK23:AM23) -> 1300 | AW23: 0 | AX23: TRUE | AY23: =H23 -> 3162.33 | AZ23: =AV23*S23+AW23*BG23 -> 10998 | BA23: =H23 -> 3162.33 | BB23: TRUE | BC23: TRUE | BD23: TRUE | BE23: TRUE | BF23: 0.1000000015 | BG23: 0 | BI23: IN) Serramenti con chiusure oscuranti 'Zone D, E ed F' | BJ23: 3162.33 | BK23: 0 | BL23: 0 | BM23: 0 | BN23: 0
C24: Totali Isolamento PV) PO) PS) e IN) | F24: =SUM(F20:F23) -> 14950.53 | G24: 0 | H24: 14950.53 | I24: 1495.053 | J24: 16445.583 | K24: 4349.776886 | L24: 20795.35989 | M24: =SUM(M20:M23) -> 14556.75192 | R24: =C24 -> Totali Isolamento PV) PO) PS) e IN) | T24: 24577.52291 | U24: ok | W24: =IF(T24=AG24,IF(L24<T24,L24,T24),SUM(W20:X23)) -> 20795.35989 | Y24: =IF(L24>W24,L24-W24,0) -> 0 | AA24: 11511.9081 | AC24: 3044.84382 | AF24: Totali Isolamento PV) PO) PS) e IN) | AG24: =54545*N_Uimm -> 163635 | AH24: ok | AR24: =IF(Titolare!$I$8=TRUE,SUM(AR20:AR23),AG24) -> 24577.52291 | AS24: ok | BI24: Totali Isolamento PV) PO) PS) e IN) | BJ24: =SUM(BJ20:BJ23) -> 14950.53 | BK24: =SUM(BK20:BK23) -> 0 | BL24: =SUM(BL20:BL23) -> 0 | BM24: =SUM(BM20:BM23) -> 0 | BN24: =SUM(BN20:BN23) -> 0
C25: SS) Schermature solari e chiusure oscuranti | F25: 0 | G25: =IF(ImpLav<>0,F25*ImpSicLav/ImpLav,0) -> 0 | H25: =SUM(F25:G25) -> 0 | I25: =H25*AliqIva -> 0 | J25: =H25+I25 -> 0 | K25: =IF(ImpLav<>0,F25*ImpTecLav/ImpLav,0) -> 0 | L25: =SUM(J25:K25) -> 0 | M25: =IF(L25<=T25,L25*percDetr,T25*percDetr) -> 0 | O25: .. | P25: .. | Q25: ok | R25: =C25 -> SS) Schermature solari e chiusure oscuranti | S25: 1 | T25: 0 | U25: ok | W25: =IF(L25<T25,L25,T25) -> 0 | Y25: =IF(L25>T25,L25-T25,0) -> 0 | AA25: 0 | AC25: 0 | AF25: SS) Schermature solari e chiusure oscuranti | AG25: =54545*N_Uimm -> 163635 | AH25: ok | AJ25: 0 | AK25: 0 | AL25: =IF(S25<>0,IF(F25<>0,G25*AJ25/F25/S25,0),0) -> 0 | AM25: 0 | AN25: =MIN(AY25,AZ25,BA25) -> 0 | AO25: =AU25 -> 0 | AP25: =K25 -> 0 | AQ25: =BF25*SUM(AN25:AO25) -> 0 | AR25: =IF(Titolare!$I$8=TRUE,SUM(AN25:AQ25),AG25) -> 0 | AS25: ok | AU25: =IF(F25>AJ25,F25-AJ25,0) -> 0 | AV25: =SUM(AK25:AM25) -> 0 | AW25: 0 | AX25: TRUE | AY25: =H25 -> 0 | AZ25: =AV25*S25+AW25*BG25 -> 0 | BA25: =H25 -> 0 | BB25: TRUE | BC25: TRUE | BD25: TRUE | BE25: TRUE | BF25: 0.1000000015 | BG25: 0 | BI25: SS) Schermature solari e chiusure oscuranti | BJ25: =H25 -> 0 | BK25: 0 | BL25: 0 | BM25: 0 | BN25: 0
C26: Impianti climatizzazione con | D26: CC)Caldaie a Condensazione | F26: 0 | G26: =IF(ImpLav<>0,F26*ImpSicLav/ImpLav,0) -> 0 | H26: =SUM(F26:G26) -> 0 | I26: =H26*AliqIva -> 0 | J26: =H26+I26 -> 0 | K26: =IF(ImpLav<>0,F26*ImpTecLav/ImpLav,0) -> 0 | L26: =SUM(J26:K26) -> 0 | M26: =IF(L26<=T26,L26*percDetr,T26*percDetr) -> 0 | O26: .. | P26: .. | Q26: ok | R26: =CONCATENATE(C26," '",D26,"'") -> Impianti climatizzazione con 'CC)Caldaie a Condensazione' | S26: 1 | T26: 0 | U26: ok | W26: =IF(L26<T26,L26,T26) -> 0 | Y26: =IF(L26>T26,L26-T26,0) -> 0 | AA26: 0 | AC26: 0 | AF26: Impianti climatizzazione con 'CC)Caldaie a Condensazione' | AG26: =27272*N_Uimm -> 81816 | AH26: ok | AJ26: 0 | AK26: 0 | AL26: =IF(S26<>0,IF(F26<>0,G26*AJ26/F26/S26,0),0) -> 0 | AM26: 93.6 | AN26: =MIN(AY26,AZ26,BA26) -> 0 | AO26: =AU26 -> 0 | AP26: =K26 -> 0 | AQ26: =BF26*SUM(AN26:AO26) -> 0 | AR26: =IF(Titolare!$I$8=TRUE,SUM(AN26:AQ26),AG26) -> 0 | AS26: ok | AU26: =IF(F26>AJ26,F26-AJ26,0) -> 0 | AV26: =SUM(AK26:AM26) -> 93.6 | AW26: =IF($T$2=TRUE,IF($X$2=TRUE,180,60),0) -> 180 | AX26: TRUE | AY26: =H26 -> 0 | AZ26: =AV26*S26+AW26*BG26 -> 93.6 | BA26: =H26 -> 0 | BB26: TRUE | BC26: TRUE | BD26: TRUE | BE26: TRUE | BF26: 0.1000000015 | BG26: 0 | BI26: Impianti climatizzazione con 'CC)Caldaie a Condensazione' | BJ26: =H26 -> 0 | BK26: 0 | BL26: 0 | BM26: 0 | BN26: 0
C27: GA) Generatori aria calda Condensazione | F27: 0 | G27: =IF(ImpLav<>0,F27*ImpSicLav/ImpLav,0) -> 0 | H27: =SUM(F27:G27) -> 0 | I27: =H27*AliqIva -> 0 | J27: =H27+I27 -> 0 | K27: =IF(ImpLav<>0,F27*ImpTecLav/ImpLav,0) -> 0 | L27: =SUM(J27:K27) -> 0 | M27: =IF(L27<=T27,L27*percDetr,T27*percDetr) -> 0 | O27: .. | P27: .. | Q27: ok | R27: =C27 -> GA) Generatori aria calda Condensazione | S27: 1 | T27: 0 | U27: ok | W27: =IF(L27<T27,L27,T27) -> 0 | Y27: =IF(L27>T27,L27-T27,0) -> 0 | AA27: 0 | AC27: 0 | AF27: GA) Generatori aria calda Condensazione | AG27: =27272*N_Uimm -> 81816 | AH27: ok | AJ27: 0 | AK27: 0 | AL27: =IF(S27<>0,IF(F27<>0,G27*AJ27/F27/S27,0),0) -> 0 | AM27: 93.6 | AN27: =MIN(AY27,AZ27,BA27) -> 0 | AO27: =AU27 -> 0 | AP27: =K27 -> 0 | AQ27: =BF27*SUM(AN27:AO27) -> 0 | AR27: =IF(Titolare!$I$8=TRUE,SUM(AN27:AQ27),AG27) -> 0 | AS27: ok | AU27: =IF(F27>AJ27,F27-AJ27,0) -> 0 | AV27: =SUM(AK27:AM27) -> 93.6 | AW27: =IF($T$2=TRUE,IF($X$2=TRUE,180,60),0) -> 180 | AX27: TRUE | AY27: =H27 -> 0 | AZ27: =AV27*S27+AW27*BG27 -> 93.6 | BA27: =H27 -> 0 | BB27: TRUE | BC27: TRUE | BD27: TRUE | BE27: TRUE | BF27: 0.1000000015 | BG27: 0 | BI27: GA) Generatori aria calda Condensazione | BJ27: =H27 -> 0 | BK27: 0 | BL27: 0 | BM27: 0 | BN27: 0
C28: IB) Impianti Biomassa | F28: 0 | G28: =IF(ImpLav<>0,F28*ImpSicLav/ImpLav,0) -> 0 | H28: =SUM(F28:G28) -> 0 | I28: =H28*AliqIva -> 0 | J28: =H28+I28 -> 0 | K28: =IF(ImpLav<>0,F28*ImpTecLav/ImpLav,0) -> 0 | L28: =SUM(J28:K28) -> 0 | M28: =IF(L28<=T28,L28*percDetr,T28*percDetr) -> 0 | O28: .. | P28: .. | Q28: ok | R28: =C28 -> IB) Impianti Biomassa | S28: 1 | T28: 0 | U28: ok | W28: =IF(L28<T28,L28,T28) -> 0 | Y28: =IF(L28>T28,L28-T28,0) -> 0 | AA28: 0 | AC28: 0 | AF28: IB) Impianti Biomassa | AG28: =27272*N_Uimm -> 81816 | AH28: ok | AJ28: 0 | AK28: 0 | AL28: =IF(S28<>0,IF(F28<>0,G28*AJ28/F28/S28,0),0) -> 0 | AM28: 0 | AN28: =MIN(AY28,AZ28,BA28) -> 0 | AO28: =AU28 -> 0 | AP28: =K28 -> 0 | AQ28: =BF28*SUM(AN28:AO28) -> 0 | AR28: =IF(Titolare!$I$8=TRUE,SUM(AN28:AQ28),AG28) -> 0 | AS28: ok | AU28: =IF(F28>AJ28,F28-AJ28,0) -> 0 | AV28: =SUM(AK28:AM28) -> 0 | AW28: =IF($T$2=TRUE,IF($X$2=TRUE,180,60),0) -> 180 | AX28: TRUE | AY28: =H28 -> 0 | AZ28: =AV28*S28+AW28*BG28 -> 0 | BA28: =H28 -> 0 | BB28: TRUE | BC28: TRUE | BD28: TRUE | BE28: TRUE | BF28: 0.1000000015 | BG28: 0 | BI28: IB) Impianti Biomassa | BJ28: =H28 -> 0 | BK28: 0 | BL28: 0 | BM28: 0 | BN28: 0
C29: SA) Scaldacqua a pompa di calore | F29: 0 | G29: =IF(ImpLav<>0,F29*ImpSicLav/ImpLav,0) -> 0 | H29: =SUM(F29:G29) -> 0 | I29: =H29*AliqIva -> 0 | J29: =H29+I29 -> 0 | K29: =IF(ImpLav<>0,F29*ImpTecLav/ImpLav,0) -> 0 | L29: =SUM(J29:K29) -> 0 | M29: =IF(L29<=T29,L29*percDetr,T29*percDetr) -> 0 | O29: .. | P29: .. | Q29: ok | R29: =C29 -> SA) Scaldacqua a pompa di calore | S29: 1 | T29: 0 | U29: ok | W29: =IF(L29<T29,L29,T29) -> 0 | Y29: =IF(L29>T29,L29-T29,0) -> 0 | AA29: 0 | AC29: 0 | AF29: SA) Scaldacqua a pompa di calore | AG29: =27272*N_Uimm -> 81816 | AH29: ok | AJ29: 0 | AK29: 0 | AL29: =IF(F29<>0,G29*AJ29/F29,0) -> 0 | AM29: 93.6 | AN29: =MIN(AY29,AZ29,BA29) -> 0 | AO29: =AU29 -> 0 | AP29: =K29 -> 0 | AQ29: =BF29*SUM(AN29:AO29) -> 0 | AR29: =IF(Titolare!$I$8=TRUE,SUM(AN29:AQ29),AG29) -> 0 | AS29: ok | AU29: =IF(F29>AJ29,F29-AJ29,0) -> 0 | AV29: =SUM(AK29:AM29) -> 93.6 | AW29: 0 | AX29: TRUE | AY29: =H29 -> 0 | AZ29: =AV29 -> 93.6 | BA29: =H29 -> 0 | BB29: TRUE | BC29: TRUE | BD29: TRUE | BE29: TRUE | BF29: 0.1000000015 | BG29: 0 | BI29: SA) Scaldacqua a pompa di calore | BJ29: =H29 -> 0 | BK29: 0 | BL29: 0 | BM29: 0 | BN29: 0
C30: Totali GA) IB) SA) | F30: =SUM(F27:F29) -> 0 | G30: 0 | H30: 0 | I30: 0 | J30: 0 | K30: 0 | L30: 0 | M30: 0 | R30: =C30 -> Totali GA) IB) SA) | T30: 0 | U30: ok | W30: =IF(T30=AG30,IF(L30<T30,L30,T30),SUM(W27:X29)) -> 0 | Y30: =IF(L30>W30,L30-W30,0) -> 0 | AA30: 0 | AC30: 0 | AF30: Totali GA) IB) SA) | AG30: =27272*N_Uimm -> 81816 | AH30: ok | AR30: =IF(Titolare!$I$8=TRUE,SUM(AR27:AR29),AG30) -> 0 | AS30: ok | BI30: Totali GA) IB) SA) | BJ30: =SUM(BJ27:BJ29) -> 0 | BK30: =SUM(BK27:BK29) -> 0 | BL30: =SUM(BL27:BL29) -> 0 | BM30: =SUM(BM27:BM29) -> 0 | BN30: =SUM(BN27:BN29) -> 0
C31: CO) Sistemi di Microgenerazione | E31: Celle a combustibile | F31: 0 | G31: =IF(ImpLav<>0,F31*ImpSicLav/ImpLav,0) -> 0 | H31: =SUM(F31:G31) -> 0 | I31: =H31*AliqIva -> 0 | J31: =H31+I31 -> 0 | K31: =IF(ImpLav<>0,F31*ImpTecLav/ImpLav,0) -> 0 | L31: =SUM(J31:K31) -> 0 | M31: =IF(L31<=T31,L31*percDetr,T31*percDetr) -> 0 | O31: .. | P31: .. | Q31: ok | R31: =CONCATENATE(C31," '",E31,"'") -> CO) Sistemi di Microgenerazione 'Celle a combustibile' | S31: 1 | T31: 0 | U31: ok | W31: =IF(L31<T31,L31,T31) -> 0 | Y31: =IF(L31>T31,L31-T31,0) -> 0 | AA31: 0 | AC31: 0 | AF31: CO) Sistemi di Microgenerazione 'Celle a combustibile' | AG31: =90909*N_Uimm -> 272727 | AH31: ok | AJ31: 0 | AK31: 0 | AL31: =IF(S31<>0,IF(F31<>0,G31*AJ31/F31/S31,0),0) -> 0 | AM31: 93.6 | AN31: =MIN(AY31,AZ31,BA31) -> 0 | AO31: =AU31 -> 0 | AP31: =K31 -> 0 | AQ31: =BF31*SUM(AN31:AO31) -> 0 | AR31: =IF(Titolare!$I$8=TRUE,SUM(AN31:AQ31),AG31) -> 0 | AS31: ok | AU31: =IF(F31>AJ31,F31-AJ31,0) -> 0 | AV31: =SUM(AK31:AM31) -> 93.6 | AW31: 0 | AX31: TRUE | AY31: =H31 -> 0 | AZ31: =AV31*S31+AW31*BG31 -> 93.6 | BA31: =H31 -> 0 | BB31: TRUE | BC31: TRUE | BD31: TRUE | BE31: TRUE | BF31: 0.1000000015 | BG31: 0 | BI31: CO) Sistemi di Microgenerazione 'Celle a combustibile' | BJ31: =H31 -> 0 | BK31: 0 | BL31: 0 | BM31: 0 | BN31: 0
C32: ST) Collettori Solari | E32: Piani Vetrati | F32: 0 | G32: 0 | H32: 0 | I32: 0 | J32: 0 | K32: 0 | L32: 0 | M32: 0 | O32: .. | P32: .. | Q32: ok | R32: =CONCATENATE(C32," '",E32,"'") -> ST) Collettori Solari 'Piani Vetrati' | S32: 1 | T32: 0 | U32: ok | W32: 0 | Y32: 0 | AA32: 0 | AC32: 0 | AF32: ST) Collettori Solari 'Piani Vetrati' | AG32: =54545*N_Uimm -> 163635 | AH32: ok | AJ32: 0 | AK32: 0 | AL32: =IF(S32<>0,IF(F32<>0,G32*AJ32/F32/S32,0),0) -> 0 | AM32: 285 | AN32: =MIN(AY32,AZ32,BA32) -> 0 | AO32: =AU32 -> 0 | AP32: =K32 -> 0 | AQ32: =BF32*SUM(AN32:AO32) -> 0 | AR32: =IF(Titolare!$I$8=TRUE,SUM(AN32:AQ32),AG32) -> 0 | AS32: ok | AU32: 0 | AV32: 285 | AW32: 0 | AX32: TRUE | AY32: 0 | AZ32: 285 | BA32: =H32 -> 0 | BB32: TRUE | BC32: TRUE | BD32: TRUE | BE32: TRUE | BF32: 0.1000000015 | BG32: 0 | BI32: ST) Collettori Solari 'Piani Vetrati' | BJ32: 0 | BK32: 0 | BL32: 0 | BM32: 0 | BN32: 0
C33: FV) Solare Fotovoltaico [ kWp ] | E33: 15.2 | F33: 0 | G33: 0 | H33: 0 | I33: 0 | J33: 0 | K33: 0 | L33: 0 | M33: 0 | O33: .. | R33: =C33 -> FV) Solare Fotovoltaico [ kWp ] | S33: =E33 -> 15.2 | T33: 36480 | U33: ok | W33: 0 | Y33: 0 | AA33: 0 | AC33: 0 | AF33: FV) Solare Fotovoltaico [ kWp ] | AG33: =IF(ISNUMBER(FIND("ristr",C33))=FALSE,IF(E33*2400<48000*N_Uimm,E33*2400,48000*N_Uimm),IF(E33*1600<48000*N_Uimm,E33*1600,48000*N_Uimm)) -> 36480 | AH33: ok | AJ33: 0 | AK33: 0 | AR33: =AG33 -> 36480 | AS33: ok | AU33: 0 | AV33: 0 | AW33: 0 | AX33: TRUE | AY33: 0 | AZ33: 0 | BA33: 0 | BB33: TRUE | BC33: TRUE | BD33: TRUE | BE33: TRUE | BF33: 0.1000000015 | BG33: 0 | BI33: FV) Solare Fotovoltaico [ kWp ] | BJ33: 0 | BK33: 0 | BL33: 0 | BM33: 0 | BN33: 0
C34: AC) Sistema di Accumulo [ kWh ] | E34: 10 | F34: 0 | G34: 0 | H34: 0 | I34: 0 | J34: 0 | K34: 0 | L34: 0 | M34: 0 | O34: .. | R34: =C34 -> AC) Sistema di Accumulo [ kWh ] | S34: =E34 -> 10 | T34: 10000 | U34: ok | W34: 0 | Y34: 0 | AA34: 0 | AC34: 0 | AF34: AC) Sistema di Accumulo [ kWh ] | AG34: =IF(E34*1000<48000*N_Uimm,E34*1000,48000*N_Uimm) -> 10000 | AH34: ok | AJ34: 0 | AK34: 0 | AR34: =AG34 -> 10000 | AS34: ok | AU34: 0 | AV34: 0 | AW34: 0 | AX34: TRUE | AY34: 0 | AZ34: 0 | BA34: 0 | BB34: TRUE | BC34: TRUE | BD34: TRUE | BE34: TRUE | BF34: 0.1 | BI34: AC) Sistema di Accumulo [ kWh ] | BJ34: 0 | BK34: 0 | BL34: 0 | BM34: 0 | BN34: 0
C35: CR) Colonnine di Ricarica [ N. ] | E35: 1 | F35: 0 | G35: 0 | H35: 0 | I35: 0 | J35: 0 | K35: 0 | L35: 0 | M35: 0 | O35: .. | R35: =C35 -> CR) Colonnine di Ricarica [ N. ] | S35: =E35 -> 1 | T35: 1500 | U35: ok | W35: 0 | Y35: 0 | AA35: 0 | AC35: 0 | AF35: CR) Colonnine di Ricarica [ N. ] | AG35: =IF(E35>8,1500*8+1200*(E35-8),1500*E35) -> 1500 | AH35: ok | AJ35: 0 | AK35: 0 | AR35: =AG35 -> 1500 | AS35: ok | AU35: 0 | AV35: 0 | AW35: 0 | AX35: TRUE | AY35: 0 | AZ35: 0 | BA35: 0 | BB35: TRUE | BC35: TRUE | BD35: TRUE | BE35: TRUE | BF35: 0.1000000015 | BG35: 0 | BI35: CR) Colonnine di Ricarica [ N. ] | BJ35: 0 | BK35: 0 | BL35: 0 | BM35: 0 | BN35: 0
C36: EBA) Eliminazione Barriere architettoniche | F36: 0 | G36: 0 | H36: 0 | I36: 0 | J36: 0 | K36: 0 | L36: 0 | M36: 0 | O36: .. | R36: =C36 -> EBA) Eliminazione Barriere architettoniche | S36: 1 | T36: 288000 | U36: ok | W36: 0 | Y36: 0 | AA36: 0 | AC36: 0 | AF36: EBA) Eliminazione Barriere architettoniche | AG36: =IF(F36>0,IF(96000*N_Uimm > F15,96000*N_Uimm - F15,0),96000*N_Uimm ) -> 288000 | AH36: ok | AJ36: 0 | AK36: 0 | AR36: =AG36 -> 288000 | AS36: ok | AU36: 0 | AV36: 0 | AW36: 0 | AX36: TRUE | AY36: 0 | AZ36: 0 | BA36: 0 | BB36: TRUE | BC36: TRUE | BD36: TRUE | BE36: TRUE | BF36: 0.1 | BI36: EBA) Eliminazione Barriere architettoniche | BJ36: 0 | BK36: 0 | BL36: 0 | BM36: 0 | BN36: 0
C37: Totale Interventi Trainati Parti Comuni : | F37: =SUM(F24:F26)+SUM(F30:F36) -> 14950.53 | G37: 0 | H37: 14950.53 | I37: 1495.053 | J37: 16445.583 | K37: 4349.776886 | L37: 20795.35989 | M37: 14556.75192 | V37: =C37 -> Totale Interventi Trainati Parti Comuni : | W37: =W24+W25+W26+SUM(W30:X36) -> 20795.35989 | Y37: =Y24+Y25+Y26+SUM(Y30:Z36) -> 0 | AA37: =AA24+AA25+AA26+SUM(AA30:AB36) -> 11511.9081 | AC37: =AC24+AC25+AC26+SUM(AC30:AD36) -> 3044.84382 | BI37: =V37 -> Totale Interventi Trainati Parti Comuni : | BJ37: =BJ24+BJ25+BJ26+SUM(BJ30:BJ36) -> 14950.53 | BK37: =BK24+BK25+BK26+SUM(BK30:BK36) -> 0 | BL37: =BL24+BL25+BL26+SUM(BL30:BL36) -> 0 | BM37: =BM24+BM25+BM26+SUM(BM30:BM36) -> 0 | BN37: =BN24+BN25+BN26+SUM(BN30:BN36) -> 0
C40: =CONCATENATE("INTERVENTI TRAINATI Unità Immobiliare N.1",IF(UnitàImmobiliari!B3<>"", " - Foglio " & UnitàImmobiliari!B3 & " P.lla " & UnitàImmobiliari!C3 & " Sub. " & UnitàImmobiliari!D3,""),IF(UnitàImmobiliari!I3<>""," @ ",""),IFERROR(INDEX(Committenti!B3:D1017,MATCH(UnitàImmobiliari!I3,Committenti!D3:D1017,0),1),"")," ",IFERROR(INDEX(Committenti!B3:D1017,MATCH(UnitàImmobiliari!I3,Committenti!D3:D1017,0),2),"")) -> INTERVENTI TRAINATI Unità Immobiliare N.1 - Foglio 302 P.lla 200 Sub. 1 @ Prato Pietro | N40: .. | Q40: Asseverabile | R40: =CONCATENATE("Spesa detraibile ammissibile ",C40) -> Spesa detraibile ammissibile INTERVENTI TRAINATI Unità Immobiliare N.1 - Foglio 302 P.lla 200 Sub. 1 @ Prato Pietro | AF40: Spesa Massima Ammissibile (norma primaria) | AJ40: =CONCATENATE("Spesa Specifica MITE - ",C40) -> Spesa Specifica MITE - INTERVENTI TRAINATI Unità Immobiliare N.1 - Foglio 302 P.lla 200 Sub. 1 @ Prato Pietro | BI40: =CONCATENATE("Ripartizione tra le Imprese - Imponibile Lavori ",C40) -> Ripartizione tra le Imprese - Imponibile Lavori INTERVENTI TRAINATI Unità Immobiliare N.1 - Foglio 302 P.lla 200 Sub. 1 @ Prato Pietro
C41: Interventi | F41: Importo Lavori | G41: Incidenza Sicurezza | H41: Imponibile | I41: Iva | J41: Importo c.iva | K41: Spese tecniche | L41: Totale | M41: =$M$8 -> Credito Spettante 70% Spesa Ammessa | R41: Interventi | S41: Superficie Intervento / UnitàMisura | T41: Min(Spesa Max Ammissibile;Spesa Max Intervento) | U41: Verifica Max | W41: Spesa Ammessa | Y41: Quota Eccedente Spesa detraibile Ammessa | AA41: =$AA$8 -> Credito Spettante 70% Spesa Ammessa Quota Imprese | Quota Tecnici | AF41: Interventi | AG41: Spesa Massima Ammissibile | AH41: Ver. Max | AJ41: Importo Lavori Fornitura e Posa | AK41: Costo dei Beni (Allegato A) | AL41: Opere per installazione (Sicurezza) | AM41: Manodopera | AN41: =$AN$8 -> Spesa Max Ammissibile Asseverata | AO41: Altri Costi | AP41: Spese Tecniche | AQ41: IVA | AR41: Spesa di Intervento | AS41: =$AS$8 -> Ver.Max | AU41: Altri Lavori | AV41: Importo Specifico DM Costi Massimi | AW41: Incremento Costo dei Beni (Allegato A) | AX41: Controllo1 | AY41: Importo Controllo1 | AZ41: Importo Controllo2 | BA41: Importo Controllo3 | BB41: Opere per Istallazione = Incidenza Sicurezza Fornitura / Superficie Intervento | BC41: SpesaSostenuta = Opera Compiuta | BD41: Spesa Tecniche = Spese Tecniche da Computo | BE41: Altri Costi = Altri Lavori | BF41: AliqIva | BG41: Superficie Riscaldata | BI41: Interventi | BJ41: =IF('Dati Gen'!$B$38<>"",'Dati Gen'!$B$38,"") -> Impresa1 | BK41: =IF('Dati Gen'!$B$39<>"",'Dati Gen'!$B$39,"") ->  | BL41: =IF('Dati Gen'!$B$40<>"",'Dati Gen'!$B$40,"") ->  | BM41: =IF('Dati Gen'!$B$41<>"",'Dati Gen'!$B$41,"") ->  | BN41: =IF('Dati Gen'!$B$42<>"",'Dati Gen'!$B$42,"") -> 
C42: PV) Isolamento pareti perimetrali | E42: Esterno | F42: 0 | G42: 0 | H42: =SUM(F42:G42) -> 0 | I42: =H42*AliqIva -> 0 | J42: =H42+I42 -> 0 | K42: =IF(ImpLav<>0,F42*ImpTecLav/ImpLav,0) -> 0 | L42: =SUM(J42:K42) -> 0 | M42: =IF(L42<=T42,L42*percDetr,T42*percDetr) -> 0 | O42: .. | P42: .. | Q42: ok | R42: =CONCATENATE(C42," '",E42,"'") -> PV) Isolamento pareti perimetrali 'Esterno' | S42: 1 | T42: =MIN(AG42,AR42) -> 0 | U42: =IF(L42>T42,"ko","ok") -> ok | W42: =IF(L42<T42,L42,T42) -> 0 | Y42: =IF(L42>T42,L42-T42,0) -> 0 | AA42: =IF(M42<>0,J42*M42/L42,0) -> 0 | AC42: =IF(M42<>0,K42*M42/L42,0) -> 0 | AF42: =R42 -> PV) Isolamento pareti perimetrali 'Esterno' | AG42: 54545 | AH42: =IF(L42>AG42,"ko","ok") -> ok | AJ42: 0 | AK42: =IF(ZonaClimatica="A",IF(E42="Parete Ventilata",240,IF(E42="Interno",96,180)),IF(ZonaClimatica="B",IF(E42="Parete Ventilata",240,IF(E42="Interno",96,180)),IF(ZonaClimatica="C",IF(E42="Parete Ventilata",240,IF(E42="Interno",96,180)),IF(E42="Parete Ventilata",260,IF(E42="Interno",104,195))))) -> 195 | AL42: =IF(S42<>0,IF(F42<>0,G42*AJ42/F42/S42,0),0) -> 0 | AM42: 27 | AN42: =MIN(AY42,AZ42,BA42) -> 0 | AO42: =AU42 -> 0 | AP42: =K42 -> 0 | AQ42: =BF42*SUM(AN42:AO42) -> 0 | AR42: =IF(Titolare!$I$8=TRUE,SUM(AN42:AQ42),AG42) -> 0 | AS42: =IF(L42>AR42,"ko","ok") -> ok | AU42: =IF(F42>AJ42,F42-AJ42,0) -> 0 | AV42: =SUM(AK42:AM42) -> 222 | AW42: 0 | AX42: TRUE | AY42: =H42 -> 0 | AZ42: =AV42*S42+AW42*BG42 -> 222 | BA42: =H42 -> 0 | BB42: TRUE | BC42: TRUE | BD42: TRUE | BE42: TRUE | BF42: 0.1000000015 | BG42: 0 | BI42: =R42 -> PV) Isolamento pareti perimetrali 'Esterno' | BJ42: =H42 -> 0 | BK42: 0 | BL42: 0 | BM42: 0 | BN42: 0 | BO42: =IF(ABS(SUM(BJ42:BN42)-H42)>0.01,"err. Somma","") -> 
C43: PO) Isolamento coperture | E43: Esterno | F43: 0 | G43: 0 | H43: =SUM(F43:G43) -> 0 | I43: =H43*AliqIva -> 0 | J43: =H43+I43 -> 0 | K43: =IF(ImpLav<>0,F43*ImpTecLav/ImpLav,0) -> 0 | L43: =SUM(J43:K43) -> 0 | M43: =IF(L43<=T43,L43*percDetr,T43*percDetr) -> 0 | O43: .. | P43: .. | Q43: ok | R43: =CONCATENATE(C43," '",E43,"'") -> PO) Isolamento coperture 'Esterno' | S43: 1 | T43: 0 | U43: ok | W43: =IF(L43<T43,L43,T43) -> 0 | Y43: =IF(L43>T43,L43-T43,0) -> 0 | AA43: 0 | AC43: 0 | AF43: PO) Isolamento coperture 'Esterno' | AG43: 54545 | AH43: ok | AJ43: 0 | AK43: =IF(E43="Copertura Ventilata",300,IF(E43="Interno",120,276)) -> 276 | AL43: =IF(S43<>0,IF(F43<>0,G43*AJ43/F43/S43,0),0) -> 0 | AM43: 38 | AN43: =MIN(AY43,AZ43,BA43) -> 0 | AO43: =AU43 -> 0 | AP43: =K43 -> 0 | AQ43: =BF43*SUM(AN43:AO43) -> 0 | AR43: =IF(Titolare!$I$8=TRUE,SUM(AN43:AQ43),AG43) -> 0 | AS43: ok | AU43: =IF(F43>AJ43,F43-AJ43,0) -> 0 | AV43: =SUM(AK43:AM43) -> 314 | AW43: 0 | AX43: TRUE | AY43: =H43 -> 0 | AZ43: =AV43*S43+AW43*BG43 -> 314 | BA43: =H43 -> 0 | BB43: TRUE | BC43: TRUE | BD43: TRUE | BE43: TRUE | BF43: 0.1 | BG43: 0 | BI43: =R43 -> PO) Isolamento coperture 'Esterno' | BJ43: 0 | BK43: 0 | BL43: 0 | BM43: 0 | BN43: 0
C44: PS) Isolamento Pavimenti | E44: Esterno | F44: =0.371*19215.9+0.4606*17968.93 -> 15405.58806 | G44: 0 | H44: =SUM(F44:G44) -> 15405.58806 | I44: =H44*AliqIva -> 1540.558806 | J44: =H44+I44 -> 16946.14686 | K44: =IF(ImpLav<>0,F44*ImpTecLav/ImpLav,0) -> 4482.173598 | L44: =SUM(J44:K44) -> 21428.32046 | M44: =IF(L44<=T44,L44*percDetr,T44*percDetr) -> 14999.82432 | O44: .. | P44: .. | Q44: ok | R44: =CONCATENATE(C44," '",E44,"'") -> PS) Isolamento Pavimenti 'Esterno' | S44: 242 | T44: 21428.32046 | U44: ok | W44: =IF(L44<T44,L44,T44) -> 21428.32046 | Y44: =IF(L44>T44,L44-T44,0) -> 0 | AA44: 11862.3028 | AC44: 3137.521519 | AF44: PS) Isolamento Pavimenti 'Esterno' | AG44: 54545 | AH44: ok | AJ44: 15405.59 | AK44: =IF(E44="Interno/terreno",180,144) -> 144 | AL44: =IF(S44<>0,IF(F44<>0,G44*AJ44/F44/S44,0),0) -> 0 | AM44: 27 | AN44: =MIN(AY44,AZ44,BA44) -> 15405.58806 | AO44: =AU44 -> 0 | AP44: =K44 -> 4482.173598 | AQ44: =BF44*SUM(AN44:AO44) -> 1540.558806 | AR44: =IF(Titolare!$I$8=TRUE,SUM(AN44:AQ44),AG44) -> 21428.32046 | AS44: ok | AU44: =IF(F44>AJ44,F44-AJ44,0) -> 0 | AV44: =SUM(AK44:AM44) -> 171 | AW44: 0 | AX44: TRUE | AY44: =H44 -> 15405.58806 | AZ44: =AV44*S44+AW44*BG44 -> 41382 | BA44: =H44 -> 15405.58806 | BB44: TRUE | BC44: TRUE | BD44: TRUE | BE44: TRUE | BF44: 0.1 | BG44: 0 | BI44: PS) Isolamento Pavimenti 'Esterno' | BJ44: =H44 -> 15405.58806 | BK44: 0 | BL44: 0 | BM44: 0 | BN44: 0
C45: IN) Serramenti con chiusure oscuranti | E45: =IF(ZonaClimatica="A","Zone A, B e C", IF(ZonaClimatica="B","Zone A, B e C",IF(ZonaClimatica="C","Zone A, B e C","Zone D, E ed F"))) -> Zone D, E ed F | F45: =0.371*17880.83+0.4606*18699.4 -> 15246.73157 | G45: 0 | H45: =SUM(F45:G45) -> 15246.73157 | I45: =H45*AliqIva -> 1524.673157 | J45: =H45+I45 -> 16771.40473 | K45: =IF(ImpLav<>0,F45*ImpTecLav/ImpLav,0) -> 4435.955151 | L45: =SUM(J45:K45) -> 21207.35988 | M45: =IF(L45<=T45,L45*percDetr,T45*percDetr) -> 14845.15191 | O45: .. | P45: .. | Q45: ok | R45: =CONCATENATE(C45," '",E45,"'") -> IN) Serramenti con chiusure oscuranti 'Zone D, E ed F' | S45: 18.77 | T45: 21207.36163 | U45: ok | W45: =IF(L45<T45,L45,T45) -> 21207.35988 | Y45: =IF(L45>T45,L45-T45,0) -> 0 | AA45: 11739.98331 | AC45: 3105.168606 | AF45: IN) Serramenti con chiusure oscuranti 'Zone D, E ed F' | AG45: 54545 | AH45: ok | AJ45: 15246.73 | AK45: =IF(E45="Zone A, B e C",IF(C45="IN) Serramenti",660,780),IF(C45="IN) Serramenti",780,900)) -> 900 | AL45: 68.83 | AM45: 100 | AN45: =MIN(AY45,AZ45,BA45) -> 15246.73157 | AO45: =AU45 -> 0.001570000002 | AP45: =K45 -> 4435.955151 | AQ45: =BF45*SUM(AN45:AO45) -> 1524.673337 | AR45: =IF(Titolare!$I$8=TRUE,SUM(AN45:AQ45),AG45) -> 21207.36163 | AS45: ok | AU45: =IF(F45>AJ45,F45-AJ45,0) -> 0.001570000002 | AV45: =SUM(AK45:AM45) -> 1068.83 | AW45: 0 | AX45: TRUE | AY45: =H45 -> 15246.73157 | AZ45: =AV45*S45+AW45*BG45 -> 20061.9391 | BA45: =H45 -> 15246.73157 | BB45: FALSE | BC45: TRUE | BD45: TRUE | BE45: TRUE | BF45: 0.1000000015 | BG45: 0 | BI45: IN) Serramenti con chiusure oscuranti 'Zone D, E ed F' | BJ45: 15246.73 | BK45: 0 | BL45: 0 | BM45: 0 | BN45: 0
C46: Totali Isolamento PV) PO) PS) e IN | F46: =SUM(F42:F45) -> 30652.31963 | G46: 0 | H46: 30652.31963 | I46: 3065.231963 | J46: 33717.55159 | K46: 8918.128749 | L46: =SUM(L42:L45) -> 42635.68034 | M46: =SUM(M42:M45) -> 29844.97624 | R46: =C46 -> Totali Isolamento PV) PO) PS) e IN | T46: 42635.68209 | U46: ok | W46: =IF(T46=AG46,IF(L46<T46,L46,T46),SUM(W42:X45)) -> 42635.68034 | Y46: =IF(L46>W46,L46-W46,0) -> 0 | AA46: 23602.28611 | AC46: 6242.690125 | AF46: Totali Isolamento PV) PO) PS) e IN | AG46: 54545 | AH46: ok | AR46: =IF(Titolare!$I$8=TRUE,SUM(AR42:AR45),AG46) -> 42635.68209 | AS46: ok | BI46: Totali Isolamento PV) PO) PS) e IN | BJ46: =SUM(BJ42:BJ45) -> 30652.31806 | BK46: =SUM(BK42:BK45) -> 0 | BL46: =SUM(BL42:BL45) -> 0 | BM46: =SUM(BM42:BM45) -> 0 | BN46: =SUM(BN42:BN45) -> 0
C47: SS) Schermature solari e chiusure oscuranti | F47: 0 | G47: 0 | H47: =SUM(F47:G47) -> 0 | I47: =H47*AliqIva -> 0 | J47: =H47+I47 -> 0 | K47: =IF(ImpLav<>0,F47*ImpTecLav/ImpLav,0) -> 0 | L47: =SUM(J47:K47) -> 0 | M47: =IF(L47<=T47,L47*percDetr,T47*percDetr) -> 0 | O47: .. | P47: .. | Q47: ok | R47: =C47 -> SS) Schermature solari e chiusure oscuranti | S47: 10 | T47: 0 | U47: ok | W47: =IF(L47<T47,L47,T47) -> 0 | Y47: =IF(L47>T47,L47-T47,0) -> 0 | AA47: 0 | AC47: 0 | AF47: SS) Schermature solari e chiusure oscuranti | AG47: 54545 | AH47: ok | AJ47: 0 | AK47: 276 | AL47: =IF(S47<>0,IF(F47<>0,G47*AJ47/F47/S47,0),0) -> 0 | AM47: 150 | AN47: =MIN(AY47,AZ47,BA47) -> 0 | AO47: =AU47 -> 0 | AP47: =K47 -> 0 | AQ47: =BF47*SUM(AN47:AO47) -> 0 | AR47: =IF(Titolare!$I$8=TRUE,SUM(AN47:AQ47),AG47) -> 0 | AS47: ok | AU47: =IF(F47>AJ47,F47-AJ47,0) -> 0 | AV47: =SUM(AK47:AM47) -> 426 | AW47: 0 | AX47: TRUE | AY47: =H47 -> 0 | AZ47: =AV47*S47+AW47*BG47 -> 4260 | BA47: =H47 -> 0 | BB47: TRUE | BC47: TRUE | BD47: TRUE | BE47: TRUE | BF47: 0.1000000015 | BG47: 0 | BI47: SS) Schermature solari e chiusure oscuranti | BJ47: 0 | BK47: 0 | BL47: 0 | BM47: 0 | BN47: 0
C48: Impianti climatizzazione con | D48: PC)Altro | F48: =0.371*20128.93+0.4606*20128.93 -> 16739.21819 | G48: 0 | H48: =SUM(F48:G48) -> 16739.21819 | I48: =H48*AliqIva -> 1673.921819 | J48: =H48+I48 -> 18413.14001 | K48: =IF(ImpLav<>0,F48*ImpTecLav/ImpLav,0) -> 4870.186165 | L48: =SUM(J48:K48) -> 23283.32617 | M48: =IF(L48<=T48,L48*percDetr,T48*percDetr) -> 16298.32832 | O48: .. | P48: .. | Q48: ok | R48: =CONCATENATE(C48," '",D48,"'") -> Impianti climatizzazione con 'PC)Altro' | S48: 11.8 | T48: 23283.32617 | U48: ok | W48: =IF(L48<T48,L48,T48) -> 23283.32617 | Y48: =IF(L48>T48,L48-T48,0) -> 0 | AA48: 12889.198 | AC48: 3409.130315 | AF48: Impianti climatizzazione con 'PC)Altro' | AG48: 27272 | AH48: ok | AJ48: 16739.22 | AK48: =IF(LEFT(D48,3)="CC)",IF(S48<=35,240,216),IF(D48="PC)Aria/Aria",720,IF(D48="PC)Altro",1560,IF(D48="PC)Geotermiche",2280,IF(LEFT(D48,4)="PCA)",1560,IF(LEFT(D48,3)="SI)",1860,0)))))) -> 1560 | AL48: =IF(S48<>0,IF(F48<>0,G48*AJ48/F48/S48,0),0) -> 0 | AM48: 93.6 | AN48: =MIN(AY48,AZ48,BA48) -> 16739.21819 | AO48: =AU48 -> 0 | AP48: =K48 -> 4870.186165 | AQ48: =BF48*SUM(AN48:AO48) -> 1673.921819 | AR48: =IF(Titolare!$I$8=TRUE,SUM(AN48:AQ48),AG48) -> 23283.32617 | AS48: ok | AU48: =IF(F48>AJ48,F48-AJ48,0) -> 0 | AV48: =SUM(AK48:AM48) -> 1653.6 | AW48: =IF($T$2=TRUE,IF($X$2=TRUE,180,60),0) -> 180 | AX48: TRUE | AY48: =H48 -> 16739.21819 | AZ48: =AV48*S48+AW48*BG48 -> 48852.48 | BA48: =H48 -> 16739.21819 | BB48: TRUE | BC48: TRUE | BD48: TRUE | BE48: TRUE | BF48: 0.1 | BG48: 163 | BI48: Impianti climatizzazione con 'PC)Altro' | BJ48: 16739.22 | BK48: 0 | BL48: 0 | BM48: 0 | BN48: 0
C49: SA) Scaldacqua a pompa di calore | F49: 0 | G49: 0 | H49: =SUM(F49:G49) -> 0 | I49: =H49*AliqIva -> 0 | J49: =H49+I49 -> 0 | K49: =IF(ImpLav<>0,F49*ImpTecLav/ImpLav,0) -> 0 | L49: =SUM(J49:K49) -> 0 | M49: =IF(L49<=T49,L49*percDetr,T49*percDetr) -> 0 | O49: .. | P49: .. | Q49: ok | R49: =C49 -> SA) Scaldacqua a pompa di calore | S49: 200 | T49: 0 | U49: ok | W49: =IF(L49<T49,L49,T49) -> 0 | Y49: =IF(L49>T49,L49-T49,0) -> 0 | AA49: 0 | AC49: 0 | AF49: SA) Scaldacqua a pompa di calore | AG49: 27272 | AH49: ok | AJ49: 0 | AK49: =IF(S49<=150,1200,1500) -> 1500 | AL49: 0 | AM49: 3000 | AN49: =MIN(AY49,AZ49,BA49) -> 0 | AO49: =AU49 -> 0 | AP49: =K49 -> 0 | AQ49: =BF49*SUM(AN49:AO49) -> 0 | AR49: =IF(Titolare!$I$8=TRUE,SUM(AN49:AQ49),AG49) -> 0 | AS49: ok | AU49: =IF(F49>AJ49,F49-AJ49,0) -> 0 | AV49: =SUM(AK49:AM49) -> 4500 | AW49: 0 | AX49: TRUE | AY49: =H49 -> 0 | AZ49: =AV49 -> 4500 | BA49: =H49 -> 0 | BB49: FALSE | BC49: TRUE | BD49: TRUE | BE49: TRUE | BF49: 0.1000000015 | BG49: 0 | BI49: SA) Scaldacqua a pompa di calore | BJ49: 0 | BK49: 0 | BL49: 0 | BM49: 0 | BN49: 0
C50: Totali Impianti ed SA) | F50: =SUM(F48:F49) -> 16739.21819 | G50: 0 | H50: 16739.21819 | I50: 1673.921819 | J50: 18413.14001 | K50: 4870.186165 | L50: 23283.32617 | M50: 16298.32832 | R50: =C50 -> Totali Impianti ed SA) | T50: 23283.32617 | U50: ok | W50: =IF(T50=AG50,IF(L50<T50,L50,T50),SUM(W48:X49)) -> 23283.32617 | Y50: =IF(L50>W50,L50-W50,0) -> 0 | AA50: 12889.198 | AC50: 3409.130315 | AF50: Totali Impianti ed SA) | AG50: 27272 | AH50: ok | AR50: =IF(Titolare!$I$8=TRUE,SUM(AR48:AR49),AG50) -> 23283.32617 | AS50: ok | BI50: Totali Impianti ed SA) | BJ50: =SUM(BJ48:BJ49) -> 16739.22 | BK50: =SUM(BK48:BK49) -> 0 | BL50: =SUM(BL48:BL49) -> 0 | BM50: =SUM(BM48:BM49) -> 0 | BN50: =SUM(BN48:BN49) -> 0
C51: CO) Sistemi di Microgenerazione | E51: Celle a combustibile | F51: 0 | G51: 0 | H51: =SUM(F51:G51) -> 0 | I51: =H51*AliqIva -> 0 | J51: =H51+I51 -> 0 | K51: =IF(ImpLav<>0,F51*ImpTecLav/ImpLav,0) -> 0 | L51: =SUM(J51:K51) -> 0 | M51: =IF(L51<=T51,L51*percDetr,T51*percDetr) -> 0 | O51: .. | P51: .. | Q51: ok | R51: =CONCATENATE(C51," '",E51,"'") -> CO) Sistemi di Microgenerazione 'Celle a combustibile' | S51: 1 | T51: 0 | U51: ok | W51: =IF(L51<T51,L51,T51) -> 0 | Y51: =IF(L51>T51,L51-T51,0) -> 0 | AA51: 0 | AC51: 0 | AF51: CO) Sistemi di Microgenerazione 'Celle a combustibile' | AG51: 90909 | AH51: ok | AJ51: 0 | AK51: =IF(E51="Celle a combustibile",30000,3720) -> 30000 | AL51: =IF(S51<>0,IF(F51<>0,G51*AJ51/F51/S51,0),0) -> 0 | AM51: 93.6 | AN51: =MIN(AY51,AZ51,BA51) -> 0 | AO51: =AU51 -> 0 | AP51: =K51 -> 0 | AQ51: =BF51*SUM(AN51:AO51) -> 0 | AR51: =IF(Titolare!$I$8=TRUE,SUM(AN51:AQ51),AG51) -> 0 | AS51: ok | AU51: =IF(F51>AJ51,F51-AJ51,0) -> 0 | AV51: =SUM(AK51:AM51) -> 30093.6 | AW51: 0 | AX51: TRUE | AY51: =H51 -> 0 | AZ51: =AV51*S51+AW51*BG51 -> 30093.6 | BA51: =H51 -> 0 | BB51: TRUE | BC51: TRUE | BD51: TRUE | BE51: TRUE | BF51: 0.1000000015 | BG51: 0 | BI51: CO) Sistemi di Microgenerazione 'Celle a combustibile' | BJ51: =H51 -> 0 | BK51: 0 | BL51: 0 | BM51: 0 | BN51: 0
C52: IB) Generatori a Biomassa | F52: 0 | G52: 0 | H52: 0 | I52: 0 | J52: 0 | K52: 0 | L52: 0 | M52: 0 | O52: .. | P52: .. | Q52: ok | R52: =C52 -> IB) Generatori a Biomassa | S52: 1 | T52: 0 | U52: ok | W52: 0 | Y52: 0 | AA52: 0 | AC52: 0 | AF52: IB) Generatori a Biomassa | AG52: 27272 | AH52: ok | AJ52: 0 | AK52: =IF(S52<=35,420,540) -> 420 | AL52: =IF(S52<>0,IF(F52<>0,G52*AJ52/F52/S52,0),0) -> 0 | AM52: 0 | AN52: =MIN(AY52,AZ52,BA52) -> 0 | AO52: =AU52 -> 0 | AP52: =K52 -> 0 | AQ52: 0 | AR52: =IF(Titolare!$I$8=TRUE,SUM(AN52:AQ52),AG52) -> 0 | AS52: ok | AU52: 0 | AV52: 420 | AW52: =IF($T$2=TRUE,IF($X$2=TRUE,180,60),0) -> 180 | AX52: TRUE | AY52: 0 | AZ52: 31920 | BA52: =H52 -> 0 | BB52: TRUE | BC52: TRUE | BD52: TRUE | BE52: TRUE | BF52: 0.1000000015 | BG52: 175 | BI52: IB) Generatori a Biomassa | BJ52: 0 | BK52: 0 | BL52: 0 | BM52: 0 | BN52: 0
C53: BA) Building Automation | F53: 0 | G53: 0 | H53: 0 | I53: 0 | J53: 0 | K53: 0 | L53: 0 | M53: 0 | O53: .. | P53: .. | Q53: ok | R53: =C53 -> BA) Building Automation | S53: 95 | T53: 0 | U53: ok | W53: 0 | Y53: 0 | AA53: 0 | AC53: 0 | AF53: BA) Building Automation | AG53: 13636 | AH53: ok | AJ53: 0 | AK53: 60 | AL53: =IF(S53<>0,IF(F53<>0,G53*AJ53/F53/S53,0),0) -> 0 | AM53: 30 | AN53: =MIN(AY53,AZ53,BA53) -> 0 | AO53: =AU53 -> 0 | AP53: =K53 -> 0 | AQ53: 0 | AR53: =IF(Titolare!$I$8=TRUE,SUM(AN53:AQ53),AG53) -> 0 | AS53: ok | AU53: 0 | AV53: 90 | AW53: 0 | AX53: TRUE | AY53: 0 | AZ53: 8550 | BA53: =H53 -> 0 | BB53: TRUE | BC53: TRUE | BD53: TRUE | BE53: TRUE | BF53: 0.1000000015 | BG53: 0 | BI53: BA) Building Automation | BJ53: 0 | BK53: 0 | BL53: 0 | BM53: 0 | BN53: 0
C54: ST) Collettori Solari | E54: Scoperti | F54: 0 | G54: 0 | H54: 0 | I54: 0 | J54: 0 | K54: 0 | L54: 0 | M54: 0 | O54: .. | P54: .. | Q54: ok | R54: =CONCATENATE(C54," '",E54,"'") -> ST) Collettori Solari 'Scoperti' | S54: 1 | T54: 0 | U54: ok | W54: 0 | Y54: 0 | AA54: 0 | AC54: 0 | AF54: ST) Collettori Solari 'Scoperti' | AG54: 54545 | AH54: ok | AJ54: 0 | AK54: =IF(E54="Scoperti",900,IF(E54="Piani vetrati",1200,1500)) -> 900 | AL54: =IF(S54<>0,IF(F54<>0,G54*AJ54/F54/S54,0),0) -> 0 | AM54: 285 | AN54: =MIN(AY54,AZ54,BA54) -> 0 | AO54: =AU54 -> 0 | AP54: =K54 -> 0 | AQ54: =BF54*SUM(AN54:AO54) -> 0 | AR54: =IF(Titolare!$I$8=TRUE,SUM(AN54:AQ54),AG54) -> 0 | AS54: ok | AU54: 0 | AV54: 1185 | AW54: 0 | AX54: TRUE | AY54: 0 | AZ54: 1185 | BA54: =H54 -> 0 | BB54: TRUE | BC54: TRUE | BD54: TRUE | BE54: TRUE | BF54: 0.1000000015 | BG54: 0 | BI54: ST) Collettori Solari 'Scoperti' | BJ54: 0 | BK54: 0 | BL54: 0 | BM54: 0 | BN54: 0
C55: FV) Solare Fotovoltaico [ kWp ] | E55: =0.371*2.94+0.4606*2.94 -> 2.444904 | F55: =0.371*7948.27+0.4606*7948.27 -> 6609.781332 | G55: 0 | H55: 6609.781332 | I55: 660.9781332 | J55: 7270.759465 | K55: 1923.08059 | L55: 9193.840056 | M55: 4107.43872 | O55: .. | Q55: ok | R55: =C55 -> FV) Solare Fotovoltaico [ kWp ] | S55: =E55 -> 2.444904 | T55: 5867.7696 | U55: ko | W55: 5867.7696 | Y55: 3326.070456 | AA55: 3248.2835 | AC55: 859.1552203 | AF55: FV) Solare Fotovoltaico [ kWp ] | AG55: =IF(ISNUMBER(FIND("ristr",C55))=FALSE,IF(E55*2400<48000*N_Uimm,E55*2400,48000*N_Uimm),IF(E55*1600<48000*N_Uimm,E55*1600,48000*N_Uimm)) -> 5867.7696 | AH55: ko | AJ55: 0 | AO55: =AU55 -> 6609.781332 | AP55: =K55 -> 1923.08059 | AQ55: =BF55*SUM(AN55:AO55) -> 660.978143 | AR55: =AG55 -> 5867.7696 | AS55: ko | AU55: 6609.781332 | AV55: 0 | AW55: 0 | AX55: TRUE | AY55: 6609.781332 | AZ55: 0 | BA55: =H55 -> 6609.781332 | BB55: TRUE | BC55: TRUE | BD55: TRUE | BE55: TRUE | BF55: 0.1000000015 | BG55: 0 | BI55: FV) Solare Fotovoltaico [ kWp ] | BJ55: 6609.78 | BK55: 0 | BL55: 0 | BM55: 0 | BN55: 0
C56: AC) Sistema di Accumulo [ kWh ] | E56: =0.371*10.8+0.4606*10.8 -> 8.98128 | F56: =0.371*9162.5+0.4606*9162.5 -> 7619.535 | G56: 0 | H56: 7619.535 | I56: 761.9535 | J56: 8381.4885 | K56: 2216.863029 | L56: 10598.35153 | M56: 6286.896 | O56: .. | Q56: ok | R56: =C56 -> AC) Sistema di Accumulo [ kWh ] | S56: =E56 -> 8.98128 | T56: 8981.28 | U56: ko | W56: 8981.28 | Y56: 1617.071529 | AA56: 4971.8625 | AC56: 1315.0335 | AF56: AC) Sistema di Accumulo [ kWh ] | AG56: =IF(E56*1000<48000*N_Uimm,E56*1000,48000*N_Uimm) -> 8981.28 | AH56: ko | AJ56: 0 | AO56: 7619.535 | AP56: 2216.863029 | AQ56: 761.9535 | AR56: =AG56 -> 8981.28 | AS56: ko | AU56: 7619.535 | AV56: 0 | AW56: 0 | AX56: TRUE | AY56: 7619.535 | AZ56: 0 | BA56: 7619.535 | BB56: TRUE | BC56: TRUE | BD56: TRUE | BE56: TRUE | BF56: 0.1 | BG56: 0 | BI56: AC) Sistema di Accumulo [ kWh ] | BJ56: 7619.54 | BK56: 0 | BL56: 0 | BM56: 0 | BN56: 0
C57: CR) Colonnine di Ricarica | E57: 1 | F57: 0 | G57: 0 | H57: 0 | I57: 0 | J57: 0 | K57: 0 | L57: 0 | M57: 0 | O57: .. | Q57: ok | R57: =C57 -> CR) Colonnine di Ricarica | S57: =E57 -> 1 | T57: 1500 | U57: ok | W57: 0 | Y57: 0 | AA57: 0 | AC57: 0 | AF57: CR) Colonnine di Ricarica | AG57: =IF(TipoEdif=1,2000,IF(N_Uimm>8,1200,1500)) -> 1500 | AH57: ok | AJ57: 0 | AO57: 0 | AP57: 0 | AQ57: 0 | AR57: =AG57 -> 1500 | AS57: ok | AU57: 0 | AV57: 0 | AW57: 0 | AX57: TRUE | AY57: 0 | AZ57: 0 | BA57: 0 | BB57: TRUE | BC57: TRUE | BD57: TRUE | BE57: TRUE | BF57: 0.1 | BG57: 0 | BI57: CR) Colonnine di Ricarica | BJ57: 0 | BK57: 0 | BL57: 0 | BM57: 0 | BN57: 0
C58: EBA) Eliminazione Barriere architettoniche | F58: 0 | G58: 0 | H58: =SUM(F58:G58) -> 0 | I58: 0 | J58: =H58+I58 -> 0 | K58: 0 | L58: 0 | M58: 0 | O58: .. | Q58: ok | R58: =C58 -> EBA) Eliminazione Barriere architettoniche | S58: 1 | T58: 96000 | U58: ok | W58: 0 | Y58: 0 | AA58: 0 | AC58: 0 | AF58: EBA) Eliminazione Barriere architettoniche | AG58: 96000 | AH58: ok | AJ58: 0 | AO58: 0 | AP58: 0 | AQ58: 0 | AR58: =AG58 -> 96000 | AS58: ok | AU58: 0 | AV58: 0 | AW58: 0 | AX58: TRUE | AY58: 0 | AZ58: 0 | BA58: 0 | BB58: TRUE | BC58: TRUE | BD58: TRUE | BE58: TRUE | BF58: 0.1 | BG58: 0 | BI58: EBA) Eliminazione Barriere architettoniche | BJ58: 0 | BK58: 0 | BL58: 0 | BM58: 0 | BN58: 0
C59: Totale Interventi Trainati U.Imm.N.1 | F59: =F46+F47+SUM(F50:F58) -> 61620.85415 | G59: 0 | H59: 61620.85415 | I59: 6162.085415 | J59: 67782.93956 | K59: 17928.25853 | L59: 85711.1981 | M59: 56537.63928 | V59: =C59 -> Totale Interventi Trainati U.Imm.N.1 | W59: =W46+W47+SUM(W50:X58) -> 80768.05611 | Y59: =Y46+Y47+SUM(Y50:Z58) -> 4943.141985 | AA59: =AA46+AA47+SUM(AA50:AB58) -> 44711.63012 | AC59: =AC46+AC47+SUM(AC50:AD58) -> 11826.00916 | BI59: =V59 -> Totale Interventi Trainati U.Imm.N.1 | BJ59: =BJ46+BJ47+SUM(BJ50:BJ58) -> 61620.85806 | BK59: =BK46+BK47+SUM(BK50:BK58) -> 0 | BL59: =BL46+BL47+SUM(BL50:BL58) -> 0 | BM59: =BM46+BM47+SUM(BM50:BM58) -> 0 | BN59: =BN46+BN47+SUM(BN50:BN58) -> 0
C70: Note
C78: =CONCATENATE("INTERVENTI TRAINATI Unità Immobiliare N.2",IF(UnitàImmobiliari!B4<>"", " - Foglio " & UnitàImmobiliari!B4 & " P.lla " & UnitàImmobiliari!C4 & " Sub. " & UnitàImmobiliari!D4,""),IF(UnitàImmobiliari!I4<>""," @ ",""),IFERROR(INDEX(Committenti!B3:D1017,MATCH(UnitàImmobiliari!I4,Committenti!D3:D1017,0),1),"")," ",IFERROR(INDEX(Committenti!B3:D1017,MATCH(UnitàImmobiliari!I4,Committenti!D3:D1017,0),2),"")) -> INTERVENTI TRAINATI Unità Immobiliare N.2 - Foglio 302 P.lla 201 Sub. 1 @ Prato Pietro | N78: .. | Q78: Asseverabile | R78: =CONCATENATE("Spesa detraibile ammissibile ",C78) -> Spesa detraibile ammissibile INTERVENTI TRAINATI Unità Immobiliare N.2 - Foglio 302 P.lla 201 Sub. 1 @ Prato Pietro | AF78: Spesa Massima Ammissibile (norma primaria) | AJ78: =CONCATENATE("Spesa Specifica MITE - ",C78) -> Spesa Specifica MITE - INTERVENTI TRAINATI Unità Immobiliare N.2 - Foglio 302 P.lla 201 Sub. 1 @ Prato Pietro | BI78: =CONCATENATE("Ripartizione tra le Imprese - Imponibile Lavori ",C78) -> Ripartizione tra le Imprese - Imponibile Lavori INTERVENTI TRAINATI Unità Immobiliare N.2 - Foglio 302 P.lla 201 Sub. 1 @ Prato Pietro
C79: Interventi | F79: Importo Lavori | G79: Incidenza Sicurezza | H79: Imponibile | I79: Iva | J79: Importo c.iva | K79: Spese tecniche | L79: Totale | M79: =$M$8 -> Credito Spettante 70% Spesa Ammessa | R79: Interventi | S79: Superficie Intervento / UnitàMisura | T79: Min(Spesa Max Ammissibile;Spesa Max Intervento) | U79: Verifica Max | W79: Spesa Ammessa | Y79: Quota Eccedente Spesa detraibile Ammessa | AA79: =$AA$8 -> Credito Spettante 70% Spesa Ammessa Quota Imprese | Quota Tecnici | AF79: Interventi | AG79: Spesa Massima Ammissibile | AH79: Ver. Max | AJ79: Importo Lavori Fornitura e Posa | AK79: Costo dei Beni (Allegato A) | AL79: Opere per installazione (Sicurezza) | AM79: Manodopera | AN79: =$AN$8 -> Spesa Max Ammissibile Asseverata | AO79: Altri Costi | AP79: Spese Tecniche | AQ79: IVA | AR79: Spesa di Intervento | AS79: =$AS$8 -> Ver.Max | AU79: Altri Lavori | AV79: Importo Specifico DM Costi Massimi | AW79: Incremento Costo dei Beni (Allegato A) | AX79: Controllo1 | AY79: Importo Controllo1 | AZ79: Importo Controllo2 | BA79: Importo Controllo3 | BB79: Opere per Istallazione = Incidenza Sicurezza Fornitura / Superficie Intervento | BC79: SpesaSostenuta = Opera Compiuta | BD79: Spesa Tecniche = Spese Tecniche da Computo | BE79: Altri Costi = Altri Lavori | BF79: AliqIva | BG79: Superficie Riscaldata | BI79: Interventi | BJ79: =IF('Dati Gen'!$B$38<>"",'Dati Gen'!$B$38,"") -> Impresa1 | BK79: =IF('Dati Gen'!$B$39<>"",'Dati Gen'!$B$39,"") ->  | BL79: =IF('Dati Gen'!$B$40<>"",'Dati Gen'!$B$40,"") ->  | BM79: =IF('Dati Gen'!$B$41<>"",'Dati Gen'!$B$41,"") ->  | BN79: =IF('Dati Gen'!$B$42<>"",'Dati Gen'!$B$42,"") -> 
C80: PV) Isolamento pareti perimetrali | E80: Esterno | F80: 0 | G80: 0 | H80: =SUM(F80:G80) -> 0 | I80: =H80*AliqIva -> 0 | J80: =H80+I80 -> 0 | K80: =IF(ImpLav<>0,F80*ImpTecLav/ImpLav,0) -> 0 | L80: =SUM(J80:K80) -> 0 | M80: =IF(L80<=T80,L80*percDetr,T80*percDetr) -> 0 | O80: .. | P80: .. | Q80: ok | R80: =CONCATENATE(C80," '",E80,"'") -> PV) Isolamento pareti perimetrali 'Esterno' | S80: 1 | T80: =MIN(AG80,AR80) -> 0 | U80: =IF(L80>T80,"ko","ok") -> ok | W80: =IF(L80<T80,L80,T80) -> 0 | Y80: =IF(L80>T80,L80-T80,0) -> 0 | AA80: =IF(M80<>0,J80*M80/L80,0) -> 0 | AC80: =IF(M80<>0,K80*M80/L80,0) -> 0 | AF80: =R80 -> PV) Isolamento pareti perimetrali 'Esterno' | AG80: 54545 | AH80: =IF(L80>AG80,"ko","ok") -> ok | AJ80: 0 | AK80: =IF(ZonaClimatica="A",IF(E80="Parete Ventilata",240,IF(E80="Interno",96,180)),IF(ZonaClimatica="B",IF(E80="Parete Ventilata",240,IF(E80="Interno",96,180)),IF(ZonaClimatica="C",IF(E80="Parete Ventilata",240,IF(E80="Interno",96,180)),IF(E80="Parete Ventilata",260,IF(E80="Interno",104,195))))) -> 195 | AL80: =IF(S80<>0,IF(F80<>0,G80*AJ80/F80/S80,0),0) -> 0 | AM80: 27 | AN80: =MIN(AY80,AZ80,BA80) -> 0 | AO80: =AU80 -> 0 | AP80: =K80 -> 0 | AQ80: =BF80*SUM(AN80:AO80) -> 0 | AR80: =IF(Titolare!$I$8=TRUE,SUM(AN80:AQ80),AG80) -> 0 | AS80: =IF(L80>AR80,"ko","ok") -> ok | AU80: =IF(F80>AJ80,F80-AJ80,0) -> 0 | AV80: =SUM(AK80:AM80) -> 222 | AW80: 0 | AX80: TRUE | AY80: =H80 -> 0 | AZ80: =AV80*S80+AW80*BG80 -> 222 | BA80: =H80 -> 0 | BB80: TRUE | BC80: TRUE | BD80: TRUE | BE80: TRUE | BF80: 0.1000000015 | BG80: 0 | BI80: =R80 -> PV) Isolamento pareti perimetrali 'Esterno' | BJ80: 0 | BK80: 0 | BL80: 0 | BM80: 0 | BN80: 0 | BO80: =IF(ABS(SUM(BJ80:BN80)-H80)>0.01,"err. Somma","") -> 
C81: PO) Isolamento coperture | E81: Esterno | F81: 0 | G81: 0 | H81: =SUM(F81:G81) -> 0 | I81: =H81*AliqIva -> 0 | J81: =H81+I81 -> 0 | K81: =IF(ImpLav<>0,F81*ImpTecLav/ImpLav,0) -> 0 | L81: =SUM(J81:K81) -> 0 | M81: =IF(L81<=T81,L81*percDetr,T81*percDetr) -> 0 | O81: .. | P81: .. | Q81: ? | R81: =CONCATENATE(C81," '",E81,"'") -> PO) Isolamento coperture 'Esterno' | S81: 1 | T81: 0 | U81: ok | W81: =IF(L81<T81,L81,T81) -> 0 | Y81: =IF(L81>T81,L81-T81,0) -> 0 | AA81: 0 | AC81: 0 | AF81: PO) Isolamento coperture 'Esterno' | AG81: 54545 | AH81: ok | AJ81: 0 | AK81: =IF(E81="Copertura Ventilata",300,IF(E81="Interno",120,276)) -> 276 | AL81: =IF(S81<>0,IF(F81<>0,G81*AJ81/F81/S81,0),0) -> 0 | AM81: 38 | AN81: =MIN(AY81,AZ81,BA81) -> 0 | AO81: =AU81 -> 0 | AP81: =K81 -> 0 | AQ81: =BF81*SUM(AN81:AO81) -> 0 | AR81: =IF(Titolare!$I$8=TRUE,SUM(AN81:AQ81),AG81) -> 0 | AS81: ok | AU81: =IF(F81>AJ81,F81-AJ81,0) -> 0 | AV81: =SUM(AK81:AM81) -> 314 | AW81: 0 | AX81: TRUE | AY81: =H81 -> 0 | AZ81: =AV81*S81+AW81*BG81 -> 314 | BA81: =H81 -> 0 | BB81: TRUE | BC81: TRUE | BD81: TRUE | BE81: TRUE | BF81: 0.1 | BG81: 0 | BI81: =R81 -> PO) Isolamento coperture 'Esterno' | BJ81: 0 | BK81: 0 | BL81: 0 | BM81: 0 | BN81: 0
C82: PS) Isolamento Pavimenti | E82: Esterno | F82: =0.2576*19215.9 -> 4950.01584 | G82: 0 | H82: =SUM(F82:G82) -> 4950.01584 | I82: =H82*AliqIva -> 495.001584 | J82: =H82+I82 -> 5445.017424 | K82: =IF(ImpLav<>0,F82*ImpTecLav/ImpLav,0) -> 1440.180682 | L82: =SUM(J82:K82) -> 6885.198106 | M82: =IF(L82<=T82,L82*percDetr,T82*percDetr) -> 4819.638674 | O82: .. | P82: .. | Q82: ok | R82: =CONCATENATE(C82," '",E82,"'") -> PS) Isolamento Pavimenti 'Esterno' | S82: 150 | T82: 12330.21553 | U82: ok | W82: =IF(L82<T82,L82,T82) -> 6885.198106 | Y82: =IF(L82>T82,L82-T82,0) -> 0 | AA82: 3811.512197 | AC82: 1008.126477 | AF82: PS) Isolamento Pavimenti 'Esterno' | AG82: 54545 | AH82: ok | AJ82: 0 | AK82: =IF(E82="Interno/terreno",180,144) -> 144 | AL82: =IF(S82<>0,IF(F82<>0,G82*AJ82/F82/S82,0),0) -> 0 | AM82: 27 | AN82: =MIN(AY82,AZ82,BA82) -> 4950.01584 | AO82: =AU82 -> 4950.01584 | AP82: =K82 -> 1440.180682 | AQ82: =BF82*SUM(AN82:AO82) -> 990.003168 | AR82: =IF(Titolare!$I$8=TRUE,SUM(AN82:AQ82),AG82) -> 12330.21553 | AS82: ok | AU82: =IF(F82>AJ82,F82-AJ82,0) -> 4950.01584 | AV82: =SUM(AK82:AM82) -> 171 | AW82: 0 | AX82: TRUE | AY82: =H82 -> 4950.01584 | AZ82: =AV82*S82+AW82*BG82 -> 25650 | BA82: =H82 -> 4950.01584 | BB82: TRUE | BC82: TRUE | BD82: TRUE | BE82: TRUE | BF82: 0.1 | BG82: 0 | BI82: PS) Isolamento Pavimenti 'Esterno' | BJ82: 4950.02 | BK82: 0 | BL82: 0 | BM82: 0 | BN82: 0
C83: IN) Serramenti con chiusure oscuranti | E83: =IF(ZonaClimatica="A","Zone A, B e C", IF(ZonaClimatica="B","Zone A, B e C",IF(ZonaClimatica="C","Zone A, B e C","Zone D, E ed F"))) -> Zone D, E ed F | F83: =0.2576*17880.83 -> 4606.101808 | G83: 0 | H83: =SUM(F83:G83) -> 4606.101808 | I83: =H83*AliqIva -> 460.6101808 | J83: =H83+I83 -> 5066.711989 | K83: =IF(ImpLav<>0,F83*ImpTecLav/ImpLav,0) -> 1340.12073 | L83: =SUM(J83:K83) -> 6406.832719 | M83: =IF(L83<=T83,L83*percDetr,T83*percDetr) -> 4484.782903 | O83: .. | P83: .. | Q83: ok | R83: =CONCATENATE(C83," '",E83,"'") -> IN) Serramenti con chiusure oscuranti 'Zone D, E ed F' | S83: 18 | T83: 11473.54472 | U83: ok | W83: =IF(L83<T83,L83,T83) -> 6406.832719 | Y83: =IF(L83>T83,L83-T83,0) -> 0 | AA83: 3546.698392 | AC83: 938.084511 | AF83: IN) Serramenti con chiusure oscuranti 'Zone D, E ed F' | AG83: 54545 | AH83: ok | AJ83: 0 | AK83: =IF(E83="Zone A, B e C",IF(C83="IN) Serramenti",660,780),IF(C83="IN) Serramenti",780,900)) -> 900 | AL83: 68.83 | AM83: 100 | AN83: =MIN(AY83,AZ83,BA83) -> 4606.101808 | AO83: =AU83 -> 4606.101808 | AP83: =K83 -> 1340.12073 | AQ83: =BF83*SUM(AN83:AO83) -> 921.2203753 | AR83: =IF(Titolare!$I$8=TRUE,SUM(AN83:AQ83),AG83) -> 11473.54472 | AS83: ok | AU83: =IF(F83>AJ83,F83-AJ83,0) -> 4606.101808 | AV83: =SUM(AK83:AM83) -> 1068.83 | AW83: 0 | AX83: TRUE | AY83: =H83 -> 4606.101808 | AZ83: =AV83*S83+AW83*BG83 -> 19238.94 | BA83: =H83 -> 4606.101808 | BB83: FALSE | BC83: TRUE | BD83: TRUE | BE83: TRUE | BF83: 0.1000000015 | BG83: 0 | BI83: IN) Serramenti con chiusure oscuranti 'Zone D, E ed F' | BJ83: 4606.1 | BK83: 0 | BL83: 0 | BM83: 0 | BN83: 0
C84: Totali Isolamento PV) PO) PS) e IN | F84: =SUM(F80:F83) -> 9556.117648 | G84: 0 | H84: 9556.117648 | I84: 955.6117648 | J84: 10511.72941 | K84: 2780.301412 | L84: =SUM(L80:L83) -> 13292.03082 | M84: =SUM(M80:M83) -> 9304.421577 | R84: =C84 -> Totali Isolamento PV) PO) PS) e IN | T84: 23803.76025 | U84: ok | W84: =IF(T84=AG84,IF(L84<T84,L84,T84),SUM(W80:X83)) -> 13292.03082 | Y84: =IF(L84>W84,L84-W84,0) -> 0 | AA84: 7358.210589 | AC84: 1946.210988 | AF84: Totali Isolamento PV) PO) PS) e IN | AG84: 54545 | AH84: ok | AR84: =IF(Titolare!$I$8=TRUE,SUM(AR80:AR83),AG84) -> 23803.76025 | AS84: ok | BI84: Totali Isolamento PV) PO) PS) e IN | BJ84: =SUM(BJ80:BJ83) -> 9556.12 | BK84: =SUM(BK80:BK83) -> 0 | BL84: =SUM(BL80:BL83) -> 0 | BM84: =SUM(BM80:BM83) -> 0 | BN84: =SUM(BN80:BN83) -> 0
C85: SS) Schermature solari e chiusure oscuranti | F85: 0 | G85: 0 | H85: =SUM(F85:G85) -> 0 | I85: =H85*AliqIva -> 0 | J85: =H85+I85 -> 0 | K85: =IF(ImpLav<>0,F85*ImpTecLav/ImpLav,0) -> 0 | L85: =SUM(J85:K85) -> 0 | M85: =IF(L85<=T85,L85*percDetr,T85*percDetr) -> 0 | O85: .. | P85: .. | Q85: ? | R85: =C85 -> SS) Schermature solari e chiusure oscuranti | S85: 1 | T85: 0 | U85: ok | W85: =IF(L85<T85,L85,T85) -> 0 | Y85: =IF(L85>T85,L85-T85,0) -> 0 | AA85: 0 | AC85: 0 | AF85: SS) Schermature solari e chiusure oscuranti | AG85: 54545 | AH85: ok | AJ85: 0 | AK85: 276 | AL85: =IF(S85<>0,IF(F85<>0,G85*AJ85/F85/S85,0),0) -> 0 | AM85: 150 | AN85: =MIN(AY85,AZ85,BA85) -> 0 | AO85: =AU85 -> 0 | AP85: =K85 -> 0 | AQ85: =BF85*SUM(AN85:AO85) -> 0 | AR85: =IF(Titolare!$I$8=TRUE,SUM(AN85:AQ85),AG85) -> 0 | AS85: ok | AU85: =IF(F85>AJ85,F85-AJ85,0) -> 0 | AV85: =SUM(AK85:AM85) -> 426 | AW85: 0 | AX85: TRUE | AY85: =H85 -> 0 | AZ85: =AV85*S85+AW85*BG85 -> 426 | BA85: =H85 -> 0 | BB85: TRUE | BC85: TRUE | BD85: TRUE | BE85: TRUE | BF85: 0.1000000015 | BG85: 0 | BI85: SS) Schermature solari e chiusure oscuranti | BJ85: 0 | BK85: 0 | BL85: 0 | BM85: 0 | BN85: 0 | BO85: =IF(ABS(SUM(BJ85:BN85)-H85)>0.01,"err. Somma","") -> 
C86: Impianti climatizzazione con | D86: PC)Altro | F86: =0.2576*20128.93 -> 5185.212368 | G86: 0 | H86: =SUM(F86:G86) -> 5185.212368 | I86: =H86*AliqIva -> 518.5212368 | J86: =H86+I86 -> 5703.733605 | K86: =IF(ImpLav<>0,F86*ImpTecLav/ImpLav,0) -> 1508.609856 | L86: =SUM(J86:K86) -> 7212.343461 | M86: =IF(L86<=T86,L86*percDetr,T86*percDetr) -> 5048.640422 | O86: .. | P86: .. | Q86: ok | R86: =CONCATENATE(C86," '",D86,"'") -> Impianti climatizzazione con 'PC)Altro' | S86: 11 | T86: 12916.07707 | U86: ok | W86: =IF(L86<T86,L86,T86) -> 7212.343461 | Y86: =IF(L86>T86,L86-T86,0) -> 0 | AA86: 3992.613523 | AC86: 1056.026899 | AF86: Impianti climatizzazione con 'PC)Altro' | AG86: 27272 | AH86: ok | AJ86: 0 | AK86: =IF(LEFT(D86,3)="CC)",IF(S86<=35,240,216),IF(D86="PC)Aria/Aria",720,IF(D86="PC)Altro",1560,IF(D86="PC)Geotermiche",2280,IF(LEFT(D86,4)="PCA)",1560,IF(LEFT(D86,3)="SI)",1860,0)))))) -> 1560 | AL86: =IF(S86<>0,IF(F86<>0,G86*AJ86/F86/S86,0),0) -> 0 | AM86: 93.6 | AN86: =MIN(AY86,AZ86,BA86) -> 5185.212368 | AO86: =AU86 -> 5185.212368 | AP86: =K86 -> 1508.609856 | AQ86: =BF86*SUM(AN86:AO86) -> 1037.042474 | AR86: =IF(Titolare!$I$8=TRUE,SUM(AN86:AQ86),AG86) -> 12916.07707 | AS86: ok | AU86: =IF(F86>AJ86,F86-AJ86,0) -> 5185.212368 | AV86: =SUM(AK86:AM86) -> 1653.6 | AW86: =IF($T$2=TRUE,IF($X$2=TRUE,180,60),0) -> 180 | AX86: TRUE | AY86: =H86 -> 5185.212368 | AZ86: =AV86*S86+AW86*BG86 -> 46989.6 | BA86: =H86 -> 5185.212368 | BB86: TRUE | BC86: TRUE | BD86: TRUE | BE86: TRUE | BF86: 0.1 | BG86: 160 | BI86: Impianti climatizzazione con 'PC)Altro' | BJ86: 5185.21 | BK86: 0 | BL86: 0 | BM86: 0 | BN86: 0
C87: SA) Scaldacqua a pompa di calore | F87: 0 | G87: 0 | H87: =SUM(F87:G87) -> 0 | I87: =H87*AliqIva -> 0 | J87: =H87+I87 -> 0 | K87: =IF(ImpLav<>0,F87*ImpTecLav/ImpLav,0) -> 0 | L87: =SUM(J87:K87) -> 0 | M87: =IF(L87<=T87,L87*percDetr,T87*percDetr) -> 0 | O87: .. | P87: .. | Q87: ok | R87: =C87 -> SA) Scaldacqua a pompa di calore | S87: 1 | T87: 0 | U87: ok | W87: =IF(L87<T87,L87,T87) -> 0 | Y87: =IF(L87>T87,L87-T87,0) -> 0 | AA87: 0 | AC87: 0 | AF87: SA) Scaldacqua a pompa di calore | AG87: 27272 | AH87: ok | AJ87: 0 | AK87: =IF(S87<=150,1200,1500) -> 1200 | AL87: 0 | AM87: 3000 | AN87: =MIN(AY87,AZ87,BA87) -> 0 | AO87: =AU87 -> 0 | AP87: =K87 -> 0 | AQ87: =BF87*SUM(AN87:AO87) -> 0 | AR87: =IF(Titolare!$I$8=TRUE,SUM(AN87:AQ87),AG87) -> 0 | AS87: ok | AU87: =IF(F87>AJ87,F87-AJ87,0) -> 0 | AV87: =SUM(AK87:AM87) -> 4200 | AW87: 0 | AX87: TRUE | AY87: =H87 -> 0 | AZ87: =AV87 -> 4200 | BA87: =H87 -> 0 | BB87: FALSE | BC87: TRUE | BD87: TRUE | BE87: TRUE | BF87: 0.1000000015 | BG87: 0 | BI87: SA) Scaldacqua a pompa di calore | BJ87: 0 | BK87: 0 | BL87: 0 | BM87: 0 | BN87: 0
C88: Totali Impianti ed SA) | F88: =SUM(F86:F87) -> 5185.212368 | G88: 0 | H88: 5185.212368 | I88: 518.5212368 | J88: 5703.733605 | K88: 1508.609856 | L88: 7212.343461 | M88: 5048.640422 | Q88: ok | R88: =C88 -> Totali Impianti ed SA) | T88: 12916.07707 | U88: ok | W88: =IF(T88=AG88,IF(L88<T88,L88,T88),SUM(W86:X87)) -> 7212.343461 | Y88: =IF(L88>W88,L88-W88,0) -> 0 | AA88: 3992.613523 | AC88: 1056.026899 | AF88: Totali Impianti ed SA) | AG88: 27272 | AH88: ok | AJ88: 0 | AR88: =IF(Titolare!$I$8=TRUE,SUM(AR86:AR87),AG88) -> 12916.07707 | AS88: ok | BI88: Totali Impianti ed SA) | BJ88: =SUM(BJ86:BJ87) -> 5185.21 | BK88: =SUM(BK86:BK87) -> 0 | BL88: =SUM(BL86:BL87) -> 0 | BM88: =SUM(BM86:BM87) -> 0 | BN88: =SUM(BN86:BN87) -> 0
C89: CO) Sistemi di Microgenerazione | E89: Celle a combustibile | F89: 0 | G89: 0 | H89: =SUM(F89:G89) -> 0 | I89: =H89*AliqIva -> 0 | J89: =H89+I89 -> 0 | K89: =IF(ImpLav<>0,F89*ImpTecLav/ImpLav,0) -> 0 | L89: =SUM(J89:K89) -> 0 | M89: =IF(L89<=T89,L89*percDetr,T89*percDetr) -> 0 | O89: .. | P89: .. | Q89: ? | R89: =CONCATENATE(C89," '",E89,"'") -> CO) Sistemi di Microgenerazione 'Celle a combustibile' | S89: 1 | T89: 0 | U89: ok | W89: =IF(L89<T89,L89,T89) -> 0 | Y89: =IF(L89>T89,L89-T89,0) -> 0 | AA89: 0 | AC89: 0 | AF89: CO) Sistemi di Microgenerazione 'Celle a combustibile' | AG89: 90909 | AH89: ok | AJ89: 0 | AK89: =IF(E89="Celle a combustibile",30000,3720) -> 30000 | AL89: =IF(S89<>0,IF(F89<>0,G89*AJ89/F89/S89,0),0) -> 0 | AM89: 93.6 | AN89: =MIN(AY89,AZ89,BA89) -> 0 | AO89: =AU89 -> 0 | AP89: =K89 -> 0 | AQ89: =BF89*SUM(AN89:AO89) -> 0 | AR89: =IF(Titolare!$I$8=TRUE,SUM(AN89:AQ89),AG89) -> 0 | AS89: ok | AU89: =IF(F89>AJ89,F89-AJ89,0) -> 0 | AV89: =SUM(AK89:AM89) -> 30093.6 | AW89: 0 | AX89: TRUE | AY89: =H89 -> 0 | AZ89: =AV89*S89+AW89*BG89 -> 30093.6 | BA89: =H89 -> 0 | BB89: TRUE | BC89: TRUE | BD89: TRUE | BE89: TRUE | BF89: 0.1000000015 | BG89: 0 | BI89: CO) Sistemi di Microgenerazione 'Celle a combustibile' | BJ89: 0 | BK89: 0 | BL89: 0 | BM89: 0 | BN89: 0 | BO89: =IF(ABS(SUM(BJ89:BN89)-H89)>0.01,"err. Somma","") -> 
C90: IB) Generatori a Biomassa | F90: 0 | G90: 0 | H90: 0 | I90: 0 | J90: 0 | K90: 0 | L90: 0 | M90: 0 | O90: .. | P90: .. | Q90: ? | R90: =C90 -> IB) Generatori a Biomassa | S90: 1 | T90: 0 | U90: ok | W90: 0 | Y90: 0 | AA90: 0 | AC90: 0 | AF90: IB) Generatori a Biomassa | AG90: 27272 | AH90: ok | AJ90: 0 | AK90: =IF(S90<=35,420,540) -> 420 | AL90: =IF(S90<>0,IF(F90<>0,G90*AJ90/F90/S90,0),0) -> 0 | AM90: 0 | AN90: =MIN(AY90,AZ90,BA90) -> 0 | AO90: 0 | AP90: 0 | AQ90: 0 | AR90: =IF(Titolare!$I$8=TRUE,SUM(AN90:AQ90),AG90) -> 0 | AS90: ok | AU90: 0 | AV90: 420 | AW90: =IF($T$2=TRUE,IF($X$2=TRUE,180,60),0) -> 180 | AX90: TRUE | AY90: 0 | AZ90: 31920 | BA90: 0 | BB90: TRUE | BC90: TRUE | BD90: TRUE | BE90: TRUE | BF90: 0.1000000015 | BG90: 175 | BI90: IB) Generatori a Biomassa | BJ90: 0 | BK90: 0 | BL90: 0 | BM90: 0 | BN90: 0
C91: BA) Building Automation | F91: 0 | G91: 0 | H91: 0 | I91: 0 | J91: 0 | K91: 0 | L91: 0 | M91: 0 | O91: .. | P91: .. | Q91: ? | R91: =C91 -> BA) Building Automation | S91: 1 | T91: 0 | U91: ok | W91: 0 | Y91: 0 | AA91: 0 | AC91: 0 | AF91: BA) Building Automation | AG91: 13636 | AH91: ok | AJ91: 0 | AK91: 60 | AL91: =IF(S91<>0,IF(F91<>0,G91*AJ91/F91/S91,0),0) -> 0 | AM91: 30 | AN91: =MIN(AY91,AZ91,BA91) -> 0 | AO91: 0 | AP91: 0 | AQ91: 0 | AR91: =IF(Titolare!$I$8=TRUE,SUM(AN91:AQ91),AG91) -> 0 | AS91: ok | AU91: 0 | AV91: 90 | AW91: 0 | AX91: TRUE | AY91: 0 | AZ91: 90 | BA91: 0 | BB91: TRUE | BC91: TRUE | BD91: TRUE | BE91: TRUE | BF91: 0.1000000015 | BG91: 0 | BI91: BA) Building Automation | BJ91: 0 | BK91: 0 | BL91: 0 | BM91: 0 | BN91: 0
C92: ST) Collettori Solari | E92: Scoperti | F92: 0 | G92: 0 | H92: 0 | I92: 0 | J92: 0 | K92: 0 | L92: 0 | M92: 0 | O92: .. | P92: .. | Q92: ? | R92: =CONCATENATE(C92," '",E92,"'") -> ST) Collettori Solari 'Scoperti' | S92: 1 | T92: 0 | U92: ok | W92: 0 | Y92: 0 | AA92: 0 | AC92: 0 | AF92: ST) Collettori Solari 'Scoperti' | AG92: 54545 | AH92: ok | AJ92: 0 | AK92: =IF(E92="Scoperti",900,IF(E92="Piani vetrati",1200,1500)) -> 900 | AL92: =IF(S92<>0,IF(F92<>0,G92*AJ92/F92/S92,0),0) -> 0 | AM92: 285 | AN92: =MIN(AY92,AZ92,BA92) -> 0 | AO92: 0 | AP92: 0 | AQ92: =BF92*SUM(AN92:AO92) -> 0 | AR92: =IF(Titolare!$I$8=TRUE,SUM(AN92:AQ92),AG92) -> 0 | AS92: ok | AU92: 0 | AV92: 1185 | AW92: 0 | AX92: TRUE | AY92: 0 | AZ92: 1185 | BA92: 0 | BB92: TRUE | BC92: TRUE | BD92: TRUE | BE92: TRUE | BF92: 0.1000000015 | BG92: 0 | BI92: ST) Collettori Solari 'Scoperti' | BJ92: 0 | BK92: 0 | BL92: 0 | BM92: 0 | BN92: 0
C93: FV) Solare Fotovoltaico [ kWp ] | E93: =0.2576*2.94 -> 0.757344 | F93: =0.2576*7948.27 -> 2047.474352 | G93: 0 | H93: 2047.474352 | I93: 204.7474352 | J93: 2252.221787 | K93: 595.7017317 | L93: 2847.923519 | M93: 1272.33792 | O93: .. | Q93: ok | R93: =C93 -> FV) Solare Fotovoltaico [ kWp ] | S93: =E93 -> 0.757344 | T93: 1817.6256 | U93: ko | W93: 1817.6256 | Y93: 1030.297919 | AA93: 1006.202296 | AC93: 266.1356238 | AF93: FV) Solare Fotovoltaico [ kWp ] | AG93: =IF(ISNUMBER(FIND("ristr",C93))=FALSE,IF(E93*2400<48000*N_Uimm,E93*2400,48000*N_Uimm),IF(E93*1600<48000*N_Uimm,E93*1600,48000*N_Uimm)) -> 1817.6256 | AH93: ko | AJ93: 0 | AO93: 2047.474352 | AP93: 595.7017317 | AQ93: =BF93*SUM(AN93:AO93) -> 204.7474383 | AR93: =AG93 -> 1817.6256 | AS93: ko | AU93: 2047.474352 | AV93: 0 | AW93: 0 | AX93: TRUE | AY93: 2047.474352 | AZ93: 0 | BA93: 2047.474352 | BB93: TRUE | BC93: TRUE | BD93: TRUE | BE93: TRUE | BF93: 0.1000000015 | BG93: 0 | BI93: FV) Solare Fotovoltaico [ kWp ] | BJ93: 2047.47 | BK93: 0 | BL93: 0 | BM93: 0 | BN93: 0
C94: AC) Sistema di Accumulo [ kWh ] | E94: =0.2576*10.8 -> 2.78208 | F94: =0.2576*9162.5 -> 2360.26 | G94: 0 | H94: 2360.26 | I94: 236.026 | J94: 2596.286 | K94: 686.7050461 | L94: 3282.991046 | M94: 1947.456 | O94: .. | Q94: ok | R94: =C94 -> AC) Sistema di Accumulo [ kWh ] | S94: =E94 -> 2.78208 | T94: 2782.08 | U94: ko | W94: 2782.08 | Y94: 500.9110461 | AA94: 1540.105555 | AC94: 407.3504446 | AF94: AC) Sistema di Accumulo [ kWh ] | AG94: =IF(E94*1000<48000*N_Uimm,E94*1000,48000*N_Uimm) -> 2782.08 | AH94: ko | AJ94: 0 | AO94: 2360.26 | AP94: 686.7050461 | AQ94: =BF94*SUM(AN94:AO94) -> 236.026 | AR94: =AG94 -> 2782.08 | AS94: ko | AU94: 2360.26 | AV94: 0 | AW94: 0 | AX94: TRUE | AY94: 2360.26 | AZ94: 0 | BA94: 2360.26 | BB94: TRUE | BC94: TRUE | BD94: TRUE | BE94: TRUE | BF94: 0.1 | BG94: 0 | BI94: AC) Sistema di Accumulo [ kWh ] | BJ94: 2360.26 | BK94: 0 | BL94: 0 | BM94: 0 | BN94: 0
C95: CR) Colonnine di Ricarica | E95: 1 | F95: 0 | G95: 0 | H95: 0 | I95: 0 | J95: 0 | K95: 0 | L95: 0 | M95: 0 | O95: .. | Q95: ok | R95: =C95 -> CR) Colonnine di Ricarica | S95: =E95 -> 1 | T95: 1500 | U95: ok | W95: 0 | Y95: 0 | AA95: 0 | AC95: 0 | AF95: CR) Colonnine di Ricarica | AG95: =IF(TipoEdif=1,2000,IF(N_Uimm>8,1200,1500)) -> 1500 | AH95: ok | AJ95: 0 | AO95: 0 | AP95: 0 | AQ95: 0 | AR95: =AG95 -> 1500 | AS95: ok | AU95: 0 | AV95: 0 | AW95: 0 | AX95: TRUE | AY95: 0 | AZ95: 0 | BA95: 0 | BB95: TRUE | BC95: TRUE | BD95: TRUE | BE95: TRUE | BF95: 0.1 | BG95: 0 | BI95: CR) Colonnine di Ricarica | BJ95: 0 | BK95: 0 | BL95: 0 | BM95: 0 | BN95: 0
C96: EBA) Eliminazione Barriere architettoniche | F96: 0 | G96: 0 | H96: =SUM(F96:G96) -> 0 | I96: 0 | J96: =H96+I96 -> 0 | K96: 0 | L96: 0 | M96: 0 | O96: .. | Q96: ok | R96: =C96 -> EBA) Eliminazione Barriere architettoniche | S96: 1 | T96: 96000 | U96: ok | W96: 0 | Y96: 0 | AA96: 0 | AC96: 0 | AF96: EBA) Eliminazione Barriere architettoniche | AG96: 96000 | AH96: ok | AJ96: 0 | AO96: 0 | AP96: 0 | AQ96: 0 | AR96: =AG96 -> 96000 | AS96: ok | AU96: 0 | AV96: 0 | AW96: 0 | AX96: TRUE | AY96: 0 | AZ96: 0 | BA96: 0 | BB96: TRUE | BC96: TRUE | BD96: TRUE | BE96: TRUE | BF96: 0.1 | BG96: 0 | BI96: EBA) Eliminazione Barriere architettoniche | BJ96: 0 | BK96: 0 | BL96: 0 | BM96: 0 | BN96: 0
C97: Totale Interventi Trainati U.Imm.N.2 | F97: =F84+F85+SUM(F88:F96) -> 19149.06437 | G97: 0 | H97: 19149.06437 | I97: 1914.906437 | J97: 21063.9708 | K97: 5571.318045 | L97: 26635.28885 | M97: 17572.85592 | V97: =C97 -> Totale Interventi Trainati U.Imm.N.2 | W97: =W84+W85+SUM(W88:X96) -> 25104.07988 | Y97: =Y84+Y85+SUM(Y88:Z96) -> 1531.208965 | AA97: =AA84+AA85+SUM(AA88:AB96) -> 13897.13196 | AC97: =AC84+AC85+SUM(AC88:AD96) -> 3675.723955 | BI97: =V97 -> Totale Interventi Trainati U.Imm.N.2 | BJ97: =BJ84+BJ85+SUM(BJ88:BJ96) -> 19149.06 | BK97: =BK84+BK85+SUM(BK88:BK96) -> 0 | BL97: =BL84+BL85+SUM(BL88:BL96) -> 0 | BM97: =BM84+BM85+SUM(BM88:BM96) -> 0 | BN97: =BN84+BN85+SUM(BN88:BN96) -> 0
C108: Note
C116: =CONCATENATE("INTERVENTI TRAINATI Unità Immobiliare N.3",IF(UnitàImmobiliari!B5<>"", " - Foglio " & UnitàImmobiliari!B5 & " P.lla " & UnitàImmobiliari!C5 & " Sub. " & UnitàImmobiliari!D5,""),IF(UnitàImmobiliari!I5<>""," @ ",""),IFERROR(INDEX(Committenti!B3:D1017,MATCH(UnitàImmobiliari!I5,Committenti!D3:D1017,0),1),"")," ",IFERROR(INDEX(Committenti!B3:D1017,MATCH(UnitàImmobiliari!I5,Committenti!D3:D1017,0),2),"")) -> INTERVENTI TRAINATI Unità Immobiliare N.3 - Foglio 302 P.lla 201 Sub. 3 @ Prato Pietro | N116: .. | Q116: Asseverabile | R116: =CONCATENATE("Spesa detraibile ammissibile ",C116) -> Spesa detraibile ammissibile INTERVENTI TRAINATI Unità Immobiliare N.3 - Foglio 302 P.lla 201 Sub. 3 @ Prato Pietro | AF116: Spesa Massima Ammissibile (norma primaria) | AJ116: =CONCATENATE("Spesa Specifica MITE - ",C116) -> Spesa Specifica MITE - INTERVENTI TRAINATI Unità Immobiliare N.3 - Foglio 302 P.lla 201 Sub. 3 @ Prato Pietro | BI116: =CONCATENATE("Ripartizione tra le Imprese - Imponibile Lavori ",C116) -> Ripartizione tra le Imprese - Imponibile Lavori INTERVENTI TRAINATI Unità Immobiliare N.3 - Foglio 302 P.lla 201 Sub. 3 @ Prato Pietro
C117: Interventi | F117: Importo Lavori | G117: Incidenza Sicurezza | H117: Imponibile | I117: Iva | J117: Importo c.iva | K117: Spese tecniche | L117: Totale | M117: =$M$8 -> Credito Spettante 70% Spesa Ammessa | R117: Interventi | S117: Superficie Intervento / UnitàMisura | T117: Min(Spesa Max Ammissibile;Spesa Max Intervento) | U117: Verifica Max | W117: Spesa Ammessa | Y117: Quota Eccedente Spesa detraibile Ammessa | AA117: =$AA$8 -> Credito Spettante 70% Spesa Ammessa Quota Imprese | Quota Tecnici | AF117: Interventi | AG117: Spesa Massima Ammissibile | AH117: Ver. Max | AJ117: Importo Lavori Fornitura e Posa | AK117: Costo dei Beni (Allegato A) | AL117: Opere per installazione (Sicurezza) | AM117: Manodopera | AN117: =$AN$8 -> Spesa Max Ammissibile Asseverata | AO117: Altri Costi | AP117: Spese Tecniche | AQ117: IVA | AR117: Spesa di Intervento | AS117: =$AS$8 -> Ver.Max | AU117: Altri Lavori | AV117: Importo Specifico DM Costi Massimi | AW117: Incremento Costo dei Beni (Allegato A) | AX117: Controllo1 | AY117: Importo Controllo1 | AZ117: Importo Controllo2 | BA117: Importo Controllo3 | BB117: Opere per Istallazione = Incidenza Sicurezza Fornitura / Superficie Intervento | BC117: SpesaSostenuta = Opera Compiuta | BD117: Spesa Tecniche = Spese Tecniche da Computo | BE117: Altri Costi = Altri Lavori | BF117: AliqIva | BG117: Superficie Riscaldata | BI117: Interventi | BJ117: =IF('Dati Gen'!$B$38<>"",'Dati Gen'!$B$38,"") -> Impresa1 | BK117: =IF('Dati Gen'!$B$39<>"",'Dati Gen'!$B$39,"") ->  | BL117: =IF('Dati Gen'!$B$40<>"",'Dati Gen'!$B$40,"") ->  | BM117: =IF('Dati Gen'!$B$41<>"",'Dati Gen'!$B$41,"") ->  | BN117: =IF('Dati Gen'!$B$42<>"",'Dati Gen'!$B$42,"") -> 
C118: PV) Isolamento pareti perimetrali | E118: Esterno | F118: 0 | G118: 0 | H118: =SUM(F118:G118) -> 0 | I118: =H118*AliqIva -> 0 | J118: =H118+I118 -> 0 | K118: =IF(ImpLav<>0,F118*ImpTecLav/ImpLav,0) -> 0 | L118: =SUM(J118:K118) -> 0 | M118: =IF(L118<=T118,L118*percDetr,T118*percDetr) -> 0 | O118: .. | P118: .. | Q118: ? | R118: =CONCATENATE(C118," '",E118,"'") -> PV) Isolamento pareti perimetrali 'Esterno' | S118: 1 | T118: =MIN(AG118,AR118) -> 0 | U118: =IF(L118>T118,"ko","ok") -> ok | W118: =IF(L118<T118,L118,T118) -> 0 | Y118: =IF(L118>T118,L118-T118,0) -> 0 | AA118: =IF(M118<>0,J118*M118/L118,0) -> 0 | AC118: =IF(M118<>0,K118*M118/L118,0) -> 0 | AF118: =R118 -> PV) Isolamento pareti perimetrali 'Esterno' | AG118: 54545 | AH118: =IF(L118>AG118,"ko","ok") -> ok | AJ118: 0 | AK118: =IF(ZonaClimatica="A",IF(E118="Parete Ventilata",240,IF(E118="Interno",96,180)),IF(ZonaClimatica="B",IF(E118="Parete Ventilata",240,IF(E118="Interno",96,180)),IF(ZonaClimatica="C",IF(E118="Parete Ventilata",240,IF(E118="Interno",96,180)),IF(E118="Parete Ventilata",260,IF(E118="Interno",104,195))))) -> 195 | AL118: =IF(S118<>0,IF(F118<>0,G118*AJ118/F118/S118,0),0) -> 0 | AM118: 27 | AN118: =MIN(AY118,AZ118,BA118) -> 0 | AO118: =AU118 -> 0 | AP118: =K118 -> 0 | AQ118: =BF118*SUM(AN118:AO118) -> 0 | AR118: =IF(Titolare!$I$8=TRUE,SUM(AN118:AQ118),AG118) -> 0 | AS118: =IF(L118>AR118,"ko","ok") -> ok | AU118: =IF(F118>AJ118,F118-AJ118,0) -> 0 | AV118: =SUM(AK118:AM118) -> 222 | AW118: 0 | AX118: TRUE | AY118: =H118 -> 0 | AZ118: =AV118*S118+AW118*BG118 -> 222 | BA118: =H118 -> 0 | BB118: TRUE | BC118: TRUE | BD118: TRUE | BE118: TRUE | BF118: 0.1000000015 | BG118: 0 | BI118: =R118 -> PV) Isolamento pareti perimetrali 'Esterno' | BJ118: 0 | BK118: 0 | BL118: 0 | BM118: 0 | BN118: 0 | BO118: =IF(ABS(SUM(BJ118:BN118)-H118)>0.01,"err. Somma","") -> 
C119: PO) Isolamento coperture | E119: Esterno | F119: 0 | G119: 0 | H119: =SUM(F119:G119) -> 0 | I119: =H119*AliqIva -> 0 | J119: =H119+I119 -> 0 | K119: =IF(ImpLav<>0,F119*ImpTecLav/ImpLav,0) -> 0 | L119: =SUM(J119:K119) -> 0 | M119: =IF(L119<=T119,L119*percDetr,T119*percDetr) -> 0 | O119: .. | P119: .. | Q119: ? | R119: =CONCATENATE(C119," '",E119,"'") -> PO) Isolamento coperture 'Esterno' | S119: 1 | T119: 0 | U119: ok | W119: =IF(L119<T119,L119,T119) -> 0 | Y119: =IF(L119>T119,L119-T119,0) -> 0 | AA119: 0 | AC119: 0 | AF119: PO) Isolamento coperture 'Esterno' | AG119: 54545 | AH119: ok | AJ119: 0 | AK119: =IF(E119="Copertura Ventilata",300,IF(E119="Interno",120,276)) -> 276 | AL119: =IF(S119<>0,IF(F119<>0,G119*AJ119/F119/S119,0),0) -> 0 | AM119: 38 | AN119: =MIN(AY119,AZ119,BA119) -> 0 | AO119: =AU119 -> 0 | AP119: =K119 -> 0 | AQ119: =BF119*SUM(AN119:AO119) -> 0 | AR119: =IF(Titolare!$I$8=TRUE,SUM(AN119:AQ119),AG119) -> 0 | AS119: ok | AU119: =IF(F119>AJ119,F119-AJ119,0) -> 0 | AV119: =SUM(AK119:AM119) -> 314 | AW119: 0 | AX119: TRUE | AY119: =H119 -> 0 | AZ119: =AV119*S119+AW119*BG119 -> 314 | BA119: =H119 -> 0 | BB119: TRUE | BC119: TRUE | BD119: TRUE | BE119: TRUE | BF119: 0.1 | BG119: 0 | BI119: =R119 -> PO) Isolamento coperture 'Esterno' | BJ119: 0 | BK119: 0 | BL119: 0 | BM119: 0 | BN119: 0
C120: PS) Isolamento Pavimenti | E120: Esterno | F120: =0.3714*19215.9+0.5394*17968.93 -> 16829.2261 | G120: 0 | H120: =SUM(F120:G120) -> 16829.2261 | I120: =H120*AliqIva -> 1682.92261 | J120: =H120+I120 -> 18512.14871 | K120: =IF(ImpLav<>0,F120*ImpTecLav/ImpLav,0) -> 4896.373487 | L120: =SUM(J120:K120) -> 23408.5222 | M120: =IF(L120<=T120,L120*percDetr,T120*percDetr) -> 16385.96554 | O120: .. | P120: .. | Q120: ? | R120: =CONCATENATE(C120," '",E120,"'") -> PS) Isolamento Pavimenti 'Esterno' | S120: 1 | T120: 23596.6222 | U120: ok | W120: =IF(L120<T120,L120,T120) -> 23408.5222 | Y120: =IF(L120>T120,L120-T120,0) -> 0 | AA120: 12958.5041 | AC120: 3427.461441 | AF120: PS) Isolamento Pavimenti 'Esterno' | AG120: 54545 | AH120: ok | AJ120: 0 | AK120: =IF(E120="Interno/terreno",180,144) -> 144 | AL120: =IF(S120<>0,IF(F120<>0,G120*AJ120/F120/S120,0),0) -> 0 | AM120: 27 | AN120: =MIN(AY120,AZ120,BA120) -> 171 | AO120: =AU120 -> 16829.2261 | AP120: =K120 -> 4896.373487 | AQ120: =BF120*SUM(AN120:AO120) -> 1700.02261 | AR120: =IF(Titolare!$I$8=TRUE,SUM(AN120:AQ120),AG120) -> 23596.6222 | AS120: ok | AU120: =IF(F120>AJ120,F120-AJ120,0) -> 16829.2261 | AV120: =SUM(AK120:AM120) -> 171 | AW120: 0 | AX120: TRUE | AY120: =H120 -> 16829.2261 | AZ120: =AV120*S120+AW120*BG120 -> 171 | BA120: =H120 -> 16829.2261 | BB120: TRUE | BC120: TRUE | BD120: TRUE | BE120: TRUE | BF120: 0.1 | BG120: 0 | BI120: PS) Isolamento Pavimenti 'Esterno' | BJ120: 16829.23 | BK120: 0 | BL120: 0 | BM120: 0 | BN120: 0
C121: IN) Serramenti con chiusure oscuranti | E121: =IF(ZonaClimatica="A","Zone A, B e C", IF(ZonaClimatica="B","Zone A, B e C",IF(ZonaClimatica="C","Zone A, B e C","Zone D, E ed F"))) -> Zone D, E ed F | F121: =0.3714*17880.83+0.5394*18699.4 -> 16727.39662 | G121: 0 | H121: =SUM(F121:G121) -> 16727.39662 | I121: =H121*AliqIva -> 1672.739662 | J121: =H121+I121 -> 18400.13628 | K121: =IF(ImpLav<>0,F121*ImpTecLav/ImpLav,0) -> 4866.746743 | L121: =SUM(J121:K121) -> 23266.88303 | M121: =IF(L121<=T121,L121*percDetr,T121*percDetr) -> 16286.81812 | O121: .. | P121: .. | Q121: ? | R121: =CONCATENATE(C121," '",E121,"'") -> IN) Serramenti con chiusure oscuranti 'Zone D, E ed F' | S121: 1 | T121: 24442.59605 | U121: ok | W121: =IF(L121<T121,L121,T121) -> 23266.88303 | Y121: =IF(L121>T121,L121-T121,0) -> 0 | AA121: 12880.0954 | AC121: 3406.72272 | AF121: IN) Serramenti con chiusure oscuranti 'Zone D, E ed F' | AG121: 54545 | AH121: ok | AJ121: 0 | AK121: =IF(E121="Zone A, B e C",IF(C121="IN) Serramenti",660,780),IF(C121="IN) Serramenti",780,900)) -> 900 | AL121: 68.83 | AM121: 100 | AN121: =MIN(AY121,AZ121,BA121) -> 1068.83 | AO121: =AU121 -> 16727.39662 | AP121: =K121 -> 4866.746743 | AQ121: =BF121*SUM(AN121:AO121) -> 1779.622689 | AR121: =IF(Titolare!$I$8=TRUE,SUM(AN121:AQ121),AG121) -> 24442.59605 | AS121: ok | AU121: =IF(F121>AJ121,F121-AJ121,0) -> 16727.39662 | AV121: =SUM(AK121:AM121) -> 1068.83 | AW121: 0 | AX121: TRUE | AY121: =H121 -> 16727.39662 | AZ121: =AV121*S121+AW121*BG121 -> 1068.83 | BA121: =H121 -> 16727.39662 | BB121: FALSE | BC121: TRUE | BD121: TRUE | BE121: TRUE | BF121: 0.1000000015 | BG121: 0 | BI121: IN) Serramenti con chiusure oscuranti 'Zone D, E ed F' | BJ121: 16727.4 | BK121: 0 | BL121: 0 | BM121: 0 | BN121: 0
C122: Totali Isolamento PV) PO) PS) e IN | F122: =SUM(F118:F121) -> 33556.62272 | G122: 0 | H122: 33556.62272 | I122: 3355.662272 | J122: 36912.285 | K122: 9763.12023 | L122: =SUM(L118:L121) -> 46675.40523 | M122: =SUM(M118:M121) -> 32672.78366 | R122: =C122 -> Totali Isolamento PV) PO) PS) e IN | T122: 48039.21825 | U122: ok | W122: =IF(T122=AG122,IF(L122<T122,L122,T122),SUM(W118:X121)) -> 46675.40523 | Y122: =IF(L122>W122,L122-W122,0) -> 0 | AA122: 25838.5995 | AC122: 6834.184161 | AF122: Totali Isolamento PV) PO) PS) e IN | AG122: 54545 | AH122: ok | AR122: =IF(Titolare!$I$8=TRUE,SUM(AR118:AR121),AG122) -> 48039.21825 | AS122: ok | BI122: Totali Isolamento PV) PO) PS) e IN | BJ122: =SUM(BJ118:BJ121) -> 33556.63 | BK122: =SUM(BK118:BK121) -> 0 | BL122: =SUM(BL118:BL121) -> 0 | BM122: =SUM(BM118:BM121) -> 0 | BN122: =SUM(BN118:BN121) -> 0
C123: SS) Schermature solari e chiusure oscuranti | F123: 0 | G123: 0 | H123: =SUM(F123:G123) -> 0 | I123: =H123*AliqIva -> 0 | J123: =H123+I123 -> 0 | K123: =IF(ImpLav<>0,F123*ImpTecLav/ImpLav,0) -> 0 | L123: =SUM(J123:K123) -> 0 | M123: =IF(L123<=T123,L123*percDetr,T123*percDetr) -> 0 | O123: .. | P123: .. | Q123: ? | R123: =C123 -> SS) Schermature solari e chiusure oscuranti | S123: 1 | T123: 0 | U123: ok | W123: =IF(L123<T123,L123,T123) -> 0 | Y123: =IF(L123>T123,L123-T123,0) -> 0 | AA123: 0 | AC123: 0 | AF123: SS) Schermature solari e chiusure oscuranti | AG123: 54545 | AH123: ok | AJ123: 0 | AK123: 276 | AL123: =IF(S123<>0,IF(F123<>0,G123*AJ123/F123/S123,0),0) -> 0 | AM123: 150 | AN123: =MIN(AY123,AZ123,BA123) -> 0 | AO123: =AU123 -> 0 | AP123: =K123 -> 0 | AQ123: =BF123*SUM(AN123:AO123) -> 0 | AR123: =IF(Titolare!$I$8=TRUE,SUM(AN123:AQ123),AG123) -> 0 | AS123: ok | AU123: =IF(F123>AJ123,F123-AJ123,0) -> 0 | AV123: =SUM(AK123:AM123) -> 426 | AW123: 0 | AX123: TRUE | AY123: =H123 -> 0 | AZ123: =AV123*S123+AW123*BG123 -> 426 | BA123: =H123 -> 0 | BB123: TRUE | BC123: TRUE | BD123: TRUE | BE123: TRUE | BF123: 0.1000000015 | BG123: 0 | BI123: SS) Schermature solari e chiusure oscuranti | BJ123: 0 | BK123: 0 | BL123: 0 | BM123: 0 | BN123: 0 | BO123: =IF(ABS(SUM(BJ123:BN123)-H123)>0.01,"err. Somma","") -> 
C124: Impianti climatizzazione con | D124: PC)Altro | F124: =0.3714*20128.93+0.5394*20128.93 -> 18333.42944 | G124: 0 | H124: =SUM(F124:G124) -> 18333.42944 | I124: =H124*AliqIva -> 1833.342944 | J124: =H124+I124 -> 20166.77239 | K124: =IF(ImpLav<>0,F124*ImpTecLav/ImpLav,0) -> 5334.013418 | L124: =SUM(J124:K124) -> 25500.78581 | M124: =IF(L124<=T124,L124*percDetr,T124*percDetr) -> 17850.55006 | O124: .. | P124: .. | Q124: ? | R124: =CONCATENATE(C124," '",D124,"'") -> Impianti climatizzazione con 'PC)Altro' | S124: 1 | T124: 27272 | U124: ok | W124: =IF(L124<T124,L124,T124) -> 25500.78581 | Y124: =IF(L124>T124,L124-T124,0) -> 0 | AA124: 14116.74067 | AC124: 3733.809393 | AF124: Impianti climatizzazione con 'PC)Altro' | AG124: 27272 | AH124: ok | AJ124: 0 | AK124: =IF(LEFT(D124,3)="CC)",IF(S124<=35,240,216),IF(D124="PC)Aria/Aria",720,IF(D124="PC)Altro",1560,IF(D124="PC)Geotermiche",2280,IF(LEFT(D124,4)="PCA)",1560,IF(LEFT(D124,3)="SI)",1860,0)))))) -> 1560 | AL124: =IF(S124<>0,IF(F124<>0,G124*AJ124/F124/S124,0),0) -> 0 | AM124: 93.6 | AN124: =MIN(AY124,AZ124,BA124) -> 1653.6 | AO124: =AU124 -> 18333.42944 | AP124: =K124 -> 5334.013418 | AQ124: =BF124*SUM(AN124:AO124) -> 1998.702944 | AR124: =IF(Titolare!$I$8=TRUE,SUM(AN124:AQ124),AG124) -> 27319.74581 | AS124: ok | AU124: =IF(F124>AJ124,F124-AJ124,0) -> 18333.42944 | AV124: =SUM(AK124:AM124) -> 1653.6 | AW124: =IF($T$2=TRUE,IF($X$2=TRUE,180,60),0) -> 180 | AX124: TRUE | AY124: =H124 -> 18333.42944 | AZ124: =AV124*S124+AW124*BG124 -> 1653.6 | BA124: =H124 -> 18333.42944 | BB124: TRUE | BC124: TRUE | BD124: TRUE | BE124: TRUE | BF124: 0.1 | BG124: 0 | BI124: Impianti climatizzazione con 'PC)Altro' | BJ124: 18333.43 | BK124: 0 | BL124: 0 | BM124: 0 | BN124: 0
C125: SA) Scaldacqua a pompa di calore | F125: 0 | G125: 0 | H125: =SUM(F125:G125) -> 0 | I125: =H125*AliqIva -> 0 | J125: =H125+I125 -> 0 | K125: =IF(ImpLav<>0,F125*ImpTecLav/ImpLav,0) -> 0 | L125: =SUM(J125:K125) -> 0 | M125: =IF(L125<=T125,L125*percDetr,T125*percDetr) -> 0 | O125: .. | P125: .. | Q125: ? | R125: =C125 -> SA) Scaldacqua a pompa di calore | S125: 1 | T125: 0 | U125: ok | W125: =IF(L125<T125,L125,T125) -> 0 | Y125: =IF(L125>T125,L125-T125,0) -> 0 | AA125: 0 | AC125: 0 | AF125: SA) Scaldacqua a pompa di calore | AG125: 27272 | AH125: ok | AJ125: 0 | AK125: =IF(S125<=150,1200,1500) -> 1200 | AL125: 0 | AM125: 3000 | AN125: =MIN(AY125,AZ125,BA125) -> 0 | AO125: =AU125 -> 0 | AP125: =K125 -> 0 | AQ125: =BF125*SUM(AN125:AO125) -> 0 | AR125: =IF(Titolare!$I$8=TRUE,SUM(AN125:AQ125),AG125) -> 0 | AS125: ok | AU125: =IF(F125>AJ125,F125-AJ125,0) -> 0 | AV125: =SUM(AK125:AM125) -> 4200 | AW125: 0 | AX125: TRUE | AY125: =H125 -> 0 | AZ125: =AV125 -> 4200 | BA125: =H125 -> 0 | BB125: FALSE | BC125: TRUE | BD125: TRUE | BE125: TRUE | BF125: 0.1000000015 | BG125: 0 | BI125: SA) Scaldacqua a pompa di calore | BJ125: 0 | BK125: 0 | BL125: 0 | BM125: 0 | BN125: 0
C126: Totali Impianti ed SA) | F126: =SUM(F124:F125) -> 18333.42944 | G126: 0 | H126: 18333.42944 | I126: 1833.342944 | J126: 20166.77239 | K126: 5334.013418 | L126: 25500.78581 | M126: 17850.55006 | R126: =C126 -> Totali Impianti ed SA) | T126: 27272 | U126: ok | W126: =IF(T126=AG126,IF(L126<T126,L126,T126),SUM(W124:X125)) -> 25500.78581 | Y126: =IF(L126>W126,L126-W126,0) -> 0 | AA126: 14116.74067 | AC126: 3733.809393 | AF126: Totali Impianti ed SA) | AG126: 27272 | AH126: ok | AR126: =IF(Titolare!$I$8=TRUE,SUM(AR124:AR125),AG126) -> 27319.74581 | AS126: ok | BI126: Totali Impianti ed SA) | BJ126: =SUM(BJ124:BJ125) -> 18333.43 | BK126: =SUM(BK124:BK125) -> 0 | BL126: =SUM(BL124:BL125) -> 0 | BM126: =SUM(BM124:BM125) -> 0 | BN126: =SUM(BN124:BN125) -> 0
C127: CO) Sistemi di Microgenerazione | E127: Celle a combustibile | F127: 0 | G127: 0 | H127: =SUM(F127:G127) -> 0 | I127: =H127*AliqIva -> 0 | J127: =H127+I127 -> 0 | K127: =IF(ImpLav<>0,F127*ImpTecLav/ImpLav,0) -> 0 | L127: =SUM(J127:K127) -> 0 | M127: =IF(L127<=T127,L127*percDetr,T127*percDetr) -> 0 | O127: .. | P127: .. | Q127: ? | R127: =CONCATENATE(C127," '",E127,"'") -> CO) Sistemi di Microgenerazione 'Celle a combustibile' | S127: 1 | T127: 0 | U127: ok | W127: =IF(L127<T127,L127,T127) -> 0 | Y127: =IF(L127>T127,L127-T127,0) -> 0 | AA127: 0 | AC127: 0 | AF127: CO) Sistemi di Microgenerazione 'Celle a combustibile' | AG127: 90909 | AH127: ok | AJ127: 0 | AK127: =IF(E127="Celle a combustibile",30000,3720) -> 30000 | AL127: =IF(S127<>0,IF(F127<>0,G127*AJ127/F127/S127,0),0) -> 0 | AM127: 93.6 | AN127: =MIN(AY127,AZ127,BA127) -> 0 | AO127: =AU127 -> 0 | AP127: =K127 -> 0 | AQ127: =BF127*SUM(AN127:AO127) -> 0 | AR127: =IF(Titolare!$I$8=TRUE,SUM(AN127:AQ127),AG127) -> 0 | AS127: ok | AU127: =IF(F127>AJ127,F127-AJ127,0) -> 0 | AV127: =SUM(AK127:AM127) -> 30093.6 | AW127: 0 | AX127: TRUE | AY127: =H127 -> 0 | AZ127: =AV127*S127+AW127*BG127 -> 30093.6 | BA127: =H127 -> 0 | BB127: TRUE | BC127: TRUE | BD127: TRUE | BE127: TRUE | BF127: 0.1000000015 | BG127: 0 | BI127: CO) Sistemi di Microgenerazione 'Celle a combustibile' | BJ127: 0 | BK127: 0 | BL127: 0 | BM127: 0 | BN127: 0 | BO127: =IF(ABS(SUM(BJ127:BN127)-H127)>0.01,"err. Somma","") -> 
C128: IB) Generatori a Biomassa | F128: 0 | G128: 0 | H128: 0 | I128: 0 | J128: 0 | K128: 0 | L128: 0 | M128: 0 | O128: .. | P128: .. | Q128: ? | R128: =C128 -> IB) Generatori a Biomassa | S128: 1 | T128: 0 | U128: ok | W128: 0 | Y128: 0 | AA128: 0 | AC128: 0 | AF128: IB) Generatori a Biomassa | AG128: 27272 | AH128: ok | AJ128: 0 | AK128: =IF(S128<=35,420,540) -> 420 | AL128: =IF(S128<>0,IF(F128<>0,G128*AJ128/F128/S128,0),0) -> 0 | AM128: 0 | AN128: =MIN(AY128,AZ128,BA128) -> 0 | AO128: 0 | AP128: 0 | AQ128: 0 | AR128: =IF(Titolare!$I$8=TRUE,SUM(AN128:AQ128),AG128) -> 0 | AS128: ok | AU128: 0 | AV128: 420 | AW128: =IF($T$2=TRUE,IF($X$2=TRUE,180,60),0) -> 180 | AX128: TRUE | AY128: 0 | AZ128: 31920 | BA128: 0 | BB128: TRUE | BC128: TRUE | BD128: TRUE | BE128: TRUE | BF128: 0.1000000015 | BG128: 175 | BI128: IB) Generatori a Biomassa | BJ128: 0 | BK128: 0 | BL128: 0 | BM128: 0 | BN128: 0
C129: BA) Building Automation | F129: 0 | G129: 0 | H129: 0 | I129: 0 | J129: 0 | K129: 0 | L129: 0 | M129: 0 | O129: .. | P129: .. | Q129: ? | R129: =C129 -> BA) Building Automation | S129: 1 | T129: 0 | U129: ok | W129: 0 | Y129: 0 | AA129: 0 | AC129: 0 | AF129: BA) Building Automation | AG129: 13636 | AH129: ok | AJ129: 0 | AK129: 60 | AL129: =IF(S129<>0,IF(F129<>0,G129*AJ129/F129/S129,0),0) -> 0 | AM129: 30 | AN129: =MIN(AY129,AZ129,BA129) -> 0 | AO129: 0 | AP129: 0 | AQ129: 0 | AR129: =IF(Titolare!$I$8=TRUE,SUM(AN129:AQ129),AG129) -> 0 | AS129: ok | AU129: 0 | AV129: 90 | AW129: 0 | AX129: TRUE | AY129: 0 | AZ129: 90 | BA129: 0 | BB129: TRUE | BC129: TRUE | BD129: TRUE | BE129: TRUE | BF129: 0.1000000015 | BG129: 0 | BI129: BA) Building Automation | BJ129: 0 | BK129: 0 | BL129: 0 | BM129: 0 | BN129: 0
C130: ST) Collettori Solari | E130: Scoperti | F130: 0 | G130: 0 | H130: 0 | I130: 0 | J130: 0 | K130: 0 | L130: 0 | M130: 0 | O130: .. | P130: .. | Q130: ? | R130: =CONCATENATE(C130," '",E130,"'") -> ST) Collettori Solari 'Scoperti' | S130: 1 | T130: 0 | U130: ok | W130: 0 | Y130: 0 | AA130: 0 | AC130: 0 | AF130: ST) Collettori Solari 'Scoperti' | AG130: 54545 | AH130: ok | AJ130: 0 | AK130: =IF(E130="Scoperti",900,IF(E130="Piani vetrati",1200,1500)) -> 900 | AL130: =IF(S130<>0,IF(F130<>0,G130*AJ130/F130/S130,0),0) -> 0 | AM130: 285 | AN130: =MIN(AY130,AZ130,BA130) -> 0 | AO130: 0 | AP130: 0 | AQ130: =BF130*SUM(AN130:AO130) -> 0 | AR130: =IF(Titolare!$I$8=TRUE,SUM(AN130:AQ130),AG130) -> 0 | AS130: ok | AU130: 0 | AV130: 1185 | AW130: 0 | AX130: TRUE | AY130: 0 | AZ130: 1185 | BA130: 0 | BB130: TRUE | BC130: TRUE | BD130: TRUE | BE130: TRUE | BF130: 0.1000000015 | BG130: 0 | BI130: ST) Collettori Solari 'Scoperti' | BJ130: 0 | BK130: 0 | BL130: 0 | BM130: 0 | BN130: 0
C131: FV) Solare Fotovoltaico [ kWp ] | E131: =0.3714*2.94+0.5394*2.94 -> 2.677752 | F131: =0.3714*7948.27+0.5394*7948.27 -> 7239.284316 | G131: 0 | H131: 7239.284316 | I131: 723.9284316 | J131: 7963.212748 | K131: 2106.231123 | L131: 10069.44387 | M131: 4498.62336 | O131: .. | Q131: ok | R131: =C131 -> FV) Solare Fotovoltaico [ kWp ] | S131: =E131 -> 2.677752 | T131: 6426.6048 | U131: ko | W131: 6426.6048 | Y131: 3642.83907 | AA131: 3557.643833 | AC131: 940.979527 | AF131: FV) Solare Fotovoltaico [ kWp ] | AG131: =IF(ISNUMBER(FIND("ristr",C131))=FALSE,IF(E131*2400<48000*N_Uimm,E131*2400,48000*N_Uimm),IF(E131*1600<48000*N_Uimm,E131*1600,48000*N_Uimm)) -> 6426.6048 | AH131: ko | AJ131: 0 | AO131: 7239.284316 | AP131: 2106.231123 | AQ131: =BF131*SUM(AN131:AO131) -> 723.9284424 | AR131: =AG131 -> 6426.6048 | AS131: ko | AU131: 7239.284316 | AV131: 0 | AW131: 0 | AX131: TRUE | AY131: 7239.284316 | AZ131: 0 | BA131: 7239.284316 | BB131: TRUE | BC131: TRUE | BD131: TRUE | BE131: TRUE | BF131: 0.1000000015 | BG131: 0 | BI131: FV) Solare Fotovoltaico [ kWp ] | BJ131: 7239.28 | BK131: 0 | BL131: 0 | BM131: 0 | BN131: 0
C132: AC) Sistema di Accumulo [ kWh ] | E132: =0.3714*10.8+0.5394*10.8 -> 9.83664 | F132: =0.3714*9162.5+0.5394*9162.5 -> 8345.205 | G132: 0 | H132: 8345.205 | I132: 834.5205 | J132: 9179.7255 | K132: 2427.992841 | L132: 11607.71834 | M132: 6885.648 | O132: .. | Q132: ok | R132: =C132 -> AC) Sistema di Accumulo [ kWh ] | S132: =E132 -> 9.83664 | T132: 9836.64 | U132: ko | W132: 9836.64 | Y132: 1771.078341 | AA132: 5445.373214 | AC132: 1440.274786 | AF132: AC) Sistema di Accumulo [ kWh ] | AG132: =IF(E132*1000<48000*N_Uimm,E132*1000,48000*N_Uimm) -> 9836.64 | AH132: ko | AJ132: 0 | AO132: 8345.205 | AP132: 2427.992841 | AQ132: =BF132*SUM(AN132:AO132) -> 834.5205 | AR132: =AG132 -> 9836.64 | AS132: ko | AU132: 8345.205 | AV132: 0 | AW132: 0 | AX132: TRUE | AY132: 8345.205 | AZ132: 0 | BA132: 8345.205 | BB132: TRUE | BC132: TRUE | BD132: TRUE | BE132: TRUE | BF132: 0.1 | BG132: 0 | BI132: AC) Sistema di Accumulo [ kWh ] | BJ132: 8345.21 | BK132: 0 | BL132: 0 | BM132: 0 | BN132: 0
C133: CR) Colonnine di Ricarica | E133: 1 | F133: 0 | G133: 0 | H133: 0 | I133: 0 | J133: 0 | K133: 0 | L133: 0 | M133: 0 | O133: .. | Q133: ok | R133: =C133 -> CR) Colonnine di Ricarica | S133: =E133 -> 1 | T133: 1500 | U133: ok | W133: 0 | Y133: 0 | AA133: 0 | AC133: 0 | AF133: CR) Colonnine di Ricarica | AG133: =IF(TipoEdif=1,2000,IF(N_Uimm>8,1200,1500)) -> 1500 | AH133: ok | AJ133: 0 | AO133: 0 | AP133: 0 | AQ133: 0 | AR133: =AG133 -> 1500 | AS133: ok | AU133: 0 | AV133: 0 | AW133: 0 | AX133: TRUE | AY133: 0 | AZ133: 0 | BA133: 0 | BB133: TRUE | BC133: TRUE | BD133: TRUE | BE133: TRUE | BF133: 0.1 | BG133: 0 | BI133: CR) Colonnine di Ricarica | BJ133: 0 | BK133: 0 | BL133: 0 | BM133: 0 | BN133: 0
C134: EBA) Eliminazione Barriere architettoniche | F134: 0 | G134: 0 | H134: =SUM(F134:G134) -> 0 | I134: 0 | J134: =H134+I134 -> 0 | K134: 0 | L134: 0 | M134: 0 | O134: .. | Q134: ok | R134: =C134 -> EBA) Eliminazione Barriere architettoniche | S134: 1 | T134: 96000 | U134: ok | W134: 0 | Y134: 0 | AA134: 0 | AC134: 0 | AF134: EBA) Eliminazione Barriere architettoniche | AG134: 96000 | AH134: ok | AJ134: 0 | AO134: 0 | AP134: 0 | AQ134: 0 | AR134: =AG134 -> 96000 | AS134: ok | AU134: 0 | AV134: 0 | AW134: 0 | AX134: TRUE | AY134: 0 | AZ134: 0 | BA134: 0 | BB134: TRUE | BC134: TRUE | BD134: TRUE | BE134: TRUE | BF134: 0.1 | BG134: 0 | BI134: EBA) Eliminazione Barriere architettoniche | BJ134: 0 | BK134: 0 | BL134: 0 | BM134: 0 | BN134: 0
C135: Totale Interventi Trainati U.Imm.N.3 | F135: =F122+F123+SUM(F126:F134) -> 67474.54148 | G135: 0 | H135: 67474.54148 | I135: 6747.454148 | J135: 74221.99563 | K135: 19631.35761 | L135: 93853.35324 | M135: 61907.60508 | V135: =C135 -> Totale Interventi Trainati U.Imm.N.3 | W135: =W122+W123+SUM(W126:X134) -> 88439.43583 | Y135: =Y122+Y123+SUM(Y126:Z134) -> 5413.917412 | AA135: =AA122+AA123+SUM(AA126:AB134) -> 48958.35722 | AC135: =AC122+AC123+SUM(AC126:AD134) -> 12949.24787 | BI135: =V135 -> Totale Interventi Trainati U.Imm.N.3 | BJ135: =BJ122+BJ123+SUM(BJ126:BJ134) -> 67474.55 | BK135: =BK122+BK123+SUM(BK126:BK134) -> 0 | BL135: =BL122+BL123+SUM(BL126:BL134) -> 0 | BM135: =BM122+BM123+SUM(BM126:BM134) -> 0 | BN135: =BN122+BN123+SUM(BN126:BN134) -> 0
C146: Note
C154: SimMZ | BI154: Ripartizione tra le Imprese - Imponibile Lavori INTERVENTI SB.
C156: TOTALI INTERVENTI SB. | F156: Importo Lavori | G156: Incidenza Sicurezza | H156: Imponibile | I156: Iva | J156: Importo c.iva | K156: Spese tecniche | L156: Totale | M156: =$M$8 -> Credito Spettante 70% Spesa Ammessa | R156: =C156 -> TOTALI INTERVENTI SB. | W156: Spesa Ammessa | Y156: Quota Eccedente Spesa Ammessa | AA156: =$AA$8 -> Credito Spettante 70% Spesa Ammessa Quota Imprese | Quota Tecnici | BI156: =R156 -> TOTALI INTERVENTI SB. | BJ156: =IF('Dati Gen'!$B$38<>"",'Dati Gen'!$B$38,"") -> Impresa1 | BK156: =IF('Dati Gen'!$B$39<>"",'Dati Gen'!$B$39,"") ->  | BL156: =IF('Dati Gen'!$B$40<>"",'Dati Gen'!$B$40,"") ->  | BM156: =IF('Dati Gen'!$B$41<>"",'Dati Gen'!$B$41,"") ->  | BN156: =IF('Dati Gen'!$B$42<>"",'Dati Gen'!$B$42,"") -> 
F157: =F16+F37+F59+F97+F135 -> 246502.56 | G157: 0 | H157: 246502.56 | I157: 24650.256 | J157: 271152.816 | K157: 71718.60381 | L157: 342871.4198 | M157: 231688.206 | W157: =W16+W37+W59+W97+W135 -> 330983.1514 | Y157: =Y16+Y37+Y59+Y97+Y135 -> 11888.26836 | AA157: =AA16+AA37+AA59+AA97+AA135 -> 183225.8563 | AC157: =AC16+AC37+AC59+AC97+AC135 -> 48462.34971 | BJ157: =BJ16+BJ37+BJ59+BJ97+BJ135 -> 246502.5681 | BK157: =BK16+BK37+BK59+BK97+BK135 -> 0 | BL157: =BL16+BL37+BL59+BL97+BL135 -> 0 | BM157: =BM16+BM37+BM59+BM97+BM135 -> 0 | BN157: =BN16+BN37+BN59+BN97+BN135 -> 0
C158: =CONCATENATE("Quota a Carico Cliente per Interventi SB = Eccedenza Spesa Ammessa ",IF(percDetr<1,CONCATENATE("+",100*(1-percDetr),"%·Spesa Ammessa =")," =")) -> Quota a Carico Cliente per Interventi SB = Eccedenza Spesa Ammessa +30%·Spesa Ammessa = | M158: =IF((1-percDetr)*SpesaAmmessaSB>0,QuotaEccedSB+(1-percDetr)*SpesaAmmessaSB,QuotaEccedSB) -> 111183.2138
L159: =CONCATENATE("Quota Cedibile = ",100*percDetr,"%·Spesa Ammessa = ") -> Quota Cedibile = 70%·Spesa Ammessa = | M159: =SpesaAmmessaSB*percDetr -> 231688.206
AK162: =IF(COUNTIF(AR165:AR168,"KO")>0,"ATTENZIONE! Massimale Spesa MITE non Asseverabile","") -> 
C163: ALTRI INTERVENTI | Q163: Asseverabile | R163: =CONCATENATE("Spesa detraibile ammissibile ",C163) -> Spesa detraibile ammissibile ALTRI INTERVENTI | AF163: Spesa Massima Ammissibile (norma primaria) | AJ163: Spesa Specifica MITE | AM163: =C163 -> ALTRI INTERVENTI | BI163: Ripartizione tra le Imprese - Imponibile Lavori ALTRI INTERVENTI | BP163: Risparmio Energetico, con fonti rinnovabili di energia
C164: Interventi | E164: x% Credito ceduto | F164: Importo Lavori | G164: Incidenza Sicurezza | H164: Imponibile | I164: Iva | J164: Importo c.iva | K164: Spese tecniche | L164: Totale | M164: Credito Spettante x% Spesa Ammessa | R164: Interventi | S164: Superficie Intervento / UnitàMisura | T164: Min(Spesa Max Ammissibile;Spesa Max Intervento) | U164: Verifica Max | W164: Spesa Ammessa | Y164: Quota Eccedente Spesa Ammessa | AA164: Credito Spettante x% Spesa Ammessa Quota Imprese | Quota Tecnici | AF164: =C163 -> ALTRI INTERVENTI | AG164: Spesa Massima Ammissibile | AH164: Ver. Max | AJ164: Importo Lavori Fornitura e Posa | AK164: Costo dei Beni (Allegato A) | AL164: Opere per installazione (Sicurezza) | AM164: Manodopera | AN164: =$AN$8 -> Spesa Max Ammissibile Asseverata | AO164: Altri Costi | AP164: Spese Tecniche | AQ164: IVA | AR164: Spesa di Intervento | AS164: =$AS$8 -> Ver.Max | AU164: Altri Lavori | AV164: Importo Specifico DM Costi Massimi | AW164: Incremento Costo dei Beni (Allegato A) | AX164: Controllo1 | AY164: Importo Controllo1 | AZ164: Importo Controllo2 | BA164: Importo Controllo3 | BB164: Opere per Istallazione = Incidenza Sicurezza Fornitura / Superficie Intervento | BC164: SpesaSostenuta = Opera Compiuta | BD164: Spesa Tecniche = Spese Tecniche da Computo | BE164: Altri Costi = Altri Lavori | BF164: AliqIva | BG164: Superficie Riscaldata | BI164: Interventi | BJ164: =IF('Dati Gen'!$B$38<>"",'Dati Gen'!$B$38,"") -> Impresa1 | BK164: =IF('Dati Gen'!$B$39<>"",'Dati Gen'!$B$39,"") ->  | BL164: =IF('Dati Gen'!$B$40<>"",'Dati Gen'!$B$40,"") ->  | BM164: =IF('Dati Gen'!$B$41<>"",'Dati Gen'!$B$41,"") ->  | BN164: =IF('Dati Gen'!$B$42<>"",'Dati Gen'!$B$42,"") ->  | BP164: Risparmio Energetico, in Comunità Energetiche , con fonti rinnovabili di energia
C165: Ristrutturazione | D165: Ristrutturazione | E165: 0.5 | F165: 0 | G165: =IF(ImpLav<>0,F165*ImpSicLav/ImpLav,0) -> 0 | H165: =F165+G165 -> 0 | I165: =H165*AliqIva -> 0 | J165: =H165+I165 -> 0 | K165: =IF(ImpLav<>0,F165*ImpTecLav/ImpLav,0) -> 0 | L165: =SUM(J165:K165) -> 0 | M165: =IF(L165<=T165,L165*E165,T165*E165) -> 0 | O165: .. | Q165: ok | R165: =IF(C165<>"",C165,"") -> Ristrutturazione | S165: 1 | T165: =MIN(AG165,AR165) -> 288000 | U165: =IF(L165>T165,"KO","ok") -> ok | W165: =IF(L165<T165,L165,T165) -> 0 | Y165: =IF(L165>T165,L165-T165,0) -> 0 | AA165: =IF(M165<>0,J165*M165/L165,0) -> 0 | AC165: =IF(M165<>0,K165*M165/L165,0) -> 0 | AF165: =R165 -> Ristrutturazione | AG165: =IF($F$15<>0,IF(ISNUMBER(SEARCH("Ristrutturazione",C165,1))=TRUE,IF(Titolare!$I$6=1,IF($L$15>$T$15,0,96000*N_Uimm-$L$15),IF(Titolare!$I$6=2,0,96000*N_Uimm)),96000*N_Uimm),96000*N_Uimm) -> 288000 | AH165: =IF(L165>AG165,"KO","ok") -> ok | AJ165: 0 | AO165: =AU165 -> 0 | AP165: =K165 -> 0 | AR165: =AG165 -> 288000 | AS165: =IF(L165>AR165,"ko","ok") -> ok | AU165: =IF(H165>AJ165,H165-AJ165,0) -> 0 | AV165: =SUM(AK165:AM165) -> 0 | AW165: 0 | AX165: TRUE | AY165: =H165 -> 0 | AZ165: =AV165*S165+AW165*BG165 -> 0 | BA165: =H165 -> 0 | BB165: TRUE | BC165: TRUE | BD165: TRUE | BE165: TRUE | BF165: 0.1000000015 | BG165: 0 | BI165: =R165 -> Ristrutturazione | BJ165: 0 | BK165: 0 | BL165: 0 | BM165: 0 | BN165: 0 | BO165: =IF(ABS(SUM(BJ165:BN165)-H165)>0.01,"err. Somma","") ->  | BP165: Manutenzione straordinaria, restauro e recupero conservativo
C166: Bonus Facciata | D166: Bonus Facciata | E166: 0.6 | F166: 0 | G166: =IF(ImpLav<>0,F166*ImpSicLav/ImpLav,0) -> 0 | H166: =F166+G166 -> 0 | I166: =H166*AliqIva -> 0 | J166: =H166+I166 -> 0 | K166: =IF(ImpLav<>0,F166*ImpTecLav/ImpLav,0) -> 0 | L166: =SUM(J166:K166) -> 0 | M166: =IF(L166<=T166,L166*E166,T166*E166) -> 0 | O166: .. | Q166: ok | R166: =IF(C166<>"",C166,"") -> Bonus Facciata | S166: 1 | T166: =MIN(AG166,AR166) -> 288000 | U166: =IF(L166>T166,"KO","ok") -> ok | W166: =IF(L166<T166,L166,T166) -> 0 | Y166: =IF(L166>T166,L166-T166,0) -> 0 | AA166: =IF(M166<>0,J166*M166/L166,0) -> 0 | AC166: =IF(M166<>0,K166*M166/L166,0) -> 0 | AF166: =R166 -> Bonus Facciata | AG166: =IF($F$15<>0,IF(ISNUMBER(SEARCH("Ristrutturazione",C166,1))=TRUE,IF(Titolare!$I$6=1,IF($L$15>$T$15,0,96000*N_Uimm-$L$15),IF(Titolare!$I$6=2,0,96000*N_Uimm)),96000*N_Uimm),96000*N_Uimm) -> 288000 | AH166: =IF(L166>AG166,"KO","ok") -> ok | AJ166: 0 | AR166: =AG166 -> 288000 | AS166: =IF(L166>AR166,"ko","ok") -> ok | AU166: =IF(H166>AJ166,H166-AJ166,0) -> 0 | AV166: =SUM(AK166:AM166) -> 0 | AW166: 0 | AX166: TRUE | AY166: =H166 -> 0 | AZ166: =AV166*S166+AW166*BG166 -> 0 | BA166: =H166 -> 0 | BB166: TRUE | BC166: TRUE | BD166: TRUE | BE166: TRUE | BF166: 0.1000000015 | BG166: 0 | BI166: =R166 -> Bonus Facciata | BJ166: =F166 -> 0 | BO166: =IF(ABS(SUM(BJ166:BN166)-H166)>0.01,"err. Somma","") ->  | BP166: Ristrutturazione edilizia
C167: Bonus Casa | D167: Bonus Casa | E167: 0.7 | F167: 0 | G167: =IF(ImpLav<>0,F167*ImpSicLav/ImpLav,0) -> 0 | H167: =F167+G167 -> 0 | I167: =H167*AliqIva -> 0 | J167: =H167+I167 -> 0 | K167: =IF(ImpLav<>0,F167*ImpTecLav/ImpLav,0) -> 0 | L167: =SUM(J167:K167) -> 0 | M167: =IF(L167<=T167,L167*E167,T167*E167) -> 0 | O167: .. | Q167: ok | R167: =IF(C167<>"",C167,"") -> Bonus Casa | S167: 1 | T167: =MIN(AG167,AR167) -> 288000 | U167: =IF(L167>T167,"KO","ok") -> ok | W167: =IF(L167<T167,L167,T167) -> 0 | Y167: =IF(L167>T167,L167-T167,0) -> 0 | AA167: =IF(M167<>0,J167*M167/L167,0) -> 0 | AC167: =IF(M167<>0,K167*M167/L167,0) -> 0 | AF167: =R167 -> Bonus Casa | AG167: =IF($F$15<>0,IF(ISNUMBER(SEARCH("Ristrutturazione",C167,1))=TRUE,IF(Titolare!$I$6=1,IF($L$15>$T$15,0,96000*N_Uimm-$L$15),IF(Titolare!$I$6=2,0,96000*N_Uimm)),96000*N_Uimm),96000*N_Uimm) -> 288000 | AH167: =IF(L167>AG167,"KO","ok") -> ok | AJ167: 0 | AO167: =AU167 -> 0 | AP167: =K167 -> 0 | AR167: =AG167 -> 288000 | AS167: =IF(L167>AR167,"ko","ok") -> ok | AU167: =IF(H167>AJ167,H167-AJ167,0) -> 0 | AV167: =SUM(AK167:AM167) -> 0 | AW167: 0 | AX167: TRUE | AY167: =H167 -> 0 | AZ167: =AV167*S167+AW167*BG167 -> 0 | BA167: =H167 -> 0 | BB167: TRUE | BC167: TRUE | BD167: TRUE | BE167: TRUE | BF167: 0.1000000015 | BG167: 0 | BI167: =R167 -> Bonus Casa | BJ167: =F167 -> 0 | BO167: =IF(ABS(SUM(BJ167:BN167)-H167)>0.01,"err. Somma","") ->  | BP167: Manutenzione ordinaria sulle parti comuni di un edificio
G168: =IF(ImpLav<>0,F168*ImpSicLav/ImpLav,0) -> 0 | H168: =F168+G168 -> 0 | I168: =H168*AliqIva -> 0 | J168: =H168+I168 -> 0 | K168: =IF(ImpLav<>0,F168*ImpTecLav/ImpLav,0) -> 0 | L168: =SUM(J168:K168) -> 0 | M168: =IF(L168<=T168,L168*E168,T168*E168) -> 0 | O168: .. | Q168: ok | R168: =IF(C168<>"",C168,"") ->  | S168: 1 | T168: =MIN(AG168,AR168) -> 288000 | U168: =IF(L168>T168,"KO","ok") -> ok | W168: =IF(L168<T168,L168,T168) -> 0 | Y168: =IF(L168>T168,L168-T168,0) -> 0 | AA168: =IF(M168<>0,J168*M168/L168,0) -> 0 | AC168: =IF(M168<>0,K168*M168/L168,0) -> 0 | AF168: =R168 ->  | AG168: =IF($F$15<>0,IF(ISNUMBER(SEARCH("Ristrutturazione",C168,1))=TRUE,IF(Titolare!$I$6=1,IF($L$15>$T$15,0,96000*N_Uimm-$L$15),IF(Titolare!$I$6=2,0,96000*N_Uimm)),96000*N_Uimm),96000*N_Uimm) -> 288000 | AH168: =IF(L168>AG168,"KO","ok") -> ok | AJ168: 0 | AR168: =AG168 -> 288000 | AS168: =IF(L168>AR168,"ko","ok") -> ok | AU168: =IF(H168>AJ168,H168-AJ168,0) -> 0 | AV168: =SUM(AK168:AM168) -> 0 | AW168: 0 | AX168: TRUE | AY168: =H168 -> 0 | AZ168: =AV168*S168+AW168*BG168 -> 0 | BA168: =H168 -> 0 | BB168: TRUE | BC168: TRUE | BD168: TRUE | BE168: TRUE | BF168: 0.1000000015 | BG168: 0 | BI168: =R168 ->  | BJ168: =F168 -> 0 | BO168: =IF(ABS(SUM(BJ168:BN168)-H168)>0.01,"err. Somma","") ->  | BP168: Recupero o restauro della Facciata degli edifici esistenti
C169: Totale Altri Interventi : | F169: =SUM(F165:F168) -> 0 | G169: =SUM(G165:G168) -> 0 | H169: 0 | I169: 0 | J169: 0 | K169: 0 | L169: 0 | M169: 0 | T169: =C169 -> Totale Altri Interventi : | W169: =SUM(W165:X168) -> 0 | Y169: =SUM(Y165:Z168) -> 0 | AA169: =SUM(AA165:AB168) -> 0 | AC169: =SUM(AC165:AD168) -> 0 | AJ169: 0 | BI169: =T169 -> Totale Altri Interventi : | BJ169: =SUM(BJ165:BJ168) -> 0 | BK169: =SUM(BK165:BK168) -> 0 | BL169: =SUM(BL165:BL168) -> 0 | BM169: =SUM(BM165:BM168) -> 0 | BN169: =SUM(BN165:BN168) -> 0 | BP169: Installazione di impianti solari Fotovoltaici connessi alla rete elettrica su edifici
C170: Quota a Carico Cliente per Altri Interventi = Eccedenza Spesa Ammessa + (100-x)%·Spesa Ammessa = | M170: =IF((1-E165)*W165+(1-E166)*W166+(1-E167)*W167+(1-E168)*W168>0,Y169+(1-E165)*W165+(1-E166)*W166+(1-E167)*W167+(1-E168)*W168,Y169) -> 0 | BP170: Installazione di sistemi di Accumulo integrati negli impianti solari fotovoltaici agevolati
L171: Quota Cedibile = x%·Spesa Ammessa = | M171: =W165*E165+W166*E166+W167*E167+W168*E168 -> 0 | BP171: Installazione di colonnine per la Ricarica di veicoli elettrici negli edifici
BP172: Eliminazione Barriere Architettoniche
BI174: Ripartizione tra le Imprese - Imponibile Lavori
C175: TOTALI PROGETTO | F175: Importo Lavori | G175: Incidenza Sicurezza | H175: Imponibile | I175: Iva | J175: Importo c.iva | K175: Spese tecniche | L175: Totale | M175: Credito Spettante | R175: =C175 -> TOTALI PROGETTO | W175: Spesa Ammessa | Y175: Quota Eccedente Spesa Ammessa | AA175: Credito Spettante Quota Imprese | Quota Tecnici | BI175: =R175 -> TOTALI PROGETTO | BJ175: =IF('Dati Gen'!$B$38<>"",'Dati Gen'!$B$38,"") -> Impresa1 | BK175: =IF('Dati Gen'!$B$39<>"",'Dati Gen'!$B$39,"") ->  | BL175: =IF('Dati Gen'!$B$40<>"",'Dati Gen'!$B$40,"") ->  | BM175: =IF('Dati Gen'!$B$41<>"",'Dati Gen'!$B$41,"") ->  | BN175: =IF('Dati Gen'!$B$42<>"",'Dati Gen'!$B$42,"") -> 
F176: =F157+F169 -> 246502.56 | G176: 0 | H176: 246502.56 | I176: 24650.256 | J176: 271152.816 | K176: 71718.60381 | L176: 342871.4198 | M176: 231688.206 | W176: =W157+W169 -> 330983.1514 | Y176: =Y157+Y169 -> 11888.26836 | AA176: =AA157+AA169 -> 183225.8563 | AC176: =AC157+AC169 -> 48462.34971 | BJ176: =BJ157+BJ169 -> 246502.5681 | BK176: =BK157+BK169 -> 0 | BL176: =BL157+BL169 -> 0 | BM176: =BM157+BM169 -> 0 | BN176: =BN157+BN169 -> 0
C177: Quota Totale a Carico Cliente = | M177: =M170+M158 -> 111183.2138
C180: Quota % effettiva per cessione credito a Banca o Impresa "Interventi SB." | H180: =100/110 -> 0.9090909091 | I180: =H180*100 -> 90.90909091 | J180: Import.Ricevuto | K180: =M159*H180 -> 210625.6418 | L180: Costo Cessione SB. | M180: =IF(L157-M158-K180>0,L157-M158-K180,0) -> 21062.56418
G181: Quota % effettiva per cessione credito a Banca o Impresa "Altri Interventi" | H181: 0.8 | I181: =H181*100 -> 80 | J181: Import.Ricevuto | K181: =M171*H181 -> 0 | L181: Costo Cessione Altri | M181: =IF(M171-K181>0,M171-K181,0) -> 0
F183: Costi Cliente | G183: Quota Imprese | H183: Quota Tecnici | K183: Costi Totali | L183: Quota Imprese | M183: Quota Tecnici
E184: Quota a Carico x Interventi Superbonus | F184: =M158 -> 111183.2138 | G184: =IF(TotaleSB<>0,F184*ImportSB/TotaleSB,0) -> 87926.9597 | H184: =IF(TotaleSB<>0,F184*SpeseTecSB/TotaleSB,0) -> 23256.25409 | J184: Interventi Superbonus | K184: =TotaleSB -> 342871.4198 | L184: =IF(TotaleSB<>0,K184*ImportSB/TotaleSB,0) -> 271152.816 | M184: =IF(TotaleSB<>0,K184*SpeseTecSB/TotaleSB,0) -> 71718.60381
E185: Quota a Carico x Altri Interventi | F185: =M170 -> 0 | G185: =IF(TotaleSB<>0,F185*ImportSB/TotaleSB,0) -> 0 | H185: =IF(TotaleSB<>0,F185*SpeseTecSB/TotaleSB,0) -> 0 | J185: Altri Interventi | K185: =L169 -> 0 | L185: =IF(L169<>0,K185*J169/L169,0) -> 0 | M185: =IF(L169<>0,K185*K169/L169,0) -> 0
E186: per Cessione Credito Superbonus | F186: =M180 -> 21062.56418 | G186: =IF(TotaleSB<>0,F186*ImportSB/TotaleSB,0) -> 16656.89603 | H186: =IF(TotaleSB<>0,F186*SpeseTecSB/TotaleSB,0) -> 4405.668156 | J186: Costi Cessione | K186: =F186+F187 -> 21062.56418 | L186: =G186+G187 -> 16656.89603 | M186: =H186+H187 -> 4405.668156
E187: per Cessione Credito Altri Interventi | F187: =M181 -> 0 | G187: =IF(L169<>0,F187*J169/L169,0) -> 0 | H187: =IF(L169<>0,F187*K169/L169,0) -> 0 | J187: Sommano | K187: =SUM(K184:K186) -> 363933.984 | L187: =SUM(L184:L186) -> 287809.712 | M187: =SUM(M184:M186) -> 76124.27196
E188: Sommano | F188: =SUM(F184:F187) -> 132245.778 | G188: =SUM(G184:G187) -> 104583.8557 | H188: =SUM(H184:H187) -> 27661.92225

Sheet SAL.30%
P1: =MATCH("SimMZ",C:C,0) -> 154
C2: =IF(TipoEdif=1,CONCATENATE('Computo-Massimali'!F4, " - ",'Dati Gen'!E8),"Condominio " & 'Computo-Massimali'!F3) -> Condominio Via Roma , 1 - Roma | F2: DATI PROGETTO : | G2: IMPONIBILE | H2: IVA | I2: IMPORTO | K2: IMPONIBILE | L2: IVA | M2: IMPORTO | N2: Pratica.SB
C3: STATO AVANZAMENTO LAVORI N.1 | F3: Importo Lavori | G3: ='Dati Gen'!G18 -> 246502.56 | H3: ='Dati Gen'!K18 -> 24650.256 | I3: ='Dati Gen'!M18 -> 271152.816 | J3: Importo Netto | K3: ='Dati Gen'!G20 -> 246502.56 | L3: ='Dati Gen'!K20 -> 24650.256 | M3: ='Dati Gen'!M20 -> 271152.816
C4: 29/07/2024 | F4: Oneri Sicurezza | G4: ='Dati Gen'!G19 -> 0 | H4: ='Dati Gen'!K19 -> 0 | I4: ='Dati Gen'!M19 -> 0 | J4: Spese Tecniche | K4: ='Dati Gen'!G21 -> 71718.60381 | L4: ='Dati Gen'!K21 -> 0 | M4: ='Dati Gen'!M21 -> 71718.60381 | Q4: =IF(Titolare!$B$16="Versione Demo","Versione Demo",IF('Computo-Massimali'!C6<>"","Attenzione! Tabella Computo-Massimali non completa. Si consiglia di completare, prima di registrare Voci di SAL","")) -> Versione Demo
C5: Oneri/Lavori x Sicurezza | D5: 0 | K5: ='Dati Gen'!G22 -> Importo Complessivo Progetto | M5: ='Dati Gen'!M22 -> 342871.4198
C7: INTERVENTI TRAINANTI | O7: .. | Q7: =CONCATENATE("Verifica Massimali di Spesa ",C7) -> Verifica Massimali di Spesa INTERVENTI TRAINANTI | AG7: ='Computo-Massimali'!BI7 -> Ripartizione tra le Imprese - Imponibile Lavori INTERVENTI TRAINANTI | AO7: Ripartizione Spese Tecniche / Prestazione Professionale [ SAL. N.1 - INTERVENTI SB. ]
C8: Interventi | F8: Importo Lavori | G8: Incidenza Sicurezza | H8: Imponibile | I8: Iva | J8: Importo c.iva | K8: Spese tecniche | L8: Totale | M8: =CONCATENATE("Credito Spettante ", percDetr*100,"% Spesa Ammessa") -> Credito Spettante 70% Spesa Ammessa | N8: %SAL | Q8: Interventi | R8: Massimale spesa | S8: Verifica Max | U8: Spesa Ammessa | W8: Quota Eccedente Spesa Ammessa | Y8: =CONCATENATE("Credito Spettante",CHAR(10), percDetr*100,"% Spesa Ammessa",CHAR(10),"Quota Imprese | Quota Tecnici") -> Credito Spettante 70% Spesa Ammessa Quota Imprese | Quota Tecnici | AG8: Interventi | AH8: =IF('Dati Gen'!$B$38<>"",'Dati Gen'!$B$38,"") -> Impresa1 | AI8: =IF('Dati Gen'!$B$39<>"",'Dati Gen'!$B$39,"") ->  | AJ8: =IF('Dati Gen'!$B$40<>"",'Dati Gen'!$B$40,"") ->  | AK8: =IF('Dati Gen'!$B$41<>"",'Dati Gen'!$B$41,"") ->  | AL8: =IF('Dati Gen'!$B$42<>"",'Dati Gen'!$B$42,"") ->  | AO8: Lavoro | AQ8: Tecnico | AR8: Onorario | AT8: C.Cassa | AV8: Imponibile | AX8: IVA | AZ8: Totale | BB8: Applica Sconto in Fattura | BC8: =IF(ABS(SUM(AZ9:AZ17)-AZ18)>0.01,CONCATENATE("Errore: ",CHAR(10),"Somma Ripartizione Totale SB =",ROUND(SUM(AZ9:AZ17),2), " €. <> ",CHAR(10),"Totale Spese Tecniche =",ROUND(AZ18,2)," €."),"") -> 
C9: ='Computo-Massimali'!C9 -> PV) Isolamento pareti perimetrali | E9: ='Computo-Massimali'!E9 -> Esterno | F9: 83307.57 | G9: =IF('Computo-Massimali'!F9<>0,'Computo-Massimali'!G9*F9/'Computo-Massimali'!F9,0) -> 0 | H9: =SUM(F9:G9) -> 83307.57 | I9: =IF(('Computo-Massimali'!F9+'Computo-Massimali'!G9)<>0,'Computo-Massimali'!I9/('Computo-Massimali'!F9+'Computo-Massimali'!G9)*H9,0) -> 8330.757 | J9: =H9+I9 -> 91638.327 | K9: =IF('Computo-Massimali'!F9<>0,'Computo-Massimali'!K9*F9/'Computo-Massimali'!F9,0) -> 24237.89273 | L9: =SUM(J9:K9) -> 115876.2197 | M9: =IF(L9<=R9,L9*percDetr,R9*percDetr) -> 81113.35381 | N9: =IF('Computo-Massimali'!L9>0,L9/'Computo-Massimali'!L9,0) -> 1 | O9: =IF(F9>0,IF(ABS(F9-0.001)>'Computo-Massimali'!F9,">C.",""),"") ->  | P9: .. | Q9: =C9 -> PV) Isolamento pareti perimetrali | R9: ='Computo-Massimali'!T9 -> 115876.2197 | S9: =IF(L9>R9,"ko","ok") -> ok | U9: =IF(L13<>0,(L9/L13)*U13,0) -> 115876.2197 | W9: =IF(L9>R9,L9-R9,0) -> 0 | Y9: =IF(M9<>0,J9*M9/L9,0) -> 64146.8289 | AA9: =IF(M9<>0,K9*M9/L9,0) -> 16966.52491 | AG9: =Q9 -> PV) Isolamento pareti perimetrali | AH9: ='Computo-Massimali'!BJ9 -> 83307.57 | AI9: ='Computo-Massimali'!BK9 -> 0 | AJ9: ='Computo-Massimali'!BL9 -> 0 | AK9: ='Computo-Massimali'!BM9 -> 0 | AL9: ='Computo-Massimali'!BN9 -> 0 | AM9: =IF(ABS(SUM(AH9:AL9)-H9)>0.01,"err. Somma",IF(AH9>'Computo-Massimali'!BJ9,"Err.1",IF(AI9>'Computo-Massimali'!BK9,"Err.2",IF(AJ9>'Computo-Massimali'!BL9,"Err.3",IF(AK9>'Computo-Massimali'!BM9,"Err.4",IF(AL9>'Computo-Massimali'!BN9,"Err.5","")))))) ->  | AO9: =IF('Dati Gen'!$B$25<>"",'Dati Gen'!$B$25,"") -> Progettazione Architettonica | AQ9: =IF('Dati Gen'!$C$25<>"",'Dati Gen'!$C$25,"") -> Architetto | AR9: =AV9/(1+AT9) -> 7149.01 | AT9: ='Dati Gen'!G25 -> 0.04 | AU9: =AR9*AT9 -> 285.9604 | AV9: =AZ9/(1+AX9) -> 7434.9704 | AX9: ='Dati Gen'!J25 -> 0.22 | AY9: =AX9*(AR9+AU9) -> 1635.693488 | AZ9: =IF('Dati Gen'!$M$36<>0,$AZ$18*'Dati Gen'!M25/'Dati Gen'!$M$36,0) -> 9070.663888 | BB9: =IF(AQ9<>"",VLOOKUP(AQ9,'Dati Gen'!$B$44:$D$51,3,0),"") -> NO
C10: ='Computo-Massimali'!C10 -> PO) Isolamento coperture | E10: ='Computo-Massimali'!E10 -> Esterno | F10: ='Computo-Massimali'!F10 -> 0 | G10: =IF('Computo-Massimali'!F10<>0,'Computo-Massimali'!G10*F10/'Computo-Massimali'!F10,0) -> 0 | H10: =SUM(F10:G10) -> 0 | I10: =IF(('Computo-Massimali'!F10+'Computo-Massimali'!G10)<>0,'Computo-Massimali'!I10/('Computo-Massimali'!F10+'Computo-Massimali'!G10)*H10,0) -> 0 | J10: =H10+I10 -> 0 | K10: =IF('Computo-Massimali'!F10<>0,'Computo-Massimali'!K10*F10/'Computo-Massimali'!F10,0) -> 0 | L10: =SUM(J10:K10) -> 0 | M10: =IF(L10<=R10,L10*percDetr,R10*percDetr) -> 0 | N10: =IF('Computo-Massimali'!L10>0,L10/'Computo-Massimali'!L10,0) -> 0 | O10: =IF(F10>0,IF(ABS(F10-0.001)>'Computo-Massimali'!F10,">C.",""),"") ->  | P10: .. | Q10: PO) Isolamento coperture | R10: ='Computo-Massimali'!T10 -> 0 | S10: =IF(L10>R10,"ko","ok") -> ok | U10: =IF(L13<>0,(L10/L13)*U13,0) -> 0 | W10: =IF(L10>R10,L10-R10,0) -> 0 | Y10: 0 | AA10: 0 | AG10: PO) Isolamento coperture | AH10: ='Computo-Massimali'!BJ10 -> 0 | AI10: ='Computo-Massimali'!BK10 -> 0 | AJ10: ='Computo-Massimali'!BL10 -> 0 | AK10: ='Computo-Massimali'!BM10 -> 0 | AL10: ='Computo-Massimali'!BN10 -> 0 | AM10: =IF(ABS(SUM(AH10:AL10)-H10)>0.01,"err. Somma",IF(AH10>'Computo-Massimali'!BJ10,"Err.1",IF(AI10>'Computo-Massimali'!BK10,"Err.2",IF(AJ10>'Computo-Massimali'!BL10,"Err.3",IF(AK10>'Computo-Massimali'!BM10,"Err.4",IF(AL10>'Computo-Massimali'!BN10,"Err.5","")))))) ->  | AO10: =IF('Dati Gen'!$B$26<>"",'Dati Gen'!$B$26,"") -> Progettazione Termotecnica, APE | AQ10: =IF('Dati Gen'!$C$26<>"",'Dati Gen'!$C$26,"") -> Ingegnere1 | AR10: =AV10/(1+AT10) -> 5525.58 | AT10: ='Dati Gen'!G26 -> 0.04 | AU10: 221.0232 | AV10: =AZ10/(1+AX10) -> 5746.6032 | AX10: ='Dati Gen'!J26 -> 0.22 | AY10: =(AR10+AU10)*AX10 -> 1264.252704 | AZ10: =IF('Dati Gen'!$M$36<>0,$AZ$18*'Dati Gen'!M26/'Dati Gen'!$M$36,0) -> 7010.855904 | BB10: =IF(AQ10<>"",VLOOKUP(AQ10,'Dati Gen'!$B$44:$D$51,3,0),"") -> NO
C11: ='Computo-Massimali'!C11 -> POND) Isol. coperture non disperdenti | E11: ='Computo-Massimali'!E11 -> Esterno | F11: ='Computo-Massimali'!F11 -> 0 | G11: =IF('Computo-Massimali'!F11<>0,'Computo-Massimali'!G11*F11/'Computo-Massimali'!F11,0) -> 0 | H11: =SUM(F11:G11) -> 0 | I11: =IF(('Computo-Massimali'!F11+'Computo-Massimali'!G11)<>0,'Computo-Massimali'!I11/('Computo-Massimali'!F11+'Computo-Massimali'!G11)*H11,0) -> 0 | J11: =H11+I11 -> 0 | K11: =IF('Computo-Massimali'!F11<>0,'Computo-Massimali'!K11*F11/'Computo-Massimali'!F11,0) -> 0 | L11: =SUM(J11:K11) -> 0 | M11: =IF(L11<=R11,L11*percDetr,R11*percDetr) -> 0 | N11: =IF('Computo-Massimali'!L11>0,L11/'Computo-Massimali'!L11,0) -> 0 | O11: =IF(F11>0,IF(ABS(F11-0.001)>'Computo-Massimali'!F11,">C.",""),"") ->  | P11: .. | Q11: POND) Isol. coperture non disperdenti | R11: ='Computo-Massimali'!T11 -> 0 | S11: ok | U11: =IF(L13<>0,(L11/L13)*U13,0) -> 0 | W11: 0 | Y11: 0 | AA11: 0 | AG11: POND) Isol. coperture non disperdenti | AH11: ='Computo-Massimali'!BJ11 -> 0 | AI11: ='Computo-Massimali'!BK11 -> 0 | AJ11: ='Computo-Massimali'!BL11 -> 0 | AK11: ='Computo-Massimali'!BM11 -> 0 | AL11: ='Computo-Massimali'!BN11 -> 0 | AM11: =IF(ABS(SUM(AH11:AL11)-H11)>0.01,"err. Somma",IF(AH11>'Computo-Massimali'!BJ11,"Err.1",IF(AI11>'Computo-Massimali'!BK11,"Err.2",IF(AJ11>'Computo-Massimali'!BL11,"Err.3",IF(AK11>'Computo-Massimali'!BM11,"Err.4",IF(AL11>'Computo-Massimali'!BN11,"Err.5","")))))) ->  | AO11: =IF('Dati Gen'!$B$27<>"",'Dati Gen'!$B$27,"") -> Direzione Lavori, CSE | AQ11: =IF('Dati Gen'!$C$27<>"",'Dati Gen'!$C$27,"") -> Architetto | AR11: 19404 | AT11: ='Dati Gen'!G27 -> 0.04 | AU11: 776.16 | AV11: 20180.16 | AX11: ='Dati Gen'!J27 -> 0.22 | AY11: 4439.6352 | AZ11: =IF('Dati Gen'!$M$36<>0,$AZ$18*'Dati Gen'!M27/'Dati Gen'!$M$36,0) -> 24619.7952 | BB11: =IF(AQ11<>"",VLOOKUP(AQ11,'Dati Gen'!$B$44:$D$51,3,0),"") -> NO
C12: ='Computo-Massimali'!C12 -> PS) Isolamento Pavimenti | E12: ='Computo-Massimali'!E12 -> Esterno | F12: ='Computo-Massimali'!F12 -> 0 | G12: =IF('Computo-Massimali'!F12<>0,'Computo-Massimali'!G12*F12/'Computo-Massimali'!F12,0) -> 0 | H12: =SUM(F12:G12) -> 0 | I12: =IF(('Computo-Massimali'!F12+'Computo-Massimali'!G12)<>0,'Computo-Massimali'!I12/('Computo-Massimali'!F12+'Computo-Massimali'!G12)*H12,0) -> 0 | J12: =H12+I12 -> 0 | K12: =IF('Computo-Massimali'!F12<>0,'Computo-Massimali'!K12*F12/'Computo-Massimali'!F12,0) -> 0 | L12: =SUM(J12:K12) -> 0 | M12: =IF(L12<=R12,L12*percDetr,R12*percDetr) -> 0 | N12: =IF('Computo-Massimali'!L12>0,L12/'Computo-Massimali'!L12,0) -> 0 | O12: =IF(F12>0,IF(ABS(F12-0.001)>'Computo-Massimali'!F12,">C.",""),"") ->  | P12: .. | Q12: PS) Isolamento Pavimenti | R12: ='Computo-Massimali'!T12 -> 0 | S12: ok | U12: =IF(L13<>0,(L12/L13)*U13,0) -> 0 | W12: 0 | Y12: 0 | AA12: 0 | AG12: PS) Isolamento Pavimenti | AH12: ='Computo-Massimali'!BJ12 -> 0 | AI12: ='Computo-Massimali'!BK12 -> 0 | AJ12: ='Computo-Massimali'!BL12 -> 0 | AK12: ='Computo-Massimali'!BM12 -> 0 | AL12: ='Computo-Massimali'!BN12 -> 0 | AM12: =IF(ABS(SUM(AH12:AL12)-H12)>0.01,"err. Somma",IF(AH12>'Computo-Massimali'!BJ12,"Err.1",IF(AI12>'Computo-Massimali'!BK12,"Err.2",IF(AJ12>'Computo-Massimali'!BL12,"Err.3",IF(AK12>'Computo-Massimali'!BM12,"Err.4",IF(AL12>'Computo-Massimali'!BN12,"Err.5","")))))) ->  | AO12: =IF('Dati Gen'!$B$28<>"",'Dati Gen'!$B$28,"") -> DL., Computo, Contabilità, Asseverazione | AQ12: =IF('Dati Gen'!$C$28<>"",'Dati Gen'!$C$28,"") -> Ingegnere1 | AR12: 17758.44 | AT12: ='Dati Gen'!G28 -> 0.04 | AU12: 710.3376 | AV12: 18468.7776 | AX12: ='Dati Gen'!J28 -> 0.22 | AY12: 4063.131072 | AZ12: =IF('Dati Gen'!$M$36<>0,$AZ$18*'Dati Gen'!M28/'Dati Gen'!$M$36,0) -> 22531.90867 | BB12: =IF(AQ12<>"",VLOOKUP(AQ12,'Dati Gen'!$B$44:$D$51,3,0),"") -> NO
C13: ='Computo-Massimali'!C13 -> Totali Isolamento PV) PO) POND) PS) | F13: =SUM(F9:F12) -> 83307.57 | G13: 0 | H13: =SUM(H9:H12) -> 83307.57 | I13: =SUM(I9:I12) -> 8330.757 | J13: =SUM(J9:J12) -> 91638.327 | K13: 24237.89273 | L13: 115876.2197 | M13: 81113.35381 | N13: =IF('Computo-Massimali'!L13>0,L13/'Computo-Massimali'!L13,0) -> 1 | O13: =IF(F13>0,IF(ABS(F13-0.001)>'Computo-Massimali'!F13,">C.",""),"") ->  | Q13: Totali Isolamento PV) PO) POND) PS) | R13: ='Computo-Massimali'!T13 -> 115876.2197 | S13: ok | U13: =IF(L13<R13,L13,R13) -> 115876.2197 | W13: 0 | Y13: 64146.8289 | AA13: 16966.52491 | AG13: Totali Isolamento PV) PO) POND) PS) | AH13: =SUM(AH9:AH12) -> 83307.57 | AI13: =SUM(AI9:AI12) -> 0 | AJ13: =SUM(AJ9:AJ12) -> 0 | AK13: =SUM(AK9:AK12) -> 0 | AL13: =SUM(AL9:AL12) -> 0 | AO13: =IF('Dati Gen'!$B$29<>"",'Dati Gen'!$B$29,"") ->  | AQ13: =IF('Dati Gen'!$C$29<>"",'Dati Gen'!$C$29,"") ->  | AR13: =AV13/(1+AT13) -> 0 | AT13: ='Dati Gen'!G29 -> 0 | AU13: 0 | AV13: 0 | AX13: ='Dati Gen'!J29 -> 0.22 | AY13: 0 | AZ13: =IF('Dati Gen'!$M$36<>0,$AZ$18*'Dati Gen'!M29/'Dati Gen'!$M$36,0) -> 0 | BB13: =IF(AQ13<>"",VLOOKUP(AQ13,'Dati Gen'!$B$44:$D$51,3,0),"") -> 
C14: =CONCATENATE('Computo-Massimali'!C14," con ",'Computo-Massimali'!D14) -> Impianti climatizzazione e ACS con PC)Aria/Aria | F14: ='Computo-Massimali'!F14 -> 0 | G14: =IF('Computo-Massimali'!F14<>0,'Computo-Massimali'!G14*F14/'Computo-Massimali'!F14,0) -> 0 | H14: =SUM(F14:G14) -> 0 | I14: =IF(('Computo-Massimali'!F14+'Computo-Massimali'!G14)<>0,'Computo-Massimali'!I14/('Computo-Massimali'!F14+'Computo-Massimali'!G14)*H14,0) -> 0 | J14: =H14+I14 -> 0 | K14: =IF('Computo-Massimali'!F14<>0,'Computo-Massimali'!K14*F14/'Computo-Massimali'!F14,0) -> 0 | L14: =SUM(J14:K14) -> 0 | M14: 0 | N14: =IF('Computo-Massimali'!L14>0,L14/'Computo-Massimali'!L14,0) -> 0 | O14: =IF(F14>0,IF(ABS(F14-0.001)>'Computo-Massimali'!F14,">C.",""),"") ->  | P14: .. | Q14: Impianti climatizzazione e ACS con PC)Aria/Aria | R14: ='Computo-Massimali'!T14 -> 0 | S14: ok | U14: =IF(L14<R14,L14,R14) -> 0 | W14: 0 | Y14: 0 | AA14: 0 | AG14: Impianti climatizzazione e ACS con PC)Aria/Aria | AH14: ='Computo-Massimali'!BJ14 -> 0 | AI14: ='Computo-Massimali'!BK14 -> 0 | AJ14: ='Computo-Massimali'!BL14 -> 0 | AK14: ='Computo-Massimali'!BM14 -> 0 | AL14: ='Computo-Massimali'!BN14 -> 0 | AM14: =IF(ABS(SUM(AH14:AL14)-H14)>0.01,"err. Somma",IF(AH14>'Computo-Massimali'!BJ14,"Err.1",IF(AI14>'Computo-Massimali'!BK14,"Err.2",IF(AJ14>'Computo-Massimali'!BL14,"Err.3",IF(AK14>'Computo-Massimali'!BM14,"Err.4",IF(AL14>'Computo-Massimali'!BN14,"Err.5","")))))) ->  | AO14: =IF('Dati Gen'!$B$30<>"",'Dati Gen'!$B$30,"") ->  | AQ14: =IF('Dati Gen'!$C$30<>"",'Dati Gen'!$C$30,"") ->  | AR14: =AV14/(1+AT14) -> 0 | AT14: ='Dati Gen'!G30 -> 0.04 | AU14: 0 | AV14: 0 | AX14: ='Dati Gen'!J30 -> 0.22 | AY14: 0 | AZ14: =IF('Dati Gen'!$M$36<>0,$AZ$18*'Dati Gen'!M30/'Dati Gen'!$M$36,0) -> 0 | BB14: =IF(AQ14<>"",VLOOKUP(AQ14,'Dati Gen'!$B$44:$D$51,3,0),"") -> 
C15: =CONCATENATE('Computo-Massimali'!C15,'Computo-Massimali'!E15) -> SismaBonus Zona 1,2 o 3 P.Classi = | F15: ='Computo-Massimali'!F15 -> 0 | G15: =IF('Computo-Massimali'!F15<>0,'Computo-Massimali'!G15*F15/'Computo-Massimali'!F15,0) -> 0 | H15: =SUM(F15:G15) -> 0 | I15: =IF(('Computo-Massimali'!F15+'Computo-Massimali'!G15)<>0,'Computo-Massimali'!I15/('Computo-Massimali'!F15+'Computo-Massimali'!G15)*H15,0) -> 0 | J15: =H15+I15 -> 0 | K15: =IF('Computo-Massimali'!F15<>0,'Computo-Massimali'!K15*F15/'Computo-Massimali'!F15,0) -> 0 | L15: =SUM(J15:K15) -> 0 | M15: =IF(L15<=R15,L15*percDetr,R15*percDetr) -> 0 | N15: =IF('Computo-Massimali'!L15>0,L15/'Computo-Massimali'!L15,0) -> 0 | O15: =IF(F15>0,IF(ABS(F15-0.001)>'Computo-Massimali'!F15,">C.",""),"") ->  | P15: .. | Q15: SismaBonus Zona 1,2 o 3 P.Classi = | R15: ='Computo-Massimali'!T15 -> 288000 | S15: ok | U15: =IF(L15<R15,L15,R15) -> 0 | W15: 0 | Y15: 0 | AA15: 0 | AG15: SismaBonus Zona 1,2 o 3 P.Classi = | AH15: ='Computo-Massimali'!BJ15 -> 0 | AI15: ='Computo-Massimali'!BK15 -> 0 | AJ15: ='Computo-Massimali'!BL15 -> 0 | AK15: ='Computo-Massimali'!BM15 -> 0 | AL15: ='Computo-Massimali'!BN15 -> 0 | AM15: =IF(ABS(SUM(AH15:AL15)-H15)>0.01,"err. Somma",IF(AH15>'Computo-Massimali'!BJ15,"Err.1",IF(AI15>'Computo-Massimali'!BK15,"Err.2",IF(AJ15>'Computo-Massimali'!BL15,"Err.3",IF(AK15>'Computo-Massimali'!BM15,"Err.4",IF(AL15>'Computo-Massimali'!BN15,"Err.5","")))))) ->  | AO15: =IF('Dati Gen'!$B$31<>"",'Dati Gen'!$B$31,"") ->  | AQ15: =IF('Dati Gen'!$C$31<>"",'Dati Gen'!$C$31,"") ->  | AR15: 0 | AT15: ='Dati Gen'!G31 -> 0.04 | AU15: 0 | AV15: 0 | AX15: ='Dati Gen'!J31 -> 0.22 | AY15: 0 | AZ15: =IF('Dati Gen'!$M$36<>0,$AZ$18*'Dati Gen'!M31/'Dati Gen'!$M$36,0) -> 0 | BB15: =IF(AQ15<>"",VLOOKUP(AQ15,'Dati Gen'!$B$44:$D$51,3,0),"") -> 
C16: ='Computo-Massimali'!C16 -> Totale interventi Trainanti : | F16: =IF(Titolare!$B$16="Versione Demo",0,SUM(F13:F15)) -> 0 | G16: =SUM(G13:G15) -> 0 | H16: =SUM(H13:H15) -> 83307.57 | I16: =SUM(I13:I15) -> 8330.757 | J16: 91638.327 | K16: 24237.89273 | L16: 115876.2197 | M16: 81113.35381 | N16: =IF('Computo-Massimali'!L16>0,L16/'Computo-Massimali'!L16,0) -> 1 | O16: =IF(F16>0,IF(ABS(F16-0.001)>'Computo-Massimali'!F16,">C.",""),"") ->  | R16: =C16 -> Totale interventi Trainanti : | U16: =SUM(U13:V15) -> 115876.2197 | W16: =SUM(W13:X15) -> 0 | Y16: =SUM(Y13:Z15) -> 64146.8289 | AA16: =SUM(AA13:AB15) -> 16966.52491 | AG16: =R16 -> Totale interventi Trainanti : | AH16: =SUM(AH13:AH15) -> 83307.57 | AI16: =SUM(AI13:AI15) -> 0 | AJ16: =SUM(AJ13:AJ15) -> 0 | AK16: =SUM(AK13:AK15) -> 0 | AL16: =SUM(AL13:AL15) -> 0 | AO16: =IF('Dati Gen'!$B$32<>"",'Dati Gen'!$B$32,"") ->  | AQ16: =IF('Dati Gen'!$C$32<>"",'Dati Gen'!$C$32,"") ->  | AR16: 0 | AT16: ='Dati Gen'!G32 -> 0.04 | AU16: 0 | AV16: 0 | AX16: ='Dati Gen'!J32 -> 0.22 | AY16: 0 | AZ16: =IF('Dati Gen'!$M$36<>0,$AZ$18*'Dati Gen'!M32/'Dati Gen'!$M$36,0) -> 0 | BB16: =IF(AQ16<>"",VLOOKUP(AQ16,'Dati Gen'!$B$44:$D$51,3,0),"") -> 
AO17: =IF('Dati Gen'!$B$35<>"",'Dati Gen'!$B$35,"") -> Visto Conformità | AQ17: =IF('Dati Gen'!$C$35<>"",'Dati Gen'!$C$35,"") -> Consulente | AR17: 6687.720793 | AT17: ='Dati Gen'!G35 -> 0.04 | AU17: 267.5088317 | AV17: 6955.229625 | AX17: ='Dati Gen'!J35 -> 0.22 | AY17: 1530.150518 | AZ17: =IF('Dati Gen'!$M$36<>0,$AZ$18*'Dati Gen'!M35/'Dati Gen'!$M$36,0) -> 8485.380143 | BB17: =IF(AQ17<>"",VLOOKUP(AQ17,'Dati Gen'!$B$44:$D$51,3,0),"") -> NO
C18: INTERVENTI TRAINATI PARTI COMUNI CONDOMINIALI | O18: .. | Q18: =CONCATENATE("Verifica Massimali di Spesa ",C18) -> Verifica Massimali di Spesa INTERVENTI TRAINATI PARTI COMUNI CONDOMINIALI | AG18: ='Computo-Massimali'!BI18 -> Ripartizione tra le Imprese - Imponibile Lavori INTERVENTI TRAINATI PARTI COMUNI CONDOMINIALI | AR18: =SUM(AR9:AS17) -> 56524.75079 | AT18: =SUM(AU9:AU17) -> 2260.990032 | AV18: =SUM(AV9:AW17) -> 58785.74083 | AY18: =SUM(AY9:AY17) -> 12932.86298 | AZ18: =K157 -> 71718.60381
C19: Interventi | F19: Importo Lavori | G19: Incidenza Sicurezza | H19: Imponibile | I19: Iva | J19: Importo c.iva | K19: Spese tecniche | L19: Totale | M19: =$M$8 -> Credito Spettante 70% Spesa Ammessa | N19: %SAL | Q19: Interventi | R19: Massimale spesa | S19: Verifica Max | U19: Spesa Ammessa | W19: Quota Eccedente Spesa Ammessa | Y19: =$Y$8 -> Credito Spettante 70% Spesa Ammessa Quota Imprese | Quota Tecnici | AG19: Interventi | AH19: =IF('Dati Gen'!$B$38<>"",'Dati Gen'!$B$38,"") -> Impresa1 | AI19: =IF('Dati Gen'!$B$39<>"",'Dati Gen'!$B$39,"") ->  | AJ19: =IF('Dati Gen'!$B$40<>"",'Dati Gen'!$B$40,"") ->  | AK19: =IF('Dati Gen'!$B$41<>"",'Dati Gen'!$B$41,"") ->  | AL19: =IF('Dati Gen'!$B$42<>"",'Dati Gen'!$B$42,"") ->  | AO19: Ripartizione Spese Tecniche / Professionista [ SAL. N.1 - INTERVENTI SB. ]
C20: ='Computo-Massimali'!C20 -> PV) Isolamento pareti perimetrali | E20: Interno | F20: 0 | G20: =IF('Computo-Massimali'!F20<>0,'Computo-Massimali'!G20*F20/'Computo-Massimali'!F20,0) -> 0 | H20: =SUM(F20:G20) -> 0 | I20: =IF(('Computo-Massimali'!F20+'Computo-Massimali'!G20)<>0,'Computo-Massimali'!I20/('Computo-Massimali'!F20+'Computo-Massimali'!G20)*H20,0) -> 0 | J20: =H20+I20 -> 0 | K20: =IF('Computo-Massimali'!F20<>0,'Computo-Massimali'!K20*F20/'Computo-Massimali'!F20,0) -> 0 | L20: =SUM(J20:K20) -> 0 | M20: =IF(L20<=R20,L20*percDetr,R20*percDetr) -> 0 | N20: =IF('Computo-Massimali'!L20>0,L20/'Computo-Massimali'!L20,0) -> 0 | O20: =IF(F20>0,IF(ABS(F20-0.001)>'Computo-Massimali'!F20,">C.",""),"") ->  | P20: .. | Q20: =C20 -> PV) Isolamento pareti perimetrali | R20: ='Computo-Massimali'!T20 -> 0 | S20: =IF(L20>R20,"ko","ok") -> ok | U20: =IF(L24<>0,(L20/L24)*U24,0) -> 0 | W20: =IF(L20>R20,L20-R20,0) -> 0 | Y20: =IF(M20<>0,J20*M20/L20,0) -> 0 | AA20: =IF(M20<>0,K20*M20/L20,0) -> 0 | AG20: =Q20 -> PV) Isolamento pareti perimetrali | AH20: ='Computo-Massimali'!BJ20 -> 0 | AI20: ='Computo-Massimali'!BK20 -> 0 | AJ20: ='Computo-Massimali'!BL20 -> 0 | AK20: ='Computo-Massimali'!BM20 -> 0 | AL20: ='Computo-Massimali'!BN20 -> 0 | AM20: =IF(ABS(SUM(AH20:AL20)-H20)>0.01,"err. Somma",IF(AH20>'Computo-Massimali'!BJ20,"Err.1",IF(AI20>'Computo-Massimali'!BK20,"Err.2",IF(AJ20>'Computo-Massimali'!BL20,"Err.3",IF(AK20>'Computo-Massimali'!BM20,"Err.4",IF(AL20>'Computo-Massimali'!BN20,"Err.5","")))))) ->  | AO20: =IF('Dati Gen'!$B$44<>"",'Dati Gen'!$B$44,"") -> Ingegnere1 | AP20: =IF('Dati Gen'!$B$45<>"",'Dati Gen'!$B$45,"") -> Architetto | AQ20: =IF('Dati Gen'!$B$46<>"",'Dati Gen'!$B$46,"") -> Consulente | AR20: =IF('Dati Gen'!$B$47<>"",'Dati Gen'!$B$47,"") ->  | AT20: =IF('Dati Gen'!$B$48<>"",'Dati Gen'!$B$48,"") ->  | AV20: =IF('Dati Gen'!$B$49<>"",'Dati Gen'!$B$49,"") ->  | AX20: =IF('Dati Gen'!$B$50<>"",'Dati Gen'!$B$50,"") ->  | AZ20: =IF('Dati Gen'!$B$51<>"",'Dati Gen'!$B$51,"") -> 
C21: ='Computo-Massimali'!C21 -> PO) Isolamento coperture | E21: Esterno | F21: ='Computo-Massimali'!F21 -> 6838.64 | G21: =IF('Computo-Massimali'!F21<>0,'Computo-Massimali'!G21*F21/'Computo-Massimali'!F21,0) -> 0 | H21: =SUM(F21:G21) -> 6838.64 | I21: =IF(('Computo-Massimali'!F21+'Computo-Massimali'!G21)<>0,'Computo-Massimali'!I21/('Computo-Massimali'!F21+'Computo-Massimali'!G21)*H21,0) -> 683.864 | J21: =H21+I21 -> 7522.504 | K21: =IF('Computo-Massimali'!F21<>0,'Computo-Massimali'!K21*F21/'Computo-Massimali'!F21,0) -> 1989.665798 | L21: =SUM(J21:K21) -> 9512.169798 | M21: =IF(L21<=R21,L21*percDetr,R21*percDetr) -> 6658.518859 | N21: =IF('Computo-Massimali'!L21>0,L21/'Computo-Massimali'!L21,0) -> 1 | O21: =IF(F21>0,IF(ABS(F21-0.001)>'Computo-Massimali'!F21,">C.",""),"") ->  | P21: .. | Q21: PO) Isolamento coperture | R21: ='Computo-Massimali'!T21 -> 9815.769809 | S21: ok | U21: =IF(L24<>0,(L21/L24)*U24,0) -> 9512.169798 | W21: 0 | Y21: 5265.7528 | AA21: 1392.766059 | AG21: PO) Isolamento coperture | AH21: ='Computo-Massimali'!BJ21 -> 6838.64 | AI21: ='Computo-Massimali'!BK21 -> 0 | AJ21: ='Computo-Massimali'!BL21 -> 0 | AK21: ='Computo-Massimali'!BM21 -> 0 | AL21: ='Computo-Massimali'!BN21 -> 0 | AM21: =IF(ABS(SUM(AH21:AL21)-H21)>0.01,"err. Somma",IF(AH21>'Computo-Massimali'!BJ21,"Err.1",IF(AI21>'Computo-Massimali'!BK21,"Err.2",IF(AJ21>'Computo-Massimali'!BL21,"Err.3",IF(AK21>'Computo-Massimali'!BM21,"Err.4",IF(AL21>'Computo-Massimali'!BN21,"Err.5","")))))) ->  | AO21: =IF($AQ9=AO$20,$AZ9,0) -> 0 | AP21: =IF($AQ9=AP$20,$AZ9,0) -> 9070.663888 | AQ21: 0 | AR21: =IF($AQ9=AR$20,$AZ9,0) -> 0 | AT21: =IF($AQ9=AT$20,$AZ9,0) -> 0 | AV21: =IF($AQ9=AV$20,$AZ9,0) -> 0 | AX21: =IF($AQ9=AX$20,$AZ9,0) -> 0 | AZ21: =IF($AQ9=AZ$20,$AZ9,0) -> 0
C22: ='Computo-Massimali'!C22 -> PS) Isolamento Pavimenti | E22: Interno/terreno | F22: ='Computo-Massimali'!F22 -> 4949.56 | G22: =IF('Computo-Massimali'!F22<>0,'Computo-Massimali'!G22*F22/'Computo-Massimali'!F22,0) -> 0 | H22: =SUM(F22:G22) -> 4949.56 | I22: =IF(('Computo-Massimali'!F22+'Computo-Massimali'!G22)<>0,'Computo-Massimali'!I22/('Computo-Massimali'!F22+'Computo-Massimali'!G22)*H22,0) -> 494.956 | J22: =H22+I22 -> 5444.516 | K22: =IF('Computo-Massimali'!F22<>0,'Computo-Massimali'!K22*F22/'Computo-Massimali'!F22,0) -> 1440.048057 | L22: =SUM(J22:K22) -> 6884.564057 | M22: =IF(L22<=R22,L22*percDetr,R22*percDetr) -> 4819.19484 | N22: =IF('Computo-Massimali'!L22>0,L22/'Computo-Massimali'!L22,0) -> 1 | O22: =IF(F22>0,IF(ABS(F22-0.001)>'Computo-Massimali'!F22,">C.",""),"") ->  | P22: .. | Q22: PS) Isolamento Pavimenti | R22: ='Computo-Massimali'!T22 -> 6884.564065 | S22: ok | U22: =IF(L24<>0,(L22/L24)*U24,0) -> 6884.564057 | W22: 0 | Y22: =IF(M22<>0,J22*M22/L22,0) -> 3811.1612 | AA22: 1008.03364 | AG22: PS) Isolamento Pavimenti | AH22: ='Computo-Massimali'!BJ22 -> 4949.56 | AI22: ='Computo-Massimali'!BK22 -> 0 | AJ22: ='Computo-Massimali'!BL22 -> 0 | AK22: ='Computo-Massimali'!BM22 -> 0 | AL22: ='Computo-Massimali'!BN22 -> 0 | AM22: =IF(ABS(SUM(AH22:AL22)-H22)>0.01,"err. Somma",IF(AH22>'Computo-Massimali'!BJ22,"Err.1",IF(AI22>'Computo-Massimali'!BK22,"Err.2",IF(AJ22>'Computo-Massimali'!BL22,"Err.3",IF(AK22>'Computo-Massimali'!BM22,"Err.4",IF(AL22>'Computo-Massimali'!BN22,"Err.5","")))))) ->  | AO22: =IF($AQ10=AO$20,$AZ10,0) -> 7010.855904 | AP22: 0 | AQ22: 0 | AR22: =IF($AQ10=AR$20,$AZ10,0) -> 0 | AT22: =IF($AQ10=AT$20,$AZ10,0) -> 0 | AV22: =IF($AQ10=AV$20,$AZ10,0) -> 0 | AX22: =IF($AQ10=AX$20,$AZ10,0) -> 0 | AZ22: =IF($AQ10=AZ$20,$AZ10,0) -> 0
C23: ='Computo-Massimali'!C23 -> IN) Serramenti con chiusure oscuranti | E23: Zone D, E ed F | F23: ='Computo-Massimali'!F23 -> 3162.33 | G23: =IF('Computo-Massimali'!F23<>0,'Computo-Massimali'!G23*F23/'Computo-Massimali'!F23,0) -> 0 | H23: =SUM(F23:G23) -> 3162.33 | I23: =IF(('Computo-Massimali'!F23+'Computo-Massimali'!G23)<>0,'Computo-Massimali'!I23/('Computo-Massimali'!F23+'Computo-Massimali'!G23)*H23,0) -> 316.233 | J23: =H23+I23 -> 3478.563 | K23: =IF('Computo-Massimali'!F23<>0,'Computo-Massimali'!K23*F23/'Computo-Massimali'!F23,0) -> 920.0630305 | L23: =SUM(J23:K23) -> 4398.62603 | M23: =IF(L23<=R23,L23*percDetr,R23*percDetr) -> 3079.038221 | N23: =IF('Computo-Massimali'!L23>0,L23/'Computo-Massimali'!L23,0) -> 1 | O23: =IF(F23>0,IF(ABS(F23-0.001)>'Computo-Massimali'!F23,">C.",""),"") ->  | P23: .. | Q23: IN) Serramenti con chiusure oscuranti | R23: ='Computo-Massimali'!T23 -> 7877.18904 | S23: ok | U23: =IF(L24<>0,(L23/L24)*U24,0) -> 4398.62603 | W23: 0 | Y23: 2434.9941 | AA23: 644.0441213 | AG23: IN) Serramenti con chiusure oscuranti | AH23: ='Computo-Massimali'!BJ23 -> 3162.33 | AI23: ='Computo-Massimali'!BK23 -> 0 | AJ23: ='Computo-Massimali'!BL23 -> 0 | AK23: ='Computo-Massimali'!BM23 -> 0 | AL23: ='Computo-Massimali'!BN23 -> 0 | AM23: =IF(ABS(SUM(AH23:AL23)-H23)>0.01,"err. Somma",IF(AH23>'Computo-Massimali'!BJ23,"Err.1",IF(AI23>'Computo-Massimali'!BK23,"Err.2",IF(AJ23>'Computo-Massimali'!BL23,"Err.3",IF(AK23>'Computo-Massimali'!BM23,"Err.4",IF(AL23>'Computo-Massimali'!BN23,"Err.5","")))))) ->  | AO23: =IF($AQ11=AO$20,$AZ11,0) -> 0 | AP23: 24619.7952 | AQ23: 0 | AR23: 0 | AT23: =IF($AQ11=AT$20,$AZ11,0) -> 0 | AV23: 0 | AX23: 0 | AZ23: 0
C24: ='Computo-Massimali'!C24 -> Totali Isolamento PV) PO) PS) e IN) | F24: =SUM(F20:F23) -> 14950.53 | G24: =SUM(G20:G23) -> 0 | H24: 14950.53 | I24: =SUM(I20:I23) -> 1495.053 | J24: 16445.583 | K24: =SUM(K20:K23) -> 4349.776886 | L24: 20795.35989 | M24: =SUM(M20:M23) -> 14556.75192 | N24: =IF('Computo-Massimali'!L24>0,L24/'Computo-Massimali'!L24,0) -> 1 | O24: =IF(F24>0,IF(ABS(F24-0.001)>'Computo-Massimali'!F24,">C.",""),"") ->  | Q24: Totali Isolamento PV) PO) PS) e IN) | R24: ='Computo-Massimali'!T24 -> 24577.52291 | S24: ok | U24: =IF(L24<R24,L24,R24) -> 20795.35989 | W24: 0 | Y24: 11511.9081 | AA24: 3044.84382 | AG24: Totali Isolamento PV) PO) PS) e IN) | AH24: =SUM(AH20:AH23) -> 14950.53 | AI24: =SUM(AI20:AI23) -> 0 | AJ24: =SUM(AJ20:AJ23) -> 0 | AK24: =SUM(AK20:AK23) -> 0 | AL24: =SUM(AL20:AL23) -> 0 | AO24: =IF($AQ12=AO$20,$AZ12,0) -> 22531.90867 | AP24: 0 | AQ24: 0 | AR24: 0 | AT24: 0 | AV24: 0 | AX24: 0 | AZ24: 0
C25: ='Computo-Massimali'!C25 -> SS) Schermature solari e chiusure oscuranti | F25: ='Computo-Massimali'!F25 -> 0 | G25: =IF('Computo-Massimali'!F25<>0,'Computo-Massimali'!G25*F25/'Computo-Massimali'!F25,0) -> 0 | H25: =SUM(F25:G25) -> 0 | I25: =IF(('Computo-Massimali'!F25+'Computo-Massimali'!G25)<>0,'Computo-Massimali'!I25/('Computo-Massimali'!F25+'Computo-Massimali'!G25)*H25,0) -> 0 | J25: =H25+I25 -> 0 | K25: =IF('Computo-Massimali'!F25<>0,'Computo-Massimali'!K25*F25/'Computo-Massimali'!F25,0) -> 0 | L25: =SUM(J25:K25) -> 0 | M25: =IF(L25<=R25,L25*percDetr,R25*percDetr) -> 0 | N25: =IF('Computo-Massimali'!L25>0,L25/'Computo-Massimali'!L25,0) -> 0 | O25: =IF(F25>0,IF(ABS(F25-0.001)>'Computo-Massimali'!F25,">C.",""),"") ->  | P25: .. | Q25: SS) Schermature solari e chiusure oscuranti | R25: ='Computo-Massimali'!T25 -> 0 | S25: ok | U25: =IF(L25<R25,L25,R25) -> 0 | W25: 0 | Y25: 0 | AA25: 0 | AG25: SS) Schermature solari e chiusure oscuranti | AH25: ='Computo-Massimali'!BJ25 -> 0 | AI25: ='Computo-Massimali'!BK25 -> 0 | AJ25: ='Computo-Massimali'!BL25 -> 0 | AK25: ='Computo-Massimali'!BM25 -> 0 | AL25: ='Computo-Massimali'!BN25 -> 0 | AM25: =IF(ABS(SUM(AH25:AL25)-H25)>0.01,"err. Somma",IF(AH25>'Computo-Massimali'!BJ25,"Err.1",IF(AI25>'Computo-Massimali'!BK25,"Err.2",IF(AJ25>'Computo-Massimali'!BL25,"Err.3",IF(AK25>'Computo-Massimali'!BM25,"Err.4",IF(AL25>'Computo-Massimali'!BN25,"Err.5","")))))) ->  | AO25: 0 | AP25: 0 | AQ25: 0 | AR25: 0 | AT25: 0 | AV25: 0 | AX25: 0 | AZ25: 0
C26: =CONCATENATE('Computo-Massimali'!C26," con ",'Computo-Massimali'!D26) -> Impianti climatizzazione con con CC)Caldaie a Condensazione | F26: ='Computo-Massimali'!F26 -> 0 | G26: =IF('Computo-Massimali'!F26<>0,'Computo-Massimali'!G26*F26/'Computo-Massimali'!F26,0) -> 0 | H26: =SUM(F26:G26) -> 0 | I26: =IF(('Computo-Massimali'!F26+'Computo-Massimali'!G26)<>0,'Computo-Massimali'!I26/('Computo-Massimali'!F26+'Computo-Massimali'!G26)*H26,0) -> 0 | J26: =H26+I26 -> 0 | K26: =IF('Computo-Massimali'!F26<>0,'Computo-Massimali'!K26*F26/'Computo-Massimali'!F26,0) -> 0 | L26: =SUM(J26:K26) -> 0 | M26: =IF(L26<=R26,L26*percDetr,R26*percDetr) -> 0 | N26: =IF('Computo-Massimali'!L26>0,L26/'Computo-Massimali'!L26,0) -> 0 | O26: =IF(F26>0,IF(ABS(F26-0.001)>'Computo-Massimali'!F26,">C.",""),"") ->  | P26: .. | Q26: Impianti climatizzazione con con CC)Caldaie a Condensazione | R26: ='Computo-Massimali'!T26 -> 0 | S26: ok | U26: =IF(L26<R26,L26,R26) -> 0 | W26: 0 | Y26: 0 | AA26: 0 | AG26: Impianti climatizzazione con con CC)Caldaie a Condensazione | AH26: ='Computo-Massimali'!BJ26 -> 0 | AI26: ='Computo-Massimali'!BK26 -> 0 | AJ26: ='Computo-Massimali'!BL26 -> 0 | AK26: ='Computo-Massimali'!BM26 -> 0 | AL26: ='Computo-Massimali'!BN26 -> 0 | AM26: =IF(ABS(SUM(AH26:AL26)-H26)>0.01,"err. Somma",IF(AH26>'Computo-Massimali'!BJ26,"Err.1",IF(AI26>'Computo-Massimali'!BK26,"Err.2",IF(AJ26>'Computo-Massimali'!BL26,"Err.3",IF(AK26>'Computo-Massimali'!BM26,"Err.4",IF(AL26>'Computo-Massimali'!BN26,"Err.5","")))))) ->  | AO26: 0 | AP26: 0 | AQ26: 0 | AR26: 0 | AT26: 0 | AV26: 0 | AX26: =IF($AQ14=AX$20,$AZ14,0) -> 0 | AZ26: 0
C27: ='Computo-Massimali'!C27 -> GA) Generatori aria calda Condensazione | F27: ='Computo-Massimali'!F27 -> 0 | G27: =IF('Computo-Massimali'!F27<>0,'Computo-Massimali'!G27*F27/'Computo-Massimali'!F27,0) -> 0 | H27: =SUM(F27:G27) -> 0 | I27: =IF(('Computo-Massimali'!F27+'Computo-Massimali'!G27)<>0,'Computo-Massimali'!I27/('Computo-Massimali'!F27+'Computo-Massimali'!G27)*H27,0) -> 0 | J27: =H27+I27 -> 0 | K27: =IF('Computo-Massimali'!F27<>0,'Computo-Massimali'!K27*F27/'Computo-Massimali'!F27,0) -> 0 | L27: =SUM(J27:K27) -> 0 | M27: =IF(L27<=R27,L27*percDetr,R27*percDetr) -> 0 | N27: =IF('Computo-Massimali'!L27>0,L27/'Computo-Massimali'!L27,0) -> 0 | O27: =IF(F27>0,IF(ABS(F27-0.001)>'Computo-Massimali'!F27,">C.",""),"") ->  | P27: .. | Q27: GA) Generatori aria calda Condensazione | R27: ='Computo-Massimali'!T27 -> 0 | S27: ok | U27: =IF(L30<>0,(L27/L30)*U30,0) -> 0 | W27: 0 | Y27: 0 | AA27: 0 | AG27: GA) Generatori aria calda Condensazione | AH27: ='Computo-Massimali'!BJ27 -> 0 | AI27: ='Computo-Massimali'!BK27 -> 0 | AJ27: ='Computo-Massimali'!BL27 -> 0 | AK27: ='Computo-Massimali'!BM27 -> 0 | AL27: ='Computo-Massimali'!BN27 -> 0 | AM27: =IF(ABS(SUM(AH27:AL27)-H27)>0.01,"err. Somma",IF(AH27>'Computo-Massimali'!BJ27,"Err.1",IF(AI27>'Computo-Massimali'!BK27,"Err.2",IF(AJ27>'Computo-Massimali'!BL27,"Err.3",IF(AK27>'Computo-Massimali'!BM27,"Err.4",IF(AL27>'Computo-Massimali'!BN27,"Err.5","")))))) ->  | AO27: 0 | AP27: 0 | AQ27: 0 | AR27: 0 | AT27: 0 | AV27: 0 | AX27: 0 | AZ27: 0
C28: ='Computo-Massimali'!C28 -> IB) Impianti Biomassa | F28: ='Computo-Massimali'!F28 -> 0 | G28: =IF('Computo-Massimali'!F28<>0,'Computo-Massimali'!G28*F28/'Computo-Massimali'!F28,0) -> 0 | H28: =SUM(F28:G28) -> 0 | I28: =IF(('Computo-Massimali'!F28+'Computo-Massimali'!G28)<>0,'Computo-Massimali'!I28/('Computo-Massimali'!F28+'Computo-Massimali'!G28)*H28,0) -> 0 | J28: =H28+I28 -> 0 | K28: =IF('Computo-Massimali'!F28<>0,'Computo-Massimali'!K28*F28/'Computo-Massimali'!F28,0) -> 0 | L28: =SUM(J28:K28) -> 0 | M28: =IF(L28<=R28,L28*percDetr,R28*percDetr) -> 0 | N28: =IF('Computo-Massimali'!L28>0,L28/'Computo-Massimali'!L28,0) -> 0 | O28: =IF(F28>0,IF(ABS(F28-0.001)>'Computo-Massimali'!F28,">C.",""),"") ->  | P28: .. | Q28: IB) Impianti Biomassa | R28: ='Computo-Massimali'!T28 -> 0 | S28: ok | U28: =IF(L30<>0,(L28/L30)*U30,0) -> 0 | W28: 0 | Y28: 0 | AA28: 0 | AG28: IB) Impianti Biomassa | AH28: ='Computo-Massimali'!BJ28 -> 0 | AI28: ='Computo-Massimali'!BK28 -> 0 | AJ28: ='Computo-Massimali'!BL28 -> 0 | AK28: ='Computo-Massimali'!BM28 -> 0 | AL28: ='Computo-Massimali'!BN28 -> 0 | AM28: =IF(ABS(SUM(AH28:AL28)-H28)>0.01,"err. Somma",IF(AH28>'Computo-Massimali'!BJ28,"Err.1",IF(AI28>'Computo-Massimali'!BK28,"Err.2",IF(AJ28>'Computo-Massimali'!BL28,"Err.3",IF(AK28>'Computo-Massimali'!BM28,"Err.4",IF(AL28>'Computo-Massimali'!BN28,"Err.5","")))))) ->  | AO28: 0 | AP28: 0 | AQ28: 0 | AR28: 0 | AT28: 0 | AV28: 0 | AX28: 0 | AZ28: 0
C29: ='Computo-Massimali'!C29 -> SA) Scaldacqua a pompa di calore | F29: ='Computo-Massimali'!F29 -> 0 | G29: =IF('Computo-Massimali'!F29<>0,'Computo-Massimali'!G29*F29/'Computo-Massimali'!F29,0) -> 0 | H29: =SUM(F29:G29) -> 0 | I29: =IF(('Computo-Massimali'!F29+'Computo-Massimali'!G29)<>0,'Computo-Massimali'!I29/('Computo-Massimali'!F29+'Computo-Massimali'!G29)*H29,0) -> 0 | J29: =H29+I29 -> 0 | K29: =IF('Computo-Massimali'!F29<>0,'Computo-Massimali'!K29*F29/'Computo-Massimali'!F29,0) -> 0 | L29: =SUM(J29:K29) -> 0 | M29: =IF(L29<=R29,L29*percDetr,R29*percDetr) -> 0 | N29: =IF('Computo-Massimali'!L29>0,L29/'Computo-Massimali'!L29,0) -> 0 | O29: =IF(F29>0,IF(ABS(F29-0.001)>'Computo-Massimali'!F29,">C.",""),"") ->  | P29: .. | Q29: =C29 -> SA) Scaldacqua a pompa di calore | R29: ='Computo-Massimali'!T29 -> 0 | S29: ok | U29: =IF(L30<>0,(L29/L30)*U30,0) -> 0 | W29: 0 | Y29: 0 | AA29: 0 | AG29: SA) Scaldacqua a pompa di calore | AH29: ='Computo-Massimali'!BJ29 -> 0 | AI29: ='Computo-Massimali'!BK29 -> 0 | AJ29: ='Computo-Massimali'!BL29 -> 0 | AK29: ='Computo-Massimali'!BM29 -> 0 | AL29: ='Computo-Massimali'!BN29 -> 0 | AM29: =IF(ABS(SUM(AH29:AL29)-H29)>0.01,"err. Somma",IF(AH29>'Computo-Massimali'!BJ29,"Err.1",IF(AI29>'Computo-Massimali'!BK29,"Err.2",IF(AJ29>'Computo-Massimali'!BL29,"Err.3",IF(AK29>'Computo-Massimali'!BM29,"Err.4",IF(AL29>'Computo-Massimali'!BN29,"Err.5","")))))) ->  | AO29: =IF($AQ17=AO$20,$AZ17,0) -> 0 | AP29: 0 | AQ29: 8485.380143 | AR29: 0 | AT29: 0 | AV29: 0 | AX29: 0 | AZ29: 0
C30: ='Computo-Massimali'!C30 -> Totali GA) IB) SA) | F30: =SUM(F27:F29) -> 0 | G30: 0 | H30: 0 | I30: 0 | J30: 0 | K30: 0 | L30: 0 | M30: 0 | N30: =IF('Computo-Massimali'!L30>0,L30/'Computo-Massimali'!L30,0) -> 0 | O30: =IF(F30>0,IF(ABS(F30-0.001)>'Computo-Massimali'!F30,">C.",""),"") ->  | Q30: =C30 -> Totali GA) IB) SA) | R30: ='Computo-Massimali'!T30 -> 0 | S30: ok | U30: =IF(L30<R30,L30,R30) -> 0 | W30: 0 | Y30: 0 | AA30: 0 | AG30: Totali GA) IB) SA) | AH30: =SUM(AH27:AH29) -> 0 | AI30: =SUM(AI27:AI29) -> 0 | AJ30: =SUM(AJ27:AJ29) -> 0 | AK30: =SUM(AK27:AK29) -> 0 | AL30: =SUM(AL27:AL29) -> 0 | AO30: =SUM(AO21:AO29) -> 29542.76458 | AP30: =SUM(AP21:AP29) -> 33690.45909 | AQ30: =SUM(AQ21:AQ29) -> 8485.380143 | AR30: =SUM(AR21:AR29) -> 0 | AT30: =SUM(AT21:AT29) -> 0 | AV30: =SUM(AV21:AV29) -> 0 | AX30: =SUM(AX21:AX29) -> 0 | AZ30: =SUM(AZ21:AZ29) -> 0 | BB30: =SUM(AO30:BA30) -> 71718.60381
C31: =CONCATENATE('Computo-Massimali'!C31," - ",'Computo-Massimali'!E31) -> CO) Sistemi di Microgenerazione - Celle a combustibile | F31: ='Computo-Massimali'!F31 -> 0 | G31: =IF('Computo-Massimali'!F31<>0,'Computo-Massimali'!G31*F31/'Computo-Massimali'!F31,0) -> 0 | H31: =SUM(F31:G31) -> 0 | I31: =IF(('Computo-Massimali'!F31+'Computo-Massimali'!G31)<>0,'Computo-Massimali'!I31/('Computo-Massimali'!F31+'Computo-Massimali'!G31)*H31,0) -> 0 | J31: =H31+I31 -> 0 | K31: =IF('Computo-Massimali'!F31<>0,'Computo-Massimali'!K31*F31/'Computo-Massimali'!F31,0) -> 0 | L31: =SUM(J31:K31) -> 0 | M31: =IF(L31<=R31,L31*percDetr,R31*percDetr) -> 0 | N31: =IF('Computo-Massimali'!L31>0,L31/'Computo-Massimali'!L31,0) -> 0 | O31: =IF(F31>0,IF(ABS(F31-0.001)>'Computo-Massimali'!F31,">C.",""),"") ->  | P31: .. | Q31: CO) Sistemi di Microgenerazione - Celle a combustibile | R31: ='Computo-Massimali'!T31 -> 0 | S31: ok | U31: 0 | W31: 0 | Y31: 0 | AA31: 0 | AG31: CO) Sistemi di Microgenerazione - Celle a combustibile | AH31: ='Computo-Massimali'!BJ31 -> 0 | AI31: ='Computo-Massimali'!BK31 -> 0 | AJ31: ='Computo-Massimali'!BL31 -> 0 | AK31: ='Computo-Massimali'!BM31 -> 0 | AL31: ='Computo-Massimali'!BN31 -> 0 | AM31: =IF(ABS(SUM(AH31:AL31)-H31)>0.01,"err. Somma",IF(AH31>'Computo-Massimali'!BJ31,"Err.1",IF(AI31>'Computo-Massimali'!BK31,"Err.2",IF(AJ31>'Computo-Massimali'!BL31,"Err.3",IF(AK31>'Computo-Massimali'!BM31,"Err.4",IF(AL31>'Computo-Massimali'!BN31,"Err.5","")))))) ->  | AO31: =IF($BB$30<>0,AO30/$BB$30,0) -> 0.4119260974 | AP31: =IF($BB$30<>0,AP30/$BB$30,0) -> 0.4697589928 | AQ31: =IF($BB$30<>0,AQ30/$BB$30,0) -> 0.1183149098 | AR31: =IF($BB$30<>0,AR30/$BB$30,0) -> 0 | AT31: =IF($BB$30<>0,AT30/$BB$30,0) -> 0 | AV31: =IF($BB$30<>0,AV30/$BB$30,0) -> 0 | AX31: =IF($BB$30<>0,AX30/$BB$30,0) -> 0 | AZ31: =IF($BB$30<>0,AZ30/$BB$30,0) -> 0
C32: ='Computo-Massimali'!C32 -> ST) Collettori Solari | E32: Piani Vetrati | F32: ='Computo-Massimali'!F32 -> 0 | G32: =IF('Computo-Massimali'!F32<>0,'Computo-Massimali'!G32*F32/'Computo-Massimali'!F32,0) -> 0 | H32: 0 | I32: =IF(('Computo-Massimali'!F32+'Computo-Massimali'!G32)<>0,'Computo-Massimali'!I32/('Computo-Massimali'!F32+'Computo-Massimali'!G32)*H32,0) -> 0 | J32: 0 | K32: =IF('Computo-Massimali'!F32<>0,'Computo-Massimali'!K32*F32/'Computo-Massimali'!F32,0) -> 0 | L32: 0 | M32: 0 | N32: =IF('Computo-Massimali'!L32>0,L32/'Computo-Massimali'!L32,0) -> 0 | O32: =IF(F32>0,IF(ABS(F32-0.001)>'Computo-Massimali'!F32,">C.",""),"") ->  | P32: .. | Q32: ST) Collettori Solari | R32: ='Computo-Massimali'!T32 -> 0 | S32: ok | U32: 0 | W32: 0 | Y32: 0 | AA32: 0 | AG32: ST) Collettori Solari | AH32: ='Computo-Massimali'!BJ32 -> 0 | AI32: ='Computo-Massimali'!BK32 -> 0 | AJ32: ='Computo-Massimali'!BL32 -> 0 | AK32: ='Computo-Massimali'!BM32 -> 0 | AL32: ='Computo-Massimali'!BN32 -> 0 | AM32: =IF(ABS(SUM(AH32:AL32)-H32)>0.01,"err. Somma",IF(AH32>'Computo-Massimali'!BJ32,"Err.1",IF(AI32>'Computo-Massimali'!BK32,"Err.2",IF(AJ32>'Computo-Massimali'!BL32,"Err.3",IF(AK32>'Computo-Massimali'!BM32,"Err.4",IF(AL32>'Computo-Massimali'!BN32,"Err.5","")))))) -> 
C33: ='Computo-Massimali'!C33 -> FV) Solare Fotovoltaico [ kWp ] | E33: 15.2 | F33: ='Computo-Massimali'!F33 -> 0 | G33: =IF('Computo-Massimali'!F33<>0,'Computo-Massimali'!G33*F33/'Computo-Massimali'!F33,0) -> 0 | H33: 0 | I33: =IF(('Computo-Massimali'!F33+'Computo-Massimali'!G33)<>0,'Computo-Massimali'!I33/('Computo-Massimali'!F33+'Computo-Massimali'!G33)*H33,0) -> 0 | J33: 0 | K33: =IF('Computo-Massimali'!F33<>0,'Computo-Massimali'!K33*F33/'Computo-Massimali'!F33,0) -> 0 | L33: 0 | M33: 0 | N33: =IF('Computo-Massimali'!L33>0,L33/'Computo-Massimali'!L33,0) -> 0 | O33: =IF(F33>0,IF(ABS(F33-0.001)>'Computo-Massimali'!F33,">C.",""),"") ->  | P33: .. | Q33: FV) Solare Fotovoltaico [ kWp ] | R33: ='Computo-Massimali'!T33 -> 36480 | S33: ok | U33: 0 | W33: 0 | Y33: 0 | AA33: 0 | AG33: FV) Solare Fotovoltaico [ kWp ] | AH33: ='Computo-Massimali'!BJ33 -> 0 | AI33: ='Computo-Massimali'!BK33 -> 0 | AJ33: ='Computo-Massimali'!BL33 -> 0 | AK33: ='Computo-Massimali'!BM33 -> 0 | AL33: ='Computo-Massimali'!BN33 -> 0 | AM33: =IF(ABS(SUM(AH33:AL33)-H33)>0.01,"err. Somma",IF(AH33>'Computo-Massimali'!BJ33,"Err.1",IF(AI33>'Computo-Massimali'!BK33,"Err.2",IF(AJ33>'Computo-Massimali'!BL33,"Err.3",IF(AK33>'Computo-Massimali'!BM33,"Err.4",IF(AL33>'Computo-Massimali'!BN33,"Err.5","")))))) -> 
C34: ='Computo-Massimali'!C34 -> AC) Sistema di Accumulo [ kWh ] | E34: 10 | F34: ='Computo-Massimali'!F34 -> 0 | G34: =IF('Computo-Massimali'!F34<>0,'Computo-Massimali'!G34*F34/'Computo-Massimali'!F34,0) -> 0 | H34: 0 | I34: =IF(('Computo-Massimali'!F34+'Computo-Massimali'!G34)<>0,'Computo-Massimali'!I34/('Computo-Massimali'!F34+'Computo-Massimali'!G34)*H34,0) -> 0 | J34: 0 | K34: =IF('Computo-Massimali'!F34<>0,'Computo-Massimali'!K34*F34/'Computo-Massimali'!F34,0) -> 0 | L34: 0 | M34: 0 | N34: =IF('Computo-Massimali'!L34>0,L34/'Computo-Massimali'!L34,0) -> 0 | O34: =IF(F34>0,IF(ABS(F34-0.001)>'Computo-Massimali'!F34,">C.",""),"") ->  | P34: .. | Q34: AC) Sistema di Accumulo [ kWh ] | R34: ='Computo-Massimali'!T34 -> 10000 | S34: ok | U34: 0 | W34: 0 | Y34: 0 | AA34: 0 | AG34: AC) Sistema di Accumulo [ kWh ] | AH34: ='Computo-Massimali'!BJ34 -> 0 | AI34: ='Computo-Massimali'!BK34 -> 0 | AJ34: ='Computo-Massimali'!BL34 -> 0 | AK34: ='Computo-Massimali'!BM34 -> 0 | AL34: ='Computo-Massimali'!BN34 -> 0 | AM34: =IF(ABS(SUM(AH34:AL34)-H34)>0.01,"err. Somma",IF(AH34>'Computo-Massimali'!BJ34,"Err.1",IF(AI34>'Computo-Massimali'!BK34,"Err.2",IF(AJ34>'Computo-Massimali'!BL34,"Err.3",IF(AK34>'Computo-Massimali'!BM34,"Err.4",IF(AL34>'Computo-Massimali'!BN34,"Err.5","")))))) -> 
C35: ='Computo-Massimali'!C35 -> CR) Colonnine di Ricarica [ N. ] | E35: 1 | F35: ='Computo-Massimali'!F35 -> 0 | G35: =IF('Computo-Massimali'!F35<>0,'Computo-Massimali'!G35*F35/'Computo-Massimali'!F35,0) -> 0 | H35: 0 | I35: =IF(('Computo-Massimali'!F35+'Computo-Massimali'!G35)<>0,'Computo-Massimali'!I35/('Computo-Massimali'!F35+'Computo-Massimali'!G35)*H35,0) -> 0 | J35: 0 | K35: =IF('Computo-Massimali'!F35<>0,'Computo-Massimali'!K35*F35/'Computo-Massimali'!F35,0) -> 0 | L35: 0 | M35: 0 | N35: =IF('Computo-Massimali'!L35>0,L35/'Computo-Massimali'!L35,0) -> 0 | O35: =IF(F35>0,IF(ABS(F35-0.001)>'Computo-Massimali'!F35,">C.",""),"") ->  | P35: .. | Q35: CR) Colonnine di Ricarica [ N. ] | R35: ='Computo-Massimali'!T35 -> 1500 | S35: ok | U35: 0 | W35: 0 | Y35: 0 | AA35: 0 | AG35: CR) Colonnine di Ricarica [ N. ] | AH35: ='Computo-Massimali'!BJ35 -> 0 | AI35: ='Computo-Massimali'!BK35 -> 0 | AJ35: ='Computo-Massimali'!BL35 -> 0 | AK35: ='Computo-Massimali'!BM35 -> 0 | AL35: ='Computo-Massimali'!BN35 -> 0 | AM35: =IF(ABS(SUM(AH35:AL35)-H35)>0.01,"err. Somma",IF(AH35>'Computo-Massimali'!BJ35,"Err.1",IF(AI35>'Computo-Massimali'!BK35,"Err.2",IF(AJ35>'Computo-Massimali'!BL35,"Err.3",IF(AK35>'Computo-Massimali'!BM35,"Err.4",IF(AL35>'Computo-Massimali'!BN35,"Err.5","")))))) -> 
C36: ='Computo-Massimali'!C36 -> EBA) Eliminazione Barriere architettoniche | F36: ='Computo-Massimali'!F36 -> 0 | G36: =IF('Computo-Massimali'!F36<>0,'Computo-Massimali'!G36*F36/'Computo-Massimali'!F36,0) -> 0 | H36: 0 | I36: =IF(('Computo-Massimali'!F36+'Computo-Massimali'!G36)<>0,'Computo-Massimali'!I36/('Computo-Massimali'!F36+'Computo-Massimali'!G36)*H36,0) -> 0 | J36: 0 | K36: =IF('Computo-Massimali'!F36<>0,'Computo-Massimali'!K36*F36/'Computo-Massimali'!F36,0) -> 0 | L36: 0 | M36: 0 | N36: =IF('Computo-Massimali'!L36>0,L36/'Computo-Massimali'!L36,0) -> 0 | O36: =IF(F36>0,IF(ABS(F36-0.001)>'Computo-Massimali'!F36,">C.",""),"") ->  | P36: .. | Q36: EBA) Eliminazione Barriere architettoniche | R36: ='Computo-Massimali'!T36 -> 288000 | S36: ok | U36: 0 | W36: 0 | Y36: 0 | AA36: 0 | AG36: EBA) Eliminazione Barriere architettoniche | AH36: ='Computo-Massimali'!BJ36 -> 0 | AI36: ='Computo-Massimali'!BK36 -> 0 | AJ36: ='Computo-Massimali'!BL36 -> 0 | AK36: ='Computo-Massimali'!BM36 -> 0 | AL36: ='Computo-Massimali'!BN36 -> 0 | AM36: =IF(ABS(SUM(AH36:AL36)-H36)>0.01,"err. Somma",IF(AH36>'Computo-Massimali'!BJ36,"Err.1",IF(AI36>'Computo-Massimali'!BK36,"Err.2",IF(AJ36>'Computo-Massimali'!BL36,"Err.3",IF(AK36>'Computo-Massimali'!BM36,"Err.4",IF(AL36>'Computo-Massimali'!BN36,"Err.5","")))))) -> 
C37: ='Computo-Massimali'!C37 -> Totale Interventi Trainati Parti Comuni : | F37: =SUM(F24:F26)+SUM(F30:F36) -> 14950.53 | G37: =SUM(G24:G26)+SUM(G30:G36) -> 0 | H37: =SUM(H24:H26)+SUM(H30:H36) -> 14950.53 | I37: 1495.053 | J37: 16445.583 | K37: 4349.776886 | L37: 20795.35989 | M37: 14556.75192 | N37: =IF('Computo-Massimali'!L37>0,L37/'Computo-Massimali'!L37,0) -> 1 | O37: =IF(F37>0,IF(ABS(F37-0.001)>'Computo-Massimali'!F37,">C.",""),"") ->  | R37: =C37 -> Totale Interventi Trainati Parti Comuni : | U37: =U24+U25+U26+SUM(U30:V36) -> 20795.35989 | W37: =W24+W25+W26+SUM(W30:X36) -> 0 | Y37: =Y24+Y25+Y26+SUM(Y30:Z36) -> 11511.9081 | AA37: =AA24+AA25+AA26+SUM(AA30:AB36) -> 3044.84382 | AG37: =R37 -> Totale Interventi Trainati Parti Comuni : | AH37: =AH24+AH25+AH26+SUM(AH30:AH36) -> 14950.53 | AI37: =AI24+AI25+AI26+SUM(AI30:AI36) -> 0 | AJ37: =AJ24+AJ25+AJ26+SUM(AJ30:AJ36) -> 0 | AK37: =AK24+AK25+AK26+SUM(AK30:AK36) -> 0 | AL37: =AL24+AL25+AL26+SUM(AL30:AL36) -> 0
C40: =CONCATENATE("INTERVENTI TRAINATI Unità Immobiliare N.1",IF(UnitàImmobiliari!B3<>"", " - Foglio " & UnitàImmobiliari!B3 & " P.lla " & UnitàImmobiliari!C3 & " Sub. " & UnitàImmobiliari!D3,""),IF(UnitàImmobiliari!I3<>""," @ ",""),IFERROR(INDEX(Committenti!B3:D1017,MATCH(UnitàImmobiliari!I3,Committenti!D3:D1017,0),1),"")," ",IFERROR(INDEX(Committenti!B3:D1017,MATCH(UnitàImmobiliari!I3,Committenti!D3:D1017,0),2),"")) -> INTERVENTI TRAINATI Unità Immobiliare N.1 - Foglio 302 P.lla 200 Sub. 1 @ Prato Pietro | O40: .. | Q40: =CONCATENATE("Verifica Massimali di Spesa ",C40) -> Verifica Massimali di Spesa INTERVENTI TRAINATI Unità Immobiliare N.1 - Foglio 302 P.lla 200 Sub. 1 @ Prato Pietro | AG40: ='Computo-Massimali'!BI40 -> Ripartizione tra le Imprese - Imponibile Lavori INTERVENTI TRAINATI Unità Immobiliare N.1 - Foglio 302 P.lla 200 Sub. 1 @ Prato Pietro | AO40: Ripartizione Spese Tecniche / Prestazione Professionale [ SAL. N.1 - ALTRI INTERVENTI ]
C41: Interventi | F41: Importo Lavori | G41: Incidenza Sicurezza | H41: Imponibile | I41: Iva | J41: Importo c.iva | K41: Spese tecniche | L41: Totale | M41: =$M$8 -> Credito Spettante 70% Spesa Ammessa | N41: %SAL | Q41: Interventi | R41: Massimale spesa | S41: Verifica Max | U41: Spesa Ammessa | W41: Quota Eccedente Spesa Ammessa | Y41: =$Y$8 -> Credito Spettante 70% Spesa Ammessa Quota Imprese | Quota Tecnici | AG41: Interventi | AH41: =IF('Dati Gen'!$B$38<>"",'Dati Gen'!$B$38,"") -> Impresa1 | AI41: =IF('Dati Gen'!$B$39<>"",'Dati Gen'!$B$39,"") ->  | AJ41: =IF('Dati Gen'!$B$40<>"",'Dati Gen'!$B$40,"") ->  | AK41: =IF('Dati Gen'!$B$41<>"",'Dati Gen'!$B$41,"") ->  | AL41: =IF('Dati Gen'!$B$42<>"",'Dati Gen'!$B$42,"") ->  | AO41: Lavoro | AQ41: Tecnico | AR41: Onorario | AT41: C.Cassa | AV41: Imponibile | AX41: IVA | AZ41: Totale | BB41: Applica Sconto in Fattura | BC41: =IF(ABS(SUM(AZ42:AZ50)-AZ51)>0.01,CONCATENATE("Errore: ",CHAR(10),"Somma Ripartizione Totale Altri Interventi =",ROUND(SUM(AZ42:AZ50),2), " €. <> ",CHAR(10),"Totale Spese Tecniche =",ROUND(AZ51,2)," €."),"") -> 
C42: ='Computo-Massimali'!C42 -> PV) Isolamento pareti perimetrali | E42: ='Computo-Massimali'!E42 -> Esterno | F42: ='Computo-Massimali'!F42 -> 0 | G42: =IF('Computo-Massimali'!F42<>0,'Computo-Massimali'!G42*F42/'Computo-Massimali'!F42,0) -> 0 | H42: =SUM(F42:G42) -> 0 | I42: =IF(('Computo-Massimali'!F42+'Computo-Massimali'!G42)<>0,'Computo-Massimali'!I42/('Computo-Massimali'!F42+'Computo-Massimali'!G42)*H42,0) -> 0 | J42: =H42+I42 -> 0 | K42: =IF('Computo-Massimali'!F42<>0,'Computo-Massimali'!K42*F42/'Computo-Massimali'!F42,0) -> 0 | L42: =SUM(J42:K42) -> 0 | M42: =IF(L42<=R42,L42*percDetr,R42*percDetr) -> 0 | N42: =IF('Computo-Massimali'!L42>0,L42/'Computo-Massimali'!L42,0) -> 0 | O42: =IF(F42>0,IF(ABS(F42-0.001)>'Computo-Massimali'!F42,">C.",""),"") ->  | P42: .. | Q42: =C42 -> PV) Isolamento pareti perimetrali | R42: ='Computo-Massimali'!T42 -> 0 | S42: =IF(L42>R42,"ko","ok") -> ok | U42: =IF(L46<>0,(L42/L46)*U46,0) -> 0 | W42: =IF(L42>R42,L42-R42,0) -> 0 | Y42: =IF(M42<>0,J42*M42/L42,0) -> 0 | AA42: =IF(M42<>0,K42*M42/L42,0) -> 0 | AG42: =Q42 -> PV) Isolamento pareti perimetrali | AH42: ='Computo-Massimali'!BJ42 -> 0 | AI42: ='Computo-Massimali'!BK42 -> 0 | AJ42: ='Computo-Massimali'!BL42 -> 0 | AK42: ='Computo-Massimali'!BM42 -> 0 | AL42: ='Computo-Massimali'!BN42 -> 0 | AM42: =IF(ABS(SUM(AH42:AL42)-H42)>0.01,"err. Somma",IF(AH42>'Computo-Massimali'!BJ42,"Err.1",IF(AI42>'Computo-Massimali'!BK42,"Err.2",IF(AJ42>'Computo-Massimali'!BL42,"Err.3",IF(AK42>'Computo-Massimali'!BM42,"Err.4",IF(AL42>'Computo-Massimali'!BN42,"Err.5","")))))) ->  | AO42: =IF('Dati Gen'!$B$25<>"",'Dati Gen'!$B$25,"") -> Progettazione Architettonica | AQ42: =IF('Dati Gen'!$C$25<>"",'Dati Gen'!$C$25,"") -> Architetto | AR42: =AV42/(1+AT42) -> 0 | AT42: ='Dati Gen'!G25 -> 0.04 | AU42: =AR42*AT42 -> 0 | AV42: =AZ42/(1+AX42) -> 0 | AX42: ='Dati Gen'!J25 -> 0.22 | AY42: =AX42*(AR42+AU42) -> 0 | AZ42: =IF('Dati Gen'!$M$36<>0,$AZ$51*'Dati Gen'!M25/'Dati Gen'!$M$36,0) -> 0 | BB42: =IF(AQ42<>"",VLOOKUP(AQ42,'Dati Gen'!$B$44:$D$51,3,0),"") -> NO
C43: ='Computo-Massimali'!C43 -> PO) Isolamento coperture | E43: ='Computo-Massimali'!E43 -> Esterno | F43: ='Computo-Massimali'!F43 -> 0 | G43: =IF('Computo-Massimali'!F43<>0,'Computo-Massimali'!G43*F43/'Computo-Massimali'!F43,0) -> 0 | H43: =SUM(F43:G43) -> 0 | I43: =IF(('Computo-Massimali'!F43+'Computo-Massimali'!G43)<>0,'Computo-Massimali'!I43/('Computo-Massimali'!F43+'Computo-Massimali'!G43)*H43,0) -> 0 | J43: =H43+I43 -> 0 | K43: =IF('Computo-Massimali'!F43<>0,'Computo-Massimali'!K43*F43/'Computo-Massimali'!F43,0) -> 0 | L43: =SUM(J43:K43) -> 0 | M43: =IF(L43<=R43,L43*percDetr,R43*percDetr) -> 0 | N43: =IF('Computo-Massimali'!L43>0,L43/'Computo-Massimali'!L43,0) -> 0 | O43: =IF(F43>0,IF(ABS(F43-0.001)>'Computo-Massimali'!F43,">C.",""),"") ->  | P43: .. | Q43: PO) Isolamento coperture | R43: ='Computo-Massimali'!T43 -> 0 | S43: ok | U43: =IF(L46<>0,(L43/L46)*U46,0) -> 0 | W43: 0 | Y43: 0 | AA43: 0 | AG43: PO) Isolamento coperture | AH43: ='Computo-Massimali'!BJ43 -> 0 | AI43: ='Computo-Massimali'!BK43 -> 0 | AJ43: ='Computo-Massimali'!BL43 -> 0 | AK43: ='Computo-Massimali'!BM43 -> 0 | AL43: ='Computo-Massimali'!BN43 -> 0 | AM43: =IF(ABS(SUM(AH43:AL43)-H43)>0.01,"err. Somma",IF(AH43>'Computo-Massimali'!BJ43,"Err.1",IF(AI43>'Computo-Massimali'!BK43,"Err.2",IF(AJ43>'Computo-Massimali'!BL43,"Err.3",IF(AK43>'Computo-Massimali'!BM43,"Err.4",IF(AL43>'Computo-Massimali'!BN43,"Err.5","")))))) ->  | AO43: =IF('Dati Gen'!$B$26<>"",'Dati Gen'!$B$26,"") -> Progettazione Termotecnica, APE | AQ43: =IF('Dati Gen'!$C$26<>"",'Dati Gen'!$C$26,"") -> Ingegnere1 | AR43: 0 | AT43: ='Dati Gen'!G26 -> 0.04 | AU43: 0 | AV43: =AZ43/(1+AX43) -> 0 | AX43: ='Dati Gen'!J26 -> 0.22 | AY43: =(AR43+AU43)*AX43 -> 0 | AZ43: =IF('Dati Gen'!$M$36<>0,$AZ$51*'Dati Gen'!M26/'Dati Gen'!$M$36,0) -> 0 | BB43: =IF(AQ43<>"",VLOOKUP(AQ43,'Dati Gen'!$B$44:$D$51,3,0),"") -> NO
C44: ='Computo-Massimali'!C44 -> PS) Isolamento Pavimenti | E44: ='Computo-Massimali'!E44 -> Esterno | F44: ='Computo-Massimali'!F44 -> 15405.58806 | G44: =IF('Computo-Massimali'!F44<>0,'Computo-Massimali'!G44*F44/'Computo-Massimali'!F44,0) -> 0 | H44: =SUM(F44:G44) -> 15405.58806 | I44: =IF(('Computo-Massimali'!F44+'Computo-Massimali'!G44)<>0,'Computo-Massimali'!I44/('Computo-Massimali'!F44+'Computo-Massimali'!G44)*H44,0) -> 1540.558806 | J44: =H44+I44 -> 16946.14686 | K44: =IF('Computo-Massimali'!F44<>0,'Computo-Massimali'!K44*F44/'Computo-Massimali'!F44,0) -> 4482.173598 | L44: =SUM(J44:K44) -> 21428.32046 | M44: =IF(L44<=R44,L44*percDetr,R44*percDetr) -> 14999.82432 | N44: =IF('Computo-Massimali'!L44>0,L44/'Computo-Massimali'!L44,0) -> 1 | O44: =IF(F44>0,IF(ABS(F44-0.001)>'Computo-Massimali'!F44,">C.",""),"") ->  | P44: .. | Q44: PS) Isolamento Pavimenti | R44: ='Computo-Massimali'!T44 -> 21428.32046 | S44: ok | U44: =IF(L46<>0,(L44/L46)*U46,0) -> 21428.32046 | W44: 0 | Y44: 11862.3028 | AA44: 3137.521519 | AG44: PS) Isolamento Pavimenti | AH44: ='Computo-Massimali'!BJ44 -> 15405.58806 | AI44: ='Computo-Massimali'!BK44 -> 0 | AJ44: ='Computo-Massimali'!BL44 -> 0 | AK44: ='Computo-Massimali'!BM44 -> 0 | AL44: ='Computo-Massimali'!BN44 -> 0 | AM44: =IF(ABS(SUM(AH44:AL44)-H44)>0.01,"err. Somma",IF(AH44>'Computo-Massimali'!BJ44,"Err.1",IF(AI44>'Computo-Massimali'!BK44,"Err.2",IF(AJ44>'Computo-Massimali'!BL44,"Err.3",IF(AK44>'Computo-Massimali'!BM44,"Err.4",IF(AL44>'Computo-Massimali'!BN44,"Err.5","")))))) ->  | AO44: =IF('Dati Gen'!$B$27<>"",'Dati Gen'!$B$27,"") -> Direzione Lavori, CSE | AQ44: =IF('Dati Gen'!$C$27<>"",'Dati Gen'!$C$27,"") -> Architetto | AR44: 0 | AT44: ='Dati Gen'!G27 -> 0.04 | AU44: 0 | AV44: =AZ44/(1+AX44) -> 0 | AX44: ='Dati Gen'!J27 -> 0.22 | AY44: 0 | AZ44: =IF('Dati Gen'!$M$36<>0,$AZ$51*'Dati Gen'!M27/'Dati Gen'!$M$36,0) -> 0 | BB44: =IF(AQ44<>"",VLOOKUP(AQ44,'Dati Gen'!$B$44:$D$51,3,0),"") -> NO
C45: ='Computo-Massimali'!C45 -> IN) Serramenti con chiusure oscuranti | E45: ='Computo-Massimali'!E45 -> Zone D, E ed F | F45: ='Computo-Massimali'!F45 -> 15246.73157 | G45: =IF('Computo-Massimali'!F45<>0,'Computo-Massimali'!G45*F45/'Computo-Massimali'!F45,0) -> 0 | H45: =SUM(F45:G45) -> 15246.73157 | I45: =IF(('Computo-Massimali'!F45+'Computo-Massimali'!G45)<>0,'Computo-Massimali'!I45/('Computo-Massimali'!F45+'Computo-Massimali'!G45)*H45,0) -> 1524.673157 | J45: =H45+I45 -> 16771.40473 | K45: =IF('Computo-Massimali'!F45<>0,'Computo-Massimali'!K45*F45/'Computo-Massimali'!F45,0) -> 4435.955151 | L45: =SUM(J45:K45) -> 21207.35988 | M45: =IF(L45<=R45,L45*percDetr,R45*percDetr) -> 14845.15191 | N45: =IF('Computo-Massimali'!L45>0,L45/'Computo-Massimali'!L45,0) -> 1 | O45: =IF(F45>0,IF(ABS(F45-0.001)>'Computo-Massimali'!F45,">C.",""),"") ->  | P45: .. | Q45: IN) Serramenti con chiusure oscuranti | R45: ='Computo-Massimali'!T45 -> 21207.36163 | S45: ok | U45: =IF(L46<>0,(L45/L46)*U46,0) -> 21207.35988 | W45: 0 | Y45: 11739.98331 | AA45: 3105.168606 | AG45: IN) Serramenti con chiusure oscuranti | AH45: ='Computo-Massimali'!BJ45 -> 15246.73 | AI45: ='Computo-Massimali'!BK45 -> 0 | AJ45: ='Computo-Massimali'!BL45 -> 0 | AK45: ='Computo-Massimali'!BM45 -> 0 | AL45: ='Computo-Massimali'!BN45 -> 0 | AM45: =IF(ABS(SUM(AH45:AL45)-H45)>0.01,"err. Somma",IF(AH45>'Computo-Massimali'!BJ45,"Err.1",IF(AI45>'Computo-Massimali'!BK45,"Err.2",IF(AJ45>'Computo-Massimali'!BL45,"Err.3",IF(AK45>'Computo-Massimali'!BM45,"Err.4",IF(AL45>'Computo-Massimali'!BN45,"Err.5","")))))) ->  | AO45: =IF('Dati Gen'!$B$28<>"",'Dati Gen'!$B$28,"") -> DL., Computo, Contabilità, Asseverazione | AQ45: =IF('Dati Gen'!$C$28<>"",'Dati Gen'!$C$28,"") -> Ingegnere1 | AR45: 0 | AT45: ='Dati Gen'!G28 -> 0.04 | AU45: 0 | AV45: 0 | AX45: ='Dati Gen'!J28 -> 0.22 | AY45: 0 | AZ45: =IF('Dati Gen'!$M$36<>0,$AZ$51*'Dati Gen'!M28/'Dati Gen'!$M$36,0) -> 0 | BB45: =IF(AQ45<>"",VLOOKUP(AQ45,'Dati Gen'!$B$44:$D$51,3,0),"") -> NO
C46: ='Computo-Massimali'!C46 -> Totali Isolamento PV) PO) PS) e IN | F46: =SUM(F42:F45) -> 30652.31963 | G46: =SUM(G42:G45) -> 0 | H46: 30652.31963 | I46: 3065.231963 | J46: 33717.55159 | K46: =SUM(K42:K45) -> 8918.128749 | L46: 42635.68034 | M46: 29844.97624 | N46: =IF('Computo-Massimali'!L46>0,L46/'Computo-Massimali'!L46,0) -> 1 | O46: =IF(F46>0,IF(ABS(F46-0.001)>'Computo-Massimali'!F46,">C.",""),"") ->  | Q46: Totali Isolamento PV) PO) PS) e IN | R46: ='Computo-Massimali'!T46 -> 42635.68209 | S46: ok | U46: =IF(L46<R46,L46,R46) -> 42635.68034 | W46: 0 | Y46: 23602.28611 | AA46: 6242.690125 | AG46: Totali Isolamento PV) PO) PS) e IN | AH46: =SUM(AH42:AH45) -> 30652.31806 | AI46: =SUM(AI42:AI45) -> 0 | AJ46: =SUM(AJ42:AJ45) -> 0 | AK46: =SUM(AK42:AK45) -> 0 | AL46: =SUM(AL42:AL45) -> 0 | AO46: =IF('Dati Gen'!$B$29<>"",'Dati Gen'!$B$29,"") ->  | AQ46: =IF('Dati Gen'!$C$29<>"",'Dati Gen'!$C$29,"") ->  | AR46: 0 | AT46: ='Dati Gen'!G29 -> 0 | AU46: 0 | AV46: 0 | AX46: ='Dati Gen'!J29 -> 0.22 | AY46: 0 | AZ46: =IF('Dati Gen'!$M$36<>0,$AZ$51*'Dati Gen'!M29/'Dati Gen'!$M$36,0) -> 0 | BB46: =IF(AQ46<>"",VLOOKUP(AQ46,'Dati Gen'!$B$44:$D$51,3,0),"") -> 
C47: ='Computo-Massimali'!C47 -> SS) Schermature solari e chiusure oscuranti | F47: ='Computo-Massimali'!F47 -> 0 | G47: =IF('Computo-Massimali'!F47<>0,'Computo-Massimali'!G47*F47/'Computo-Massimali'!F47,0) -> 0 | H47: =SUM(F47:G47) -> 0 | I47: =IF(('Computo-Massimali'!F47+'Computo-Massimali'!G47)<>0,'Computo-Massimali'!I47/('Computo-Massimali'!F47+'Computo-Massimali'!G47)*H47,0) -> 0 | J47: =H47+I47 -> 0 | K47: =IF('Computo-Massimali'!F47<>0,'Computo-Massimali'!K47*F47/'Computo-Massimali'!F47,0) -> 0 | L47: =SUM(J47:K47) -> 0 | M47: =IF(L47<=R47,L47*percDetr,R47*percDetr) -> 0 | N47: =IF('Computo-Massimali'!L47>0,L47/'Computo-Massimali'!L47,0) -> 0 | O47: =IF(F47>0,IF(ABS(F47-0.001)>'Computo-Massimali'!F47,">C.",""),"") ->  | P47: .. | Q47: SS) Schermature solari e chiusure oscuranti | R47: ='Computo-Massimali'!T47 -> 0 | S47: ok | U47: =IF(L47<R47,L47,R47) -> 0 | W47: 0 | Y47: 0 | AA47: 0 | AG47: SS) Schermature solari e chiusure oscuranti | AH47: ='Computo-Massimali'!BJ47 -> 0 | AI47: ='Computo-Massimali'!BK47 -> 0 | AJ47: ='Computo-Massimali'!BL47 -> 0 | AK47: ='Computo-Massimali'!BM47 -> 0 | AL47: ='Computo-Massimali'!BN47 -> 0 | AM47: =IF(ABS(SUM(AH47:AL47)-H47)>0.01,"err. Somma",IF(AH47>'Computo-Massimali'!BJ47,"Err.1",IF(AI47>'Computo-Massimali'!BK47,"Err.2",IF(AJ47>'Computo-Massimali'!BL47,"Err.3",IF(AK47>'Computo-Massimali'!BM47,"Err.4",IF(AL47>'Computo-Massimali'!BN47,"Err.5","")))))) ->  | AO47: =IF('Dati Gen'!$B$30<>"",'Dati Gen'!$B$30,"") ->  | AQ47: =IF('Dati Gen'!$C$30<>"",'Dati Gen'!$C$30,"") ->  | AR47: 0 | AT47: ='Dati Gen'!G30 -> 0.04 | AU47: 0 | AV47: =AZ47/(1+AX47) -> 0 | AX47: ='Dati Gen'!J30 -> 0.22 | AY47: 0 | AZ47: =IF('Dati Gen'!$M$36<>0,$AZ$51*'Dati Gen'!M30/'Dati Gen'!$M$36,0) -> 0 | BB47: =IF(AQ47<>"",VLOOKUP(AQ47,'Dati Gen'!$B$44:$D$51,3,0),"") -> 
C48: =CONCATENATE('Computo-Massimali'!C48," con ",'Computo-Massimali'!D48) -> Impianti climatizzazione con con PC)Altro | F48: ='Computo-Massimali'!F48 -> 16739.21819 | G48: =IF('Computo-Massimali'!F48<>0,'Computo-Massimali'!G48*F48/'Computo-Massimali'!F48,0) -> 0 | H48: =SUM(F48:G48) -> 16739.21819 | I48: =IF(('Computo-Massimali'!F48+'Computo-Massimali'!G48)<>0,'Computo-Massimali'!I48/('Computo-Massimali'!F48+'Computo-Massimali'!G48)*H48,0) -> 1673.921819 | J48: =H48+I48 -> 18413.14001 | K48: =IF('Computo-Massimali'!F48<>0,'Computo-Massimali'!K48*F48/'Computo-Massimali'!F48,0) -> 4870.186165 | L48: =SUM(J48:K48) -> 23283.32617 | M48: =IF(L48<=R48,L48*percDetr,R48*percDetr) -> 16298.32832 | N48: =IF('Computo-Massimali'!L48>0,L48/'Computo-Massimali'!L48,0) -> 1 | O48: =IF(F48>0,IF(ABS(F48-0.001)>'Computo-Massimali'!F48,">C.",""),"") ->  | P48: .. | Q48: Impianti climatizzazione con con PC)Altro | R48: ='Computo-Massimali'!T48 -> 23283.32617 | S48: ok | U48: =IF(L50<>0,(L48/L50)*U50,0) -> 23283.32617 | W48: 0 | Y48: 12889.198 | AA48: 3409.130315 | AG48: Impianti climatizzazione con con PC)Altro | AH48: ='Computo-Massimali'!BJ48 -> 16739.22 | AI48: ='Computo-Massimali'!BK48 -> 0 | AJ48: ='Computo-Massimali'!BL48 -> 0 | AK48: ='Computo-Massimali'!BM48 -> 0 | AL48: ='Computo-Massimali'!BN48 -> 0 | AM48: =IF(ABS(SUM(AH48:AL48)-H48)>0.01,"err. Somma",IF(AH48>'Computo-Massimali'!BJ48,"Err.1",IF(AI48>'Computo-Massimali'!BK48,"Err.2",IF(AJ48>'Computo-Massimali'!BL48,"Err.3",IF(AK48>'Computo-Massimali'!BM48,"Err.4",IF(AL48>'Computo-Massimali'!BN48,"Err.5","")))))) ->  | AO48: =IF('Dati Gen'!$B$31<>"",'Dati Gen'!$B$31,"") ->  | AQ48: =IF('Dati Gen'!$C$31<>"",'Dati Gen'!$C$31,"") ->  | AR48: 0 | AT48: ='Dati Gen'!G31 -> 0.04 | AU48: 0 | AV48: 0 | AX48: ='Dati Gen'!J31 -> 0.22 | AY48: 0 | AZ48: =IF('Dati Gen'!$M$36<>0,$AZ$51*'Dati Gen'!M31/'Dati Gen'!$M$36,0) -> 0 | BB48: =IF(AQ48<>"",VLOOKUP(AQ48,'Dati Gen'!$B$44:$D$51,3,0),"") -> 
C49: ='Computo-Massimali'!C49 -> SA) Scaldacqua a pompa di calore | F49: ='Computo-Massimali'!F49 -> 0 | G49: =IF('Computo-Massimali'!F49<>0,'Computo-Massimali'!G49*F49/'Computo-Massimali'!F49,0) -> 0 | H49: =SUM(F49:G49) -> 0 | I49: =IF(('Computo-Massimali'!F49+'Computo-Massimali'!G49)<>0,'Computo-Massimali'!I49/('Computo-Massimali'!F49+'Computo-Massimali'!G49)*H49,0) -> 0 | J49: =H49+I49 -> 0 | K49: =IF('Computo-Massimali'!F49<>0,'Computo-Massimali'!K49*F49/'Computo-Massimali'!F49,0) -> 0 | L49: =SUM(J49:K49) -> 0 | M49: =IF(L49<=R49,L49*percDetr,R49*percDetr) -> 0 | N49: =IF('Computo-Massimali'!L49>0,L49/'Computo-Massimali'!L49,0) -> 0 | O49: =IF(F49>0,IF(ABS(F49-0.001)>'Computo-Massimali'!F49,">C.",""),"") ->  | P49: .. | Q49: SA) Scaldacqua a pompa di calore | R49: ='Computo-Massimali'!T49 -> 0 | S49: ok | U49: =IF(L50<>0,(L49/L50)*U50,0) -> 0 | W49: 0 | Y49: 0 | AA49: 0 | AG49: SA) Scaldacqua a pompa di calore | AH49: ='Computo-Massimali'!BJ49 -> 0 | AI49: ='Computo-Massimali'!BK49 -> 0 | AJ49: ='Computo-Massimali'!BL49 -> 0 | AK49: ='Computo-Massimali'!BM49 -> 0 | AL49: ='Computo-Massimali'!BN49 -> 0 | AM49: =IF(ABS(SUM(AH49:AL49)-H49)>0.01,"err. Somma",IF(AH49>'Computo-Massimali'!BJ49,"Err.1",IF(AI49>'Computo-Massimali'!BK49,"Err.2",IF(AJ49>'Computo-Massimali'!BL49,"Err.3",IF(AK49>'Computo-Massimali'!BM49,"Err.4",IF(AL49>'Computo-Massimali'!BN49,"Err.5","")))))) ->  | AO49: =IF('Dati Gen'!$B$32<>"",'Dati Gen'!$B$32,"") ->  | AQ49: =IF('Dati Gen'!$C$32<>"",'Dati Gen'!$C$32,"") ->  | AR49: 0 | AT49: ='Dati Gen'!G32 -> 0.04 | AU49: 0 | AV49: 0 | AX49: ='Dati Gen'!J32 -> 0.22 | AY49: 0 | AZ49: =IF('Dati Gen'!$M$36<>0,$AZ$51*'Dati Gen'!M32/'Dati Gen'!$M$36,0) -> 0 | BB49: =IF(AQ49<>"",VLOOKUP(AQ49,'Dati Gen'!$B$44:$D$51,3,0),"") -> 
C50: ='Computo-Massimali'!C50 -> Totali Impianti ed SA) | F50: =SUM(F48:F49) -> 16739.21819 | G50: =SUM(G48:G49) -> 0 | H50: 16739.21819 | I50: 1673.921819 | J50: 18413.14001 | K50: =SUM(K48:K49) -> 4870.186165 | L50: 23283.32617 | M50: =SUM(M48:M49) -> 16298.32832 | N50: =IF('Computo-Massimali'!L50>0,L50/'Computo-Massimali'!L50,0) -> 1 | O50: =IF(F50>0,IF(ABS(F50-0.001)>'Computo-Massimali'!F50,">C.",""),"") ->  | Q50: Totali Impianti ed SA) | R50: ='Computo-Massimali'!T50 -> 23283.32617 | S50: ok | U50: =IF(L50<R50,L50,R50) -> 23283.32617 | W50: 0 | Y50: 12889.198 | AA50: 3409.130315 | AG50: Totali Impianti ed SA) | AH50: =SUM(AH48:AH49) -> 16739.22 | AI50: =SUM(AI48:AI49) -> 0 | AJ50: =SUM(AJ48:AJ49) -> 0 | AK50: =SUM(AK48:AK49) -> 0 | AL50: =SUM(AL48:AL49) -> 0 | AO50: =IF('Dati Gen'!$B$35<>"",'Dati Gen'!$B$35,"") -> Visto Conformità | AQ50: =IF('Dati Gen'!$C$35<>"",'Dati Gen'!$C$35,"") -> Consulente | AR50: 0 | AT50: ='Dati Gen'!G35 -> 0.04 | AU50: 0 | AV50: =AZ50/(1+AX50) -> 0 | AX50: ='Dati Gen'!J35 -> 0.22 | AY50: 0 | AZ50: =IF('Dati Gen'!$M$36<>0,$AZ$51*'Dati Gen'!M35/'Dati Gen'!$M$36,0) -> 0 | BB50: =IF(AQ50<>"",VLOOKUP(AQ50,'Dati Gen'!$B$44:$D$51,3,0),"") -> NO
C51: =CONCATENATE('Computo-Massimali'!C51," - ",'Computo-Massimali'!E51) -> CO) Sistemi di Microgenerazione - Celle a combustibile | F51: ='Computo-Massimali'!F51 -> 0 | G51: =IF('Computo-Massimali'!F51<>0,'Computo-Massimali'!G51*F51/'Computo-Massimali'!F51,0) -> 0 | H51: =SUM(F51:G51) -> 0 | I51: =IF(('Computo-Massimali'!F51+'Computo-Massimali'!G51)<>0,'Computo-Massimali'!I51/('Computo-Massimali'!F51+'Computo-Massimali'!G51)*H51,0) -> 0 | J51: =H51+I51 -> 0 | K51: =IF('Computo-Massimali'!F51<>0,'Computo-Massimali'!K51*F51/'Computo-Massimali'!F51,0) -> 0 | L51: =SUM(J51:K51) -> 0 | M51: =IF(L51<=R51,L51*percDetr,R51*percDetr) -> 0 | N51: =IF('Computo-Massimali'!L51>0,L51/'Computo-Massimali'!L51,0) -> 0 | O51: =IF(F51>0,IF(ABS(F51-0.001)>'Computo-Massimali'!F51,">C.",""),"") ->  | P51: .. | Q51: CO) Sistemi di Microgenerazione - Celle a combustibile | R51: ='Computo-Massimali'!T51 -> 0 | S51: ok | U51: 0 | W51: 0 | Y51: 0 | AA51: 0 | AG51: CO) Sistemi di Microgenerazione - Celle a combustibile | AH51: ='Computo-Massimali'!BJ51 -> 0 | AI51: ='Computo-Massimali'!BK51 -> 0 | AJ51: ='Computo-Massimali'!BL51 -> 0 | AK51: ='Computo-Massimali'!BM51 -> 0 | AL51: ='Computo-Massimali'!BN51 -> 0 | AM51: =IF(ABS(SUM(AH51:AL51)-H51)>0.01,"err. Somma",IF(AH51>'Computo-Massimali'!BJ51,"Err.1",IF(AI51>'Computo-Massimali'!BK51,"Err.2",IF(AJ51>'Computo-Massimali'!BL51,"Err.3",IF(AK51>'Computo-Massimali'!BM51,"Err.4",IF(AL51>'Computo-Massimali'!BN51,"Err.5","")))))) ->  | AR51: =SUM(AR42:AS50) -> 0 | AT51: =SUM(AU42:AU50) -> 0 | AV51: =SUM(AV42:AW50) -> 0 | AY51: =SUM(AY42:AY50) -> 0 | AZ51: =K169 -> 0
C52: ='Computo-Massimali'!C52 -> IB) Generatori a Biomassa | F52: ='Computo-Massimali'!F52 -> 0 | G52: =IF('Computo-Massimali'!F52<>0,'Computo-Massimali'!G52*F52/'Computo-Massimali'!F52,0) -> 0 | H52: 0 | I52: =IF(('Computo-Massimali'!F52+'Computo-Massimali'!G52)<>0,'Computo-Massimali'!I52/('Computo-Massimali'!F52+'Computo-Massimali'!G52)*H52,0) -> 0 | J52: 0 | K52: =IF('Computo-Massimali'!F52<>0,'Computo-Massimali'!K52*F52/'Computo-Massimali'!F52,0) -> 0 | L52: 0 | M52: 0 | N52: =IF('Computo-Massimali'!L52>0,L52/'Computo-Massimali'!L52,0) -> 0 | O52: =IF(F52>0,IF(ABS(F52-0.001)>'Computo-Massimali'!F52,">C.",""),"") ->  | P52: .. | Q52: IB) Generatori a Biomassa | R52: ='Computo-Massimali'!T52 -> 0 | S52: ok | U52: 0 | W52: 0 | Y52: 0 | AA52: 0 | AG52: IB) Generatori a Biomassa | AH52: ='Computo-Massimali'!BJ52 -> 0 | AI52: ='Computo-Massimali'!BK52 -> 0 | AJ52: ='Computo-Massimali'!BL52 -> 0 | AK52: ='Computo-Massimali'!BM52 -> 0 | AL52: ='Computo-Massimali'!BN52 -> 0 | AM52: =IF(ABS(SUM(AH52:AL52)-H52)>0.01,"err. Somma",IF(AH52>'Computo-Massimali'!BJ52,"Err.1",IF(AI52>'Computo-Massimali'!BK52,"Err.2",IF(AJ52>'Computo-Massimali'!BL52,"Err.3",IF(AK52>'Computo-Massimali'!BM52,"Err.4",IF(AL52>'Computo-Massimali'!BN52,"Err.5","")))))) ->  | AO52: Ripartizione Spese Tecniche / Professionista : SAL. N.2 - ALTRI INTERVENTI
C53: ='Computo-Massimali'!C53 -> BA) Building Automation | F53: ='Computo-Massimali'!F53 -> 0 | G53: =IF('Computo-Massimali'!F53<>0,'Computo-Massimali'!G53*F53/'Computo-Massimali'!F53,0) -> 0 | H53: 0 | I53: =IF(('Computo-Massimali'!F53+'Computo-Massimali'!G53)<>0,'Computo-Massimali'!I53/('Computo-Massimali'!F53+'Computo-Massimali'!G53)*H53,0) -> 0 | J53: 0 | K53: =IF('Computo-Massimali'!F53<>0,'Computo-Massimali'!K53*F53/'Computo-Massimali'!F53,0) -> 0 | L53: 0 | M53: 0 | N53: =IF('Computo-Massimali'!L53>0,L53/'Computo-Massimali'!L53,0) -> 0 | O53: =IF(F53>0,IF(ABS(F53-0.001)>'Computo-Massimali'!F53,">C.",""),"") ->  | P53: .. | Q53: BA) Building Automation | R53: ='Computo-Massimali'!T53 -> 0 | S53: ok | U53: 0 | W53: 0 | Y53: 0 | AA53: 0 | AG53: BA) Building Automation | AH53: ='Computo-Massimali'!BJ53 -> 0 | AI53: ='Computo-Massimali'!BK53 -> 0 | AJ53: ='Computo-Massimali'!BL53 -> 0 | AK53: ='Computo-Massimali'!BM53 -> 0 | AL53: ='Computo-Massimali'!BN53 -> 0 | AM53: =IF(ABS(SUM(AH53:AL53)-H53)>0.01,"err. Somma",IF(AH53>'Computo-Massimali'!BJ53,"Err.1",IF(AI53>'Computo-Massimali'!BK53,"Err.2",IF(AJ53>'Computo-Massimali'!BL53,"Err.3",IF(AK53>'Computo-Massimali'!BM53,"Err.4",IF(AL53>'Computo-Massimali'!BN53,"Err.5","")))))) ->  | AO53: =IF('Dati Gen'!$B$44<>"",'Dati Gen'!$B$44,"") -> Ingegnere1 | AP53: =IF('Dati Gen'!$B$45<>"",'Dati Gen'!$B$45,"") -> Architetto | AQ53: =IF('Dati Gen'!$B$46<>"",'Dati Gen'!$B$46,"") -> Consulente | AR53: =IF('Dati Gen'!$B$47<>"",'Dati Gen'!$B$47,"") ->  | AT53: =IF('Dati Gen'!$B$48<>"",'Dati Gen'!$B$48,"") ->  | AV53: =IF('Dati Gen'!$B$49<>"",'Dati Gen'!$B$49,"") ->  | AX53: =IF('Dati Gen'!$B$50<>"",'Dati Gen'!$B$50,"") ->  | AZ53: =IF('Dati Gen'!$B$51<>"",'Dati Gen'!$B$51,"") -> 
C54: ='Computo-Massimali'!C54 -> ST) Collettori Solari | E54: ='Computo-Massimali'!E54 -> Scoperti | F54: ='Computo-Massimali'!F54 -> 0 | G54: =IF('Computo-Massimali'!F54<>0,'Computo-Massimali'!G54*F54/'Computo-Massimali'!F54,0) -> 0 | H54: 0 | I54: =IF(('Computo-Massimali'!F54+'Computo-Massimali'!G54)<>0,'Computo-Massimali'!I54/('Computo-Massimali'!F54+'Computo-Massimali'!G54)*H54,0) -> 0 | J54: 0 | K54: =IF('Computo-Massimali'!F54<>0,'Computo-Massimali'!K54*F54/'Computo-Massimali'!F54,0) -> 0 | L54: 0 | M54: 0 | N54: =IF('Computo-Massimali'!L54>0,L54/'Computo-Massimali'!L54,0) -> 0 | O54: =IF(F54>0,IF(ABS(F54-0.001)>'Computo-Massimali'!F54,">C.",""),"") ->  | P54: .. | Q54: ST) Collettori Solari | R54: ='Computo-Massimali'!T54 -> 0 | S54: ok | U54: 0 | W54: 0 | Y54: 0 | AA54: 0 | AG54: ST) Collettori Solari | AH54: ='Computo-Massimali'!BJ54 -> 0 | AI54: ='Computo-Massimali'!BK54 -> 0 | AJ54: ='Computo-Massimali'!BL54 -> 0 | AK54: ='Computo-Massimali'!BM54 -> 0 | AL54: ='Computo-Massimali'!BN54 -> 0 | AM54: =IF(ABS(SUM(AH54:AL54)-H54)>0.01,"err. Somma",IF(AH54>'Computo-Massimali'!BJ54,"Err.1",IF(AI54>'Computo-Massimali'!BK54,"Err.2",IF(AJ54>'Computo-Massimali'!BL54,"Err.3",IF(AK54>'Computo-Massimali'!BM54,"Err.4",IF(AL54>'Computo-Massimali'!BN54,"Err.5","")))))) ->  | AO54: =IF($AQ42=AO$53,$AZ42,0) -> 0 | AP54: 0 | AQ54: 0 | AR54: 0 | AT54: =IF($AQ42=AT$53,$AZ42,0) -> 0 | AV54: =IF($AQ42=AV$53,$AZ42,0) -> 0 | AX54: =IF($AQ42=AX$53,$AZ42,0) -> 0 | AZ54: =IF($AQ42=AZ$53,$AZ42,0) -> 0
C55: ='Computo-Massimali'!C55 -> FV) Solare Fotovoltaico [ kWp ] | E55: ='Computo-Massimali'!E55 -> 2.444904 | F55: ='Computo-Massimali'!F55 -> 6609.781332 | G55: =IF('Computo-Massimali'!F55<>0,'Computo-Massimali'!G55*F55/'Computo-Massimali'!F55,0) -> 0 | H55: 6609.781332 | I55: =IF(('Computo-Massimali'!F55+'Computo-Massimali'!G55)<>0,'Computo-Massimali'!I55/('Computo-Massimali'!F55+'Computo-Massimali'!G55)*H55,0) -> 660.9781332 | J55: 7270.759465 | K55: =IF('Computo-Massimali'!F55<>0,'Computo-Massimali'!K55*F55/'Computo-Massimali'!F55,0) -> 1923.08059 | L55: 9193.840056 | M55: 4107.43872 | N55: =IF('Computo-Massimali'!L55>0,L55/'Computo-Massimali'!L55,0) -> 1 | O55: =IF(F55>0,IF(ABS(F55-0.001)>'Computo-Massimali'!F55,">C.",""),"") ->  | P55: .. | Q55: FV) Solare Fotovoltaico [ kWp ] | R55: ='Computo-Massimali'!T55 -> 5867.7696 | S55: ko | U55: 5867.7696 | W55: 3326.070456 | Y55: 3248.2835 | AA55: 859.1552203 | AG55: FV) Solare Fotovoltaico [ kWp ] | AH55: ='Computo-Massimali'!BJ55 -> 6609.78 | AI55: ='Computo-Massimali'!BK55 -> 0 | AJ55: ='Computo-Massimali'!BL55 -> 0 | AK55: ='Computo-Massimali'!BM55 -> 0 | AL55: ='Computo-Massimali'!BN55 -> 0 | AM55: =IF(ABS(SUM(AH55:AL55)-H55)>0.01,"err. Somma",IF(AH55>'Computo-Massimali'!BJ55,"Err.1",IF(AI55>'Computo-Massimali'!BK55,"Err.2",IF(AJ55>'Computo-Massimali'!BL55,"Err.3",IF(AK55>'Computo-Massimali'!BM55,"Err.4",IF(AL55>'Computo-Massimali'!BN55,"Err.5","")))))) ->  | AO55: 0 | AP55: 0 | AQ55: 0 | AR55: 0 | AT55: 0 | AV55: 0 | AX55: 0 | AZ55: 0
C56: ='Computo-Massimali'!C56 -> AC) Sistema di Accumulo [ kWh ] | E56: ='Computo-Massimali'!E56 -> 8.98128 | F56: ='Computo-Massimali'!F56 -> 7619.535 | G56: =IF('Computo-Massimali'!F56<>0,'Computo-Massimali'!G56*F56/'Computo-Massimali'!F56,0) -> 0 | H56: 7619.535 | I56: =IF(('Computo-Massimali'!F56+'Computo-Massimali'!G56)<>0,'Computo-Massimali'!I56/('Computo-Massimali'!F56+'Computo-Massimali'!G56)*H56,0) -> 761.9535 | J56: 8381.4885 | K56: =IF('Computo-Massimali'!F56<>0,'Computo-Massimali'!K56*F56/'Computo-Massimali'!F56,0) -> 2216.863029 | L56: 10598.35153 | M56: 6286.896 | N56: =IF('Computo-Massimali'!L56>0,L56/'Computo-Massimali'!L56,0) -> 1 | O56: =IF(F56>0,IF(ABS(F56-0.001)>'Computo-Massimali'!F56,">C.",""),"") ->  | P56: .. | Q56: AC) Sistema di Accumulo [ kWh ] | R56: ='Computo-Massimali'!T56 -> 8981.28 | S56: ko | U56: 8981.28 | W56: 1617.071529 | Y56: 4971.8625 | AA56: 1315.0335 | AG56: AC) Sistema di Accumulo [ kWh ] | AH56: ='Computo-Massimali'!BJ56 -> 7619.54 | AI56: ='Computo-Massimali'!BK56 -> 0 | AJ56: ='Computo-Massimali'!BL56 -> 0 | AK56: ='Computo-Massimali'!BM56 -> 0 | AL56: ='Computo-Massimali'!BN56 -> 0 | AM56: =IF(ABS(SUM(AH56:AL56)-H56)>0.01,"err. Somma",IF(AH56>'Computo-Massimali'!BJ56,"Err.1",IF(AI56>'Computo-Massimali'!BK56,"Err.2",IF(AJ56>'Computo-Massimali'!BL56,"Err.3",IF(AK56>'Computo-Massimali'!BM56,"Err.4",IF(AL56>'Computo-Massimali'!BN56,"Err.5","")))))) ->  | AO56: 0 | AP56: 0 | AQ56: 0 | AR56: 0 | AT56: 0 | AV56: 0 | AX56: 0 | AZ56: 0
C57: ='Computo-Massimali'!C57 -> CR) Colonnine di Ricarica | E57: ='Computo-Massimali'!E57 -> 1 | F57: ='Computo-Massimali'!F57 -> 0 | G57: =IF('Computo-Massimali'!F57<>0,'Computo-Massimali'!G57*F57/'Computo-Massimali'!F57,0) -> 0 | H57: 0 | I57: =IF(('Computo-Massimali'!F57+'Computo-Massimali'!G57)<>0,'Computo-Massimali'!I57/('Computo-Massimali'!F57+'Computo-Massimali'!G57)*H57,0) -> 0 | J57: 0 | K57: =IF('Computo-Massimali'!F57<>0,'Computo-Massimali'!K57*F57/'Computo-Massimali'!F57,0) -> 0 | L57: 0 | M57: 0 | N57: =IF('Computo-Massimali'!L57>0,L57/'Computo-Massimali'!L57,0) -> 0 | O57: =IF(F57>0,IF(ABS(F57-0.001)>'Computo-Massimali'!F57,">C.",""),"") ->  | P57: .. | Q57: CR) Colonnine di Ricarica | R57: ='Computo-Massimali'!T57 -> 1500 | S57: ok | U57: 0 | W57: 0 | Y57: 0 | AA57: 0 | AG57: CR) Colonnine di Ricarica | AH57: ='Computo-Massimali'!BJ57 -> 0 | AI57: ='Computo-Massimali'!BK57 -> 0 | AJ57: ='Computo-Massimali'!BL57 -> 0 | AK57: ='Computo-Massimali'!BM57 -> 0 | AL57: ='Computo-Massimali'!BN57 -> 0 | AM57: =IF(ABS(SUM(AH57:AL57)-H57)>0.01,"err. Somma",IF(AH57>'Computo-Massimali'!BJ57,"Err.1",IF(AI57>'Computo-Massimali'!BK57,"Err.2",IF(AJ57>'Computo-Massimali'!BL57,"Err.3",IF(AK57>'Computo-Massimali'!BM57,"Err.4",IF(AL57>'Computo-Massimali'!BN57,"Err.5","")))))) ->  | AO57: 0 | AP57: 0 | AQ57: 0 | AR57: 0 | AT57: 0 | AV57: 0 | AX57: 0 | AZ57: 0
C58: EBA) Eliminazione Barriere architettoniche | F58: ='Computo-Massimali'!F58 -> 0 | G58: =IF('Computo-Massimali'!F58<>0,'Computo-Massimali'!G58*F58/'Computo-Massimali'!F58,0) -> 0 | H58: 0 | I58: =IF(('Computo-Massimali'!F58+'Computo-Massimali'!G58)<>0,'Computo-Massimali'!I58/('Computo-Massimali'!F58+'Computo-Massimali'!G58)*H58,0) -> 0 | J58: 0 | K58: =IF('Computo-Massimali'!F58<>0,'Computo-Massimali'!K58*F58/'Computo-Massimali'!F58,0) -> 0 | L58: 0 | M58: 0 | N58: =IF('Computo-Massimali'!L58>0,L58/'Computo-Massimali'!L58,0) -> 0 | O58: =IF(F58>0,IF(ABS(F58-0.001)>'Computo-Massimali'!F58,">C.",""),"") ->  | P58: .. | Q58: EBA) Eliminazione Barriere architettoniche | R58: ='Computo-Massimali'!T58 -> 96000 | S58: ok | U58: 0 | W58: 0 | Y58: 0 | AA58: 0 | AG58: EBA) Eliminazione Barriere architettoniche | AH58: ='Computo-Massimali'!BJ58 -> 0 | AI58: ='Computo-Massimali'!BK58 -> 0 | AJ58: ='Computo-Massimali'!BL58 -> 0 | AK58: ='Computo-Massimali'!BM58 -> 0 | AL58: ='Computo-Massimali'!BN58 -> 0 | AM58: =IF(ABS(SUM(AH58:AL58)-H58)>0.01,"err. Somma",IF(AH58>'Computo-Massimali'!BJ58,"Err.1",IF(AI58>'Computo-Massimali'!BK58,"Err.2",IF(AJ58>'Computo-Massimali'!BL58,"Err.3",IF(AK58>'Computo-Massimali'!BM58,"Err.4",IF(AL58>'Computo-Massimali'!BN58,"Err.5","")))))) ->  | AO58: 0 | AP58: 0 | AQ58: 0 | AR58: 0 | AT58: 0 | AV58: 0 | AX58: 0 | AZ58: 0
C59: Totale Interventi Trainati U.Imm.N.1 | F59: =IF(Titolare!$B$16="Versione Demo",0,F46+F47+SUM(F50:F58)) -> 0 | G59: =G46+G47+SUM(G50:G58) -> 0 | H59: 61620.85415 | I59: 6162.085415 | J59: 67782.93956 | K59: 17928.25853 | L59: 85711.1981 | M59: 56537.63928 | N59: =IF('Computo-Massimali'!L59>0,L59/'Computo-Massimali'!L59,0) -> 1 | O59: =IF(F59>0,IF(ABS(F59-0.001)>'Computo-Massimali'!F59,">C.",""),"") ->  | R59: =C59 -> Totale Interventi Trainati U.Imm.N.1 | U59: =U46+U47+SUM(U50:V58) -> 80768.05611 | W59: =W46+W47+SUM(W50:X58) -> 4943.141985 | Y59: =Y46+Y47+SUM(Y50:Z58) -> 44711.63012 | AA59: =AA46+AA47+SUM(AA50:AB58) -> 11826.00916 | AG59: =R59 -> Totale Interventi Trainati U.Imm.N.1 | AH59: =AH46+AH47+SUM(AH50:AH58) -> 61620.85806 | AI59: =AI46+AI47+SUM(AI50:AI58) -> 0 | AJ59: =AJ46+AJ47+SUM(AJ50:AJ58) -> 0 | AK59: =AK46+AK47+SUM(AK50:AK58) -> 0 | AL59: =AL46+AL47+SUM(AL50:AL58) -> 0 | AO59: 0 | AP59: 0 | AQ59: 0 | AR59: 0 | AT59: 0 | AV59: 0 | AX59: 0 | AZ59: 0
AO60: 0 | AP60: 0 | AQ60: 0 | AR60: 0 | AT60: 0 | AV60: 0 | AX60: 0 | AZ60: 0
AO61: 0 | AP61: 0 | AQ61: 0 | AR61: 0 | AT61: 0 | AV61: 0 | AX61: 0 | AZ61: 0
AO62: 0 | AP62: 0 | AQ62: 0 | AR62: 0 | AT62: 0 | AV62: 0 | AX62: 0 | AZ62: 0
AO63: =SUM(AO54:AO62) -> 0 | AP63: =SUM(AP54:AP62) -> 0 | AQ63: =SUM(AQ54:AQ62) -> 0 | AR63: =SUM(AR54:AR62) -> 0 | AT63: =SUM(AT54:AT62) -> 0 | AV63: =SUM(AV54:AV62) -> 0 | AX63: =SUM(AX54:AX62) -> 0 | AZ63: =SUM(AZ54:AZ62) -> 0 | BB63: =SUM(AO63:BA63) -> 0
AO64: =IF($BB$63<>0,AO63/$BB$63,0) -> 0 | AP64: =IF($BB$63<>0,AP63/$BB$63,0) -> 0 | AQ64: =IF($BB$63<>0,AQ63/$BB$63,0) -> 0 | AR64: =IF($BB$63<>0,AR63/$BB$63,0) -> 0 | AT64: =IF($BB$63<>0,AT63/$BB$63,0) -> 0 | AV64: =IF($BB$63<>0,AV63/$BB$63,0) -> 0 | AX64: =IF($BB$63<>0,AX63/$BB$63,0) -> 0 | AZ64: =IF($BB$63<>0,AZ63/$BB$63,0) -> 0
C70: Note
C78: =CONCATENATE("INTERVENTI TRAINATI Unità Immobiliare N.2",IF(UnitàImmobiliari!B4<>"", " - Foglio " & UnitàImmobiliari!B4 & " P.lla " & UnitàImmobiliari!C4 & " Sub. " & UnitàImmobiliari!D4,""),IF(UnitàImmobiliari!I4<>""," @ ",""),IFERROR(INDEX(Committenti!B3:D1017,MATCH(UnitàImmobiliari!I4,Committenti!D3:D1017,0),1),"")," ",IFERROR(INDEX(Committenti!B3:D1017,MATCH(UnitàImmobiliari!I4,Committenti!D3:D1017,0),2),"")) -> INTERVENTI TRAINATI Unità Immobiliare N.2 - Foglio 302 P.lla 201 Sub. 1 @ Prato Pietro | O78: .. | Q78: =CONCATENATE("Verifica Massimali di Spesa ",C78) -> Verifica Massimali di Spesa INTERVENTI TRAINATI Unità Immobiliare N.2 - Foglio 302 P.lla 201 Sub. 1 @ Prato Pietro | AG78: ='Computo-Massimali'!BI78 -> Ripartizione tra le Imprese - Imponibile Lavori INTERVENTI TRAINATI Unità Immobiliare N.2 - Foglio 302 P.lla 201 Sub. 1 @ Prato Pietro
C79: Interventi | F79: Importo Lavori | G79: Incidenza Sicurezza | H79: Imponibile | I79: Iva | J79: Importo c.iva | K79: Spese tecniche | L79: Totale | M79: =$M$8 -> Credito Spettante 70% Spesa Ammessa | N79: %SAL | Q79: Interventi | R79: Massimale spesa | S79: Verifica Max | U79: Spesa Ammessa | W79: Quota Eccedente Spesa Ammessa | Y79: =$Y$8 -> Credito Spettante 70% Spesa Ammessa Quota Imprese | Quota Tecnici | AG79: Interventi | AH79: =IF('Dati Gen'!$B$38<>"",'Dati Gen'!$B$38,"") -> Impresa1 | AI79: =IF('Dati Gen'!$B$39<>"",'Dati Gen'!$B$39,"") ->  | AJ79: =IF('Dati Gen'!$B$40<>"",'Dati Gen'!$B$40,"") ->  | AK79: =IF('Dati Gen'!$B$41<>"",'Dati Gen'!$B$41,"") ->  | AL79: =IF('Dati Gen'!$B$42<>"",'Dati Gen'!$B$42,"") -> 
C80: ='Computo-Massimali'!C80 -> PV) Isolamento pareti perimetrali | E80: ='Computo-Massimali'!E80 -> Esterno | F80: ='Computo-Massimali'!F80 -> 0 | G80: =IF('Computo-Massimali'!F80<>0,'Computo-Massimali'!G80*F80/'Computo-Massimali'!F80,0) -> 0 | H80: =SUM(F80:G80) -> 0 | I80: =IF(('Computo-Massimali'!F80+'Computo-Massimali'!G80)<>0,'Computo-Massimali'!I80/('Computo-Massimali'!F80+'Computo-Massimali'!G80)*H80,0) -> 0 | J80: =H80+I80 -> 0 | K80: =IF('Computo-Massimali'!F80<>0,'Computo-Massimali'!K80*F80/'Computo-Massimali'!F80,0) -> 0 | L80: =SUM(J80:K80) -> 0 | M80: =IF(L80<=R80,L80*percDetr,R80*percDetr) -> 0 | N80: =IF('Computo-Massimali'!L80>0,L80/'Computo-Massimali'!L80,0) -> 0 | O80: =IF(F80>0,IF(ABS(F80-0.001)>'Computo-Massimali'!F80,">C.",""),"") ->  | P80: .. | Q80: =C80 -> PV) Isolamento pareti perimetrali | R80: ='Computo-Massimali'!T80 -> 0 | S80: =IF(L80>R80,"ko","ok") -> ok | U80: =IF(L84<>0,(L80/L84)*U84,0) -> 0 | W80: =IF(L80>R80,L80-R80,0) -> 0 | Y80: =IF(M80<>0,J80*M80/L80,0) -> 0 | AA80: =IF(M80<>0,K80*M80/L80,0) -> 0 | AG80: =Q80 -> PV) Isolamento pareti perimetrali | AH80: ='Computo-Massimali'!BJ80 -> 0 | AI80: ='Computo-Massimali'!BK80 -> 0 | AJ80: ='Computo-Massimali'!BL80 -> 0 | AK80: ='Computo-Massimali'!BM80 -> 0 | AL80: ='Computo-Massimali'!BN80 -> 0 | AM80: =IF(ABS(SUM(AH80:AL80)-H80)>0.01,"err. Somma",IF(AH80>'Computo-Massimali'!BJ80,"Err.1",IF(AI80>'Computo-Massimali'!BK80,"Err.2",IF(AJ80>'Computo-Massimali'!BL80,"Err.3",IF(AK80>'Computo-Massimali'!BM80,"Err.4",IF(AL80>'Computo-Massimali'!BN80,"Err.5","")))))) -> 
C81: ='Computo-Massimali'!C81 -> PO) Isolamento coperture | E81: ='Computo-Massimali'!E81 -> Esterno | F81: ='Computo-Massimali'!F81 -> 0 | G81: =IF('Computo-Massimali'!F81<>0,'Computo-Massimali'!G81*F81/'Computo-Massimali'!F81,0) -> 0 | H81: =SUM(F81:G81) -> 0 | I81: =IF(('Computo-Massimali'!F81+'Computo-Massimali'!G81)<>0,'Computo-Massimali'!I81/('Computo-Massimali'!F81+'Computo-Massimali'!G81)*H81,0) -> 0 | J81: =H81+I81 -> 0 | K81: =IF('Computo-Massimali'!F81<>0,'Computo-Massimali'!K81*F81/'Computo-Massimali'!F81,0) -> 0 | L81: =SUM(J81:K81) -> 0 | M81: =IF(L81<=R81,L81*percDetr,R81*percDetr) -> 0 | N81: =IF('Computo-Massimali'!L81>0,L81/'Computo-Massimali'!L81,0) -> 0 | O81: =IF(F81>0,IF(ABS(F81-0.001)>'Computo-Massimali'!F81,">C.",""),"") ->  | P81: .. | Q81: PO) Isolamento coperture | R81: ='Computo-Massimali'!T81 -> 0 | S81: ok | U81: =IF(L84<>0,(L81/L84)*U84,0) -> 0 | W81: 0 | Y81: 0 | AA81: 0 | AG81: PO) Isolamento coperture | AH81: ='Computo-Massimali'!BJ81 -> 0 | AI81: ='Computo-Massimali'!BK81 -> 0 | AJ81: ='Computo-Massimali'!BL81 -> 0 | AK81: ='Computo-Massimali'!BM81 -> 0 | AL81: ='Computo-Massimali'!BN81 -> 0 | AM81: =IF(ABS(SUM(AH81:AL81)-H81)>0.01,"err. Somma",IF(AH81>'Computo-Massimali'!BJ81,"Err.1",IF(AI81>'Computo-Massimali'!BK81,"Err.2",IF(AJ81>'Computo-Massimali'!BL81,"Err.3",IF(AK81>'Computo-Massimali'!BM81,"Err.4",IF(AL81>'Computo-Massimali'!BN81,"Err.5","")))))) -> 
C82: ='Computo-Massimali'!C82 -> PS) Isolamento Pavimenti | E82: ='Computo-Massimali'!E82 -> Esterno | F82: ='Computo-Massimali'!F82 -> 4950.01584 | G82: =IF('Computo-Massimali'!F82<>0,'Computo-Massimali'!G82*F82/'Computo-Massimali'!F82,0) -> 0 | H82: =SUM(F82:G82) -> 4950.01584 | I82: =IF(('Computo-Massimali'!F82+'Computo-Massimali'!G82)<>0,'Computo-Massimali'!I82/('Computo-Massimali'!F82+'Computo-Massimali'!G82)*H82,0) -> 495.001584 | J82: =H82+I82 -> 5445.017424 | K82: =IF('Computo-Massimali'!F82<>0,'Computo-Massimali'!K82*F82/'Computo-Massimali'!F82,0) -> 1440.180682 | L82: =SUM(J82:K82) -> 6885.198106 | M82: =IF(L82<=R82,L82*percDetr,R82*percDetr) -> 4819.638674 | N82: =IF('Computo-Massimali'!L82>0,L82/'Computo-Massimali'!L82,0) -> 1 | O82: =IF(F82>0,IF(ABS(F82-0.001)>'Computo-Massimali'!F82,">C.",""),"") ->  | P82: .. | Q82: PS) Isolamento Pavimenti | R82: ='Computo-Massimali'!T82 -> 12330.21553 | S82: ok | U82: =IF(L84<>0,(L82/L84)*U84,0) -> 6885.198106 | W82: 0 | Y82: 3811.512197 | AA82: 1008.126477 | AG82: PS) Isolamento Pavimenti | AH82: ='Computo-Massimali'!BJ82 -> 4950.02 | AI82: ='Computo-Massimali'!BK82 -> 0 | AJ82: ='Computo-Massimali'!BL82 -> 0 | AK82: ='Computo-Massimali'!BM82 -> 0 | AL82: ='Computo-Massimali'!BN82 -> 0 | AM82: =IF(ABS(SUM(AH82:AL82)-H82)>0.01,"err. Somma",IF(AH82>'Computo-Massimali'!BJ82,"Err.1",IF(AI82>'Computo-Massimali'!BK82,"Err.2",IF(AJ82>'Computo-Massimali'!BL82,"Err.3",IF(AK82>'Computo-Massimali'!BM82,"Err.4",IF(AL82>'Computo-Massimali'!BN82,"Err.5","")))))) -> 
C83: ='Computo-Massimali'!C83 -> IN) Serramenti con chiusure oscuranti | E83: ='Computo-Massimali'!E83 -> Zone D, E ed F | F83: ='Computo-Massimali'!F83 -> 4606.101808 | G83: =IF('Computo-Massimali'!F83<>0,'Computo-Massimali'!G83*F83/'Computo-Massimali'!F83,0) -> 0 | H83: =SUM(F83:G83) -> 4606.101808 | I83: =IF(('Computo-Massimali'!F83+'Computo-Massimali'!G83)<>0,'Computo-Massimali'!I83/('Computo-Massimali'!F83+'Computo-Massimali'!G83)*H83,0) -> 460.6101808 | J83: =H83+I83 -> 5066.711989 | K83: =IF('Computo-Massimali'!F83<>0,'Computo-Massimali'!K83*F83/'Computo-Massimali'!F83,0) -> 1340.12073 | L83: =SUM(J83:K83) -> 6406.832719 | M83: =IF(L83<=R83,L83*percDetr,R83*percDetr) -> 4484.782903 | N83: =IF('Computo-Massimali'!L83>0,L83/'Computo-Massimali'!L83,0) -> 1 | O83: =IF(F83>0,IF(ABS(F83-0.001)>'Computo-Massimali'!F83,">C.",""),"") ->  | P83: .. | Q83: IN) Serramenti con chiusure oscuranti | R83: ='Computo-Massimali'!T83 -> 11473.54472 | S83: ok | U83: =IF(L84<>0,(L83/L84)*U84,0) -> 6406.832719 | W83: 0 | Y83: 3546.698392 | AA83: 938.084511 | AG83: IN) Serramenti con chiusure oscuranti | AH83: ='Computo-Massimali'!BJ83 -> 4606.1 | AI83: ='Computo-Massimali'!BK83 -> 0 | AJ83: ='Computo-Massimali'!BL83 -> 0 | AK83: ='Computo-Massimali'!BM83 -> 0 | AL83: ='Computo-Massimali'!BN83 -> 0 | AM83: =IF(ABS(SUM(AH83:AL83)-H83)>0.01,"err. Somma",IF(AH83>'Computo-Massimali'!BJ83,"Err.1",IF(AI83>'Computo-Massimali'!BK83,"Err.2",IF(AJ83>'Computo-Massimali'!BL83,"Err.3",IF(AK83>'Computo-Massimali'!BM83,"Err.4",IF(AL83>'Computo-Massimali'!BN83,"Err.5","")))))) -> 
C84: ='Computo-Massimali'!C84 -> Totali Isolamento PV) PO) PS) e IN | F84: =SUM(F80:F83) -> 9556.117648 | G84: =SUM(G80:G83) -> 0 | H84: =SUM(H80:H83) -> 9556.117648 | I84: 955.6117648 | J84: 10511.72941 | K84: =SUM(K80:K83) -> 2780.301412 | L84: =SUM(L80:L83) -> 13292.03082 | M84: 9304.421577 | N84: =IF('Computo-Massimali'!L84>0,L84/'Computo-Massimali'!L84,0) -> 1 | O84: =IF(F84>0,IF(ABS(F84-0.001)>'Computo-Massimali'!F84,">C.",""),"") ->  | Q84: Totali Isolamento PV) PO) PS) e IN | R84: ='Computo-Massimali'!T84 -> 23803.76025 | S84: ok | U84: =IF(L84<R84,L84,R84) -> 13292.03082 | W84: 0 | Y84: 7358.210589 | AA84: 1946.210988 | AG84: Totali Isolamento PV) PO) PS) e IN | AH84: =SUM(AH80:AH83) -> 9556.12 | AI84: =SUM(AI80:AI83) -> 0 | AJ84: =SUM(AJ80:AJ83) -> 0 | AK84: =SUM(AK80:AK83) -> 0 | AL84: =SUM(AL80:AL83) -> 0
C85: ='Computo-Massimali'!C85 -> SS) Schermature solari e chiusure oscuranti | F85: ='Computo-Massimali'!F85 -> 0 | G85: =IF('Computo-Massimali'!F85<>0,'Computo-Massimali'!G85*F85/'Computo-Massimali'!F85,0) -> 0 | H85: =SUM(F85:G85) -> 0 | I85: =IF(('Computo-Massimali'!F85+'Computo-Massimali'!G85)<>0,'Computo-Massimali'!I85/('Computo-Massimali'!F85+'Computo-Massimali'!G85)*H85,0) -> 0 | J85: =H85+I85 -> 0 | K85: =IF('Computo-Massimali'!F85<>0,'Computo-Massimali'!K85*F85/'Computo-Massimali'!F85,0) -> 0 | L85: =SUM(J85:K85) -> 0 | M85: =IF(L85<=R85,L85*percDetr,R85*percDetr) -> 0 | N85: =IF('Computo-Massimali'!L85>0,L85/'Computo-Massimali'!L85,0) -> 0 | O85: =IF(F85>0,IF(ABS(F85-0.001)>'Computo-Massimali'!F85,">C.",""),"") ->  | P85: .. | Q85: SS) Schermature solari e chiusure oscuranti | R85: ='Computo-Massimali'!T85 -> 0 | S85: ok | U85: =IF(L85<R85,L85,R85) -> 0 | W85: 0 | Y85: 0 | AA85: 0 | AG85: SS) Schermature solari e chiusure oscuranti | AH85: ='Computo-Massimali'!BJ85 -> 0 | AI85: ='Computo-Massimali'!BK85 -> 0 | AJ85: ='Computo-Massimali'!BL85 -> 0 | AK85: ='Computo-Massimali'!BM85 -> 0 | AL85: ='Computo-Massimali'!BN85 -> 0 | AM85: =IF(ABS(SUM(AH85:AL85)-H85)>0.01,"err. Somma",IF(AH85>'Computo-Massimali'!BJ85,"Err.1",IF(AI85>'Computo-Massimali'!BK85,"Err.2",IF(AJ85>'Computo-Massimali'!BL85,"Err.3",IF(AK85>'Computo-Massimali'!BM85,"Err.4",IF(AL85>'Computo-Massimali'!BN85,"Err.5","")))))) -> 
C86: =CONCATENATE('Computo-Massimali'!C86," con ",'Computo-Massimali'!D86) -> Impianti climatizzazione con con PC)Altro | F86: ='Computo-Massimali'!F86 -> 5185.212368 | G86: =IF('Computo-Massimali'!F86<>0,'Computo-Massimali'!G86*F86/'Computo-Massimali'!F86,0) -> 0 | H86: =SUM(F86:G86) -> 5185.212368 | I86: =IF(('Computo-Massimali'!F86+'Computo-Massimali'!G86)<>0,'Computo-Massimali'!I86/('Computo-Massimali'!F86+'Computo-Massimali'!G86)*H86,0) -> 518.5212368 | J86: =H86+I86 -> 5703.733605 | K86: =IF('Computo-Massimali'!F86<>0,'Computo-Massimali'!K86*F86/'Computo-Massimali'!F86,0) -> 1508.609856 | L86: =SUM(J86:K86) -> 7212.343461 | M86: =IF(L86<=R86,L86*percDetr,R86*percDetr) -> 5048.640422 | N86: =IF('Computo-Massimali'!L86>0,L86/'Computo-Massimali'!L86,0) -> 1 | O86: =IF(F86>0,IF(ABS(F86-0.001)>'Computo-Massimali'!F86,">C.",""),"") ->  | P86: .. | Q86: Impianti climatizzazione con con PC)Altro | R86: ='Computo-Massimali'!T86 -> 12916.07707 | S86: ok | U86: =IF(L88<>0,(L86/L88)*U88,0) -> 7212.343461 | W86: 0 | Y86: 3992.613523 | AA86: 1056.026899 | AG86: Impianti climatizzazione con con PC)Altro | AH86: ='Computo-Massimali'!BJ86 -> 5185.21 | AI86: ='Computo-Massimali'!BK86 -> 0 | AJ86: ='Computo-Massimali'!BL86 -> 0 | AK86: ='Computo-Massimali'!BM86 -> 0 | AL86: ='Computo-Massimali'!BN86 -> 0 | AM86: =IF(ABS(SUM(AH86:AL86)-H86)>0.01,"err. Somma",IF(AH86>'Computo-Massimali'!BJ86,"Err.1",IF(AI86>'Computo-Massimali'!BK86,"Err.2",IF(AJ86>'Computo-Massimali'!BL86,"Err.3",IF(AK86>'Computo-Massimali'!BM86,"Err.4",IF(AL86>'Computo-Massimali'!BN86,"Err.5","")))))) -> 
C87: ='Computo-Massimali'!C87 -> SA) Scaldacqua a pompa di calore | F87: ='Computo-Massimali'!F87 -> 0 | G87: =IF('Computo-Massimali'!F87<>0,'Computo-Massimali'!G87*F87/'Computo-Massimali'!F87,0) -> 0 | H87: =SUM(F87:G87) -> 0 | I87: =IF(('Computo-Massimali'!F87+'Computo-Massimali'!G87)<>0,'Computo-Massimali'!I87/('Computo-Massimali'!F87+'Computo-Massimali'!G87)*H87,0) -> 0 | J87: =H87+I87 -> 0 | K87: =IF('Computo-Massimali'!F87<>0,'Computo-Massimali'!K87*F87/'Computo-Massimali'!F87,0) -> 0 | L87: =SUM(J87:K87) -> 0 | M87: =IF(L87<=R87,L87*percDetr,R87*percDetr) -> 0 | N87: =IF('Computo-Massimali'!L87>0,L87/'Computo-Massimali'!L87,0) -> 0 | O87: =IF(F87>0,IF(ABS(F87-0.001)>'Computo-Massimali'!F87,">C.",""),"") ->  | P87: .. | Q87: SA) Scaldacqua a pompa di calore | R87: ='Computo-Massimali'!T87 -> 0 | S87: ok | U87: =IF(L88<>0,(L87/L88)*U88,0) -> 0 | W87: 0 | Y87: 0 | AA87: 0 | AG87: SA) Scaldacqua a pompa di calore | AH87: ='Computo-Massimali'!BJ87 -> 0 | AI87: ='Computo-Massimali'!BK87 -> 0 | AJ87: ='Computo-Massimali'!BL87 -> 0 | AK87: ='Computo-Massimali'!BM87 -> 0 | AL87: ='Computo-Massimali'!BN87 -> 0 | AM87: =IF(ABS(SUM(AH87:AL87)-H87)>0.01,"err. Somma",IF(AH87>'Computo-Massimali'!BJ87,"Err.1",IF(AI87>'Computo-Massimali'!BK87,"Err.2",IF(AJ87>'Computo-Massimali'!BL87,"Err.3",IF(AK87>'Computo-Massimali'!BM87,"Err.4",IF(AL87>'Computo-Massimali'!BN87,"Err.5","")))))) -> 
C88: ='Computo-Massimali'!C88 -> Totali Impianti ed SA) | F88: =SUM(F86:F87) -> 5185.212368 | G88: =SUM(G86:G87) -> 0 | H88: =SUM(H86:H87) -> 5185.212368 | I88: 518.5212368 | J88: 5703.733605 | K88: =SUM(K86:K87) -> 1508.609856 | L88: =SUM(L86:L87) -> 7212.343461 | M88: =SUM(M86:M87) -> 5048.640422 | N88: =IF('Computo-Massimali'!L88>0,L88/'Computo-Massimali'!L88,0) -> 1 | O88: =IF(F88>0,IF(ABS(F88-0.001)>'Computo-Massimali'!F88,">C.",""),"") ->  | Q88: Totali Impianti ed SA) | R88: ='Computo-Massimali'!T88 -> 12916.07707 | S88: ok | U88: =IF(L88<R88,L88,R88) -> 7212.343461 | W88: 0 | Y88: 3992.613523 | AA88: 1056.026899 | AG88: Totali Impianti ed SA) | AH88: =SUM(AH86:AH87) -> 5185.21 | AI88: =SUM(AI86:AI87) -> 0 | AJ88: =SUM(AJ86:AJ87) -> 0 | AK88: =SUM(AK86:AK87) -> 0 | AL88: =SUM(AL86:AL87) -> 0
C89: =CONCATENATE('Computo-Massimali'!C89," - ",'Computo-Massimali'!E89) -> CO) Sistemi di Microgenerazione - Celle a combustibile | F89: ='Computo-Massimali'!F89 -> 0 | G89: =IF('Computo-Massimali'!F89<>0,'Computo-Massimali'!G89*F89/'Computo-Massimali'!F89,0) -> 0 | H89: =SUM(F89:G89) -> 0 | I89: =IF(('Computo-Massimali'!F89+'Computo-Massimali'!G89)<>0,'Computo-Massimali'!I89/('Computo-Massimali'!F89+'Computo-Massimali'!G89)*H89,0) -> 0 | J89: =H89+I89 -> 0 | K89: =IF('Computo-Massimali'!F89<>0,'Computo-Massimali'!K89*F89/'Computo-Massimali'!F89,0) -> 0 | L89: =SUM(J89:K89) -> 0 | M89: =IF(L89<=R89,L89*percDetr,R89*percDetr) -> 0 | N89: =IF('Computo-Massimali'!L89>0,L89/'Computo-Massimali'!L89,0) -> 0 | O89: =IF(F89>0,IF(ABS(F89-0.001)>'Computo-Massimali'!F89,">C.",""),"") ->  | P89: .. | Q89: CO) Sistemi di Microgenerazione - Celle a combustibile | R89: ='Computo-Massimali'!T89 -> 0 | S89: ok | U89: 0 | W89: 0 | Y89: 0 | AA89: 0 | AG89: CO) Sistemi di Microgenerazione - Celle a combustibile | AH89: ='Computo-Massimali'!BJ89 -> 0 | AI89: ='Computo-Massimali'!BK89 -> 0 | AJ89: ='Computo-Massimali'!BL89 -> 0 | AK89: ='Computo-Massimali'!BM89 -> 0 | AL89: ='Computo-Massimali'!BN89 -> 0 | AM89: =IF(ABS(SUM(AH89:AL89)-H89)>0.01,"err. Somma",IF(AH89>'Computo-Massimali'!BJ89,"Err.1",IF(AI89>'Computo-Massimali'!BK89,"Err.2",IF(AJ89>'Computo-Massimali'!BL89,"Err.3",IF(AK89>'Computo-Massimali'!BM89,"Err.4",IF(AL89>'Computo-Massimali'!BN89,"Err.5","")))))) -> 
C90: ='Computo-Massimali'!C90 -> IB) Generatori a Biomassa | F90: ='Computo-Massimali'!F90 -> 0 | G90: =IF('Computo-Massimali'!F90<>0,'Computo-Massimali'!G90*F90/'Computo-Massimali'!F90,0) -> 0 | H90: 0 | I90: =IF(('Computo-Massimali'!F90+'Computo-Massimali'!G90)<>0,'Computo-Massimali'!I90/('Computo-Massimali'!F90+'Computo-Massimali'!G90)*H90,0) -> 0 | J90: 0 | K90: =IF('Computo-Massimali'!F90<>0,'Computo-Massimali'!K90*F90/'Computo-Massimali'!F90,0) -> 0 | L90: 0 | M90: 0 | N90: =IF('Computo-Massimali'!L90>0,L90/'Computo-Massimali'!L90,0) -> 0 | O90: =IF(F90>0,IF(ABS(F90-0.001)>'Computo-Massimali'!F90,">C.",""),"") ->  | P90: .. | Q90: IB) Generatori a Biomassa | R90: ='Computo-Massimali'!T90 -> 0 | S90: ok | U90: 0 | W90: 0 | Y90: 0 | AA90: 0 | AG90: IB) Generatori a Biomassa | AH90: ='Computo-Massimali'!BJ90 -> 0 | AI90: ='Computo-Massimali'!BK90 -> 0 | AJ90: ='Computo-Massimali'!BL90 -> 0 | AK90: ='Computo-Massimali'!BM90 -> 0 | AL90: ='Computo-Massimali'!BN90 -> 0 | AM90: =IF(ABS(SUM(AH90:AL90)-H90)>0.01,"err. Somma",IF(AH90>'Computo-Massimali'!BJ90,"Err.1",IF(AI90>'Computo-Massimali'!BK90,"Err.2",IF(AJ90>'Computo-Massimali'!BL90,"Err.3",IF(AK90>'Computo-Massimali'!BM90,"Err.4",IF(AL90>'Computo-Massimali'!BN90,"Err.5","")))))) -> 
C91: ='Computo-Massimali'!C91 -> BA) Building Automation | F91: ='Computo-Massimali'!F91 -> 0 | G91: =IF('Computo-Massimali'!F91<>0,'Computo-Massimali'!G91*F91/'Computo-Massimali'!F91,0) -> 0 | H91: 0 | I91: =IF(('Computo-Massimali'!F91+'Computo-Massimali'!G91)<>0,'Computo-Massimali'!I91/('Computo-Massimali'!F91+'Computo-Massimali'!G91)*H91,0) -> 0 | J91: 0 | K91: =IF('Computo-Massimali'!F91<>0,'Computo-Massimali'!K91*F91/'Computo-Massimali'!F91,0) -> 0 | L91: 0 | M91: 0 | N91: =IF('Computo-Massimali'!L91>0,L91/'Computo-Massimali'!L91,0) -> 0 | O91: =IF(F91>0,IF(ABS(F91-0.001)>'Computo-Massimali'!F91,">C.",""),"") ->  | P91: .. | Q91: BA) Building Automation | R91: ='Computo-Massimali'!T91 -> 0 | S91: ok | U91: 0 | W91: 0 | Y91: 0 | AA91: 0 | AG91: BA) Building Automation | AH91: ='Computo-Massimali'!BJ91 -> 0 | AI91: ='Computo-Massimali'!BK91 -> 0 | AJ91: ='Computo-Massimali'!BL91 -> 0 | AK91: ='Computo-Massimali'!BM91 -> 0 | AL91: ='Computo-Massimali'!BN91 -> 0 | AM91: =IF(ABS(SUM(AH91:AL91)-H91)>0.01,"err. Somma",IF(AH91>'Computo-Massimali'!BJ91,"Err.1",IF(AI91>'Computo-Massimali'!BK91,"Err.2",IF(AJ91>'Computo-Massimali'!BL91,"Err.3",IF(AK91>'Computo-Massimali'!BM91,"Err.4",IF(AL91>'Computo-Massimali'!BN91,"Err.5","")))))) -> 
C92: ='Computo-Massimali'!C92 -> ST) Collettori Solari | E92: ='Computo-Massimali'!E92 -> Scoperti | F92: ='Computo-Massimali'!F92 -> 0 | G92: =IF('Computo-Massimali'!F92<>0,'Computo-Massimali'!G92*F92/'Computo-Massimali'!F92,0) -> 0 | H92: 0 | I92: =IF(('Computo-Massimali'!F92+'Computo-Massimali'!G92)<>0,'Computo-Massimali'!I92/('Computo-Massimali'!F92+'Computo-Massimali'!G92)*H92,0) -> 0 | J92: 0 | K92: =IF('Computo-Massimali'!F92<>0,'Computo-Massimali'!K92*F92/'Computo-Massimali'!F92,0) -> 0 | L92: 0 | M92: 0 | N92: =IF('Computo-Massimali'!L92>0,L92/'Computo-Massimali'!L92,0) -> 0 | O92: =IF(F92>0,IF(ABS(F92-0.001)>'Computo-Massimali'!F92,">C.",""),"") ->  | P92: .. | Q92: ST) Collettori Solari | R92: ='Computo-Massimali'!T92 -> 0 | S92: ok | U92: 0 | W92: 0 | Y92: 0 | AA92: 0 | AG92: ST) Collettori Solari | AH92: ='Computo-Massimali'!BJ92 -> 0 | AI92: ='Computo-Massimali'!BK92 -> 0 | AJ92: ='Computo-Massimali'!BL92 -> 0 | AK92: ='Computo-Massimali'!BM92 -> 0 | AL92: ='Computo-Massimali'!BN92 -> 0 | AM92: =IF(ABS(SUM(AH92:AL92)-H92)>0.01,"err. Somma",IF(AH92>'Computo-Massimali'!BJ92,"Err.1",IF(AI92>'Computo-Massimali'!BK92,"Err.2",IF(AJ92>'Computo-Massimali'!BL92,"Err.3",IF(AK92>'Computo-Massimali'!BM92,"Err.4",IF(AL92>'Computo-Massimali'!BN92,"Err.5","")))))) -> 
C93: ='Computo-Massimali'!C93 -> FV) Solare Fotovoltaico [ kWp ] | E93: ='Computo-Massimali'!E93 -> 0.757344 | F93: ='Computo-Massimali'!F93 -> 2047.474352 | G93: =IF('Computo-Massimali'!F93<>0,'Computo-Massimali'!G93*F93/'Computo-Massimali'!F93,0) -> 0 | H93: 2047.474352 | I93: =IF(('Computo-Massimali'!F93+'Computo-Massimali'!G93)<>0,'Computo-Massimali'!I93/('Computo-Massimali'!F93+'Computo-Massimali'!G93)*H93,0) -> 204.7474352 | J93: 2252.221787 | K93: =IF('Computo-Massimali'!F93<>0,'Computo-Massimali'!K93*F93/'Computo-Massimali'!F93,0) -> 595.7017317 | L93: 2847.923519 | M93: 1272.33792 | N93: =IF('Computo-Massimali'!L93>0,L93/'Computo-Massimali'!L93,0) -> 1 | O93: =IF(F93>0,IF(ABS(F93-0.001)>'Computo-Massimali'!F93,">C.",""),"") ->  | P93: .. | Q93: FV) Solare Fotovoltaico [ kWp ] | R93: ='Computo-Massimali'!T93 -> 1817.6256 | S93: ko | U93: 1817.6256 | W93: 1030.297919 | Y93: 1006.202296 | AA93: 266.1356238 | AG93: FV) Solare Fotovoltaico [ kWp ] | AH93: ='Computo-Massimali'!BJ93 -> 2047.47 | AI93: ='Computo-Massimali'!BK93 -> 0 | AJ93: ='Computo-Massimali'!BL93 -> 0 | AK93: ='Computo-Massimali'!BM93 -> 0 | AL93: ='Computo-Massimali'!BN93 -> 0 | AM93: =IF(ABS(SUM(AH93:AL93)-H93)>0.01,"err. Somma",IF(AH93>'Computo-Massimali'!BJ93,"Err.1",IF(AI93>'Computo-Massimali'!BK93,"Err.2",IF(AJ93>'Computo-Massimali'!BL93,"Err.3",IF(AK93>'Computo-Massimali'!BM93,"Err.4",IF(AL93>'Computo-Massimali'!BN93,"Err.5","")))))) -> 
C94: ='Computo-Massimali'!C94 -> AC) Sistema di Accumulo [ kWh ] | E94: ='Computo-Massimali'!E94 -> 2.78208 | F94: ='Computo-Massimali'!F94 -> 2360.26 | G94: =IF('Computo-Massimali'!F94<>0,'Computo-Massimali'!G94*F94/'Computo-Massimali'!F94,0) -> 0 | H94: 2360.26 | I94: =IF(('Computo-Massimali'!F94+'Computo-Massimali'!G94)<>0,'Computo-Massimali'!I94/('Computo-Massimali'!F94+'Computo-Massimali'!G94)*H94,0) -> 236.026 | J94: 2596.286 | K94: =IF('Computo-Massimali'!F94<>0,'Computo-Massimali'!K94*F94/'Computo-Massimali'!F94,0) -> 686.7050461 | L94: 3282.991046 | M94: 1947.456 | N94: =IF('Computo-Massimali'!L94>0,L94/'Computo-Massimali'!L94,0) -> 1 | O94: =IF(F94>0,IF(ABS(F94-0.001)>'Computo-Massimali'!F94,">C.",""),"") ->  | P94: .. | Q94: AC) Sistema di Accumulo [ kWh ] | R94: ='Computo-Massimali'!T94 -> 2782.08 | S94: ko | U94: 2782.08 | W94: 500.9110461 | Y94: 1540.105555 | AA94: 407.3504446 | AG94: AC) Sistema di Accumulo [ kWh ] | AH94: ='Computo-Massimali'!BJ94 -> 2360.26 | AI94: ='Computo-Massimali'!BK94 -> 0 | AJ94: ='Computo-Massimali'!BL94 -> 0 | AK94: ='Computo-Massimali'!BM94 -> 0 | AL94: ='Computo-Massimali'!BN94 -> 0 | AM94: =IF(ABS(SUM(AH94:AL94)-H94)>0.01,"err. Somma",IF(AH94>'Computo-Massimali'!BJ94,"Err.1",IF(AI94>'Computo-Massimali'!BK94,"Err.2",IF(AJ94>'Computo-Massimali'!BL94,"Err.3",IF(AK94>'Computo-Massimali'!BM94,"Err.4",IF(AL94>'Computo-Massimali'!BN94,"Err.5","")))))) -> 
C95: ='Computo-Massimali'!C95 -> CR) Colonnine di Ricarica | E95: ='Computo-Massimali'!E95 -> 1 | F95: ='Computo-Massimali'!F95 -> 0 | G95: =IF('Computo-Massimali'!F95<>0,'Computo-Massimali'!G95*F95/'Computo-Massimali'!F95,0) -> 0 | H95: 0 | I95: =IF(('Computo-Massimali'!F95+'Computo-Massimali'!G95)<>0,'Computo-Massimali'!I95/('Computo-Massimali'!F95+'Computo-Massimali'!G95)*H95,0) -> 0 | J95: 0 | K95: =IF('Computo-Massimali'!F95<>0,'Computo-Massimali'!K95*F95/'Computo-Massimali'!F95,0) -> 0 | L95: 0 | M95: 0 | N95: =IF('Computo-Massimali'!L95>0,L95/'Computo-Massimali'!L95,0) -> 0 | O95: =IF(F95>0,IF(ABS(F95-0.001)>'Computo-Massimali'!F95,">C.",""),"") ->  | P95: .. | Q95: CR) Colonnine di Ricarica | R95: ='Computo-Massimali'!T95 -> 1500 | S95: ok | U95: 0 | W95: 0 | Y95: 0 | AA95: 0 | AG95: CR) Colonnine di Ricarica | AH95: ='Computo-Massimali'!BJ95 -> 0 | AI95: ='Computo-Massimali'!BK95 -> 0 | AJ95: ='Computo-Massimali'!BL95 -> 0 | AK95: ='Computo-Massimali'!BM95 -> 0 | AL95: ='Computo-Massimali'!BN95 -> 0 | AM95: =IF(ABS(SUM(AH95:AL95)-H95)>0.01,"err. Somma",IF(AH95>'Computo-Massimali'!BJ95,"Err.1",IF(AI95>'Computo-Massimali'!BK95,"Err.2",IF(AJ95>'Computo-Massimali'!BL95,"Err.3",IF(AK95>'Computo-Massimali'!BM95,"Err.4",IF(AL95>'Computo-Massimali'!BN95,"Err.5","")))))) -> 
C96: EBA) Eliminazione Barriere architettoniche | F96: ='Computo-Massimali'!F96 -> 0 | G96: =IF('Computo-Massimali'!F96<>0,'Computo-Massimali'!G96*F96/'Computo-Massimali'!F96,0) -> 0 | H96: 0 | I96: =IF(('Computo-Massimali'!F96+'Computo-Massimali'!G96)<>0,'Computo-Massimali'!I96/('Computo-Massimali'!F96+'Computo-Massimali'!G96)*H96,0) -> 0 | J96: 0 | K96: =IF('Computo-Massimali'!F96<>0,'Computo-Massimali'!K96*F96/'Computo-Massimali'!F96,0) -> 0 | L96: 0 | M96: 0 | N96: =IF('Computo-Massimali'!L96>0,L96/'Computo-Massimali'!L96,0) -> 0 | O96: =IF(F96>0,IF(ABS(F96-0.001)>'Computo-Massimali'!F96,">C.",""),"") ->  | P96: .. | Q96: EBA) Eliminazione Barriere architettoniche | R96: ='Computo-Massimali'!T96 -> 96000 | S96: ok | U96: 0 | W96: 0 | Y96: 0 | AA96: 0 | AG96: EBA) Eliminazione Barriere architettoniche | AH96: ='Computo-Massimali'!BJ96 -> 0 | AI96: ='Computo-Massimali'!BK96 -> 0 | AJ96: ='Computo-Massimali'!BL96 -> 0 | AK96: ='Computo-Massimali'!BM96 -> 0 | AL96: ='Computo-Massimali'!BN96 -> 0 | AM96: =IF(ABS(SUM(AH96:AL96)-H96)>0.01,"err. Somma",IF(AH96>'Computo-Massimali'!BJ96,"Err.1",IF(AI96>'Computo-Massimali'!BK96,"Err.2",IF(AJ96>'Computo-Massimali'!BL96,"Err.3",IF(AK96>'Computo-Massimali'!BM96,"Err.4",IF(AL96>'Computo-Massimali'!BN96,"Err.5","")))))) -> 
C97: Totale Interventi Trainati U.Imm.N.2 | F97: =IF(Titolare!$B$16="Versione Demo",0,F84+F85+SUM(F88:F96)) -> 0 | G97: =G84+G85+SUM(G88:G96) -> 0 | H97: 19149.06437 | I97: 1914.906437 | J97: 21063.9708 | K97: 5571.318045 | L97: 26635.28885 | M97: 17572.85592 | N97: =IF('Computo-Massimali'!L97>0,L97/'Computo-Massimali'!L97,0) -> 1 | O97: =IF(F97>0,IF(ABS(F97-0.001)>'Computo-Massimali'!F97,">C.",""),"") ->  | R97: =C97 -> Totale Interventi Trainati U.Imm.N.2 | U97: =U84+U85+SUM(U88:V96) -> 25104.07988 | W97: =W84+W85+SUM(W88:X96) -> 1531.208965 | Y97: =Y84+Y85+SUM(Y88:Z96) -> 13897.13196 | AA97: =AA84+AA85+SUM(AA88:AB96) -> 3675.723955 | AG97: =R97 -> Totale Interventi Trainati U.Imm.N.2 | AH97: =AH84+AH85+SUM(AH88:AH96) -> 19149.06 | AI97: =AI84+AI85+SUM(AI88:AI96) -> 0 | AJ97: =AJ84+AJ85+SUM(AJ88:AJ96) -> 0 | AK97: =AK84+AK85+SUM(AK88:AK96) -> 0 | AL97: =AL84+AL85+SUM(AL88:AL96) -> 0
C108: Note
C116: =CONCATENATE("INTERVENTI TRAINATI Unità Immobiliare N.3",IF(UnitàImmobiliari!B5<>"", " - Foglio " & UnitàImmobiliari!B5 & " P.lla " & UnitàImmobiliari!C5 & " Sub. " & UnitàImmobiliari!D5,""),IF(UnitàImmobiliari!I5<>""," @ ",""),IFERROR(INDEX(Committenti!B3:D1017,MATCH(UnitàImmobiliari!I5,Committenti!D3:D1017,0),1),"")," ",IFERROR(INDEX(Committenti!B3:D1017,MATCH(UnitàImmobiliari!I5,Committenti!D3:D1017,0),2),"")) -> INTERVENTI TRAINATI Unità Immobiliare N.3 - Foglio 302 P.lla 201 Sub. 3 @ Prato Pietro | O116: .. | Q116: =CONCATENATE("Verifica Massimali di Spesa ",C116) -> Verifica Massimali di Spesa INTERVENTI TRAINATI Unità Immobiliare N.3 - Foglio 302 P.lla 201 Sub. 3 @ Prato Pietro | AG116: ='Computo-Massimali'!BI116 -> Ripartizione tra le Imprese - Imponibile Lavori INTERVENTI TRAINATI Unità Immobiliare N.3 - Foglio 302 P.lla 201 Sub. 3 @ Prato Pietro
C117: Interventi | F117: Importo Lavori | G117: Incidenza Sicurezza | H117: Imponibile | I117: Iva | J117: Importo c.iva | K117: Spese tecniche | L117: Totale | M117: =$M$8 -> Credito Spettante 70% Spesa Ammessa | N117: %SAL | Q117: Interventi | R117: Massimale spesa | S117: Verifica Max | U117: Spesa Ammessa | W117: Quota Eccedente Spesa Ammessa | Y117: =$Y$8 -> Credito Spettante 70% Spesa Ammessa Quota Imprese | Quota Tecnici | AG117: Interventi | AH117: =IF('Dati Gen'!$B$38<>"",'Dati Gen'!$B$38,"") -> Impresa1 | AI117: =IF('Dati Gen'!$B$39<>"",'Dati Gen'!$B$39,"") ->  | AJ117: =IF('Dati Gen'!$B$40<>"",'Dati Gen'!$B$40,"") ->  | AK117: =IF('Dati Gen'!$B$41<>"",'Dati Gen'!$B$41,"") ->  | AL117: =IF('Dati Gen'!$B$42<>"",'Dati Gen'!$B$42,"") -> 
C118: ='Computo-Massimali'!C118 -> PV) Isolamento pareti perimetrali | E118: ='Computo-Massimali'!E118 -> Esterno | F118: ='Computo-Massimali'!F118 -> 0 | G118: =IF('Computo-Massimali'!F118<>0,'Computo-Massimali'!G118*F118/'Computo-Massimali'!F118,0) -> 0 | H118: =SUM(F118:G118) -> 0 | I118: =IF(('Computo-Massimali'!F118+'Computo-Massimali'!G118)<>0,'Computo-Massimali'!I118/('Computo-Massimali'!F118+'Computo-Massimali'!G118)*H118,0) -> 0 | J118: =H118+I118 -> 0 | K118: =IF('Computo-Massimali'!F118<>0,'Computo-Massimali'!K118*F118/'Computo-Massimali'!F118,0) -> 0 | L118: =SUM(J118:K118) -> 0 | M118: =IF(L118<=R118,L118*percDetr,R118*percDetr) -> 0 | N118: =IF('Computo-Massimali'!L118>0,L118/'Computo-Massimali'!L118,0) -> 0 | O118: =IF(F118>0,IF(ABS(F118-0.001)>'Computo-Massimali'!F118,">C.",""),"") ->  | P118: .. | Q118: =C118 -> PV) Isolamento pareti perimetrali | R118: ='Computo-Massimali'!T118 -> 0 | S118: =IF(L118>R118,"ko","ok") -> ok | U118: =IF(L122<>0,(L118/L122)*U122,0) -> 0 | W118: =IF(L118>R118,L118-R118,0) -> 0 | Y118: =IF(M118<>0,J118*M118/L118,0) -> 0 | AA118: =IF(M118<>0,K118*M118/L118,0) -> 0 | AG118: =Q118 -> PV) Isolamento pareti perimetrali | AH118: ='Computo-Massimali'!BJ118 -> 0 | AI118: ='Computo-Massimali'!BK118 -> 0 | AJ118: ='Computo-Massimali'!BL118 -> 0 | AK118: ='Computo-Massimali'!BM118 -> 0 | AL118: ='Computo-Massimali'!BN118 -> 0 | AM118: =IF(ABS(SUM(AH118:AL118)-H118)>0.01,"err. Somma",IF(AH118>'Computo-Massimali'!BJ118,"Err.1",IF(AI118>'Computo-Massimali'!BK118,"Err.2",IF(AJ118>'Computo-Massimali'!BL118,"Err.3",IF(AK118>'Computo-Massimali'!BM118,"Err.4",IF(AL118>'Computo-Massimali'!BN118,"Err.5","")))))) -> 
C119: ='Computo-Massimali'!C119 -> PO) Isolamento coperture | E119: ='Computo-Massimali'!E119 -> Esterno | F119: ='Computo-Massimali'!F119 -> 0 | G119: =IF('Computo-Massimali'!F119<>0,'Computo-Massimali'!G119*F119/'Computo-Massimali'!F119,0) -> 0 | H119: =SUM(F119:G119) -> 0 | I119: =IF(('Computo-Massimali'!F119+'Computo-Massimali'!G119)<>0,'Computo-Massimali'!I119/('Computo-Massimali'!F119+'Computo-Massimali'!G119)*H119,0) -> 0 | J119: =H119+I119 -> 0 | K119: =IF('Computo-Massimali'!F119<>0,'Computo-Massimali'!K119*F119/'Computo-Massimali'!F119,0) -> 0 | L119: =SUM(J119:K119) -> 0 | M119: =IF(L119<=R119,L119*percDetr,R119*percDetr) -> 0 | N119: =IF('Computo-Massimali'!L119>0,L119/'Computo-Massimali'!L119,0) -> 0 | O119: =IF(F119>0,IF(ABS(F119-0.001)>'Computo-Massimali'!F119,">C.",""),"") ->  | P119: .. | Q119: PO) Isolamento coperture | R119: ='Computo-Massimali'!T119 -> 0 | S119: ok | U119: =IF(L122<>0,(L119/L122)*U122,0) -> 0 | W119: 0 | Y119: 0 | AA119: 0 | AG119: PO) Isolamento coperture | AH119: ='Computo-Massimali'!BJ119 -> 0 | AI119: ='Computo-Massimali'!BK119 -> 0 | AJ119: ='Computo-Massimali'!BL119 -> 0 | AK119: ='Computo-Massimali'!BM119 -> 0 | AL119: ='Computo-Massimali'!BN119 -> 0 | AM119: =IF(ABS(SUM(AH119:AL119)-H119)>0.01,"err. Somma",IF(AH119>'Computo-Massimali'!BJ119,"Err.1",IF(AI119>'Computo-Massimali'!BK119,"Err.2",IF(AJ119>'Computo-Massimali'!BL119,"Err.3",IF(AK119>'Computo-Massimali'!BM119,"Err.4",IF(AL119>'Computo-Massimali'!BN119,"Err.5","")))))) -> 
C120: ='Computo-Massimali'!C120 -> PS) Isolamento Pavimenti | E120: ='Computo-Massimali'!E120 -> Esterno | F120: ='Computo-Massimali'!F120 -> 16829.2261 | G120: =IF('Computo-Massimali'!F120<>0,'Computo-Massimali'!G120*F120/'Computo-Massimali'!F120,0) -> 0 | H120: =SUM(F120:G120) -> 16829.2261 | I120: =IF(('Computo-Massimali'!F120+'Computo-Massimali'!G120)<>0,'Computo-Massimali'!I120/('Computo-Massimali'!F120+'Computo-Massimali'!G120)*H120,0) -> 1682.92261 | J120: =H120+I120 -> 18512.14871 | K120: =IF('Computo-Massimali'!F120<>0,'Computo-Massimali'!K120*F120/'Computo-Massimali'!F120,0) -> 4896.373487 | L120: =SUM(J120:K120) -> 23408.5222 | M120: =IF(L120<=R120,L120*percDetr,R120*percDetr) -> 16385.96554 | N120: =IF('Computo-Massimali'!L120>0,L120/'Computo-Massimali'!L120,0) -> 1 | O120: =IF(F120>0,IF(ABS(F120-0.001)>'Computo-Massimali'!F120,">C.",""),"") ->  | P120: .. | Q120: PS) Isolamento Pavimenti | R120: ='Computo-Massimali'!T120 -> 23596.6222 | S120: ok | U120: =IF(L122<>0,(L120/L122)*U122,0) -> 23408.5222 | W120: 0 | Y120: 12958.5041 | AA120: 3427.461441 | AG120: PS) Isolamento Pavimenti | AH120: ='Computo-Massimali'!BJ120 -> 16829.23 | AI120: ='Computo-Massimali'!BK120 -> 0 | AJ120: ='Computo-Massimali'!BL120 -> 0 | AK120: ='Computo-Massimali'!BM120 -> 0 | AL120: ='Computo-Massimali'!BN120 -> 0 | AM120: =IF(ABS(SUM(AH120:AL120)-H120)>0.01,"err. Somma",IF(AH120>'Computo-Massimali'!BJ120,"Err.1",IF(AI120>'Computo-Massimali'!BK120,"Err.2",IF(AJ120>'Computo-Massimali'!BL120,"Err.3",IF(AK120>'Computo-Massimali'!BM120,"Err.4",IF(AL120>'Computo-Massimali'!BN120,"Err.5","")))))) -> 
C121: ='Computo-Massimali'!C121 -> IN) Serramenti con chiusure oscuranti | E121: ='Computo-Massimali'!E121 -> Zone D, E ed F | F121: ='Computo-Massimali'!F121 -> 16727.39662 | G121: =IF('Computo-Massimali'!F121<>0,'Computo-Massimali'!G121*F121/'Computo-Massimali'!F121,0) -> 0 | H121: =SUM(F121:G121) -> 16727.39662 | I121: =IF(('Computo-Massimali'!F121+'Computo-Massimali'!G121)<>0,'Computo-Massimali'!I121/('Computo-Massimali'!F121+'Computo-Massimali'!G121)*H121,0) -> 1672.739662 | J121: =H121+I121 -> 18400.13628 | K121: =IF('Computo-Massimali'!F121<>0,'Computo-Massimali'!K121*F121/'Computo-Massimali'!F121,0) -> 4866.746743 | L121: =SUM(J121:K121) -> 23266.88303 | M121: =IF(L121<=R121,L121*percDetr,R121*percDetr) -> 16286.81812 | N121: =IF('Computo-Massimali'!L121>0,L121/'Computo-Massimali'!L121,0) -> 1 | O121: =IF(F121>0,IF(ABS(F121-0.001)>'Computo-Massimali'!F121,">C.",""),"") ->  | P121: .. | Q121: IN) Serramenti con chiusure oscuranti | R121: ='Computo-Massimali'!T121 -> 24442.59605 | S121: ok | U121: =IF(L122<>0,(L121/L122)*U122,0) -> 23266.88303 | W121: 0 | Y121: 12880.0954 | AA121: 3406.72272 | AG121: IN) Serramenti con chiusure oscuranti | AH121: ='Computo-Massimali'!BJ121 -> 16727.4 | AI121: ='Computo-Massimali'!BK121 -> 0 | AJ121: ='Computo-Massimali'!BL121 -> 0 | AK121: ='Computo-Massimali'!BM121 -> 0 | AL121: ='Computo-Massimali'!BN121 -> 0 | AM121: =IF(ABS(SUM(AH121:AL121)-H121)>0.01,"err. Somma",IF(AH121>'Computo-Massimali'!BJ121,"Err.1",IF(AI121>'Computo-Massimali'!BK121,"Err.2",IF(AJ121>'Computo-Massimali'!BL121,"Err.3",IF(AK121>'Computo-Massimali'!BM121,"Err.4",IF(AL121>'Computo-Massimali'!BN121,"Err.5","")))))) -> 
C122: ='Computo-Massimali'!C122 -> Totali Isolamento PV) PO) PS) e IN | F122: =SUM(F118:F121) -> 33556.62272 | G122: =SUM(G118:G121) -> 0 | H122: =SUM(H118:H121) -> 33556.62272 | I122: 3355.662272 | J122: 36912.285 | K122: =SUM(K118:K121) -> 9763.12023 | L122: =SUM(L118:L121) -> 46675.40523 | M122: 32672.78366 | N122: =IF('Computo-Massimali'!L122>0,L122/'Computo-Massimali'!L122,0) -> 1 | O122: =IF(F122>0,IF(ABS(F122-0.001)>'Computo-Massimali'!F122,">C.",""),"") ->  | Q122: Totali Isolamento PV) PO) PS) e IN | R122: ='Computo-Massimali'!T122 -> 48039.21825 | S122: ok | U122: =IF(L122<R122,L122,R122) -> 46675.40523 | W122: 0 | Y122: 25838.5995 | AA122: 6834.184161 | AG122: Totali Isolamento PV) PO) PS) e IN | AH122: =SUM(AH118:AH121) -> 33556.63 | AI122: =SUM(AI118:AI121) -> 0 | AJ122: =SUM(AJ118:AJ121) -> 0 | AK122: =SUM(AK118:AK121) -> 0 | AL122: =SUM(AL118:AL121) -> 0
C123: ='Computo-Massimali'!C123 -> SS) Schermature solari e chiusure oscuranti | F123: ='Computo-Massimali'!F123 -> 0 | G123: =IF('Computo-Massimali'!F123<>0,'Computo-Massimali'!G123*F123/'Computo-Massimali'!F123,0) -> 0 | H123: =SUM(F123:G123) -> 0 | I123: =IF(('Computo-Massimali'!F123+'Computo-Massimali'!G123)<>0,'Computo-Massimali'!I123/('Computo-Massimali'!F123+'Computo-Massimali'!G123)*H123,0) -> 0 | J123: =H123+I123 -> 0 | K123: =IF('Computo-Massimali'!F123<>0,'Computo-Massimali'!K123*F123/'Computo-Massimali'!F123,0) -> 0 | L123: =SUM(J123:K123) -> 0 | M123: =IF(L123<=R123,L123*percDetr,R123*percDetr) -> 0 | N123: =IF('Computo-Massimali'!L123>0,L123/'Computo-Massimali'!L123,0) -> 0 | O123: =IF(F123>0,IF(ABS(F123-0.001)>'Computo-Massimali'!F123,">C.",""),"") ->  | P123: .. | Q123: SS) Schermature solari e chiusure oscuranti | R123: ='Computo-Massimali'!T123 -> 0 | S123: ok | U123: =IF(L123<R123,L123,R123) -> 0 | W123: 0 | Y123: 0 | AA123: 0 | AG123: SS) Schermature solari e chiusure oscuranti | AH123: ='Computo-Massimali'!BJ123 -> 0 | AI123: ='Computo-Massimali'!BK123 -> 0 | AJ123: ='Computo-Massimali'!BL123 -> 0 | AK123: ='Computo-Massimali'!BM123 -> 0 | AL123: ='Computo-Massimali'!BN123 -> 0 | AM123: =IF(ABS(SUM(AH123:AL123)-H123)>0.01,"err. Somma",IF(AH123>'Computo-Massimali'!BJ123,"Err.1",IF(AI123>'Computo-Massimali'!BK123,"Err.2",IF(AJ123>'Computo-Massimali'!BL123,"Err.3",IF(AK123>'Computo-Massimali'!BM123,"Err.4",IF(AL123>'Computo-Massimali'!BN123,"Err.5","")))))) -> 
C124: =CONCATENATE('Computo-Massimali'!C124," con ",'Computo-Massimali'!D124) -> Impianti climatizzazione con con PC)Altro | F124: ='Computo-Massimali'!F124 -> 18333.42944 | G124: =IF('Computo-Massimali'!F124<>0,'Computo-Massimali'!G124*F124/'Computo-Massimali'!F124,0) -> 0 | H124: =SUM(F124:G124) -> 18333.42944 | I124: =IF(('Computo-Massimali'!F124+'Computo-Massimali'!G124)<>0,'Computo-Massimali'!I124/('Computo-Massimali'!F124+'Computo-Massimali'!G124)*H124,0) -> 1833.342944 | J124: =H124+I124 -> 20166.77239 | K124: =IF('Computo-Massimali'!F124<>0,'Computo-Massimali'!K124*F124/'Computo-Massimali'!F124,0) -> 5334.013418 | L124: =SUM(J124:K124) -> 25500.78581 | M124: =IF(L124<=R124,L124*percDetr,R124*percDetr) -> 17850.55006 | N124: =IF('Computo-Massimali'!L124>0,L124/'Computo-Massimali'!L124,0) -> 1 | O124: =IF(F124>0,IF(ABS(F124-0.001)>'Computo-Massimali'!F124,">C.",""),"") ->  | P124: .. | Q124: Impianti climatizzazione con con PC)Altro | R124: ='Computo-Massimali'!T124 -> 27272 | S124: ok | U124: =IF(L126<>0,(L124/L126)*U126,0) -> 25500.78581 | W124: 0 | Y124: 14116.74067 | AA124: 3733.809393 | AG124: Impianti climatizzazione con con PC)Altro | AH124: ='Computo-Massimali'!BJ124 -> 18333.43 | AI124: ='Computo-Massimali'!BK124 -> 0 | AJ124: ='Computo-Massimali'!BL124 -> 0 | AK124: ='Computo-Massimali'!BM124 -> 0 | AL124: ='Computo-Massimali'!BN124 -> 0 | AM124: =IF(ABS(SUM(AH124:AL124)-H124)>0.01,"err. Somma",IF(AH124>'Computo-Massimali'!BJ124,"Err.1",IF(AI124>'Computo-Massimali'!BK124,"Err.2",IF(AJ124>'Computo-Massimali'!BL124,"Err.3",IF(AK124>'Computo-Massimali'!BM124,"Err.4",IF(AL124>'Computo-Massimali'!BN124,"Err.5","")))))) -> 
C125: ='Computo-Massimali'!C125 -> SA) Scaldacqua a pompa di calore | F125: ='Computo-Massimali'!F125 -> 0 | G125: =IF('Computo-Massimali'!F125<>0,'Computo-Massimali'!G125*F125/'Computo-Massimali'!F125,0) -> 0 | H125: =SUM(F125:G125) -> 0 | I125: =IF(('Computo-Massimali'!F125+'Computo-Massimali'!G125)<>0,'Computo-Massimali'!I125/('Computo-Massimali'!F125+'Computo-Massimali'!G125)*H125,0) -> 0 | J125: =H125+I125 -> 0 | K125: =IF('Computo-Massimali'!F125<>0,'Computo-Massimali'!K125*F125/'Computo-Massimali'!F125,0) -> 0 | L125: =SUM(J125:K125) -> 0 | M125: =IF(L125<=R125,L125*percDetr,R125*percDetr) -> 0 | N125: =IF('Computo-Massimali'!L125>0,L125/'Computo-Massimali'!L125,0) -> 0 | O125: =IF(F125>0,IF(ABS(F125-0.001)>'Computo-Massimali'!F125,">C.",""),"") ->  | P125: .. | Q125: SA) Scaldacqua a pompa di calore | R125: ='Computo-Massimali'!T125 -> 0 | S125: ok | U125: =IF(L126<>0,(L125/L126)*U126,0) -> 0 | W125: 0 | Y125: 0 | AA125: 0 | AG125: SA) Scaldacqua a pompa di calore | AH125: ='Computo-Massimali'!BJ125 -> 0 | AI125: ='Computo-Massimali'!BK125 -> 0 | AJ125: ='Computo-Massimali'!BL125 -> 0 | AK125: ='Computo-Massimali'!BM125 -> 0 | AL125: ='Computo-Massimali'!BN125 -> 0 | AM125: =IF(ABS(SUM(AH125:AL125)-H125)>0.01,"err. Somma",IF(AH125>'Computo-Massimali'!BJ125,"Err.1",IF(AI125>'Computo-Massimali'!BK125,"Err.2",IF(AJ125>'Computo-Massimali'!BL125,"Err.3",IF(AK125>'Computo-Massimali'!BM125,"Err.4",IF(AL125>'Computo-Massimali'!BN125,"Err.5","")))))) -> 
C126: ='Computo-Massimali'!C126 -> Totali Impianti ed SA) | F126: =SUM(F124:F125) -> 18333.42944 | G126: =SUM(G124:G125) -> 0 | H126: =SUM(H124:H125) -> 18333.42944 | I126: 1833.342944 | J126: 20166.77239 | K126: =SUM(K124:K125) -> 5334.013418 | L126: =SUM(L124:L125) -> 25500.78581 | M126: =SUM(M124:M125) -> 17850.55006 | N126: =IF('Computo-Massimali'!L126>0,L126/'Computo-Massimali'!L126,0) -> 1 | O126: =IF(F126>0,IF(ABS(F126-0.001)>'Computo-Massimali'!F126,">C.",""),"") ->  | Q126: Totali Impianti ed SA) | R126: ='Computo-Massimali'!T126 -> 27272 | S126: ok | U126: =IF(L126<R126,L126,R126) -> 25500.78581 | W126: 0 | Y126: 14116.74067 | AA126: 3733.809393 | AG126: Totali Impianti ed SA) | AH126: =SUM(AH124:AH125) -> 18333.43 | AI126: =SUM(AI124:AI125) -> 0 | AJ126: =SUM(AJ124:AJ125) -> 0 | AK126: =SUM(AK124:AK125) -> 0 | AL126: =SUM(AL124:AL125) -> 0
C127: =CONCATENATE('Computo-Massimali'!C127," - ",'Computo-Massimali'!E127) -> CO) Sistemi di Microgenerazione - Celle a combustibile | F127: ='Computo-Massimali'!F127 -> 0 | G127: =IF('Computo-Massimali'!F127<>0,'Computo-Massimali'!G127*F127/'Computo-Massimali'!F127,0) -> 0 | H127: =SUM(F127:G127) -> 0 | I127: =IF(('Computo-Massimali'!F127+'Computo-Massimali'!G127)<>0,'Computo-Massimali'!I127/('Computo-Massimali'!F127+'Computo-Massimali'!G127)*H127,0) -> 0 | J127: =H127+I127 -> 0 | K127: =IF('Computo-Massimali'!F127<>0,'Computo-Massimali'!K127*F127/'Computo-Massimali'!F127,0) -> 0 | L127: =SUM(J127:K127) -> 0 | M127: =IF(L127<=R127,L127*percDetr,R127*percDetr) -> 0 | N127: =IF('Computo-Massimali'!L127>0,L127/'Computo-Massimali'!L127,0) -> 0 | O127: =IF(F127>0,IF(ABS(F127-0.001)>'Computo-Massimali'!F127,">C.",""),"") ->  | P127: .. | Q127: CO) Sistemi di Microgenerazione - Celle a combustibile | R127: ='Computo-Massimali'!T127 -> 0 | S127: ok | U127: 0 | W127: 0 | Y127: 0 | AA127: 0 | AG127: CO) Sistemi di Microgenerazione - Celle a combustibile | AH127: ='Computo-Massimali'!BJ127 -> 0 | AI127: ='Computo-Massimali'!BK127 -> 0 | AJ127: ='Computo-Massimali'!BL127 -> 0 | AK127: ='Computo-Massimali'!BM127 -> 0 | AL127: ='Computo-Massimali'!BN127 -> 0 | AM127: =IF(ABS(SUM(AH127:AL127)-H127)>0.01,"err. Somma",IF(AH127>'Computo-Massimali'!BJ127,"Err.1",IF(AI127>'Computo-Massimali'!BK127,"Err.2",IF(AJ127>'Computo-Massimali'!BL127,"Err.3",IF(AK127>'Computo-Massimali'!BM127,"Err.4",IF(AL127>'Computo-Massimali'!BN127,"Err.5","")))))) -> 
C128: ='Computo-Massimali'!C128 -> IB) Generatori a Biomassa | F128: ='Computo-Massimali'!F128 -> 0 | G128: =IF('Computo-Massimali'!F128<>0,'Computo-Massimali'!G128*F128/'Computo-Massimali'!F128,0) -> 0 | H128: 0 | I128: =IF(('Computo-Massimali'!F128+'Computo-Massimali'!G128)<>0,'Computo-Massimali'!I128/('Computo-Massimali'!F128+'Computo-Massimali'!G128)*H128,0) -> 0 | J128: 0 | K128: =IF('Computo-Massimali'!F128<>0,'Computo-Massimali'!K128*F128/'Computo-Massimali'!F128,0) -> 0 | L128: 0 | M128: 0 | N128: =IF('Computo-Massimali'!L128>0,L128/'Computo-Massimali'!L128,0) -> 0 | O128: =IF(F128>0,IF(ABS(F128-0.001)>'Computo-Massimali'!F128,">C.",""),"") ->  | P128: .. | Q128: IB) Generatori a Biomassa | R128: ='Computo-Massimali'!T128 -> 0 | S128: ok | U128: 0 | W128: 0 | Y128: 0 | AA128: 0 | AG128: IB) Generatori a Biomassa | AH128: ='Computo-Massimali'!BJ128 -> 0 | AI128: ='Computo-Massimali'!BK128 -> 0 | AJ128: ='Computo-Massimali'!BL128 -> 0 | AK128: ='Computo-Massimali'!BM128 -> 0 | AL128: ='Computo-Massimali'!BN128 -> 0 | AM128: =IF(ABS(SUM(AH128:AL128)-H128)>0.01,"err. Somma",IF(AH128>'Computo-Massimali'!BJ128,"Err.1",IF(AI128>'Computo-Massimali'!BK128,"Err.2",IF(AJ128>'Computo-Massimali'!BL128,"Err.3",IF(AK128>'Computo-Massimali'!BM128,"Err.4",IF(AL128>'Computo-Massimali'!BN128,"Err.5","")))))) -> 
C129: ='Computo-Massimali'!C129 -> BA) Building Automation | F129: ='Computo-Massimali'!F129 -> 0 | G129: =IF('Computo-Massimali'!F129<>0,'Computo-Massimali'!G129*F129/'Computo-Massimali'!F129,0) -> 0 | H129: 0 | I129: =IF(('Computo-Massimali'!F129+'Computo-Massimali'!G129)<>0,'Computo-Massimali'!I129/('Computo-Massimali'!F129+'Computo-Massimali'!G129)*H129,0) -> 0 | J129: 0 | K129: =IF('Computo-Massimali'!F129<>0,'Computo-Massimali'!K129*F129/'Computo-Massimali'!F129,0) -> 0 | L129: 0 | M129: 0 | N129: =IF('Computo-Massimali'!L129>0,L129/'Computo-Massimali'!L129,0) -> 0 | O129: =IF(F129>0,IF(ABS(F129-0.001)>'Computo-Massimali'!F129,">C.",""),"") ->  | P129: .. | Q129: BA) Building Automation | R129: ='Computo-Massimali'!T129 -> 0 | S129: ok | U129: 0 | W129: 0 | Y129: 0 | AA129: 0 | AG129: BA) Building Automation | AH129: ='Computo-Massimali'!BJ129 -> 0 | AI129: ='Computo-Massimali'!BK129 -> 0 | AJ129: ='Computo-Massimali'!BL129 -> 0 | AK129: ='Computo-Massimali'!BM129 -> 0 | AL129: ='Computo-Massimali'!BN129 -> 0 | AM129: =IF(ABS(SUM(AH129:AL129)-H129)>0.01,"err. Somma",IF(AH129>'Computo-Massimali'!BJ129,"Err.1",IF(AI129>'Computo-Massimali'!BK129,"Err.2",IF(AJ129>'Computo-Massimali'!BL129,"Err.3",IF(AK129>'Computo-Massimali'!BM129,"Err.4",IF(AL129>'Computo-Massimali'!BN129,"Err.5","")))))) -> 
C130: ='Computo-Massimali'!C130 -> ST) Collettori Solari | E130: ='Computo-Massimali'!E130 -> Scoperti | F130: ='Computo-Massimali'!F130 -> 0 | G130: =IF('Computo-Massimali'!F130<>0,'Computo-Massimali'!G130*F130/'Computo-Massimali'!F130,0) -> 0 | H130: 0 | I130: =IF(('Computo-Massimali'!F130+'Computo-Massimali'!G130)<>0,'Computo-Massimali'!I130/('Computo-Massimali'!F130+'Computo-Massimali'!G130)*H130,0) -> 0 | J130: 0 | K130: =IF('Computo-Massimali'!F130<>0,'Computo-Massimali'!K130*F130/'Computo-Massimali'!F130,0) -> 0 | L130: 0 | M130: 0 | N130: =IF('Computo-Massimali'!L130>0,L130/'Computo-Massimali'!L130,0) -> 0 | O130: =IF(F130>0,IF(ABS(F130-0.001)>'Computo-Massimali'!F130,">C.",""),"") ->  | P130: .. | Q130: ST) Collettori Solari | R130: ='Computo-Massimali'!T130 -> 0 | S130: ok | U130: 0 | W130: 0 | Y130: 0 | AA130: 0 | AG130: ST) Collettori Solari | AH130: ='Computo-Massimali'!BJ130 -> 0 | AI130: ='Computo-Massimali'!BK130 -> 0 | AJ130: ='Computo-Massimali'!BL130 -> 0 | AK130: ='Computo-Massimali'!BM130 -> 0 | AL130: ='Computo-Massimali'!BN130 -> 0 | AM130: =IF(ABS(SUM(AH130:AL130)-H130)>0.01,"err. Somma",IF(AH130>'Computo-Massimali'!BJ130,"Err.1",IF(AI130>'Computo-Massimali'!BK130,"Err.2",IF(AJ130>'Computo-Massimali'!BL130,"Err.3",IF(AK130>'Computo-Massimali'!BM130,"Err.4",IF(AL130>'Computo-Massimali'!BN130,"Err.5","")))))) -> 
C131: ='Computo-Massimali'!C131 -> FV) Solare Fotovoltaico [ kWp ] | E131: ='Computo-Massimali'!E131 -> 2.677752 | F131: ='Computo-Massimali'!F131 -> 7239.284316 | G131: =IF('Computo-Massimali'!F131<>0,'Computo-Massimali'!G131*F131/'Computo-Massimali'!F131,0) -> 0 | H131: 7239.284316 | I131: =IF(('Computo-Massimali'!F131+'Computo-Massimali'!G131)<>0,'Computo-Massimali'!I131/('Computo-Massimali'!F131+'Computo-Massimali'!G131)*H131,0) -> 723.9284316 | J131: 7963.212748 | K131: =IF('Computo-Massimali'!F131<>0,'Computo-Massimali'!K131*F131/'Computo-Massimali'!F131,0) -> 2106.231123 | L131: 10069.44387 | M131: 4498.62336 | N131: =IF('Computo-Massimali'!L131>0,L131/'Computo-Massimali'!L131,0) -> 1 | O131: =IF(F131>0,IF(ABS(F131-0.001)>'Computo-Massimali'!F131,">C.",""),"") ->  | P131: .. | Q131: FV) Solare Fotovoltaico [ kWp ] | R131: ='Computo-Massimali'!T131 -> 6426.6048 | S131: ko | U131: 6426.6048 | W131: 3642.83907 | Y131: 3557.643833 | AA131: 940.979527 | AG131: FV) Solare Fotovoltaico [ kWp ] | AH131: ='Computo-Massimali'!BJ131 -> 7239.28 | AI131: ='Computo-Massimali'!BK131 -> 0 | AJ131: ='Computo-Massimali'!BL131 -> 0 | AK131: ='Computo-Massimali'!BM131 -> 0 | AL131: ='Computo-Massimali'!BN131 -> 0 | AM131: =IF(ABS(SUM(AH131:AL131)-H131)>0.01,"err. Somma",IF(AH131>'Computo-Massimali'!BJ131,"Err.1",IF(AI131>'Computo-Massimali'!BK131,"Err.2",IF(AJ131>'Computo-Massimali'!BL131,"Err.3",IF(AK131>'Computo-Massimali'!BM131,"Err.4",IF(AL131>'Computo-Massimali'!BN131,"Err.5","")))))) -> 
C132: ='Computo-Massimali'!C132 -> AC) Sistema di Accumulo [ kWh ] | E132: ='Computo-Massimali'!E132 -> 9.83664 | F132: ='Computo-Massimali'!F132 -> 8345.205 | G132: =IF('Computo-Massimali'!F132<>0,'Computo-Massimali'!G132*F132/'Computo-Massimali'!F132,0) -> 0 | H132: 8345.205 | I132: =IF(('Computo-Massimali'!F132+'Computo-Massimali'!G132)<>0,'Computo-Massimali'!I132/('Computo-Massimali'!F132+'Computo-Massimali'!G132)*H132,0) -> 834.5205 | J132: 9179.7255 | K132: =IF('Computo-Massimali'!F132<>0,'Computo-Massimali'!K132*F132/'Computo-Massimali'!F132,0) -> 2427.992841 | L132: 11607.71834 | M132: 6885.648 | N132: =IF('Computo-Massimali'!L132>0,L132/'Computo-Massimali'!L132,0) -> 1 | O132: =IF(F132>0,IF(ABS(F132-0.001)>'Computo-Massimali'!F132,">C.",""),"") ->  | P132: .. | Q132: AC) Sistema di Accumulo [ kWh ] | R132: ='Computo-Massimali'!T132 -> 9836.64 | S132: ko | U132: 9836.64 | W132: 1771.078341 | Y132: 5445.373214 | AA132: 1440.274786 | AG132: AC) Sistema di Accumulo [ kWh ] | AH132: ='Computo-Massimali'!BJ132 -> 8345.21 | AI132: ='Computo-Massimali'!BK132 -> 0 | AJ132: ='Computo-Massimali'!BL132 -> 0 | AK132: ='Computo-Massimali'!BM132 -> 0 | AL132: ='Computo-Massimali'!BN132 -> 0 | AM132: =IF(ABS(SUM(AH132:AL132)-H132)>0.01,"err. Somma",IF(AH132>'Computo-Massimali'!BJ132,"Err.1",IF(AI132>'Computo-Massimali'!BK132,"Err.2",IF(AJ132>'Computo-Massimali'!BL132,"Err.3",IF(AK132>'Computo-Massimali'!BM132,"Err.4",IF(AL132>'Computo-Massimali'!BN132,"Err.5","")))))) -> 
C133: ='Computo-Massimali'!C133 -> CR) Colonnine di Ricarica | E133: ='Computo-Massimali'!E133 -> 1 | F133: ='Computo-Massimali'!F133 -> 0 | G133: =IF('Computo-Massimali'!F133<>0,'Computo-Massimali'!G133*F133/'Computo-Massimali'!F133,0) -> 0 | H133: 0 | I133: =IF(('Computo-Massimali'!F133+'Computo-Massimali'!G133)<>0,'Computo-Massimali'!I133/('Computo-Massimali'!F133+'Computo-Massimali'!G133)*H133,0) -> 0 | J133: 0 | K133: =IF('Computo-Massimali'!F133<>0,'Computo-Massimali'!K133*F133/'Computo-Massimali'!F133,0) -> 0 | L133: 0 | M133: 0 | N133: =IF('Computo-Massimali'!L133>0,L133/'Computo-Massimali'!L133,0) -> 0 | O133: =IF(F133>0,IF(ABS(F133-0.001)>'Computo-Massimali'!F133,">C.",""),"") ->  | P133: .. | Q133: CR) Colonnine di Ricarica | R133: ='Computo-Massimali'!T133 -> 1500 | S133: ok | U133: 0 | W133: 0 | Y133: 0 | AA133: 0 | AG133: CR) Colonnine di Ricarica | AH133: ='Computo-Massimali'!BJ133 -> 0 | AI133: ='Computo-Massimali'!BK133 -> 0 | AJ133: ='Computo-Massimali'!BL133 -> 0 | AK133: ='Computo-Massimali'!BM133 -> 0 | AL133: ='Computo-Massimali'!BN133 -> 0 | AM133: =IF(ABS(SUM(AH133:AL133)-H133)>0.01,"err. Somma",IF(AH133>'Computo-Massimali'!BJ133,"Err.1",IF(AI133>'Computo-Massimali'!BK133,"Err.2",IF(AJ133>'Computo-Massimali'!BL133,"Err.3",IF(AK133>'Computo-Massimali'!BM133,"Err.4",IF(AL133>'Computo-Massimali'!BN133,"Err.5","")))))) -> 
C134: EBA) Eliminazione Barriere architettoniche | F134: ='Computo-Massimali'!F134 -> 0 | G134: =IF('Computo-Massimali'!F134<>0,'Computo-Massimali'!G134*F134/'Computo-Massimali'!F134,0) -> 0 | H134: 0 | I134: =IF(('Computo-Massimali'!F134+'Computo-Massimali'!G134)<>0,'Computo-Massimali'!I134/('Computo-Massimali'!F134+'Computo-Massimali'!G134)*H134,0) -> 0 | J134: 0 | K134: =IF('Computo-Massimali'!F134<>0,'Computo-Massimali'!K134*F134/'Computo-Massimali'!F134,0) -> 0 | L134: 0 | M134: 0 | N134: =IF('Computo-Massimali'!L134>0,L134/'Computo-Massimali'!L134,0) -> 0 | O134: =IF(F134>0,IF(ABS(F134-0.001)>'Computo-Massimali'!F134,">C.",""),"") ->  | P134: .. | Q134: EBA) Eliminazione Barriere architettoniche | R134: ='Computo-Massimali'!T134 -> 96000 | S134: ok | U134: 0 | W134: 0 | Y134: 0 | AA134: 0 | AG134: EBA) Eliminazione Barriere architettoniche | AH134: ='Computo-Massimali'!BJ134 -> 0 | AI134: ='Computo-Massimali'!BK134 -> 0 | AJ134: ='Computo-Massimali'!BL134 -> 0 | AK134: ='Computo-Massimali'!BM134 -> 0 | AL134: ='Computo-Massimali'!BN134 -> 0 | AM134: =IF(ABS(SUM(AH134:AL134)-H134)>0.01,"err. Somma",IF(AH134>'Computo-Massimali'!BJ134,"Err.1",IF(AI134>'Computo-Massimali'!BK134,"Err.2",IF(AJ134>'Computo-Massimali'!BL134,"Err.3",IF(AK134>'Computo-Massimali'!BM134,"Err.4",IF(AL134>'Computo-Massimali'!BN134,"Err.5","")))))) -> 
C135: Totale Interventi Trainati U.Imm.N.3 | F135: =IF(Titolare!$B$16="Versione Demo",0,F122+F123+SUM(F126:F134)) -> 0 | G135: =G122+G123+SUM(G126:G134) -> 0 | H135: 67474.54148 | I135: 6747.454148 | J135: 74221.99563 | K135: 19631.35761 | L135: 93853.35324 | M135: 61907.60508 | N135: =IF('Computo-Massimali'!L135>0,L135/'Computo-Massimali'!L135,0) -> 1 | O135: =IF(F135>0,IF(ABS(F135-0.001)>'Computo-Massimali'!F135,">C.",""),"") ->  | R135: =C135 -> Totale Interventi Trainati U.Imm.N.3 | U135: =U122+U123+SUM(U126:V134) -> 88439.43583 | W135: =W122+W123+SUM(W126:X134) -> 5413.917412 | Y135: =Y122+Y123+SUM(Y126:Z134) -> 48958.35722 | AA135: =AA122+AA123+SUM(AA126:AB134) -> 12949.24787 | AG135: =R135 -> Totale Interventi Trainati U.Imm.N.3 | AH135: =AH122+AH123+SUM(AH126:AH134) -> 67474.55 | AI135: =AI122+AI123+SUM(AI126:AI134) -> 0 | AJ135: =AJ122+AJ123+SUM(AJ126:AJ134) -> 0 | AK135: =AK122+AK123+SUM(AK126:AK134) -> 0 | AL135: =AL122+AL123+SUM(AL126:AL134) -> 0
C146: Note
C154: SimMZ
AG155: ='Computo-Massimali'!BI154 -> Ripartizione tra le Imprese - Imponibile Lavori INTERVENTI SB.
C156: TOTALI SAL N.1 - INTERVENTI SB. | F156: Importo Lavori | G156: Incidenza Sicurezza | H156: Imponibile | I156: Iva | J156: Importo c.iva | K156: Spese tecniche | L156: Totale | M156: =$M$8 -> Credito Spettante 70% Spesa Ammessa | N156: %SAL | Q156: =C156 -> TOTALI SAL N.1 - INTERVENTI SB. | U156: Spesa Ammessa | W156: Quota Eccedente Spesa Ammessa | Y156: =$Y$8 -> Credito Spettante 70% Spesa Ammessa Quota Imprese | Quota Tecnici | AG156: =Q156 -> TOTALI SAL N.1 - INTERVENTI SB. | AH156: =IF('Dati Gen'!$B$38<>"",'Dati Gen'!$B$38,"") -> Impresa1 | AI156: =IF('Dati Gen'!$B$39<>"",'Dati Gen'!$B$39,"") ->  | AJ156: =IF('Dati Gen'!$B$40<>"",'Dati Gen'!$B$40,"") ->  | AK156: =IF('Dati Gen'!$B$41<>"",'Dati Gen'!$B$41,"") ->  | AL156: =IF('Dati Gen'!$B$42<>"",'Dati Gen'!$B$42,"") -> 
F157: =F16+F37+F59+F97+F135 -> 14950.53 | G157: 0 | H157: 246502.56 | I157: 24650.256 | J157: 271152.816 | K157: 71718.60381 | L157: 342871.4198 | M157: 231688.206 | N157: =IF('Computo-Massimali'!L157>0,L157/'Computo-Massimali'!L157,0) -> 1 | O157: =IF(F157>0,IF(ABS(F157-0.001)>'Computo-Massimali'!F157,">C.",""),"") ->  | U157: =U16+U37+U59+U97+U135 -> 330983.1514 | W157: =W16+W37+W59+W97+W135 -> 11888.26836 | Y157: =Y16+Y37+Y59+Y97+Y135 -> 183225.8563 | AA157: =AA16+AA37+AA59+AA97+AA135 -> 48462.34971 | AH157: =AH16+AH37+AH59+AH97+AH135 -> 246502.5681 | AI157: =AI16+AI37+AI59+AI97+AI135 -> 0 | AJ157: =AJ16+AJ37+AJ59+AJ97+AJ135 -> 0 | AK157: =AK16+AK37+AK59+AK97+AK135 -> 0 | AL157: =AL16+AL37+AL59+AL97+AL135 -> 0
C158: =CONCATENATE("Quota a Carico Cliente per Interventi SB = Eccedenza Spesa Ammessa ",IF(percDetr<1,CONCATENATE("+",100*(1-percDetr),"%·Spesa Ammessa =")," =")) -> Quota a Carico Cliente per Interventi SB = Eccedenza Spesa Ammessa +30%·Spesa Ammessa = | L158: =IF((1-percDetr)*SpesaAmmessa30>0,QuotaEcced30+(1-percDetr)*SpesaAmmessa30,QuotaEcced30) -> 111183.2138 | M158: =IF('Computo-Massimali'!L15<>0,IF('Computo-Massimali'!L157-'Computo-Massimali'!L15>0,"SAL SB. - Sisma=",""),"") ->  | N158: =IF('Computo-Massimali'!L15<>0,IF('Computo-Massimali'!L157-'Computo-Massimali'!L15>0,(Totale30-L15)/('Computo-Massimali'!L157-'Computo-Massimali'!L15),""),"") -> 
K159: =CONCATENATE("Quota Cedibile = ",100*percDetr,"%·Spesa Ammessa = ") -> Quota Cedibile = 70%·Spesa Ammessa = | L159: =SpesaAmmessa30*percDetr -> 231688.206
C160: =IF(N157<30%,"Attenzione! SAL Superbonus inferiore 30%","") -> 
C163: ALTRI INTERVENTI | Q163: =CONCATENATE("Verifica Massimali di Spesa ",C163) -> Verifica Massimali di Spesa ALTRI INTERVENTI | AG163: ='Computo-Massimali'!BI163 -> Ripartizione tra le Imprese - Imponibile Lavori ALTRI INTERVENTI
C164: Interventi | E164: x% Credito ceduto | F164: Importo Lavori | G164: Incidenza Sicurezza | H164: Imponibile | I164: Iva | J164: Importo c.iva | K164: Spese tecniche | L164: Totale | M164: Credito Spettante x% Spesa Ammessa | N164: %SAL | R164: Massimale spesa | S164: Verifica Max | U164: Spesa Ammessa | W164: Quota Eccedente Spesa Ammessa | Y164: Credito Spettante x% Spesa Ammessa Quota Imprese | Quota Tecnici | AG164: Interventi | AH164: =IF('Dati Gen'!$B$38<>"",'Dati Gen'!$B$38,"") -> Impresa1 | AI164: =IF('Dati Gen'!$B$39<>"",'Dati Gen'!$B$39,"") ->  | AJ164: =IF('Dati Gen'!$B$40<>"",'Dati Gen'!$B$40,"") ->  | AK164: =IF('Dati Gen'!$B$41<>"",'Dati Gen'!$B$41,"") ->  | AL164: =IF('Dati Gen'!$B$42<>"",'Dati Gen'!$B$42,"") -> 
C165: =IF('Computo-Massimali'!C165<>"",'Computo-Massimali'!C165,"") -> Ristrutturazione | E165: ='Computo-Massimali'!E165 -> 0.5 | F165: ='Computo-Massimali'!F165 -> 0 | G165: =IF('Computo-Massimali'!F165<>0,'Computo-Massimali'!G165*F165/'Computo-Massimali'!F165,0) -> 0 | H165: =SUM(F165:G165) -> 0 | I165: =IF(('Computo-Massimali'!F165+'Computo-Massimali'!G165)<>0,'Computo-Massimali'!I165/('Computo-Massimali'!F165+'Computo-Massimali'!G165)*H165,0) -> 0 | J165: =H165+I165 -> 0 | K165: =IF('Computo-Massimali'!F165<>0,'Computo-Massimali'!K165*F165/'Computo-Massimali'!F165,0) -> 0 | L165: =SUM(J165:K165) -> 0 | M165: =IF(L165<=R165,L165*E165,R165*E165) -> 0 | N165: =IF('Computo-Massimali'!L165>0,L165/'Computo-Massimali'!L165,0) -> 0 | O165: =IF(F165>0,IF(ABS(F165-0.001)>'Computo-Massimali'!F165,">C.",""),"") ->  | P165: .. | Q165: =IF(C165<>"",C165,"") -> Ristrutturazione | R165: ='Computo-Massimali'!T165 -> 288000 | S165: =IF(L165>R165,"KO Tot.>Detr.","ok") -> ok | U165: =IF(L165<R165,L165,R165) -> 0 | W165: =IF(L165>R165,L165-R165,0) -> 0 | Y165: =IF(M165<>0,J165*M165/L165,0) -> 0 | AA165: =IF(M165<>0,K165*M165/L165,0) -> 0 | AG165: =Q165 -> Ristrutturazione | AH165: ='Computo-Massimali'!BJ165 -> 0 | AI165: ='Computo-Massimali'!BK165 -> 0 | AJ165: ='Computo-Massimali'!BL165 -> 0 | AK165: ='Computo-Massimali'!BM165 -> 0 | AL165: ='Computo-Massimali'!BN165 -> 0 | AM165: =IF(ABS(SUM(AH165:AL165)-H165)>0.01,"err. Somma",IF(AH165>'Computo-Massimali'!BJ165,"Err.1",IF(AI165>'Computo-Massimali'!BK165,"Err.2",IF(AJ165>'Computo-Massimali'!BL165,"Err.3",IF(AK165>'Computo-Massimali'!BM165,"Err.4",IF(AL165>'Computo-Massimali'!BN165,"Err.5","")))))) -> 
C166: =IF('Computo-Massimali'!C166<>"",'Computo-Massimali'!C166,"") -> Bonus Facciata | D166: =IF('Computo-Massimali'!D166<>"",'Computo-Massimali'!D166,"") -> Bonus Facciata | E166: ='Computo-Massimali'!E166 -> 0.6 | F166: ='Computo-Massimali'!F166 -> 0 | G166: =IF('Computo-Massimali'!F166<>0,'Computo-Massimali'!G166*F166/'Computo-Massimali'!F166,0) -> 0 | H166: =SUM(F166:G166) -> 0 | I166: =IF(('Computo-Massimali'!F166+'Computo-Massimali'!G166)<>0,'Computo-Massimali'!I166/('Computo-Massimali'!F166+'Computo-Massimali'!G166)*H166,0) -> 0 | J166: =H166+I166 -> 0 | K166: =IF('Computo-Massimali'!F166<>0,'Computo-Massimali'!K166*F166/'Computo-Massimali'!F166,0) -> 0 | L166: =SUM(J166:K166) -> 0 | M166: =IF(L166<=R166,L166*E166,R166*E166) -> 0 | N166: =IF('Computo-Massimali'!L166>0,L166/'Computo-Massimali'!L166,0) -> 0 | O166: =IF(F166>0,IF(ABS(F166-0.001)>'Computo-Massimali'!F166,">C.",""),"") ->  | P166: .. | Q166: =IF(C166<>"",C166,"") -> Bonus Facciata | R166: ='Computo-Massimali'!T166 -> 288000 | S166: =IF(L166>R166,"KO Tot.>Detr.","ok") -> ok | U166: =IF(L166<R166,L166,R166) -> 0 | W166: =IF(L166>R166,L166-R166,0) -> 0 | Y166: =IF(M166<>0,J166*M166/L166,0) -> 0 | AA166: =IF(M166<>0,K166*M166/L166,0) -> 0 | AG166: =Q166 -> Bonus Facciata | AH166: ='Computo-Massimali'!BJ166 -> 0 | AI166: ='Computo-Massimali'!BK166 -> 0 | AJ166: ='Computo-Massimali'!BL166 -> 0 | AK166: ='Computo-Massimali'!BM166 -> 0 | AL166: ='Computo-Massimali'!BN166 -> 0 | AM166: =IF(ABS(SUM(AH166:AL166)-H166)>0.01,"err. Somma",IF(AH166>'Computo-Massimali'!BJ166,"Err.1",IF(AI166>'Computo-Massimali'!BK166,"Err.2",IF(AJ166>'Computo-Massimali'!BL166,"Err.3",IF(AK166>'Computo-Massimali'!BM166,"Err.4",IF(AL166>'Computo-Massimali'!BN166,"Err.5","")))))) -> 
C167: =IF('Computo-Massimali'!C167<>"",'Computo-Massimali'!C167,"") -> Bonus Casa | D167: =IF('Computo-Massimali'!D167<>"",'Computo-Massimali'!D167,"") -> Bonus Casa | E167: ='Computo-Massimali'!E167 -> 0.7 | F167: ='Computo-Massimali'!F167 -> 0 | G167: =IF('Computo-Massimali'!F167<>0,'Computo-Massimali'!G167*F167/'Computo-Massimali'!F167,0) -> 0 | H167: =SUM(F167:G167) -> 0 | I167: =IF(('Computo-Massimali'!F167+'Computo-Massimali'!G167)<>0,'Computo-Massimali'!I167/('Computo-Massimali'!F167+'Computo-Massimali'!G167)*H167,0) -> 0 | J167: =H167+I167 -> 0 | K167: =IF('Computo-Massimali'!F167<>0,'Computo-Massimali'!K167*F167/'Computo-Massimali'!F167,0) -> 0 | L167: =SUM(J167:K167) -> 0 | M167: =IF(L167<=R167,L167*E167,R167*E167) -> 0 | N167: =IF('Computo-Massimali'!L167>0,L167/'Computo-Massimali'!L167,0) -> 0 | O167: =IF(F167>0,IF(ABS(F167-0.001)>'Computo-Massimali'!F167,">C.",""),"") ->  | P167: .. | Q167: =IF(C167<>"",C167,"") -> Bonus Casa | R167: ='Computo-Massimali'!T167 -> 288000 | S167: =IF(L167>R167,"KO Tot.>Detr.","ok") -> ok | U167: =IF(L167<R167,L167,R167) -> 0 | W167: =IF(L167>R167,L167-R167,0) -> 0 | Y167: =IF(M167<>0,J167*M167/L167,0) -> 0 | AA167: =IF(M167<>0,K167*M167/L167,0) -> 0 | AG167: =Q167 -> Bonus Casa | AH167: ='Computo-Massimali'!BJ167 -> 0 | AI167: ='Computo-Massimali'!BK167 -> 0 | AJ167: ='Computo-Massimali'!BL167 -> 0 | AK167: ='Computo-Massimali'!BM167 -> 0 | AL167: ='Computo-Massimali'!BN167 -> 0 | AM167: =IF(ABS(SUM(AH167:AL167)-H167)>0.01,"err. Somma",IF(AH167>'Computo-Massimali'!BJ167,"Err.1",IF(AI167>'Computo-Massimali'!BK167,"Err.2",IF(AJ167>'Computo-Massimali'!BL167,"Err.3",IF(AK167>'Computo-Massimali'!BM167,"Err.4",IF(AL167>'Computo-Massimali'!BN167,"Err.5","")))))) -> 
C168: =IF('Computo-Massimali'!C168<>"",'Computo-Massimali'!C168,"") ->  | D168: =IF('Computo-Massimali'!D168<>"",'Computo-Massimali'!D168,"") ->  | E168: ='Computo-Massimali'!E168 -> 0 | F168: ='Computo-Massimali'!F168 -> 0 | G168: =IF('Computo-Massimali'!F168<>0,'Computo-Massimali'!G168*F168/'Computo-Massimali'!F168,0) -> 0 | H168: =SUM(F168:G168) -> 0 | I168: =IF(('Computo-Massimali'!F168+'Computo-Massimali'!G168)<>0,'Computo-Massimali'!I168/('Computo-Massimali'!F168+'Computo-Massimali'!G168)*H168,0) -> 0 | J168: =H168+I168 -> 0 | K168: =IF('Computo-Massimali'!F168<>0,'Computo-Massimali'!K168*F168/'Computo-Massimali'!F168,0) -> 0 | L168: =SUM(J168:K168) -> 0 | M168: =IF(L168<=R168,L168*E168,R168*E168) -> 0 | N168: =IF('Computo-Massimali'!L168>0,L168/'Computo-Massimali'!L168,0) -> 0 | O168: =IF(F168>0,IF(ABS(F168-0.001)>'Computo-Massimali'!F168,">C.",""),"") ->  | P168: .. | Q168: =IF(C168<>"",C168,"") ->  | R168: ='Computo-Massimali'!T168 -> 288000 | S168: =IF(L168>R168,"KO Tot.>Detr.","ok") -> ok | U168: =IF(L168<R168,L168,R168) -> 0 | W168: =IF(L168>R168,L168-R168,0) -> 0 | Y168: =IF(M168<>0,J168*M168/L168,0) -> 0 | AA168: =IF(M168<>0,K168*M168/L168,0) -> 0 | AG168: =Q168 ->  | AH168: ='Computo-Massimali'!BJ168 -> 0 | AI168: ='Computo-Massimali'!BK168 -> 0 | AJ168: ='Computo-Massimali'!BL168 -> 0 | AK168: ='Computo-Massimali'!BM168 -> 0 | AL168: ='Computo-Massimali'!BN168 -> 0 | AM168: =IF(ABS(SUM(AH168:AL168)-H168)>0.01,"err. Somma",IF(AH168>'Computo-Massimali'!BJ168,"Err.1",IF(AI168>'Computo-Massimali'!BK168,"Err.2",IF(AJ168>'Computo-Massimali'!BL168,"Err.3",IF(AK168>'Computo-Massimali'!BM168,"Err.4",IF(AL168>'Computo-Massimali'!BN168,"Err.5","")))))) -> 
C169: TotalI SAL N.1 - Altri Interventi : | F169: =SUM(F165:F168) -> 0 | G169: =SUM(G165:G168) -> 0 | H169: =SUM(H165:H168) -> 0 | I169: 0 | J169: 0 | K169: 0 | L169: 0 | M169: 0 | N169: =IF('Computo-Massimali'!L169>0,L169/'Computo-Massimali'!L169,0) -> 0 | O169: =IF(F169>0,IF(ABS(F169-0.001)>'Computo-Massimali'!F169,">C.",""),"") ->  | R169: =C169 -> TotalI SAL N.1 - Altri Interventi : | U169: =SUM(U165:V168) -> 0 | W169: =SUM(W165:X168) -> 0 | Y169: =SUM(Y165:Z168) -> 0 | AA169: =SUM(AA165:AB168) -> 0 | AG169: =R169 -> TotalI SAL N.1 - Altri Interventi : | AH169: =SUM(AH165:AH168) -> 0 | AI169: =SUM(AI165:AI168) -> 0 | AJ169: =SUM(AJ165:AJ168) -> 0 | AK169: =SUM(AK165:AK168) -> 0 | AL169: =SUM(AL165:AL168) -> 0
C170: Quota a Carico Cliente per Altri Interventi = Eccedenza Spesa Ammessa + (100-x)%·Spesa Ammessa = | L170: =IF((1-E165)*U165+(1-E166)*U166+(1-E167)*U167+(1-E168)*U168>0,W169+(1-E165)*U165+(1-E166)*U166+(1-E167)*U167+(1-E168)*U168,W169) -> 0
K171: Quota Cedibile = x%·Spesa Ammessa = | L171: =U165*E165+U166*E166+U167*E167+U168*E168 -> 0 | AG171: ='Computo-Massimali'!BI174 -> Ripartizione tra le Imprese - Imponibile Lavori
C172: TOTALI SAL N.1 | F172: Importo Lavori Eseguiti | G172: Incidenza Sicurezza | H172: Imponibile | I172: Iva | J172: Importo c.iva | K172: Spese tecniche | L172: Totale | M172: Credito Spettante | N172: %SAL | Q172: =C172 -> TOTALI SAL N.1 | U172: Spesa Ammessa | W172: Quota Eccedente Spesa Ammessa | Y172: Credito Spettante Quota Imprese | Quota Tecnici | AG172: =Q172 -> TOTALI SAL N.1 | AH172: =IF('Dati Gen'!$B$38<>"",'Dati Gen'!$B$38,"") -> Impresa1 | AI172: =IF('Dati Gen'!$B$39<>"",'Dati Gen'!$B$39,"") ->  | AJ172: =IF('Dati Gen'!$B$40<>"",'Dati Gen'!$B$40,"") ->  | AK172: =IF('Dati Gen'!$B$41<>"",'Dati Gen'!$B$41,"") ->  | AL172: =IF('Dati Gen'!$B$42<>"",'Dati Gen'!$B$42,"") -> 
F173: =F157+F169 -> 14950.53 | G173: =G157+G169 -> 0 | H173: 246502.56 | I173: 24650.256 | J173: 271152.816 | K173: 71718.60381 | L173: 342871.4198 | M173: =M157+M169 -> 231688.206 | N173: =IF('Computo-Massimali'!L176>0,L173/'Computo-Massimali'!L176,0) -> 1 | O173: =IF(F173>0,IF(ABS(F173-0.001)>'Computo-Massimali'!F176,">C.",""),"") ->  | U173: =U157+U169 -> 330983.1514 | W173: =W157+W169 -> 11888.26836 | Y173: =Y157+Y169 -> 183225.8563 | AA173: =AA157+AA169 -> 48462.34971 | AH173: =AH157+AH169 -> 246502.5681 | AI173: =AI157+AI169 -> 0 | AJ173: =AJ157+AJ169 -> 0 | AK173: =AK157+AK169 -> 0 | AL173: =AL157+AL169 -> 0
C174: Quota Totale a Carico Cliente = | L174: =L158+L170 -> 111183.2138
C176: =IF(ABS(D5-G173)>0.01,"Importo Effettivo Lavori Eseguiti","") ->  | F176: =IF($C$176<>"",F173,"") ->  | G176: =IF($C$176<>"",G173,"") ->  | H176: =IF($C$176<>"",F176+G176,"") ->  | I176: =IF($C$176<>"",H176*AliqIva,"") ->  | J176: =IF($C$176<>"",H176+I176,"") ->  | K176: =IF($C$176<>"",K173,"") ->  | L176: =IF($C$176<>"",J176+K176,"") ->  | M176: =IF($C$176<>"",L176*percDetr,"") ->  | N176: =IF($C$176<>"",L176/'Computo-Massimali'!L176,"") ->  | R176: ·
C177: =IF($C$176<>"","Oneri/Lavori Sicurezza non imputabili al SAL, per lavori non eseguiti","") ->  | G177: =IF($C$177<>"",D5-G173,"") -> 
C180: Quota % effettiva per cessione credito a Banca o Impresa "Interventi SB." | H180: ='Computo-Massimali'!H180 -> 0.9090909091 | I180: ='Computo-Massimali'!I180 -> 90.90909091 | J180: Importo Ricevuto | K180: =L159*H180 -> 210625.6418 | L180: Costo Cess. SB | M180: =IF(L157-L158-K180>0,L157-L158-K180,0) -> 21062.56418
G181: Quota % effettiva per cessione credito a Banca o Impresa "Altri Interventi" | H181: ='Computo-Massimali'!H181 -> 0.8 | I181: ='Computo-Massimali'!I181 -> 80 | J181: Importo Ricevuto | K181: =L171*H181 -> 0 | L181: Costo Cess. Altri | M181: =IF(L171-K181>0,L171-K181,0) -> 0
F183: Costi Cliente | G183: Quota Imprese | H183: Quota Tecnici | K183: Costi Totali | L183: Quota Imprese | M183: Quota Tecnici
E184: Quota a Carico x Interventi Superbonus | F184: =L158 -> 111183.2138 | G184: =IF(Totale30<>0,F184*Import30/Totale30,0) -> 87926.9597 | H184: =IF(Totale30<>0,F184*SpeseTec30/Totale30,0) -> 23256.25409 | J184: Interventi Superbonus | K184: =Totale30 -> 342871.4198 | L184: =IF(Totale30<>0,K184*Import30/Totale30,0) -> 271152.816 | M184: =IF(Totale30<>0,K184*SpeseTec30/Totale30,0) -> 71718.60381
E185: Quota a Carico x Altri Interventi | F185: =L170 -> 0 | G185: =IF(L169<>0,F185*J169/L169,0) -> 0 | H185: =IF(L169<>0,F185*K169/L169,0) -> 0 | J185: Altri Interventi | K185: =L169 -> 0 | L185: =IF(L169<>0,K185*J169/L169,0) -> 0 | M185: =IF(L169<>0,K185*K169/L169,0) -> 0
E186: per Cessione Credito Superbonus | F186: =M180 -> 21062.56418 | G186: =IF(Totale30<>0,F186*Import30/Totale30,0) -> 16656.89603 | H186: =IF(Totale30<>0,F186*SpeseTec30/Totale30,0) -> 4405.668156 | J186: Costi Cessione | K186: =F186+F187 -> 21062.56418 | L186: =G186+G187 -> 16656.89603 | M186: =H186+H187 -> 4405.668156
E187: per Cessione Credito Altri Interventi | F187: =M181 -> 0 | G187: =IF(L169<>0,F187*J169/L169,0) -> 0 | H187: =IF(L169<>0,F187*K169/L169,0) -> 0 | J187: Sommano | K187: =SUM(K184:K186) -> 363933.984 | L187: =SUM(L184:L186) -> 287809.712 | M187: =SUM(M184:M186) -> 76124.27196
E188: Sommano | F188: =SUM(F184:F187) -> 132245.778 | G188: =SUM(G184:G187) -> 104583.8557 | H188: =SUM(H184:H187) -> 27661.92225

Sheet SAL.60%
P1: =MATCH("SimMZ",C:C,0) -> 154
C2: ='SAL.30%'!C2 -> Condominio Via Roma , 1 - Roma | F2: DATI PROGETTO : | G2: IMPONIBILE | H2: IVA | I2: IMPORTO | K2: IMPONIBILE | L2: IVA | M2: IMPORTO | N2: Pratica.SB
C3: STATO AVANZAMENTO LAVORI N.2 | F3: Importo Lavori | G3: ='Dati Gen'!G18 -> 246502.56 | H3: ='Dati Gen'!K18 -> 24650.256 | I3: ='Dati Gen'!M18 -> 271152.816 | J3: Importo Netto | K3: ='Dati Gen'!G20 -> 246502.56 | L3: ='Dati Gen'!K20 -> 24650.256 | M3: ='Dati Gen'!M20 -> 271152.816 | P3: *
C4: 22/12/2023 | F4: Oneri Sicurezza | G4: ='Dati Gen'!G19 -> 0 | H4: ='Dati Gen'!K19 -> 0 | I4: ='Dati Gen'!M19 -> 0 | J4: Spese Tecniche | K4: ='Dati Gen'!G21 -> 71718.60381 | L4: ='Dati Gen'!K21 -> 0 | M4: ='Dati Gen'!M21 -> 71718.60381 | Q4: =IF(Titolare!$B$16="Versione Demo","Versione Demo",IF('Computo-Massimali'!C6<>"","Attenzione! Tabella Computo-Massimali non completa. Si consiglia di completare, prima di registrare Voci di SAL","")) -> Versione Demo
C5: Oneri/Lavori x Sicurezza | D5: 15418.68 | K5: ='Dati Gen'!G22 -> Importo Complessivo Progetto | M5: ='Dati Gen'!M22 -> 342871.4198
C7: INTERVENTI TRAINANTI | O7: .. | Q7: =CONCATENATE("Verifica Massimali di Spesa ",C7) -> Verifica Massimali di Spesa INTERVENTI TRAINANTI | AG7: ='Computo-Massimali'!BI7 -> Ripartizione tra le Imprese - Imponibile Lavori INTERVENTI TRAINANTI | AO7: Ripartizione Spese Tecniche / Lavoro : SAL. N.2 - INTERVENTI SB.
C8: Interventi | F8: Importo Lavori | G8: Incidenza Sicurezza | H8: Imponibile | I8: Iva | J8: Importo c.iva | K8: Spese tecniche | L8: Totale | M8: =CONCATENATE("Credito Spettante ", percDetr*100,"% Spesa Ammessa") -> Credito Spettante 70% Spesa Ammessa | N8: %SAL | Q8: Interventi | R8: Massimale spesa | S8: Verifica Max | U8: Spesa Ammessa | W8: Quota Eccedente Massimale Spesa | Y8: =CONCATENATE("Credito Spettante",CHAR(10), percDetr*100,"% Spesa Ammessa",CHAR(10),"Quota Imprese | Quota Tecnici") -> Credito Spettante 70% Spesa Ammessa Quota Imprese | Quota Tecnici | AG8: Interventi | AH8: =IF('Dati Gen'!$B$38<>"",'Dati Gen'!$B$38,"") -> Impresa1 | AI8: =IF('Dati Gen'!$B$39<>"",'Dati Gen'!$B$39,"") ->  | AJ8: =IF('Dati Gen'!$B$40<>"",'Dati Gen'!$B$40,"") ->  | AK8: =IF('Dati Gen'!$B$41<>"",'Dati Gen'!$B$41,"") ->  | AL8: =IF('Dati Gen'!$B$42<>"",'Dati Gen'!$B$42,"") ->  | AO8: Lavoro | AQ8: Tecnico | AR8: Onorario | AT8: C.Cassa | AV8: Imponibile | AX8: IVA | AZ8: Totale | BB8: Applica Sconto in Fattura | BC8: =IF(ABS(SUM(AZ9:AZ17)-AZ18)>0.01,CONCATENATE("Errore: ",CHAR(10),"Somma Ripartizione Totale SB =",ROUND(SUM(AZ9:AZ17),2), " €. <> ",CHAR(10),"Totale Spese Tecniche =",ROUND(AZ18,2)," €."),"") -> 
C9: ='Computo-Massimali'!C9 -> PV) Isolamento pareti perimetrali | E9: ='Computo-Massimali'!E9 -> Esterno | F9: 57745.14 | G9: =IF('Computo-Massimali'!F9<>0,'Computo-Massimali'!G9*F9/'Computo-Massimali'!F9,0) -> 0 | H9: =SUM(F9:G9) -> 57745.14 | I9: =IF(('Computo-Massimali'!F9+'Computo-Massimali'!G9)<>0,'Computo-Massimali'!I9/('Computo-Massimali'!F9+'Computo-Massimali'!G9)*H9,0) -> 5774.514 | J9: =H9+I9 -> 63519.654 | K9: =IF('Computo-Massimali'!F9<>0,'Computo-Massimali'!K9*F9/'Computo-Massimali'!F9,0) -> 16800.64019 | L9: =SUM(J9:K9) -> 80320.29419 | M9: =IF(L9<=R9,L9*percDetr,R9*percDetr) -> 56224.20594 | N9: =IF('Computo-Massimali'!L9>0,L9/'Computo-Massimali'!L9,0) -> 0.6931559761 | O9: =IF(F9>0,IF(F9-0.001>'Computo-Massimali'!F9,">C.",IF(F9+0.001<'SAL.30%'!F9,"<S1","")),"") -> <S1 | P9: .. | Q9: =C9 -> PV) Isolamento pareti perimetrali | R9: ='Computo-Massimali'!T9 -> 115876.2197 | S9: =IF(L9>R9,"ko","ok") -> ok | U9: =IF(L13<>0,(L9/L13)*U13,0) -> 80320.29419 | W9: =IF(L9>R9,L9-R9,0) -> 0 | Y9: =IF(M9<>0,J9*M9/L9,0) -> 44463.7578 | AA9: =IF(M9<>0,K9*M9/L9,0) -> 11760.44814 | AG9: =Q9 -> PV) Isolamento pareti perimetrali | AH9: 60585.45 | AI9: 0 | AJ9: 0 | AK9: 0 | AL9: 0 | AM9: =IF(ABS(SUM(AH9:AL9)-H9)>0.01,"err. Somma",IF(AH9>'Computo-Massimali'!BJ9,"Err.1",IF(AI9>'Computo-Massimali'!BK9,"Err.2",IF(AJ9>'Computo-Massimali'!BL9,"Err.3",IF(AK9>'Computo-Massimali'!BM9,"Err.4",IF(AL9>'Computo-Massimali'!BN9,"Err.5","")))))) -> err. Somma | AO9: =IF('Dati Gen'!$B$25<>"",'Dati Gen'!$B$25,"") -> Progettazione Architettonica | AQ9: =IF('Dati Gen'!$C$25<>"",'Dati Gen'!$C$25,"") -> Architetto | AR9: =AV9/(1+AT9) -> 2075.020221 | AT9: ='Dati Gen'!G25 -> 0.04 | AU9: =AR9*AT9 -> 83.00080882 | AV9: =AZ9/(1+AX9) -> 2158.021029 | AX9: ='Dati Gen'!J25 -> 0.22 | AY9: =AX9*(AR9+AU9) -> 474.7646265 | AZ9: =IF('Dati Gen'!$M$36<>0,$AZ$18*'Dati Gen'!M25/'Dati Gen'!$M$36,0) -> 2632.785656 | BB9: =IF(AQ9<>"",VLOOKUP(AQ9,'Dati Gen'!$B$44:$D$51,3,0),"") -> NO
C10: ='Computo-Massimali'!C10 -> PO) Isolamento coperture | E10: ='Computo-Massimali'!E10 -> Esterno | F10: 0 | G10: =IF('Computo-Massimali'!F10<>0,'Computo-Massimali'!G10*F10/'Computo-Massimali'!F10,0) -> 0 | H10: =SUM(F10:G10) -> 0 | I10: =IF(('Computo-Massimali'!F10+'Computo-Massimali'!G10)<>0,'Computo-Massimali'!I10/('Computo-Massimali'!F10+'Computo-Massimali'!G10)*H10,0) -> 0 | J10: =H10+I10 -> 0 | K10: =IF('Computo-Massimali'!F10<>0,'Computo-Massimali'!K10*F10/'Computo-Massimali'!F10,0) -> 0 | L10: =SUM(J10:K10) -> 0 | M10: =IF(L10<=R10,L10*percDetr,R10*percDetr) -> 0 | N10: =IF('Computo-Massimali'!L10>0,L10/'Computo-Massimali'!L10,0) -> 0 | O10: =IF(F10>0,IF(F10-0.001>'Computo-Massimali'!F10,">C.",IF(F10+0.001<'SAL.30%'!F10,"<S1","")),"") ->  | P10: .. | Q10: PO) Isolamento coperture | R10: ='Computo-Massimali'!T10 -> 0 | S10: =IF(L10>R10,"ko","ok") -> ok | U10: =IF(L13<>0,(L10/L13)*U13,0) -> 0 | W10: 0 | Y10: 0 | AA10: 0 | AG10: PO) Isolamento coperture | AH10: =IF('Computo-Massimali'!F10<>0,F10*'Computo-Massimali'!BJ10/'Computo-Massimali'!F10,0) -> 0 | AI10: =IF('Computo-Massimali'!F10<>0,F10*'Computo-Massimali'!BK10/'Computo-Massimali'!F10,0) -> 0 | AJ10: =IF('Computo-Massimali'!F10<>0,F10*'Computo-Massimali'!BL10/'Computo-Massimali'!F10,0) -> 0 | AK10: =IF('Computo-Massimali'!F10<>0,F10*'Computo-Massimali'!BM10/'Computo-Massimali'!F10,0) -> 0 | AL10: =IF('Computo-Massimali'!F10<>0,F10*'Computo-Massimali'!BN10/'Computo-Massimali'!F10,0) -> 0 | AM10: =IF(ABS(SUM(AH10:AL10)-H10)>0.01,"err. Somma",IF(AH10>'Computo-Massimali'!BJ10,"Err.1",IF(AI10>'Computo-Massimali'!BK10,"Err.2",IF(AJ10>'Computo-Massimali'!BL10,"Err.3",IF(AK10>'Computo-Massimali'!BM10,"Err.4",IF(AL10>'Computo-Massimali'!BN10,"Err.5","")))))) ->  | AO10: =IF('Dati Gen'!$B$26<>"",'Dati Gen'!$B$26,"") -> Progettazione Termotecnica, APE | AQ10: =IF('Dati Gen'!$C$26<>"",'Dati Gen'!$C$26,"") -> Ingegnere1 | AR10: =AV10/(1+AT10) -> 1603.815106 | AT10: ='Dati Gen'!G26 -> 0.04 | AU10: 64.15260424 | AV10: =AZ10/(1+AX10) -> 1667.96771 | AX10: ='Dati Gen'!J26 -> 0.22 | AY10: =(AR10+AU10)*AX10 -> 366.9528962 | AZ10: =IF('Dati Gen'!$M$36<>0,$AZ$18*'Dati Gen'!M26/'Dati Gen'!$M$36,0) -> 2034.920606 | BB10: =IF(AQ10<>"",VLOOKUP(AQ10,'Dati Gen'!$B$44:$D$51,3,0),"") -> NO
C11: ='Computo-Massimali'!C11 -> POND) Isol. coperture non disperdenti | E11: ='Computo-Massimali'!E11 -> Esterno | F11: 11979.9 | G11: =IF('Computo-Massimali'!F11<>0,'Computo-Massimali'!G11*F11/'Computo-Massimali'!F11,0) -> 0 | H11: =SUM(F11:G11) -> 11979.9 | I11: =IF(('Computo-Massimali'!F11+'Computo-Massimali'!G11)<>0,'Computo-Massimali'!I11/('Computo-Massimali'!F11+'Computo-Massimali'!G11)*H11,0) -> 0 | J11: =H11+I11 -> 11979.9 | K11: =IF('Computo-Massimali'!F11<>0,'Computo-Massimali'!K11*F11/'Computo-Massimali'!F11,0) -> 0 | L11: =SUM(J11:K11) -> 11979.9 | M11: 0 | N11: =IF('Computo-Massimali'!L11>0,L11/'Computo-Massimali'!L11,0) -> 0 | O11: =IF(F11>0,IF(F11-0.001>'Computo-Massimali'!F11,">C.",IF(F11+0.001<'SAL.30%'!F11,"<S1","")),"") -> >C. | P11: .. | Q11: POND) Isol. coperture non disperdenti | R11: ='Computo-Massimali'!T11 -> 0 | S11: ko | U11: =IF(L13<>0,(L11/L13)*U13,0) -> 11979.9 | W11: 11979.9 | Y11: 0 | AA11: 0 | AG11: POND) Isol. coperture non disperdenti | AH11: 12569.1561 | AI11: 0 | AJ11: 0 | AK11: 0 | AL11: 0 | AM11: =IF(ABS(SUM(AH11:AL11)-H11)>0.01,"err. Somma",IF(AH11>'Computo-Massimali'!BJ11,"Err.1",IF(AI11>'Computo-Massimali'!BK11,"Err.2",IF(AJ11>'Computo-Massimali'!BL11,"Err.3",IF(AK11>'Computo-Massimali'!BM11,"Err.4",IF(AL11>'Computo-Massimali'!BN11,"Err.5","")))))) -> err. Somma | AO11: =IF('Dati Gen'!$B$27<>"",'Dati Gen'!$B$27,"") -> Direzione Lavori, CSE | AQ11: =IF('Dati Gen'!$C$27<>"",'Dati Gen'!$C$27,"") -> Architetto | AR11: 5632.065469 | AT11: ='Dati Gen'!G27 -> 0.04 | AU11: 225.2826188 | AV11: 5857.348088 | AX11: ='Dati Gen'!J27 -> 0.22 | AY11: 1288.616579 | AZ11: =IF('Dati Gen'!$M$36<>0,$AZ$18*'Dati Gen'!M27/'Dati Gen'!$M$36,0) -> 7145.964667 | BB11: =IF(AQ11<>"",VLOOKUP(AQ11,'Dati Gen'!$B$44:$D$51,3,0),"") -> NO
C12: ='Computo-Massimali'!C12 -> PS) Isolamento Pavimenti | E12: ='Computo-Massimali'!E12 -> Esterno | F12: 0 | G12: =IF('Computo-Massimali'!F12<>0,'Computo-Massimali'!G12*F12/'Computo-Massimali'!F12,0) -> 0 | H12: =SUM(F12:G12) -> 0 | I12: =IF(('Computo-Massimali'!F12+'Computo-Massimali'!G12)<>0,'Computo-Massimali'!I12/('Computo-Massimali'!F12+'Computo-Massimali'!G12)*H12,0) -> 0 | J12: =H12+I12 -> 0 | K12: =IF('Computo-Massimali'!F12<>0,'Computo-Massimali'!K12*F12/'Computo-Massimali'!F12,0) -> 0 | L12: =SUM(J12:K12) -> 0 | M12: 0 | N12: =IF('Computo-Massimali'!L12>0,L12/'Computo-Massimali'!L12,0) -> 0 | O12: =IF(F12>0,IF(F12-0.001>'Computo-Massimali'!F12,">C.",IF(F12+0.001<'SAL.30%'!F12,"<S1","")),"") ->  | P12: .. | Q12: PS) Isolamento Pavimenti | R12: ='Computo-Massimali'!T12 -> 0 | S12: ok | U12: =IF(L13<>0,(L12/L13)*U13,0) -> 0 | W12: 0 | Y12: 0 | AA12: 0 | AG12: PS) Isolamento Pavimenti | AH12: =IF('Computo-Massimali'!F12<>0,F12*'Computo-Massimali'!BJ12/'Computo-Massimali'!F12,0) -> 0 | AI12: =IF('Computo-Massimali'!F12<>0,F12*'Computo-Massimali'!BK12/'Computo-Massimali'!F12,0) -> 0 | AJ12: =IF('Computo-Massimali'!F12<>0,F12*'Computo-Massimali'!BL12/'Computo-Massimali'!F12,0) -> 0 | AK12: =IF('Computo-Massimali'!F12<>0,F12*'Computo-Massimali'!BM12/'Computo-Massimali'!F12,0) -> 0 | AL12: =IF('Computo-Massimali'!F12<>0,F12*'Computo-Massimali'!BN12/'Computo-Massimali'!F12,0) -> 0 | AM12: =IF(ABS(SUM(AH12:AL12)-H12)>0.01,"err. Somma",IF(AH12>'Computo-Massimali'!BJ12,"Err.1",IF(AI12>'Computo-Massimali'!BK12,"Err.2",IF(AJ12>'Computo-Massimali'!BL12,"Err.3",IF(AK12>'Computo-Massimali'!BM12,"Err.4",IF(AL12>'Computo-Massimali'!BN12,"Err.5","")))))) ->  | AO12: =IF('Dati Gen'!$B$28<>"",'Dati Gen'!$B$28,"") -> DL., Computo, Contabilità, Asseverazione | AQ12: =IF('Dati Gen'!$C$28<>"",'Dati Gen'!$C$28,"") -> Ingegnere1 | AR12: 5154.43706 | AT12: ='Dati Gen'!G28 -> 0.04 | AU12: 206.1774824 | AV12: 5360.614542 | AX12: ='Dati Gen'!J28 -> 0.22 | AY12: 1179.335199 | AZ12: =IF('Dati Gen'!$M$36<>0,$AZ$18*'Dati Gen'!M28/'Dati Gen'!$M$36,0) -> 6539.949742 | BB12: =IF(AQ12<>"",VLOOKUP(AQ12,'Dati Gen'!$B$44:$D$51,3,0),"") -> NO
C13: ='Computo-Massimali'!C13 -> Totali Isolamento PV) PO) POND) PS) | F13: =SUM(F9:F12) -> 69725.04 | G13: =SUM(G9:G12) -> 0 | H13: =SUM(H9:H12) -> 69725.04 | I13: 5774.514 | J13: 75499.554 | K13: 16800.64019 | L13: 92300.19419 | M13: 64610.13594 | N13: =IF('Computo-Massimali'!L13>0,L13/'Computo-Massimali'!L13,0) -> 0.7965412956 | O13: =IF(F13>0,IF(F13-0.001>'Computo-Massimali'!F13,">C.",IF(F13+0.001<'SAL.30%'!F13,"<S1","")),"") -> <S1 | Q13: Totali Isolamento PV) PO) POND) PS) | R13: ='Computo-Massimali'!T13 -> 115876.2197 | S13: ok | U13: =IF(L13<R13,L13,R13) -> 92300.19419 | W13: 0 | Y13: 52849.6878 | AA13: 11760.44814 | AG13: Totali Isolamento PV) PO) POND) PS) | AH13: =SUM(AH9:AH12) -> 73154.6061 | AI13: =SUM(AI9:AI12) -> 0 | AJ13: =SUM(AJ9:AJ12) -> 0 | AK13: =SUM(AK9:AK12) -> 0 | AL13: =SUM(AL9:AL12) -> 0 | AO13: =IF('Dati Gen'!$B$29<>"",'Dati Gen'!$B$29,"") ->  | AQ13: =IF('Dati Gen'!$C$29<>"",'Dati Gen'!$C$29,"") ->  | AR13: =AV13/(1+AT13) -> 0 | AT13: ='Dati Gen'!G29 -> 0 | AU13: 0 | AV13: 0 | AX13: ='Dati Gen'!J29 -> 0.22 | AY13: 0 | AZ13: =IF('Dati Gen'!$M$36<>0,$AZ$18*'Dati Gen'!M29/'Dati Gen'!$M$36,0) -> 0 | BB13: =IF(AQ13<>"",VLOOKUP(AQ13,'Dati Gen'!$B$44:$D$51,3,0),"") -> 
C14: =CONCATENATE('Computo-Massimali'!C14," con ",'Computo-Massimali'!D14) -> Impianti climatizzazione e ACS con PC)Aria/Aria | F14: 0 | G14: =IF('Computo-Massimali'!F14<>0,'Computo-Massimali'!G14*F14/'Computo-Massimali'!F14,0) -> 0 | H14: =SUM(F14:G14) -> 0 | I14: =IF(('Computo-Massimali'!F14+'Computo-Massimali'!G14)<>0,'Computo-Massimali'!I14/('Computo-Massimali'!F14+'Computo-Massimali'!G14)*H14,0) -> 0 | J14: =H14+I14 -> 0 | K14: =IF('Computo-Massimali'!F14<>0,'Computo-Massimali'!K14*F14/'Computo-Massimali'!F14,0) -> 0 | L14: =SUM(J14:K14) -> 0 | M14: 0 | N14: =IF('Computo-Massimali'!L14>0,L14/'Computo-Massimali'!L14,0) -> 0 | O14: =IF(F14>0,IF(F14-0.001>'Computo-Massimali'!F14,">C.",IF(F14+0.001<'SAL.30%'!F14,"<S1","")),"") ->  | P14: .. | Q14: Impianti climatizzazione e ACS con PC)Aria/Aria | R14: ='Computo-Massimali'!T14 -> 0 | S14: ok | U14: =IF(L14<R14,L14,R14) -> 0 | W14: 0 | Y14: 0 | AA14: 0 | AG14: Impianti climatizzazione e ACS con PC)Aria/Aria | AH14: 0 | AI14: 0 | AJ14: 0 | AK14: 0 | AL14: 0 | AM14: =IF(ABS(SUM(AH14:AL14)-H14)>0.01,"err. Somma",IF(AH14>'Computo-Massimali'!BJ14,"Err.1",IF(AI14>'Computo-Massimali'!BK14,"Err.2",IF(AJ14>'Computo-Massimali'!BL14,"Err.3",IF(AK14>'Computo-Massimali'!BM14,"Err.4",IF(AL14>'Computo-Massimali'!BN14,"Err.5","")))))) ->  | AO14: =IF('Dati Gen'!$B$30<>"",'Dati Gen'!$B$30,"") ->  | AQ14: =IF('Dati Gen'!$C$30<>"",'Dati Gen'!$C$30,"") ->  | AR14: =AV14/(1+AT14) -> 0 | AT14: ='Dati Gen'!G30 -> 0.04 | AU14: 0 | AV14: 0 | AX14: ='Dati Gen'!J30 -> 0.22 | AY14: 0 | AZ14: =IF('Dati Gen'!$M$36<>0,$AZ$18*'Dati Gen'!M30/'Dati Gen'!$M$36,0) -> 0 | BB14: =IF(AQ14<>"",VLOOKUP(AQ14,'Dati Gen'!$B$44:$D$51,3,0),"") -> 
C15: =CONCATENATE('Computo-Massimali'!C15,'Computo-Massimali'!E15) -> SismaBonus Zona 1,2 o 3 P.Classi = | F15: 103997.57 | G15: =IF('Computo-Massimali'!F15<>0,'Computo-Massimali'!G15*F15/'Computo-Massimali'!F15,0) -> 0 | H15: =SUM(F15:G15) -> 103997.57 | I15: =IF(('Computo-Massimali'!F15+'Computo-Massimali'!G15)<>0,'Computo-Massimali'!I15/('Computo-Massimali'!F15+'Computo-Massimali'!G15)*H15,0) -> 0 | J15: =H15+I15 -> 103997.57 | K15: =IF('Computo-Massimali'!F15<>0,'Computo-Massimali'!K15*F15/'Computo-Massimali'!F15,0) -> 0 | L15: =SUM(J15:K15) -> 103997.57 | M15: 72798.299 | N15: =IF('Computo-Massimali'!L15>0,L15/'Computo-Massimali'!L15,0) -> 0 | O15: =IF(F15>0,IF(F15-0.001>'Computo-Massimali'!F15,">C.",IF(F15+0.001<'SAL.30%'!F15,"<S1","")),"") -> >C. | P15: .. | Q15: SismaBonus Zona 1,2 o 3 P.Classi = | R15: ='Computo-Massimali'!T15 -> 288000 | S15: ok | U15: =IF(L15<R15,L15,R15) -> 103997.57 | W15: 0 | Y15: 72798.299 | AA15: 0 | AG15: SismaBonus Zona 1,2 o 3 P.Classi = | AH15: 109112.9054 | AI15: 0 | AJ15: 0 | AK15: 0 | AL15: 0 | AM15: =IF(ABS(SUM(AH15:AL15)-H15)>0.01,"err. Somma",IF(AH15>'Computo-Massimali'!BJ15,"Err.1",IF(AI15>'Computo-Massimali'!BK15,"Err.2",IF(AJ15>'Computo-Massimali'!BL15,"Err.3",IF(AK15>'Computo-Massimali'!BM15,"Err.4",IF(AL15>'Computo-Massimali'!BN15,"Err.5","")))))) -> err. Somma | AO15: =IF('Dati Gen'!$B$31<>"",'Dati Gen'!$B$31,"") ->  | AQ15: =IF('Dati Gen'!$C$31<>"",'Dati Gen'!$C$31,"") ->  | AR15: 0 | AT15: ='Dati Gen'!G31 -> 0.04 | AU15: 0 | AV15: 0 | AX15: ='Dati Gen'!J31 -> 0.22 | AY15: 0 | AZ15: =IF('Dati Gen'!$M$36<>0,$AZ$18*'Dati Gen'!M31/'Dati Gen'!$M$36,0) -> 0 | BB15: =IF(AQ15<>"",VLOOKUP(AQ15,'Dati Gen'!$B$44:$D$51,3,0),"") -> 
C16: ='Computo-Massimali'!C16 -> Totale interventi Trainanti : | F16: =IF(Titolare!$B$16="Versione Demo",0,SUM(F13:F15)) -> 0 | G16: =SUM(G13:G15) -> 0 | H16: 173722.61 | I16: 5774.514 | J16: 179497.124 | K16: 16800.64019 | L16: 196297.7642 | M16: =SUM(M13:M15) -> 137408.4349 | N16: =IF('Computo-Massimali'!L16>0,L16/'Computo-Massimali'!L16,0) -> 1.694029756 | O16: =IF(F16>0,IF(F16-0.001>'Computo-Massimali'!F16,">C.",IF(F16+0.001<'SAL.30%'!F16,"<S1","")),"") ->  | R16: =C16 -> Totale interventi Trainanti : | U16: =SUM(U13:V15) -> 196297.7642 | W16: =SUM(W13:X15) -> 0 | Y16: =SUM(Y13:Z15) -> 125647.9868 | AA16: =SUM(AA13:AB15) -> 11760.44814 | AG16: =R16 -> Totale interventi Trainanti : | AH16: =SUM(AH13:AH15) -> 182267.5115 | AI16: =SUM(AI13:AI15) -> 0 | AJ16: =SUM(AJ13:AJ15) -> 0 | AK16: =SUM(AK13:AK15) -> 0 | AL16: =SUM(AL13:AL15) -> 0 | AO16: =IF('Dati Gen'!$B$32<>"",'Dati Gen'!$B$32,"") ->  | AQ16: =IF('Dati Gen'!$C$32<>"",'Dati Gen'!$C$32,"") ->  | AR16: 0 | AT16: ='Dati Gen'!G32 -> 0.04 | AU16: 0 | AV16: 0 | AX16: ='Dati Gen'!J32 -> 0.22 | AY16: 0 | AZ16: =IF('Dati Gen'!$M$36<>0,$AZ$18*'Dati Gen'!M32/'Dati Gen'!$M$36,0) -> 0 | BB16: =IF(AQ16<>"",VLOOKUP(AQ16,'Dati Gen'!$B$44:$D$51,3,0),"") -> 
AO17: =IF('Dati Gen'!$B$35<>"",'Dati Gen'!$B$35,"") -> Visto Conformità | AQ17: =IF('Dati Gen'!$C$35<>"",'Dati Gen'!$C$35,"") -> Consulente | AR17: 1941.129733 | AT17: ='Dati Gen'!G35 -> 0.04 | AU17: 77.64518934 | AV17: 2018.774923 | AX17: ='Dati Gen'!J35 -> 0.22 | AY17: 444.130483 | AZ17: =IF('Dati Gen'!$M$36<>0,$AZ$18*'Dati Gen'!M35/'Dati Gen'!$M$36,0) -> 2462.905406 | BB17: =IF(AQ17<>"",VLOOKUP(AQ17,'Dati Gen'!$B$44:$D$51,3,0),"") -> NO
C18: INTERVENTI TRAINATI PARTI COMUNI CONDOMINIALI | O18: .. | Q18: =CONCATENATE("Verifica Massimali di Spesa ",C18) -> Verifica Massimali di Spesa INTERVENTI TRAINATI PARTI COMUNI CONDOMINIALI | AG18: ='Computo-Massimali'!BI18 -> Ripartizione tra le Imprese - Imponibile Lavori INTERVENTI TRAINATI PARTI COMUNI CONDOMINIALI | AR18: =SUM(AR9:AS17) -> 16406.46759 | AT18: =SUM(AU9:AU17) -> 656.2587036 | AV18: =SUM(AV9:AW17) -> 17062.72629 | AY18: =SUM(AY9:AY17) -> 3753.799784 | AZ18: =K157 -> 20816.52608
C19: Interventi | F19: Importo Lavori | G19: Incidenza Sicurezza | H19: Imponibile | I19: Iva | J19: Importo c.iva | K19: Spese tecniche | L19: Totale | M19: =$M$8 -> Credito Spettante 70% Spesa Ammessa | N19: %SAL | Q19: Interventi | R19: Massimale spesa | S19: Verifica Max | U19: Spesa Ammessa | W19: Quota Eccedente Massimale Spesa | Y19: =$Y$8 -> Credito Spettante 70% Spesa Ammessa Quota Imprese | Quota Tecnici | AG19: Interventi | AH19: =IF('Dati Gen'!$B$38<>"",'Dati Gen'!$B$38,"") -> Impresa1 | AI19: =IF('Dati Gen'!$B$39<>"",'Dati Gen'!$B$39,"") ->  | AJ19: =IF('Dati Gen'!$B$40<>"",'Dati Gen'!$B$40,"") ->  | AK19: =IF('Dati Gen'!$B$41<>"",'Dati Gen'!$B$41,"") ->  | AL19: =IF('Dati Gen'!$B$42<>"",'Dati Gen'!$B$42,"") ->  | AO19: Ripartizione Spese Tecniche / Professionista : SAL. N.2 - INTERVENTI SB.
C20: ='Computo-Massimali'!C20 -> PV) Isolamento pareti perimetrali | E20: ='Computo-Massimali'!E20 -> Esterno | F20: 0 | G20: =IF('Computo-Massimali'!F20<>0,'Computo-Massimali'!G20*F20/'Computo-Massimali'!F20,0) -> 0 | H20: =SUM(F20:G20) -> 0 | I20: =IF(('Computo-Massimali'!F20+'Computo-Massimali'!G20)<>0,'Computo-Massimali'!I20/('Computo-Massimali'!F20+'Computo-Massimali'!G20)*H20,0) -> 0 | J20: =H20+I20 -> 0 | K20: =IF('Computo-Massimali'!F20<>0,'Computo-Massimali'!K20*F20/'Computo-Massimali'!F20,0) -> 0 | L20: =SUM(J20:K20) -> 0 | M20: =IF(L20<=R20,L20*percDetr,R20*percDetr) -> 0 | N20: =IF('Computo-Massimali'!L20>0,L20/'Computo-Massimali'!L20,0) -> 0 | O20: =IF(F20>0,IF(F20-0.001>'Computo-Massimali'!F20,">C.",IF(F20+0.001<'SAL.30%'!F20,"<S1","")),"") ->  | P20: .. | Q20: =C20 -> PV) Isolamento pareti perimetrali | R20: ='Computo-Massimali'!T20 -> 0 | S20: =IF(L20>R20,"ko","ok") -> ok | U20: =IF(L24<>0,(L20/L24)*U24,0) -> 0 | W20: =IF(L20>R20,L20-R20,0) -> 0 | Y20: =IF(M20<>0,J20*M20/L20,0) -> 0 | AA20: =IF(M20<>0,K20*M20/L20,0) -> 0 | AG20: =Q20 -> PV) Isolamento pareti perimetrali | AH20: =IF('Computo-Massimali'!F20<>0,F20*'Computo-Massimali'!BJ20/'Computo-Massimali'!F20,0) -> 0 | AI20: =IF('Computo-Massimali'!F20<>0,F20*'Computo-Massimali'!BK20/'Computo-Massimali'!F20,0) -> 0 | AJ20: =IF('Computo-Massimali'!F20<>0,F20*'Computo-Massimali'!BL20/'Computo-Massimali'!F20,0) -> 0 | AK20: =IF('Computo-Massimali'!F20<>0,F20*'Computo-Massimali'!BM20/'Computo-Massimali'!F20,0) -> 0 | AL20: =IF('Computo-Massimali'!F20<>0,F20*'Computo-Massimali'!BN20/'Computo-Massimali'!F20,0) -> 0 | AM20: =IF(ABS(SUM(AH20:AL20)-H20)>0.01,"err. Somma",IF(AH20>'Computo-Massimali'!BJ20,"Err.1",IF(AI20>'Computo-Massimali'!BK20,"Err.2",IF(AJ20>'Computo-Massimali'!BL20,"Err.3",IF(AK20>'Computo-Massimali'!BM20,"Err.4",IF(AL20>'Computo-Massimali'!BN20,"Err.5","")))))) ->  | AO20: =IF('Dati Gen'!$B$44<>"",'Dati Gen'!$B$44,"") -> Ingegnere1 | AP20: =IF('Dati Gen'!$B$45<>"",'Dati Gen'!$B$45,"") -> Architetto | AQ20: =IF('Dati Gen'!$B$46<>"",'Dati Gen'!$B$46,"") -> Consulente | AR20: =IF('Dati Gen'!$B$47<>"",'Dati Gen'!$B$47,"") ->  | AT20: =IF('Dati Gen'!$B$48<>"",'Dati Gen'!$B$48,"") ->  | AV20: =IF('Dati Gen'!$B$49<>"",'Dati Gen'!$B$49,"") ->  | AX20: =IF('Dati Gen'!$B$50<>"",'Dati Gen'!$B$50,"") ->  | AZ20: =IF('Dati Gen'!$B$51<>"",'Dati Gen'!$B$51,"") -> 
C21: ='Computo-Massimali'!C21 -> PO) Isolamento coperture | E21: ='Computo-Massimali'!E21 -> Esterno | F21: 0 | G21: =IF('Computo-Massimali'!F21<>0,'Computo-Massimali'!G21*F21/'Computo-Massimali'!F21,0) -> 0 | H21: =SUM(F21:G21) -> 0 | I21: =IF(('Computo-Massimali'!F21+'Computo-Massimali'!G21)<>0,'Computo-Massimali'!I21/('Computo-Massimali'!F21+'Computo-Massimali'!G21)*H21,0) -> 0 | J21: =H21+I21 -> 0 | K21: =IF('Computo-Massimali'!F21<>0,'Computo-Massimali'!K21*F21/'Computo-Massimali'!F21,0) -> 0 | L21: =SUM(J21:K21) -> 0 | M21: =IF(L21<=R21,L21*percDetr,R21*percDetr) -> 0 | N21: =IF('Computo-Massimali'!L21>0,L21/'Computo-Massimali'!L21,0) -> 0 | O21: =IF(F21>0,IF(F21-0.001>'Computo-Massimali'!F21,">C.",IF(F21+0.001<'SAL.30%'!F21,"<S1","")),"") ->  | P21: .. | Q21: PO) Isolamento coperture | R21: ='Computo-Massimali'!T21 -> 9815.769809 | S21: ok | U21: =IF(L24<>0,(L21/L24)*U24,0) -> 0 | W21: 0 | Y21: 0 | AA21: 0 | AG21: PO) Isolamento coperture | AH21: =IF('Computo-Massimali'!F21<>0,F21*'Computo-Massimali'!BJ21/'Computo-Massimali'!F21,0) -> 0 | AI21: =IF('Computo-Massimali'!F21<>0,F21*'Computo-Massimali'!BK21/'Computo-Massimali'!F21,0) -> 0 | AJ21: =IF('Computo-Massimali'!F21<>0,F21*'Computo-Massimali'!BL21/'Computo-Massimali'!F21,0) -> 0 | AK21: =IF('Computo-Massimali'!F21<>0,F21*'Computo-Massimali'!BM21/'Computo-Massimali'!F21,0) -> 0 | AL21: =IF('Computo-Massimali'!F21<>0,F21*'Computo-Massimali'!BN21/'Computo-Massimali'!F21,0) -> 0 | AM21: =IF(ABS(SUM(AH21:AL21)-H21)>0.01,"err. Somma",IF(AH21>'Computo-Massimali'!BJ21,"Err.1",IF(AI21>'Computo-Massimali'!BK21,"Err.2",IF(AJ21>'Computo-Massimali'!BL21,"Err.3",IF(AK21>'Computo-Massimali'!BM21,"Err.4",IF(AL21>'Computo-Massimali'!BN21,"Err.5","")))))) ->  | AO21: =IF($AQ9=AO$20,$AZ9,0) -> 0 | AP21: =IF($AQ9=AP$20,$AZ9,0) -> 2632.785656 | AQ21: 0 | AR21: =IF($AQ9=AR$20,$AZ9,0) -> 0 | AT21: =IF($AQ9=AT$20,$AZ9,0) -> 0 | AV21: =IF($AQ9=AV$20,$AZ9,0) -> 0 | AX21: =IF($AQ9=AX$20,$AZ9,0) -> 0 | AZ21: =IF($AQ9=AZ$20,$AZ9,0) -> 0
